Workbook

Sheet Notes
A1: TimingWithPairs.xlsm
A2: Coded beginning 2014-Jan-07 by Ronald McAllister (rpmac_xltt@sprynet.com)
A4: This Workbook demonstrates an EXCEL version of the ideas presented
A5: by Perry Kaufman in an article titled "Timing The Market With Pairs"
A6: which appears in the March 2014 issue of
A7: "Technical Analysis of Stocks and Commodities" magazine.
A9: Change Log
B10: 2014Feb13 rpmac_xltt
C11: Patches to data retrieval from previously downloaded price history .csv file. Put data on sheet that called for .csv. Also adjust formatting of columns, etc.
C12: Patched direct from Yahoo download code to remove code which sets properties not supported by the MAC version of EXCEL.
B13: 2014Feb19 rpmac_xltt
C14: MAC version of VBA texttocolumns does not like parameter TrailingMinusNumbers. Removed it from three places in the direct from Yahoo VBA code
A16: CalculationsAndCharts construction Notes:
C18: Figure 1 from the article can be approximated by retieving data for symbol HES on the InputPriceData tab and
C19: retrieveing data for symbol SPY on the InputIndexData tab.
C20: Then, on the CalculationsAndCharts tab, in the "Help I want to Plot..." area, set dates 12/31/2010 and 7/11/2011.
C21: Click the "Chart These Dates" button.
C23: A more extensive set of hedges can be seen using the dates 11/23/2007 thru 2/2/2009 with the "I want to plot" mechanism.
C25: The P&L Chart tab will approximate Figure 2 from the article if, in the "Help I want to Plot..." area, you set the
C26: "TO:" date to 5/29/2013, and the "FROM:" date to something like 4/29/2012. The exact value of the
C27: FROM: date is not important, only that it must be in the available InputPriceData.
C28: Click the "Chart These Dates" button.
C29: Click on the P&L chart tab to see the results.
C31: Note: There is a slight difference in the way results are calculated at various locations in this spreadsheet:
C32: The example code uses Easylanguage scripting structures to buy or sell "next bar at market".
C33: By default, the Easylanguage simulator uses the OPEN price of that next bar as the Market Price.
C34: This default corresponds to the logic I have used to derive the transactions shown on the "Transaction Summary" accounting Tab.
C36: The P & L logic shown in the Author's Easylanguage side bar creates a running P&L by way of daily P&L values derived from the CLOSE of the bars participating in the transaction.
C37: I have duplicated the author's logic using Closing Prices for the P&L Chart.
C39: Just be aware that the results for any given transaction can be significantly different between these two pricing schemes.
A41: Data for this EXCEL example:
C43: This methods presented in this article requires two sets of data: an equity and market representative index.
C44: To support this requirement I have used the existing InputDataTab as the Equity Input (named Data1 in the Easylanguage example code).
C45: I have cloned this tab as the InputIndexData tab and will use this as the Index Input (named Data2 in the example code)
C46: The user is responsible for making sure that these two tabs stay in sync date wise.
A54: Development Notes:
A55: 1 | C55: This workbook contains and uses VBA macros.
A56: 2 | C56: Input Data
C57: The data in this workbook is sorted date descending (most recent date at the top). All formulas and
C58: VBA routines are built accordingly.
A60: Calculation and Chart Worksheet Usage Comments:
A61: 1 | C61: In General, Items in Bolded BLUE are items you may freely change to play what-if games.
C62: Be sure to have a backup copy of the spreadsheet before you alter anything else.
A63: 2 | C63: Several of the column formulas begin with "IF" logic that determines when there is sufficient data
C64: available for the subsequent calculations to be relevant. The cell will calculate to blank or the
C65: result of the calculation.
C66: In a couple of cases, this "IF" logic also sets starter values for subsequent smoothing calculations.
A67: 3 | C67: Data windowing can be performed by changing cell A11. Positive values logically "Pan" the
C68: data window represented by the Calculation sheet down the input sheet and back in time.
C69: This can have two side effects: First, data may fall outside of the fixed Y-axis scales and be clipped
C70: or fall well inside the Y-axis scales wasting a lot of chart vertical space. Second, you may move far
C71: enough back that you do not have sufficient data points to fill the left of the chart.
A72: 4 | C72: The VBA macros behind the SetChart button address these Data Windowing problems and also
C73: resizes and vertically aligns all charts on the work sheet to match the Price chart and then
C74: horizontally adjusts the X-axis positions of all charts on the work sheet so that the corresponding
C75: data points align vertically.
C76: The macros behind the SetChart button are sensitive to the user control values in cells A11 and
C77: A12, and also uses the computed values in cells A8, F11, and F12

Sheet InputPriceData
A1: Hess Corporation (HES) -NYSE
A2: Last Trade: | B2: 2014-02-19 | C2: 80.15 | D2: 81.32 | E2: 80.13 | F2: 81.16 | G2: 1952162 | H2: 3:00pm | L2: Notes: | M2: Online Yahoo Finance Query Interfaces used in the VBA code to obtain this data:
A3: Request Online Yahoo History for: | M3: A.) Price History Only: "http://ichart.finance.yahoo.com/table.csv"
A4: Symbol | B4: HES | D4: Valid | M4: B.) Price History w/ imbedded divs n splits: "http://ichart.finance.yahoo.com/x"
A5: From | B5: 1977-01-07 | D5: Data
A6: To | B6: =TODAY() -> 2014-02-19 | D6: Types | E6: =VLOOKUP(B7,D7:E10,2,FALSE) -> d | M6: C.) Fundamentals (in this case name and exchange):
A7: Data Type | B7: Daily | D7: Daily | E7: d | M7: "http://download.finance.yahoo.com/d/quotes.csv?"
D8: Weekly | E8: w | M8: For some how-to doc regarding this particular interface, including a list of the
A9: Available Data | D9: Monthly | E9: m | M9: specific fields you can include in a request to this interface see:
A10: Bar Count: | B10: =COUNTA(B16:B56195) -> 3500 | M10: http://www.gummy-stuff.org/Yahoo-data.htm
A11: From: | B11: =IF(B10<=0,"",OFFSET(B15,B10,IF(HistReqDataType="v",1,0),1,1)) -> 2000-03-13 | M11: This web site includes a downloadable working EXCEL/VBA example
A12: To: | B12: =IF(B10<=0,"",IF(HistReqDataType="v",OFFSET(B15,2,1,1,1),OFFSET(B15,1,0,1,1))) -> 2014-02-18 | M12: of the capabilities of this interface.
Q13: Split History | S13: =COUNT(Q16:Q7889) -> 2 | T13: Running | U13: Dividend History
B14: Raw Data Values | H14: Adjusted | I14: Price Adjust | J14: Vol Adjust | K14: Adjusted Values | P14: Last | Q14: Effective | R14: Shares | T14: Vol Adjust | V14: =COUNT(U16:U7889) -> 118
A15: RelRow | B15: Date | C15: Open | D15: High | E15: Low | F15: Close | G15: Volume | H15: Close | I15: Factor | J15: Factor | K15: Open | L15: High | M15: Low | N15: Close | O15: Volume | P15: Trade | Q15: Date | R15: New | S15: Old | T15: Factor | U15: Date | V15: $ / Share
A16: 1 | B16: 2014-02-18 | C16: 79.83 | D16: 80.75 | E16: 79.72 | F16: 80.46 | G16: 3585100 | H16: 80.46 | I16: =H16/F16 -> 1 | J16: =INDEX(OFFSET($T$15,1,0,$S$13,1),MATCH(B16,OFFSET($Q$15,1,0,$S$13,1),-1)) -> 1 | K16: =ROUND($I16*C16,2) -> 79.83 | L16: =ROUND($I16*D16,2) -> 80.75 | M16: 79.72 | N16: 80.46 | O16: =G16*J16 -> 3585100 | Q16: 2014-02-19 | R16: 1 | S16: 1 | T16: 1 | U16: 2013-12-13 | V16: 0.25
A17: 2 | B17: 2014-02-14 | C17: 78.82 | D17: 80 | E17: 78.63 | F17: 79.5 | G17: 3260400 | H17: 79.5 | I17: =H17/F17 -> 1 | J17: =INDEX(OFFSET($T$15,1,0,$S$13,1),MATCH(B17,OFFSET($Q$15,1,0,$S$13,1),-1)) -> 1 | K17: =ROUND($I17*C17,2) -> 78.82 | L17: =ROUND($I17*D17,2) -> 80 | M17: =ROUND($I17*E17,2) -> 78.63 | N17: =ROUND($I17*F17,2) -> 79.5 | O17: =G17*J17 -> 3260400 | Q17: 2006-06-01 | R17: 3 | S17: 1 | T17: 3 | U17: 2013-09-12 | V17: 0.25
A18: 3 | B18: 2014-02-13 | C18: 77.59 | D18: 79.37 | E18: 77.36 | F18: 78.67 | G18: 2337600 | H18: 78.67 | I18: 1 | J18: 1 | K18: 77.59 | L18: 79.37 | M18: 77.36 | N18: 78.67 | O18: 2337600 | U18: 2013-06-13 | V18: 0.1
A19: 4 | B19: 2014-02-12 | C19: 78.72 | D19: 78.75 | E19: 77.95 | F19: 78.03 | G19: 2310700 | H19: 78.03 | I19: 1 | J19: 1 | K19: 78.72 | L19: 78.75 | M19: 77.95 | N19: 78.03 | O19: 2310700 | U19: 2013-03-13 | V19: 0.1
A20: 5 | B20: 2014-02-11 | C20: 77 | D20: 78.67 | E20: 77 | F20: 78.25 | G20: 2484000 | H20: 78.25 | I20: 1 | J20: 1 | K20: 77 | L20: 78.67 | M20: 77 | N20: 78.25 | O20: 2484000 | U20: 2012-12-13 | V20: 0.1
A21: 6 | B21: 2014-02-10 | C21: 77.26 | D21: 77.37 | E21: 76.61 | F21: 76.99 | G21: 2377600 | H21: 76.99 | I21: 1 | J21: 1 | K21: 77.26 | L21: 77.37 | M21: 76.61 | N21: 76.99 | O21: 2377600 | U21: 2012-09-13 | V21: 0.1
A22: 7 | B22: 2014-02-07 | C22: 76.65 | D22: 77.21 | E22: 76.15 | F22: 77.18 | G22: 2871600 | H22: 77.18 | I22: 1 | J22: 1 | K22: 76.65 | L22: 77.21 | M22: 76.15 | N22: 77.18 | O22: 2871600 | U22: 2012-06-14 | V22: 0.1
A23: 8 | B23: 2014-02-06 | C23: 75.03 | D23: 76.45 | E23: 74.85 | F23: 76.31 | G23: 2082200 | H23: 76.31 | I23: 1 | J23: 1 | K23: 75.03 | L23: 76.45 | M23: 74.85 | N23: 76.31 | O23: 2082200 | U23: 2012-03-14 | V23: 0.1
A24: 9 | B24: 2014-02-05 | C24: 74.34 | D24: 75.07 | E24: 73.79 | F24: 74.66 | G24: 3079100 | H24: 74.66 | I24: 1 | J24: 1 | K24: 74.34 | L24: 75.07 | M24: 73.79 | N24: 74.66 | O24: 3079100 | U24: 2011-12-16 | V24: 0.1
A25: 10 | B25: 2014-02-04 | C25: 74.12 | D25: 75.12 | E25: 73.57 | F25: 74.76 | G25: 4269900 | H25: 74.76 | I25: 1 | J25: 1 | K25: 74.12 | L25: 75.12 | M25: 73.57 | N25: 74.76 | O25: 4269900 | U25: 2011-09-15 | V25: 0.1
A26: 11 | B26: 2014-02-03 | C26: 75.45 | D26: 75.47 | E26: 73.36 | F26: 73.92 | G26: 4349700 | H26: 73.92 | I26: 1 | J26: 1 | K26: 75.45 | L26: 75.47 | M26: 73.36 | N26: 73.92 | O26: 4349700 | U26: 2011-06-14 | V26: 0.1
A27: 12 | B27: 2014-01-31 | C27: 75.4 | D27: 76.28 | E27: 74.88 | F27: 75.49 | G27: 2722700 | H27: 75.49 | I27: 1 | J27: 1 | K27: 75.4 | L27: 76.28 | M27: 74.88 | N27: 75.49 | O27: 2722700 | U27: 2011-03-10 | V27: 0.1
A28: 13 | B28: 2014-01-30 | C28: 76.64 | D28: 77.24 | E28: 76.02 | F28: 76.53 | G28: 3004600 | H28: 76.53 | I28: 1 | J28: 1 | K28: 76.64 | L28: 77.24 | M28: 76.02 | N28: 76.53 | O28: 3004600 | U28: 2010-12-16 | V28: 0.1
A29: 14 | B29: 2014-01-29 | C29: 75.77 | D29: 78.85 | E29: 75.58 | F29: 77.06 | G29: 3896900 | H29: 77.06 | I29: 1 | J29: 1 | K29: 75.77 | L29: 78.85 | M29: 75.58 | N29: 77.06 | O29: 3896900 | U29: 2010-09-16 | V29: 0.1
A30: 15 | B30: 2014-01-28 | C30: 75.89 | D30: 77.19 | E30: 75.75 | F30: 76.8 | G30: 2504400 | H30: 76.8 | I30: 1 | J30: 1 | K30: 75.89 | L30: 77.19 | M30: 75.75 | N30: 76.8 | O30: 2504400 | U30: 2010-06-14 | V30: 0.1
A31: 16 | B31: 2014-01-27 | C31: 76.14 | D31: 76.58 | E31: 75.14 | F31: 75.58 | G31: 1909000 | H31: 75.58 | I31: 1 | J31: 1 | K31: 76.14 | L31: 76.58 | M31: 75.14 | N31: 75.58 | O31: 1909000 | U31: 2010-03-11 | V31: 0.1
A32: 17 | B32: 2014-01-24 | C32: 76.54 | D32: 77.04 | E32: 75.52 | F32: 76.25 | G32: 2680600 | H32: 76.25 | I32: 1 | J32: 1 | K32: 76.54 | L32: 77.04 | M32: 75.52 | N32: 76.25 | O32: 2680600 | U32: 2009-12-17 | V32: 0.1
A33: 18 | B33: 2014-01-23 | C33: 77.77 | D33: 78.06 | E33: 76.96 | F33: 77.4 | G33: 1832300 | H33: 77.4 | I33: 1 | J33: 1 | K33: 77.77 | L33: 78.06 | M33: 76.96 | N33: 77.4 | O33: 1832300 | U33: 2009-09-16 | V33: 0.1
A34: 19 | B34: 2014-01-22 | C34: 78.15 | D34: 78.69 | E34: 77.72 | F34: 78.12 | G34: 1893900 | H34: 78.12 | I34: 1 | J34: 1 | K34: 78.15 | L34: 78.69 | M34: 77.72 | N34: 78.12 | O34: 1893900 | U34: 2009-06-12 | V34: 0.1
A35: 20 | B35: 2014-01-21 | C35: 77.8 | D35: 78.08 | E35: 77.24 | F35: 77.92 | G35: 2222600 | H35: 77.92 | I35: 1 | J35: 1 | K35: 77.8 | L35: 78.08 | M35: 77.24 | N35: 77.92 | O35: 2222600 | U35: 2009-03-12 | V35: 0.1
A36: 21 | B36: 2014-01-17 | C36: 77.72 | D36: 78.27 | E36: 77.03 | F36: 77.13 | G36: 2650100 | H36: 77.13 | I36: 1 | J36: 1 | K36: 77.72 | L36: 78.27 | M36: 77.03 | N36: 77.13 | O36: 2650100 | U36: 2008-12-17 | V36: 0.1
A37: 22 | B37: 2014-01-16 | C37: 77.74 | D37: 78.03 | E37: 77.17 | F37: 77.72 | G37: 3237900 | H37: 77.72 | I37: 1 | J37: 1 | K37: 77.74 | L37: 78.03 | M37: 77.17 | N37: 77.72 | O37: 3237900 | U37: 2008-09-12 | V37: 0.1
A38: 23 | B38: 2014-01-15 | C38: 78.67 | D38: 79.18 | E38: 77.65 | F38: 77.67 | G38: 5375100 | H38: 77.67 | I38: 1 | J38: 1 | K38: 78.67 | L38: 79.18 | M38: 77.65 | N38: 77.67 | O38: 5375100 | U38: 2008-06-12 | V38: 0.1
A39: 24 | B39: 2014-01-14 | C39: 78.92 | D39: 79.72 | E39: 78.92 | F39: 79.53 | G39: 1817100 | H39: 79.53 | I39: 1 | J39: 1 | K39: 78.92 | L39: 79.72 | M39: 78.92 | N39: 79.53 | O39: 1817100 | U39: 2008-03-13 | V39: 0.1
A40: 25 | B40: 2014-01-13 | C40: 80.75 | D40: 81.11 | E40: 78.72 | F40: 78.87 | G40: 2913200 | H40: 78.87 | I40: 1 | J40: 1 | K40: 80.75 | L40: 81.11 | M40: 78.72 | N40: 78.87 | O40: 2913200 | U40: 2007-12-17 | V40: 0.1
A41: 26 | B41: 2014-01-10 | C41: 81.11 | D41: 81.46 | E41: 80.5 | F41: 80.9 | G41: 2363400 | H41: 80.9 | I41: 1 | J41: 1 | K41: 81.11 | L41: 81.46 | M41: 80.5 | N41: 80.9 | O41: 2363400 | U41: 2007-09-12 | V41: 0.1
A42: 27 | B42: 2014-01-09 | C42: 81.87 | D42: 82.16 | E42: 80.86 | F42: 81.34 | G42: 2864200 | H42: 81.34 | I42: 1 | J42: 1 | K42: 81.87 | L42: 82.16 | M42: 80.86 | N42: 81.34 | O42: 2864200 | U42: 2007-06-13 | V42: 0.1
A43: 28 | B43: 2014-01-08 | C43: 81.61 | D43: 81.79 | E43: 80.58 | F43: 81.69 | G43: 3145200 | H43: 81.69 | I43: 1 | J43: 1 | K43: 81.61 | L43: 81.79 | M43: 80.58 | N43: 81.69 | O43: 3145200 | U43: 2007-03-14 | V43: 0.1
A44: 29 | B44: 2014-01-07 | C44: 79.98 | D44: 81.23 | E44: 79.92 | F44: 80.86 | G44: 2034400 | H44: 80.86 | I44: 1 | J44: 1 | K44: 79.98 | L44: 81.23 | M44: 79.92 | N44: 80.86 | O44: 2034400 | U44: 2006-12-13 | V44: 0.1
A45: 30 | B45: 2014-01-06 | C45: 79.53 | D45: 80.09 | E45: 78.99 | F45: 79.92 | G45: 2680800 | H45: 79.92 | I45: 1 | J45: 1 | K45: 79.53 | L45: 80.09 | M45: 78.99 | N45: 79.92 | O45: 2680800 | U45: 2006-09-14 | V45: 0.1
A46: 31 | B46: 2014-01-03 | C46: 80.86 | D46: 81.72 | E46: 79.97 | F46: 80.28 | G46: 1922700 | H46: 80.28 | I46: 1 | J46: 1 | K46: 80.86 | L46: 81.72 | M46: 79.97 | N46: 80.28 | O46: 1922700 | U46: 2006-06-14 | V46: 0.1
A47: 32 | B47: 2014-01-02 | C47: 82.95 | D47: 83 | E47: 80.69 | F47: 81.12 | G47: 2752600 | H47: 81.12 | I47: 1 | J47: 1 | K47: 82.95 | L47: 83 | M47: 80.69 | N47: 81.12 | O47: 2752600 | U47: 2006-03-09 | V47: 0.1
A48: 33 | B48: 2013-12-31 | C48: 82.9 | D48: 83.29 | E48: 82.45 | F48: 83 | G48: 1489300 | H48: 83 | I48: 1 | J48: 1 | K48: 82.9 | L48: 83.29 | M48: 82.45 | N48: 83 | O48: 1489300 | U48: 2005-12-13 | V48: 0.1
A49: 34 | B49: 2013-12-30 | C49: 83.07 | D49: 83.54 | E49: 82.59 | F49: 82.61 | G49: 1471400 | H49: 82.61 | I49: 1 | J49: 1 | K49: 83.07 | L49: 83.54 | M49: 82.59 | N49: 82.61 | O49: 1471400 | U49: 2005-09-14 | V49: 0.1
A50: 35 | B50: 2013-12-27 | C50: 82.77 | D50: 83.39 | E50: 82.27 | F50: 83.07 | G50: 1333500 | H50: 83.07 | I50: 1 | J50: 1 | K50: 82.77 | L50: 83.39 | M50: 82.27 | N50: 83.07 | O50: 1333500 | U50: 2005-06-14 | V50: 0.1
A51: 36 | B51: 2013-12-26 | C51: 81.28 | D51: 82.85 | E51: 81.16 | F51: 82.6 | G51: 1548600 | H51: 82.6 | I51: 1 | J51: 1 | K51: 81.28 | L51: 82.85 | M51: 81.16 | N51: 82.6 | O51: 1548600 | U51: 2005-03-10 | V51: 0.1
A52: 37 | B52: 2013-12-24 | C52: 80.25 | D52: 81.26 | E52: 80.02 | F52: 81.14 | G52: 1036100 | H52: 81.14 | I52: 1 | J52: 1 | K52: 80.25 | L52: 81.26 | M52: 80.02 | N52: 81.14 | O52: 1036100 | U52: 2004-12-13 | V52: 0.1
A53: 38 | B53: 2013-12-23 | C53: 80.72 | D53: 81.4 | E53: 80.14 | F53: 80.22 | G53: 2309000 | H53: 80.22 | I53: 1 | J53: 1 | K53: 80.72 | L53: 81.4 | M53: 80.14 | N53: 80.22 | O53: 2309000 | U53: 2004-09-14 | V53: 0.1
A54: 39 | B54: 2013-12-20 | C54: 80.68 | D54: 81.42 | E54: 80.16 | F54: 80.17 | G54: 3826500 | H54: 80.17 | I54: 1 | J54: 1 | K54: 80.68 | L54: 81.42 | M54: 80.16 | N54: 80.17 | O54: 3826500 | U54: 2004-06-14 | V54: 0.1
A55: 40 | B55: 2013-12-19 | C55: 80.42 | D55: 81.08 | E55: 80.14 | F55: 80.54 | G55: 2118200 | H55: 80.54 | I55: 1 | J55: 1 | K55: 80.42 | L55: 81.08 | M55: 80.14 | N55: 80.54 | O55: 2118200 | U55: 2004-03-11 | V55: 0.1
A56: 41 | B56: 2013-12-18 | C56: 79.6 | D56: 80.9 | E56: 78.67 | F56: 80.83 | G56: 2749700 | H56: 80.83 | I56: 1 | J56: 1 | K56: 79.6 | L56: 80.9 | M56: 78.67 | N56: 80.83 | O56: 2749700 | U56: 2003-12-11 | V56: 0.1
A57: 42 | B57: 2013-12-17 | C57: 81.15 | D57: 81.18 | E57: 78.95 | F57: 79.51 | G57: 3307600 | H57: 79.51 | I57: 1 | J57: 1 | K57: 81.15 | L57: 81.18 | M57: 78.95 | N57: 79.51 | O57: 3307600 | U57: 2003-09-11 | V57: 0.1
A58: 43 | B58: 2013-12-16 | C58: 78 | D58: 79.73 | E58: 77.52 | F58: 79.35 | G58: 2790000 | H58: 79.35 | I58: 1 | J58: 1 | K58: 78 | L58: 79.73 | M58: 77.52 | N58: 79.35 | O58: 2790000 | U58: 2003-06-12 | V58: 0.1
A59: 44 | B59: 2013-12-13 | C59: 78.5 | D59: 79.3 | E59: 78.41 | F59: 78.95 | G59: 2665500 | H59: 78.95 | I59: 1 | J59: 1 | K59: 78.5 | L59: 79.3 | M59: 78.41 | N59: 78.95 | O59: 2665500 | U59: 2003-03-13 | V59: 0.1
A60: 45 | B60: 2013-12-12 | C60: 78.94 | D60: 79.43 | E60: 77.88 | F60: 78.56 | G60: 2650000 | H60: 78.31 | I60: 0.9968177189 | J60: 1 | K60: 78.69 | L60: 79.18 | M60: 77.63 | N60: 78.31 | O60: 2650000 | U60: 2002-12-12 | V60: 0.1
A61: 46 | B61: 2013-12-11 | C61: 79.67 | D61: 79.87 | E61: 78.81 | F61: 78.94 | G61: 2470200 | H61: 78.69 | I61: 0.9968330378 | J61: 1 | K61: 79.42 | L61: 79.62 | M61: 78.56 | N61: 78.69 | O61: 2470200 | U61: 2002-09-12 | V61: 0.1
A62: 47 | B62: 2013-12-10 | C62: 80.6 | D62: 81.3 | E62: 79.58 | F62: 79.94 | G62: 2505500 | H62: 79.69 | I62: 0.9968726545 | J62: 1 | K62: 80.35 | L62: 81.05 | M62: 79.33 | N62: 79.69 | O62: 2505500 | U62: 2002-06-13 | V62: 0.1
A63: 48 | B63: 2013-12-09 | C63: 80.91 | D63: 81.21 | E63: 80.02 | F63: 80.51 | G63: 2083000 | H63: 80.25 | I63: 0.9967705875 | J63: 1 | K63: 80.65 | L63: 80.95 | M63: 79.76 | N63: 80.25 | O63: 2083000 | U63: 2002-03-14 | V63: 0.1
A64: 49 | B64: 2013-12-06 | C64: 82.43 | D64: 82.79 | E64: 80.46 | F64: 80.86 | G64: 2295600 | H64: 80.6 | I64: 0.9967845659 | J64: 1 | K64: 82.16 | L64: 82.52 | M64: 80.2 | N64: 80.6 | O64: 2295600 | U64: 2001-12-13 | V64: 0.1
A65: 50 | B65: 2013-12-05 | C65: 81.83 | D65: 82.38 | E65: 81.4 | F65: 81.47 | G65: 2106600 | H65: 81.21 | I65: 0.9968086412 | J65: 1 | K65: 81.57 | L65: 82.12 | M65: 81.14 | N65: 81.21 | O65: 2106600 | U65: 2001-09-13 | V65: 0.3
A66: 51 | B66: 2013-12-04 | C66: 80.98 | D66: 82.65 | E66: 80.98 | F66: 82.21 | G66: 2304500 | H66: 81.95 | I66: 0.9968373677 | J66: 1 | K66: 80.72 | L66: 82.39 | M66: 80.72 | N66: 81.95 | O66: 2304500 | U66: 2001-06-14 | V66: 0.1
A67: 52 | B67: 2013-12-03 | C67: 80.63 | D67: 81.54 | E67: 80.25 | F67: 81.15 | G67: 3157300 | H67: 80.89 | I67: 0.9967960567 | J67: 1 | K67: 80.37 | L67: 81.28 | M67: 79.99 | N67: 80.89 | O67: 3157300 | U67: 2001-03-15 | V67: 0.1
A68: 53 | B68: 2013-12-02 | C68: 81.01 | D68: 81.6 | E68: 80.33 | F68: 80.91 | G68: 1959000 | H68: 80.65 | I68: 0.996786553 | J68: 1 | K68: 80.75 | L68: 81.34 | M68: 80.07 | N68: 80.65 | O68: 1959000 | U68: 2000-12-14 | V68: 0.05
A69: 54 | B69: 2013-11-29 | C69: 81.62 | D69: 82.51 | E69: 81.1 | F69: 81.13 | G69: 1352500 | H69: 80.87 | I69: 0.9967952669 | J69: 1 | K69: 81.36 | L69: 82.25 | M69: 80.84 | N69: 80.87 | O69: 1352500 | U69: 2000-09-14 | V69: 0.05
A70: 55 | B70: 2013-11-27 | C70: 83.54 | D70: 83.54 | E70: 81.09 | F70: 81.48 | G70: 2484000 | H70: 81.22 | I70: 0.9968090329 | J70: 1 | K70: 83.27 | L70: 83.27 | M70: 80.83 | N70: 81.22 | O70: 2484000 | U70: 2000-06-15 | V70: 0.05
A71: 56 | B71: 2013-11-26 | C71: 82.82 | D71: 84.33 | E71: 82.2 | F71: 83.61 | G71: 2394700 | H71: 83.34 | I71: 0.9967707212 | J71: 1 | K71: 82.55 | L71: 84.06 | M71: 81.93 | N71: 83.34 | O71: 2394700 | U71: 2000-03-09 | V71: 0.05
A72: 57 | B72: 2013-11-25 | C72: 82.22 | D72: 83.28 | E72: 81.7 | F72: 82.63 | G72: 2001200 | H72: 82.37 | I72: 0.9968534431 | J72: 1 | K72: 81.96 | L72: 83.02 | M72: 81.44 | N72: 82.37 | O72: 2001200 | U72: 1999-12-09 | V72: 0.05
A73: 58 | B73: 2013-11-22 | C73: 82.66 | D73: 83.35 | E73: 81.6 | F73: 83.33 | G73: 2224700 | H73: 83.06 | I73: 0.9967598704 | J73: 1 | K73: 82.39 | L73: 83.08 | M73: 81.34 | N73: 83.06 | O73: 2224700 | U73: 1999-09-09 | V73: 0.05
A74: 59 | B74: 2013-11-21 | C74: 81.45 | D74: 82.49 | E74: 81.15 | F74: 82.33 | G74: 1915800 | H74: 82.07 | I74: 0.9968419774 | J74: 1 | K74: 81.19 | L74: 82.23 | M74: 80.89 | N74: 82.07 | O74: 1915800 | U74: 1999-06-11 | V74: 0.05
A75: 60 | B75: 2013-11-20 | C75: 81.9 | D75: 82.75 | E75: 80.99 | F75: 81.31 | G75: 1631500 | H75: 81.05 | I75: 0.9968023613 | J75: 1 | K75: 81.64 | L75: 82.49 | M75: 80.73 | N75: 81.05 | O75: 1631500 | U75: 1999-03-11 | V75: 0.05
A76: 61 | B76: 2013-11-19 | C76: 81.75 | D76: 82.27 | E76: 80.93 | F76: 81.89 | G76: 1814800 | H76: 81.63 | I76: 0.9968250092 | J76: 1 | K76: 81.49 | L76: 82.01 | M76: 80.67 | N76: 81.63 | O76: 1814800 | U76: 1998-12-10 | V76: 0.05
A77: 62 | B77: 2013-11-18 | C77: 83.15 | D77: 83.32 | E77: 81.59 | F77: 81.91 | G77: 2078100 | H77: 81.65 | I77: 0.9968257844 | J77: 1 | K77: 82.89 | L77: 83.06 | M77: 81.33 | N77: 81.65 | O77: 2078100 | U77: 1998-09-10 | V77: 0.05
A78: 63 | B78: 2013-11-15 | C78: 81.9 | D78: 82.86 | E78: 81.52 | F78: 82.86 | G78: 3378400 | H78: 82.6 | I78: 0.9968621772 | J78: 1 | K78: 81.64 | L78: 82.6 | M78: 81.26 | N78: 82.6 | O78: 3378400 | U78: 1998-06-11 | V78: 0.05
A79: 64 | B79: 2013-11-14 | C79: 80.76 | D79: 81.8 | E79: 80.49 | F79: 81.7 | G79: 2215500 | H79: 81.44 | I79: 0.9968176255 | J79: 1 | K79: 80.5 | L79: 81.54 | M79: 80.23 | N79: 81.44 | O79: 2215500 | U79: 1998-03-12 | V79: 0.05
A80: 65 | B80: 2013-11-13 | C80: 79.37 | D80: 80.88 | E80: 79.36 | F80: 80.78 | G80: 1978200 | H80: 80.52 | I80: 0.9967813815 | J80: 1 | K80: 79.11 | L80: 80.62 | M80: 79.1 | N80: 80.52 | O80: 1978200 | U80: 1997-12-11 | V80: 0.05
A81: 66 | B81: 2013-11-12 | C81: 80.95 | D81: 81.34 | E81: 79.72 | F81: 79.94 | G81: 2233700 | H81: 79.69 | I81: =H81/F81 -> 0.9968726545 | J81: =INDEX(OFFSET($T$15,1,0,$S$13,1),MATCH(B81,OFFSET($Q$15,1,0,$S$13,1),-1)) -> 1 | K81: =ROUND($I81*C81,2) -> 80.7 | L81: =ROUND($I81*D81,2) -> 81.09 | M81: =ROUND($I81*E81,2) -> 79.47 | N81: =ROUND($I81*F81,2) -> 79.69 | O81: =G81*J81 -> 2233700 | U81: 1997-09-11 | V81: 0.05
A82: 67 | B82: 2013-11-11 | C82: 80.38 | D82: 81.24 | E82: 80.19 | F82: 80.87 | G82: 2127300 | H82: 80.61 | I82: 0.9967849635 | J82: 1 | K82: 80.12 | L82: 80.98 | M82: 79.93 | N82: 80.61 | O82: 2127300 | U82: 1997-06-12 | V82: 0.05
A83: 68 | B83: 2013-11-08 | C83: 78.92 | D83: 80.33 | E83: 78.89 | F83: 80.3 | G83: 2156700 | H83: 80.04 | I83: 0.996762142 | J83: 1 | K83: 78.66 | L83: 80.07 | M83: 78.63 | N83: 80.04 | O83: 2156700 | U83: 1997-03-13 | V83: 0.05
A84: 69 | B84: 2013-11-07 | C84: 81.03 | D84: 81.39 | E84: 78.68 | F84: 78.78 | G84: 3303300 | H84: 78.53 | I84: 0.9968266057 | J84: 1 | K84: 80.77 | L84: 81.13 | M84: 78.43 | N84: 78.53 | O84: 3303300 | U84: 1996-12-12 | V84: 0.05
A85: 70 | B85: 2013-11-06 | C85: 81.02 | D85: 82.56 | E85: 80.55 | F85: 81 | G85: 3069800 | H85: 80.74 | I85: 0.9967901235 | J85: 1 | K85: 80.76 | L85: 82.29 | M85: 80.29 | N85: 80.74 | O85: 3069800 | U85: 1996-09-12 | V85: 0.05
A86: 71 | B86: 2013-11-05 | C86: 81.35 | D86: 81.61 | E86: 80.37 | F86: 80.49 | G86: 2906000 | H86: 80.23 | I86: 0.9967697851 | J86: 1 | K86: 81.09 | L86: 81.35 | M86: 80.11 | N86: 80.23 | O86: 2906000 | U86: 1996-06-13 | V86: 0.05
A87: 72 | B87: 2013-11-04 | C87: 81.12 | D87: 81.95 | E87: 81.02 | F87: 81.73 | G87: 2202500 | H87: 81.47 | I87: 0.9968187936 | J87: 1 | K87: 80.86 | L87: 81.69 | M87: 80.76 | N87: 81.47 | O87: 2202500 | U87: 1996-03-14 | V87: 0.05
A88: 73 | B88: 2013-11-01 | C88: 81.22 | D88: 81.49 | E88: 80.04 | F88: 80.93 | G88: 3550400 | H88: 80.67 | I88: 0.9967873471 | J88: 1 | K88: 80.96 | L88: 81.23 | M88: 79.78 | N88: 80.67 | O88: 3550400 | U88: 1995-12-14 | V88: 0.05
A89: 74 | B89: 2013-10-31 | C89: 80.83 | D89: 81.94 | E89: 79.98 | F89: 81.2 | G89: 3306700 | H89: 80.94 | I89: 0.9967980296 | J89: 1 | K89: 80.57 | L89: 81.68 | M89: 79.72 | N89: 80.94 | O89: 3306700 | U89: 1995-09-14 | V89: 0.05
A90: 75 | B90: 2013-10-30 | C90: 82.16 | D90: 82.67 | E90: 79.96 | F90: 80.32 | G90: 6151900 | H90: 80.06 | I90: 0.9967629482 | J90: 1 | K90: 81.89 | L90: 82.4 | M90: 79.7 | N90: 80.06 | O90: 6151900 | U90: 1995-06-15 | V90: 0.05
A91: 76 | B91: 2013-10-29 | C91: 83.3 | D91: 83.8 | E91: 83.01 | F91: 83.5 | G91: 1497700 | H91: 83.23 | I91: 0.9967664671 | J91: 1 | K91: 83.03 | L91: 83.53 | M91: 82.74 | N91: 83.23 | O91: 1497700 | U91: 1995-03-07 | V91: 0.05
A92: 77 | B92: 2013-10-28 | C92: 83.33 | D92: 83.63 | E92: 82.69 | F92: 83.16 | G92: 2066200 | H92: 82.9 | I92: 0.9968734969 | J92: 1 | K92: 83.07 | L92: 83.37 | M92: 82.43 | N92: 82.9 | O92: 2066200 | U92: 1994-12-15 | V92: 0.05
A93: 78 | B93: 2013-10-25 | C93: 83.42 | D93: 83.78 | E93: 82.43 | F93: 83.2 | G93: 1548600 | H93: 82.94 | I93: 0.996875 | J93: 1 | K93: 83.16 | L93: 83.52 | M93: 82.17 | N93: 82.94 | O93: 1548600 | U93: 1994-09-13 | V93: 0.05
A94: 79 | B94: 2013-10-24 | C94: 82.28 | D94: 83.33 | E94: 81.74 | F94: 83.09 | G94: 1883500 | H94: 82.83 | I94: 0.9968708629 | J94: 1 | K94: 82.02 | L94: 83.07 | M94: 81.48 | N94: 82.83 | O94: 1883500 | U94: 1994-06-07 | V94: 0.05
A95: 80 | B95: 2013-10-23 | C95: 83 | D95: 83.02 | E95: 81.06 | F95: 81.92 | G95: 4193100 | H95: 81.66 | I95: 0.9968261719 | J95: 1 | K95: 82.74 | L95: 82.76 | M95: 80.8 | N95: 81.66 | O95: 4193100 | U95: 1994-03-08 | V95: 0.05
A96: 81 | B96: 2013-10-22 | C96: 84.53 | D96: 85.15 | E96: 83.33 | F96: 83.56 | G96: 4171900 | H96: 83.29 | I96: 0.9967687889 | J96: 1 | K96: 84.26 | L96: 84.87 | M96: 83.06 | N96: 83.29 | O96: 4171900 | U96: 1993-12-07 | V96: 0.05
A97: 82 | B97: 2013-10-21 | C97: 84.08 | D97: 84.85 | E97: 83.69 | F97: 84 | G97: 3127000 | H97: 83.73 | I97: 0.9967857143 | J97: 1 | K97: 83.81 | L97: 84.58 | M97: 83.42 | N97: 83.73 | O97: 3127000 | U97: 1993-09-07 | V97: 0.05
A98: 83 | B98: 2013-10-18 | C98: 82.87 | D98: 84.07 | E98: 82.81 | F98: 84.06 | G98: 3568200 | H98: 83.79 | I98: 0.9967880086 | J98: 1 | K98: 82.6 | L98: 83.8 | M98: 82.54 | N98: 83.79 | O98: 3568200 | U98: 1993-06-08 | V98: 0.05
A99: 84 | B99: 2013-10-17 | C99: 81.37 | D99: 82.59 | E99: 81.37 | F99: 82.39 | G99: 2791000 | H99: 82.13 | I99: 0.9968442772 | J99: 1 | K99: 81.11 | L99: 82.33 | M99: 81.11 | N99: 82.13 | O99: 2791000 | U99: 1993-03-09 | V99: 0.05
A100: 85 | B100: 2013-10-16 | C100: 81.32 | D100: 82.44 | E100: 81.32 | F100: 82.31 | G100: 3995900 | H100: 82.05 | I100: 0.9968412101 | J100: 1 | K100: 81.06 | L100: 82.18 | M100: 81.06 | N100: 82.05 | O100: 3995900 | U100: 1992-12-08 | V100: 0.05
A101: 86 | B101: 2013-10-15 | C101: 80.28 | D101: 81.64 | E101: 80.28 | F101: 80.81 | G101: 3646300 | H101: 80.55 | I101: 0.9967825764 | J101: 1 | K101: 80.02 | L101: 81.38 | M101: 80.02 | N101: 80.55 | O101: 3646300 | U101: 1992-09-08 | V101: 0.05
A102: 87 | B102: 2013-10-14 | C102: 80.53 | D102: 81.53 | E102: 80.35 | F102: 81.31 | G102: 3135500 | H102: 81.05 | I102: 0.9968023613 | J102: 1 | K102: 80.27 | L102: 81.27 | M102: 80.09 | N102: 81.05 | O102: 3135500 | U102: 1992-06-09 | V102: 0.05
A103: 88 | B103: 2013-10-11 | C103: 80.25 | D103: 81.4 | E103: 79.93 | F103: 81.1 | G103: 3736000 | H103: 80.84 | I103: 0.9967940814 | J103: 1 | K103: 79.99 | L103: 81.14 | M103: 79.67 | N103: 80.84 | O103: 3736000 | U103: 1992-03-10 | V103: 0.05
A104: 89 | B104: 2013-10-10 | C104: 81.04 | D104: 81.23 | E104: 79.53 | F104: 80.79 | G104: 3704100 | H104: 80.53 | I104: 0.9967817799 | J104: 1 | K104: 80.78 | L104: 80.97 | M104: 79.27 | N104: 80.53 | O104: 3704100 | U104: 1991-12-10 | V104: 0.05
A105: 90 | B105: 2013-10-09 | C105: 78.13 | D105: 79.14 | E105: 77.95 | F105: 78.53 | G105: 2850800 | H105: 78.28 | I105: 0.9968165032 | J105: 1 | K105: 77.88 | L105: 78.89 | M105: 77.7 | N105: 78.28 | O105: 2850800 | U105: 1991-09-10 | V105: 0.05
A106: 91 | B106: 2013-10-08 | C106: 79.36 | D106: 80.34 | E106: 78.54 | F106: 78.77 | G106: 2598200 | H106: 78.52 | I106: 0.9968262029 | J106: 1 | K106: 79.11 | L106: 80.09 | M106: 78.29 | N106: 78.52 | O106: 2598200 | U106: 1991-06-11 | V106: 0.05
A107: 92 | B107: 2013-10-07 | C107: 79.54 | D107: 80.43 | E107: 79.27 | F107: 79.54 | G107: 2416200 | H107: 79.29 | I107: 0.9968569273 | J107: 1 | K107: 79.29 | L107: 80.18 | M107: 79.02 | N107: 79.29 | O107: 2416200 | U107: 1991-03-12 | V107: 0.05
A108: 93 | B108: 2013-10-04 | C108: 79.77 | D108: 80.61 | E108: 79.76 | F108: 80.14 | G108: 3173000 | H108: 79.88 | I108: 0.9967556776 | J108: 1 | K108: 79.51 | L108: 80.35 | M108: 79.5 | N108: 79.88 | O108: 3173000 | U108: 1990-12-11 | V108: 0.05
A109: 94 | B109: 2013-10-03 | C109: 79.94 | D109: 81.12 | E109: 79.54 | F109: 79.89 | G109: 3755600 | H109: 79.64 | I109: 0.9968706972 | J109: 1 | K109: 79.69 | L109: 80.87 | M109: 79.29 | N109: 79.64 | O109: 3755600 | U109: 1990-09-11 | V109: 0.05
A110: 95 | B110: 2013-10-02 | C110: 78.26 | D110: 80.36 | E110: 78.26 | F110: 79.96 | G110: 2428500 | H110: 79.71 | I110: 0.9968734367 | J110: 1 | K110: 78.02 | L110: 80.11 | M110: 78.02 | N110: 79.71 | O110: 2428500 | U110: 1990-06-12 | V110: 0.05
A111: 96 | B111: 2013-10-01 | C111: 76.97 | D111: 78.91 | E111: 76.83 | F111: 78.69 | G111: 2179000 | H111: 78.44 | I111: 0.9968229762 | J111: 1 | K111: 76.73 | L111: 78.66 | M111: 76.59 | N111: 78.44 | O111: 2179000 | U111: 1990-03-13 | V111: 0.05
A112: 97 | B112: 2013-09-30 | C112: 77.51 | D112: 77.8 | E112: 76.62 | F112: 77.34 | G112: 1899500 | H112: 77.09 | I112: 0.99676752 | J112: 1 | K112: 77.26 | L112: 77.55 | M112: 76.37 | N112: 77.09 | O112: 1899500 | U112: 1989-12-12 | V112: 0.05
A113: 98 | B113: 2013-09-27 | C113: 78.03 | D113: 78.67 | E113: 77.88 | F113: 78.33 | G113: 1184400 | H113: 78.08 | I113: 0.9968083748 | J113: 1 | K113: 77.78 | L113: 78.42 | M113: 77.63 | N113: 78.08 | O113: 1184400 | U113: 1989-09-12 | V113: 0.05
A114: 99 | B114: 2013-09-26 | C114: 79.06 | D114: 79.35 | E114: 78.1 | F114: 78.79 | G114: 1328500 | H114: 78.54 | I114: 0.9968270085 | J114: 1 | K114: 78.81 | L114: 79.1 | M114: 77.85 | N114: 78.54 | O114: 1328500 | U114: 1989-06-13 | V114: 0.05
A115: 100 | B115: 2013-09-25 | C115: 78.71 | D115: 79.32 | E115: 78.56 | F115: 78.72 | G115: 1740400 | H115: 78.47 | I115: 0.996824187 | J115: 1 | K115: 78.46 | L115: 79.07 | M115: 78.31 | N115: 78.47 | O115: 1740400 | U115: 1989-03-07 | V115: 0.05
A116: 101 | B116: 2013-09-24 | C116: 78.59 | D116: 79.35 | E116: 78.2 | F116: 78.51 | G116: 2877100 | H116: 78.26 | I116: 0.9968156923 | J116: 1 | K116: 78.34 | L116: 79.1 | M116: 77.95 | N116: 78.26 | O116: 2877100 | U116: 1988-12-13 | V116: 0.05
A117: 102 | B117: 2013-09-23 | C117: 78.39 | D117: 78.85 | E117: 77.51 | F117: 78.53 | G117: 2324700 | H117: 78.28 | I117: 0.9968165032 | J117: 1 | K117: 78.14 | L117: 78.6 | M117: 77.26 | N117: 78.28 | O117: 2324700 | U117: 1988-09-13 | V117: 0.05
A118: 103 | B118: 2013-09-20 | C118: 79.64 | D118: 80.41 | E118: 78.17 | F118: 78.63 | G118: 4256400 | H118: 78.38 | I118: 0.996820552 | J118: 1 | K118: 79.39 | L118: 80.15 | M118: 77.92 | N118: 78.38 | O118: 4256400 | U118: 1988-06-07 | V118: 0.05
A119: 104 | B119: 2013-09-19 | C119: 79.45 | D119: 80.35 | E119: 79.45 | F119: 79.64 | G119: 2643000 | H119: 79.39 | I119: 0.9968608739 | J119: 1 | K119: 79.2 | L119: 80.1 | M119: 79.2 | N119: 79.39 | O119: 2643000 | U119: 1988-03-08 | V119: 0.05
A120: 105 | B120: 2013-09-18 | C120: 77.5 | D120: 79.5 | E120: 77.2 | F120: 79.22 | G120: 2601400 | H120: 78.97 | I120: 0.9968442313 | J120: 1 | K120: 77.26 | L120: 79.25 | M120: 76.96 | N120: 78.97 | O120: 2601400 | U120: 1987-12-08 | V120: 0.05
A121: 106 | B121: 2013-09-17 | C121: 77.87 | D121: 78.22 | E121: 77.52 | F121: 77.79 | G121: 2968700 | H121: 77.54 | I121: 0.9967862193 | J121: 1 | K121: 77.62 | L121: 77.97 | M121: 77.27 | N121: 77.54 | O121: 2968700 | U121: 1987-09-09 | V121: 0.05
A122: 107 | B122: 2013-09-16 | C122: 78.37 | D122: 78.57 | E122: 77.45 | F122: 77.92 | G122: 2264400 | H122: 77.67 | I122: 0.9967915811 | J122: 1 | K122: 78.12 | L122: 78.32 | M122: 77.2 | N122: 77.67 | O122: 2264400 | U122: 1987-06-18 | V122: 0.05
A123: 108 | B123: 2013-09-13 | C123: 77.14 | D123: 78.04 | E123: 77.14 | F123: 77.72 | G123: 2085900 | H123: 77.47 | I123: 0.9967833248 | J123: 1 | K123: 76.89 | L123: 77.79 | M123: 76.89 | N123: 77.47 | O123: 2085900 | U123: 1985-12-10 | V123: 0.09167
A124: 109 | B124: 2013-09-12 | C124: 77.7 | D124: 78.25 | E124: 77.12 | F124: 77.25 | G124: 3026700 | H124: 77 | I124: 0.996763754 | J124: 1 | K124: 77.45 | L124: 78 | M124: 76.87 | N124: 77 | O124: 3026700 | U124: 1985-09-10 | V124: 0.09167
A125: 110 | B125: 2013-09-11 | C125: 77.87 | D125: 78.26 | E125: 76.98 | F125: 78.1 | G125: 2602200 | H125: 77.6 | I125: 0.9935979513 | J125: 1 | K125: 77.37 | L125: 77.76 | M125: 76.49 | N125: 77.6 | O125: 2602200 | U125: 1985-06-11 | V125: 0.09167
A126: 111 | B126: 2013-09-10 | C126: 78.3 | D126: 78.32 | E126: 77.02 | F126: 77.79 | G126: 2793100 | H126: 77.29 | I126: 0.9935724386 | J126: 1 | K126: 77.8 | L126: 77.82 | M126: 76.52 | N126: 77.29 | O126: 2793100 | U126: 1985-03-12 | V126: 0.09167
A127: 112 | B127: 2013-09-09 | C127: 77.62 | D127: 78.34 | E127: 77.54 | F127: 78.33 | G127: 2159100 | H127: 77.83 | I127: 0.9936167496 | J127: 1 | K127: 77.12 | L127: 77.84 | M127: 77.05 | N127: 77.83 | O127: 2159100 | U127: 1984-12-11 | V127: 0.09167
A128: 113 | B128: 2013-09-06 | C128: 76.8 | D128: 78.2 | E128: 76.26 | F128: 77.3 | G128: 2537900 | H128: 76.81 | I128: 0.9936610608 | J128: 1 | K128: 76.31 | L128: 77.7 | M128: 75.78 | N128: 76.81 | O128: 2537900 | U128: 1984-09-11 | V128: 0.09167
A129: 114 | B129: 2013-09-05 | C129: 76.28 | D129: 77.03 | E129: 76.19 | F129: 76.53 | G129: 2543300 | H129: 76.04 | I129: 0.9935972821 | J129: 1 | K129: 75.79 | L129: 76.54 | M129: 75.7 | N129: 76.04 | O129: 2543300 | U129: 1984-06-12 | V129: 0.09167
A130: 115 | B130: 2013-09-04 | C130: 75.79 | D130: 76.72 | E130: 75.57 | F130: 76.15 | G130: 2919200 | H130: 75.66 | I130: 0.9935653316 | J130: 1 | K130: 75.3 | L130: 76.23 | M130: 75.08 | N130: 75.66 | O130: 2919200 | U130: 1984-03-13 | V130: 0.09167
A131: 116 | B131: 2013-09-03 | C131: 75.92 | D131: 76.45 | E131: 75.35 | F131: 75.99 | G131: 1865300 | H131: 75.51 | I131: 0.9936833794 | J131: 1 | K131: 75.44 | L131: 75.97 | M131: 74.87 | N131: 75.51 | O131: 1865300 | U131: 1983-12-13 | V131: 0.09167
A132: 117 | B132: 2013-08-30 | C132: 75.84 | D132: 76.15 | E132: 74.81 | F132: 74.85 | G132: 3032400 | H132: 74.37 | I132: 0.9935871743 | J132: 1 | K132: 75.35 | L132: 75.66 | M132: 74.33 | N132: 74.37 | O132: 3032400 | U132: 1983-09-13 | V132: 0.09167
A133: 118 | B133: 2013-08-29 | C133: 76.09 | D133: 76.15 | E133: 75.17 | F133: 75.82 | G133: 1923000 | H133: 75.34 | I133: 0.9936692166 | J133: 1 | K133: 75.61 | L133: 75.67 | M133: 74.69 | N133: 75.34 | O133: 1923000 | U133: 1983-06-07 | V133: 0.09167
A134: 119 | B134: 2013-08-28 | C134: 75.88 | D134: 77.05 | E134: 75.71 | F134: 76.48 | G134: 2550500 | H134: 75.99 | I134: 0.9935930962 | J134: 1 | K134: 75.39 | L134: 76.56 | M134: 75.22 | N134: 75.99 | O134: 2550500
A135: 120 | B135: 2013-08-27 | C135: 74.61 | D135: 76.38 | E135: 74.61 | F135: 75.45 | G135: 2661700 | H135: 74.97 | I135: 0.993638171 | J135: 1 | K135: 74.14 | L135: 75.89 | M135: 74.14 | N135: 74.97 | O135: 2661700
A136: 121 | B136: 2013-08-26 | C136: 75.75 | D136: 76.38 | E136: 75.19 | F136: 75.41 | G136: 2415900 | H136: 74.93 | I136: 0.9936347964 | J136: 1 | K136: 75.27 | L136: 75.89 | M136: 74.71 | N136: 74.93 | O136: 2415900
A137: 122 | B137: 2013-08-23 | C137: 74.69 | D137: 75.77 | E137: 74.36 | F137: 75.66 | G137: 1623000 | H137: 75.18 | I137: 0.9936558287 | J137: 1 | K137: 74.22 | L137: 75.29 | M137: 73.89 | N137: 75.18 | O137: 1623000
A138: 123 | B138: 2013-08-22 | C138: 73.43 | D138: 74.92 | E138: 73.43 | F138: 74.51 | G138: 1754500 | H138: 74.04 | I138: 0.9936921219 | J138: 1 | K138: 72.97 | L138: 74.45 | M138: 72.97 | N138: 74.04 | O138: 1754500
A139: 124 | B139: 2013-08-21 | C139: 73.58 | D139: 74.05 | E139: 72.62 | F139: 73.03 | G139: 2285800 | H139: 72.56 | I139: 0.9935642886 | J139: 1 | K139: 73.11 | L139: 73.57 | M139: 72.15 | N139: 72.56 | O139: 2285800
A140: 125 | B140: 2013-08-20 | C140: 73.7 | D140: 74.47 | E140: 72.85 | F140: 73.72 | G140: 2490200 | H140: 73.25 | I140: 0.9936245252 | J140: 1 | K140: 73.23 | L140: 74 | M140: 72.39 | N140: 73.25 | O140: 2490200
A141: 126 | B141: 2013-08-19 | C141: 74.74 | D141: 75.32 | E141: 73.28 | F141: 73.29 | G141: 2343700 | H141: 72.82 | I141: 0.9935871197 | J141: 1 | K141: 74.26 | L141: 74.84 | M141: 72.81 | N141: 72.82 | O141: 2343700
A142: 127 | B142: 2013-08-16 | C142: 74.87 | D142: 75.48 | E142: 74.49 | F142: 75.07 | G142: 3008600 | H142: 74.59 | I142: 0.9936059678 | J142: 1 | K142: 74.39 | L142: 75 | M142: 74.01 | N142: 74.59 | O142: 3008600
A143: 128 | B143: 2013-08-15 | C143: 74.66 | D143: 75.3 | E143: 74.34 | F143: 75.23 | G143: 2677400 | H143: 74.75 | I143: 0.9936195667 | J143: 1 | K143: 74.18 | L143: 74.82 | M143: 73.87 | N143: 74.75 | O143: 2677400
A144: 129 | B144: 2013-08-14 | C144: 75.6 | D144: 75.92 | E144: 75.17 | F144: 75.47 | G144: 1940500 | H144: 74.99 | I144: 0.9936398569 | J144: 1 | K144: 75.12 | L144: 75.44 | M144: 74.69 | N144: 74.99 | O144: 1940500
A145: 130 | B145: 2013-08-13 | C145: 75.16 | D145: 75.45 | E145: 74.6 | F145: 75.21 | G145: 2115800 | H145: 74.73 | I145: =H145/F145 -> 0.99361787 | J145: =INDEX(OFFSET($T$15,1,0,$S$13,1),MATCH(B145,OFFSET($Q$15,1,0,$S$13,1),-1)) -> 1 | K145: =ROUND($I145*C145,2) -> 74.68 | L145: =ROUND($I145*D145,2) -> 74.97 | M145: =ROUND($I145*E145,2) -> 74.12 | N145: =ROUND($I145*F145,2) -> 74.73 | O145: =G145*J145 -> 2115800
A146: 131 | B146: 2013-08-12 | C146: 74.49 | D146: 75.32 | E146: 74.35 | F146: 75.13 | G146: 2601800 | H146: 74.65 | I146: 0.9936110741 | J146: 1 | K146: 74.01 | L146: 74.84 | M146: 73.87 | N146: 74.65 | O146: 2601800
A147: 132 | B147: 2013-08-09 | C147: 75.54 | D147: 75.64 | E147: 74.36 | F147: 74.89 | G147: 3408700 | H147: 74.41 | I147: 0.9935905995 | J147: 1 | K147: 75.06 | L147: 75.16 | M147: 73.88 | N147: 74.41 | O147: 3408700
A148: 133 | B148: 2013-08-08 | C148: 74.33 | D148: 74.83 | E148: 73.42 | F148: 74.36 | G148: 1893800 | H148: 73.89 | I148: 0.9936793975 | J148: 1 | K148: 73.86 | L148: 74.36 | M148: 72.96 | N148: 73.89 | O148: 1893800
A149: 134 | B149: 2013-08-07 | C149: 73.04 | D149: 74 | E149: 72.38 | F149: 73.56 | G149: 2475100 | H149: 73.09 | I149: 0.993610658 | J149: 1 | K149: 72.57 | L149: 73.53 | M149: 71.92 | N149: 73.09 | O149: 2475100
A150: 135 | B150: 2013-08-06 | C150: 75.05 | D150: 75.22 | E150: 73.1 | F150: 73.46 | G150: 4230100 | H150: 72.99 | I150: 0.9936019603 | J150: 1 | K150: 74.57 | L150: 74.74 | M150: 72.63 | N150: 72.99 | O150: 4230100
A151: 136 | B151: 2013-08-05 | C151: 74.98 | D151: 75.14 | E151: 74.35 | F151: 75.08 | G151: 2086500 | H151: 74.6 | I151: 0.9936068194 | J151: 1 | K151: 74.5 | L151: 74.66 | M151: 73.87 | N151: 74.6 | O151: 2086500
A152: 137 | B152: 2013-08-02 | C152: 75.62 | D152: 75.66 | E152: 75 | F152: 75.31 | G152: 2392200 | H152: 74.83 | I152: 0.9936263444 | J152: 1 | K152: 75.14 | L152: 75.18 | M152: 74.52 | N152: 74.83 | O152: 2392200
A153: 138 | B153: 2013-08-01 | C153: 75.38 | D153: 76.34 | E153: 74.78 | F153: 76.04 | G153: 3595300 | H153: 75.56 | I153: 0.9936875329 | J153: 1 | K153: 74.9 | L153: 75.86 | M153: 74.31 | N153: 75.56 | O153: 3595300
A154: 139 | B154: 2013-07-31 | C154: 73.79 | D154: 75.8 | E154: 73.79 | F154: 74.46 | G154: 6142400 | H154: 73.99 | I154: 0.9936878861 | J154: 1 | K154: 73.32 | L154: 75.32 | M154: 73.32 | N154: 73.99 | O154: 6142400
A155: 140 | B155: 2013-07-30 | C155: 73.08 | D155: 73.72 | E155: 72.13 | F155: 73.19 | G155: 3670100 | H155: 72.72 | I155: 0.9935783577 | J155: 1 | K155: 72.61 | L155: 73.25 | M155: 71.67 | N155: 72.72 | O155: 3670100
A156: 141 | B156: 2013-07-29 | C156: 72.78 | D156: 73 | E156: 71.67 | F156: 72.03 | G156: 2721000 | H156: 71.57 | I156: 0.993613772 | J156: 1 | K156: 72.32 | L156: 72.53 | M156: 71.21 | N156: 71.57 | O156: 2721000
A157: 142 | B157: 2013-07-26 | C157: 72.99 | D157: 73.24 | E157: 72.33 | F157: 73.2 | G157: 1414500 | H157: 72.73 | I157: 0.993579235 | J157: 1 | K157: 72.52 | L157: 72.77 | M157: 71.87 | N157: 72.73 | O157: 1414500
A158: 143 | B158: 2013-07-25 | C158: 72.23 | D158: 73.63 | E158: 72.23 | F158: 73.54 | G158: 2104100 | H158: 73.07 | I158: 0.9936089203 | J158: 1 | K158: 71.77 | L158: 73.16 | M158: 71.77 | N158: 73.07 | O158: 2104100
A159: 144 | B159: 2013-07-24 | C159: 73.57 | D159: 73.66 | E159: 72.04 | F159: 72.63 | G159: 2130800 | H159: 72.17 | I159: 0.993666529 | J159: 1 | K159: 73.1 | L159: 73.19 | M159: 71.58 | N159: 72.17 | O159: 2130800
A160: 145 | B160: 2013-07-23 | C160: 73.32 | D160: 73.94 | E160: 73.13 | F160: 73.43 | G160: 2002800 | H160: 72.96 | I160: 0.9935993463 | J160: 1 | K160: 72.85 | L160: 73.47 | M160: 72.66 | N160: 72.96 | O160: 2002800
A161: 146 | B161: 2013-07-22 | C161: 74.3 | D161: 74.5 | E161: 72.76 | F161: 73.27 | G161: 3083700 | H161: 72.8 | I161: 0.9935853692 | J161: 1 | K161: 73.82 | L161: 74.02 | M161: 72.29 | N161: 72.8 | O161: 3083700
A162: 147 | B162: 2013-07-19 | C162: 72.51 | D162: 74 | E162: 72.23 | F162: 73.94 | G162: 3731000 | H162: 73.47 | I162: 0.9936434947 | J162: 1 | K162: 72.05 | L162: 73.53 | M162: 71.77 | N162: 73.47 | O162: 3731000
A163: 148 | B163: 2013-07-18 | C163: 71.41 | D163: 72.39 | E163: 71.34 | F163: 72.16 | G163: 2654800 | H163: 71.7 | I163: 0.9936252772 | J163: 1 | K163: 70.95 | L163: 71.93 | M163: 70.89 | N163: 71.7 | O163: 2654800
A164: 149 | B164: 2013-07-17 | C164: 70.92 | D164: 71.58 | E164: 70.82 | F164: 71.28 | G164: 1854300 | H164: 70.83 | I164: 0.9936868687 | J164: 1 | K164: 70.47 | L164: 71.13 | M164: 70.37 | N164: 70.83 | O164: 1854300
A165: 150 | B165: 2013-07-16 | C165: 71.05 | D165: 71.37 | E165: 70.2 | F165: 70.74 | G165: 1523200 | H165: 70.29 | I165: 0.9936386768 | J165: 1 | K165: 70.6 | L165: 70.92 | M165: 69.75 | N165: 70.29 | O165: 1523200
A166: 151 | B166: 2013-07-15 | C166: 71.64 | D166: 71.81 | E166: 70.81 | F166: 71.06 | G166: 1589500 | H166: 70.61 | I166: 0.9936673234 | J166: 1 | K166: 71.19 | L166: 71.36 | M166: 70.36 | N166: 70.61 | O166: 1589500
A167: 152 | B167: 2013-07-12 | C167: 70.8 | D167: 71.34 | E167: 70.73 | F167: 71.17 | G167: 2133400 | H167: 70.72 | I167: 0.9936771111 | J167: 1 | K167: 70.35 | L167: 70.89 | M167: 70.28 | N167: 70.72 | O167: 2133400
A168: 153 | B168: 2013-07-11 | C168: 69.94 | D168: 71.08 | E168: 69.83 | F168: 70.96 | G168: 4169200 | H168: 70.51 | I168: 0.9936583991 | J168: 1 | K168: 69.5 | L168: 70.63 | M168: 69.39 | N168: 70.51 | O168: 4169200
A169: 154 | B169: 2013-07-10 | C169: 68.56 | D169: 69.04 | E169: 68.42 | F169: 68.73 | G169: 1914700 | H169: 68.29 | I169: 0.9935981376 | J169: 1 | K169: 68.12 | L169: 68.6 | M169: 67.98 | N169: 68.29 | O169: 1914700
A170: 155 | B170: 2013-07-09 | C170: 68.89 | D170: 68.98 | E170: 67.92 | F170: 68.57 | G170: 2106600 | H170: 68.13 | I170: 0.9935831996 | J170: 1 | K170: 68.45 | L170: 68.54 | M170: 67.48 | N170: 68.13 | O170: 2106600
A171: 156 | B171: 2013-07-08 | C171: 68.5 | D171: 68.71 | E171: 68.13 | F171: 68.53 | G171: 2648600 | H171: 68.09 | I171: 0.9935794543 | J171: 1 | K171: 68.06 | L171: 68.27 | M171: 67.69 | N171: 68.09 | O171: 2648600
A172: 157 | B172: 2013-07-05 | C172: 67.86 | D172: 68.19 | E172: 66.98 | F172: 68.13 | G172: 1341100 | H172: 67.7 | I172: 0.9936885366 | J172: 1 | K172: 67.43 | L172: 67.76 | M172: 66.56 | N172: 67.7 | O172: 1341100
A173: 158 | B173: 2013-07-03 | C173: 67.05 | D173: 67.29 | E173: 66.23 | F173: 67.2 | G173: 1146200 | H173: 66.77 | I173: 0.9936011905 | J173: 1 | K173: 66.62 | L173: 66.86 | M173: 65.81 | N173: 66.77 | O173: 1146200
A174: 159 | B174: 2013-07-02 | C174: 66.72 | D174: 67.81 | E174: 66.51 | F174: 67.22 | G174: 3090000 | H174: 66.79 | I174: 0.9936030943 | J174: 1 | K174: 66.29 | L174: 67.38 | M174: 66.08 | N174: 66.79 | O174: 3090000
A175: 160 | B175: 2013-07-01 | C175: 66.82 | D175: 67.47 | E175: 66.5 | F175: 66.71 | G175: 2294300 | H175: 66.28 | I175: 0.9935541898 | J175: 1 | K175: 66.39 | L175: 67.04 | M175: 66.07 | N175: 66.28 | O175: 2294300
A176: 161 | B176: 2013-06-28 | C176: 66.95 | D176: 67.07 | E176: 66.2 | F176: 66.49 | G176: 2595500 | H176: 66.07 | I176: 0.9936832606 | J176: 1 | K176: 66.53 | L176: 66.65 | M176: 65.78 | N176: 66.07 | O176: 2595500
A177: 162 | B177: 2013-06-27 | C177: 66.26 | D177: 67.5 | E177: 66.21 | F177: 67.05 | G177: 3390500 | H177: 66.62 | I177: 0.9935868755 | J177: 1 | K177: 65.84 | L177: 67.07 | M177: 65.79 | N177: 66.62 | O177: 3390500
A178: 163 | B178: 2013-06-26 | C178: 64.12 | D178: 66.58 | E178: 64.06 | F178: 65.71 | G178: 3792100 | H178: 65.29 | I178: 0.9936082788 | J178: 1 | K178: 63.71 | L178: 66.15 | M178: 63.65 | N178: 65.29 | O178: 3792100
A179: 164 | B179: 2013-06-25 | C179: 63.68 | D179: 64.26 | E179: 62.98 | F179: 63.65 | G179: 2803200 | H179: 63.24 | I179: 0.9935585232 | J179: 1 | K179: 63.27 | L179: 63.85 | M179: 62.57 | N179: 63.24 | O179: 2803200
A180: 165 | B180: 2013-06-24 | C180: 63.28 | D180: 63.46 | E180: 61.32 | F180: 62.87 | G180: 5068300 | H180: 62.47 | I180: 0.993637665 | J180: 1 | K180: 62.88 | L180: 63.06 | M180: 60.93 | N180: 62.47 | O180: 5068300
A181: 166 | B181: 2013-06-21 | C181: 64.26 | D181: 64.44 | E181: 62.63 | F181: 64.02 | G181: 5992300 | H181: 63.61 | I181: 0.9935957513 | J181: 1 | K181: 63.85 | L181: 64.03 | M181: 62.23 | N181: 63.61 | O181: 5992300
A182: 167 | B182: 2013-06-20 | C182: 65.26 | D182: 65.66 | E182: 64.04 | F182: 64.28 | G182: 3407600 | H182: 63.87 | I182: 0.9936216553 | J182: 1 | K182: 64.84 | L182: 65.24 | M182: 63.63 | N182: 63.87 | O182: 3407600
A183: 168 | B183: 2013-06-19 | C183: 67.33 | D183: 68.08 | E183: 66.25 | F183: 66.38 | G183: 2678600 | H183: 65.96 | I183: 0.993672793 | J183: 1 | K183: 66.9 | L183: 67.65 | M183: 65.83 | N183: 65.96 | O183: 2678600
A184: 169 | B184: 2013-06-18 | C184: 67.54 | D184: 67.75 | E184: 67.14 | F184: 67.52 | G184: 3253500 | H184: 67.09 | I184: 0.9936315166 | J184: 1 | K184: 67.11 | L184: 67.32 | M184: 66.71 | N184: 67.09 | O184: 3253500
A185: 170 | B185: 2013-06-17 | C185: 66.59 | D185: 68 | E185: 66.59 | F185: 67.51 | G185: 2269400 | H185: 67.08 | I185: 0.9936305732 | J185: 1 | K185: 66.17 | L185: 67.57 | M185: 66.17 | N185: 67.08 | O185: 2269400
A186: 171 | B186: 2013-06-14 | C186: 67.24 | D186: 67.25 | E186: 65.77 | F186: 65.97 | G186: 3066400 | H186: 65.55 | I186: 0.9936334698 | J186: 1 | K186: 66.81 | L186: 66.82 | M186: 65.35 | N186: 65.55 | O186: 3066400
A187: 172 | B187: 2013-06-13 | C187: 66.67 | D187: 67.11 | E187: 66 | F187: 66.85 | G187: 3233400 | H187: 66.42 | I187: 0.9935676889 | J187: 1 | K187: 66.24 | L187: 66.68 | M187: 65.58 | N187: 66.42 | O187: 3233400
A188: 173 | B188: 2013-06-12 | C188: 68.12 | D188: 68.22 | E188: 66.46 | F188: 66.82 | G188: 2370200 | H188: 66.29 | I188: 0.992068243 | J188: 1 | K188: 67.58 | L188: 67.68 | M188: 65.93 | N188: 66.29 | O188: 2370200
A189: 174 | B189: 2013-06-11 | C189: 67.72 | D189: 68.03 | E189: 67.11 | F189: 67.29 | G189: 1552700 | H189: 66.76 | I189: 0.9921236439 | J189: 1 | K189: 67.19 | L189: 67.49 | M189: 66.58 | N189: 66.76 | O189: 1552700
A190: 175 | B190: 2013-06-10 | C190: 69.23 | D190: 69.38 | E190: 68.32 | F190: 68.75 | G190: 1392900 | H190: 68.21 | I190: 0.9921454545 | J190: 1 | K190: 68.69 | L190: 68.84 | M190: 67.78 | N190: 68.21 | O190: 1392900
A191: 176 | B191: 2013-06-07 | C191: 68.63 | D191: 69.34 | E191: 68.01 | F191: 69.18 | G191: 2125700 | H191: 68.64 | I191: 0.9921942758 | J191: 1 | K191: 68.09 | L191: 68.8 | M191: 67.48 | N191: 68.64 | O191: 2125700
A192: 177 | B192: 2013-06-06 | C192: 66.7 | D192: 67.99 | E192: 66.27 | F192: 67.99 | G192: 2241700 | H192: 67.46 | I192: 0.992204736 | J192: 1 | K192: 66.18 | L192: 67.46 | M192: 65.75 | N192: 67.46 | O192: 2241700
A193: 178 | B193: 2013-06-05 | C193: 67.97 | D193: 68.19 | E193: 66.56 | F193: 66.76 | G193: 2822000 | H193: 66.24 | I193: 0.9922109047 | J193: 1 | K193: 67.44 | L193: 67.66 | M193: 66.04 | N193: 66.24 | O193: 2822000
A194: 179 | B194: 2013-06-04 | C194: 68.46 | D194: 68.92 | E194: 67.53 | F194: 68.25 | G194: 2339500 | H194: 67.71 | I194: 0.9920879121 | J194: 1 | K194: 67.92 | L194: 68.37 | M194: 67 | N194: 67.71 | O194: 2339500
A195: 180 | B195: 2013-06-03 | C195: 67.58 | D195: 69.17 | E195: 67.51 | F195: 68.79 | G195: 2945500 | H195: 68.25 | I195: 0.9921500218 | J195: 1 | K195: 67.05 | L195: 68.63 | M195: 66.98 | N195: 68.25 | O195: 2945500
A196: 181 | B196: 2013-05-31 | C196: 68.5 | D196: 68.85 | E196: 67.4 | F196: 67.41 | G196: 3888300 | H196: 66.88 | I196: 0.992137665 | J196: 1 | K196: 67.96 | L196: 68.31 | M196: 66.87 | N196: 66.88 | O196: 3888300
A197: 182 | B197: 2013-05-30 | C197: 68.26 | D197: 69.16 | E197: 67.87 | F197: 68.74 | G197: 2587900 | H197: 68.2 | I197: 0.9921443119 | J197: 1 | K197: 67.72 | L197: 68.62 | M197: 67.34 | N197: 68.2 | O197: 2587900
A198: 183 | B198: 2013-05-29 | C198: 67.83 | D198: 68.82 | E198: 67.74 | F198: 68.57 | G198: 2056700 | H198: 68.03 | I198: 0.9921248359 | J198: 1 | K198: 67.3 | L198: 68.28 | M198: 67.21 | N198: 68.03 | O198: 2056700
A199: 184 | B199: 2013-05-28 | C199: 68.66 | D199: 69.17 | E199: 67.93 | F199: 68.52 | G199: 3958900 | H199: 67.98 | I199: 0.9921190893 | J199: 1 | K199: 68.12 | L199: 68.62 | M199: 67.39 | N199: 67.98 | O199: 3958900
A200: 185 | B200: 2013-05-24 | C200: 67.43 | D200: 67.6 | E200: 66.33 | F200: 67.48 | G200: 4042100 | H200: 66.95 | I200: 0.992145821 | J200: 1 | K200: 66.9 | L200: 67.07 | M200: 65.81 | N200: 66.95 | O200: 4042100
... 3315 more rows

Sheet InputIndexData
A1: SPDR S&P 500 (SPY) -PCX
A2: Last Trade: | B2: 2014-02-19 | C2: 183.76 | D2: 184.95 | E2: 183.57 | F2: 183.842 | G2: 81577920 | H2: 3:00pm | L2: Notes: | M2: Online Yahoo Finance Query Interfaces used in the VBA code to obtain this data:
A3: Request Online Yahoo History for: | M3: A.) Price History Only: "http://ichart.finance.yahoo.com/table.csv"
A4: Symbol | B4: spy | D4: Valid | M4: B.) Price History w/ imbedded divs n splits: "http://ichart.finance.yahoo.com/x"
A5: From | B5: 1977-01-07 | D5: Data
A6: To | B6: =TODAY() -> 2014-02-19 | D6: Types | E6: =VLOOKUP(B7,D7:E10,2,FALSE) -> d | M6: C.) Fundamentals (in this case name and exchange):
A7: Data Type | B7: Daily | D7: Daily | E7: d | M7: "http://download.finance.yahoo.com/d/quotes.csv?"
D8: Weekly | E8: w | M8: For some how-to doc regarding this particular interface, including a list of the
A9: Available Data | D9: Monthly | E9: m | M9: specific fields you can include in a request to this interface see:
A10: Bar Count: | B10: =COUNTA(B16:B53199) -> 3500 | M10: http://www.gummy-stuff.org/Yahoo-data.htm
A11: From: | B11: =IF(B10<=0,"",OFFSET(B15,B10,IF(HistReqDataType="v",1,0),1,1)) -> 2000-03-20 | M11: This web site includes a downloadable working EXCEL/VBA example
A12: To: | B12: =IF(B10<=0,"",IF(HistReqDataType="v",OFFSET(B15,2,1,1,1),OFFSET(B15,1,0,1,1))) -> 2014-02-18 | M12: of the capabilities of this interface.
Q13: Split History | S13: =COUNT(Q16:Q7117) -> 1 | T13: Running | U13: Dividend History
B14: Raw Data Values | H14: Adjusted | I14: Price Adjust | J14: Vol Adjust | K14: Adjusted Values | P14: Last | Q14: Effective | R14: Shares | T14: Vol Adjust | V14: =COUNT(U16:U7117) -> 85
A15: RelRow | B15: Date | C15: Open | D15: High | E15: Low | F15: Close | G15: Volume | H15: Close | I15: Factor | J15: Factor | K15: Open | L15: High | M15: Low | N15: Close | O15: Volume | P15: Trade | Q15: Date | R15: New | S15: Old | T15: Factor | U15: Date | V15: $ / Share
A16: 1 | B16: 2014-02-18 | C16: 184.18 | D16: 184.49 | E16: 183.65 | F16: 184.24 | G16: 80001100 | H16: 184.24 | I16: =H16/F16 -> 1 | J16: =INDEX(OFFSET($T$15,1,0,$S$13,1),MATCH(B16,OFFSET($Q$15,1,0,$S$13,1),-1)) -> 1 | K16: =ROUND($I16*C16,2) -> 184.18 | L16: =ROUND($I16*D16,2) -> 184.49 | M16: 183.65 | N16: 184.24 | O16: =G16*J16 -> 80001100 | Q16: =TODAY() -> 2014-02-19 | R16: 1 | S16: 1 | T16: 1 | U16: 2013-12-20 | V16: 0.98
A17: 2 | B17: 2014-02-14 | C17: 182.84 | D17: 184.36 | E17: 182.67 | F17: 184.02 | G17: 86420600 | H17: 184.02 | I17: =H17/F17 -> 1 | J17: =INDEX(OFFSET($T$15,1,0,$S$13,1),MATCH(B17,OFFSET($Q$15,1,0,$S$13,1),-1)) -> 1 | K17: =ROUND($I17*C17,2) -> 182.84 | L17: =ROUND($I17*D17,2) -> 184.36 | M17: =ROUND($I17*E17,2) -> 182.67 | N17: =ROUND($I17*F17,2) -> 184.02 | O17: =G17*J17 -> 86420600 | U17: 2013-09-20 | V17: 0.838
A18: 3 | B18: 2014-02-13 | C18: 180.84 | D18: 183.2 | E18: 180.83 | F18: 183.01 | G18: 98831500 | H18: 183.01 | I18: 1 | J18: 1 | K18: 180.84 | L18: 183.2 | M18: 180.83 | N18: 183.01 | O18: 98831500 | U18: 2013-06-21 | V18: 0.839
A19: 4 | B19: 2014-02-12 | C19: 182.25 | D19: 182.83 | E19: 181.71 | F19: 182.07 | G19: 94405400 | H19: 182.07 | I19: 1 | J19: 1 | K19: 182.25 | L19: 182.83 | M19: 181.71 | N19: 182.07 | O19: 94405400 | U19: 2013-03-15 | V19: 0.694
A20: 5 | B20: 2014-02-11 | C20: 180.16 | D20: 182.44 | E20: 180.04 | F20: 181.98 | G20: 121437900 | H20: 181.98 | I20: 1 | J20: 1 | K20: 180.16 | L20: 182.44 | M20: 180.04 | N20: 181.98 | O20: 121437900 | U20: 2012-12-21 | V20: 1.022
A21: 6 | B21: 2014-02-10 | C21: 179.7 | D21: 180.07 | E21: 179.21 | F21: 180.01 | G21: 91887100 | H21: 180.01 | I21: 1 | J21: 1 | K21: 179.7 | L21: 180.07 | M21: 179.21 | N21: 180.01 | O21: 91887100 | U21: 2012-09-21 | V21: 0.779
A22: 7 | B22: 2014-02-07 | C22: 178.31 | D22: 179.87 | E22: 177.73 | F22: 179.68 | G22: 156719300 | H22: 179.68 | I22: 1 | J22: 1 | K22: 178.31 | L22: 179.87 | M22: 177.73 | N22: 179.68 | O22: 156719300 | U22: 2012-06-15 | V22: 0.688
A23: 8 | B23: 2014-02-06 | C23: 175.58 | D23: 177.48 | E23: 175.22 | F23: 177.48 | G23: 132256600 | H23: 177.48 | I23: 1 | J23: 1 | K23: 175.58 | L23: 177.48 | M23: 175.22 | N23: 177.48 | O23: 132256600 | U23: 2012-03-16 | V23: 0.614
A24: 9 | B24: 2014-02-05 | C24: 174.78 | D24: 175.56 | E24: 173.71 | F24: 175.17 | G24: 163611500 | H24: 175.17 | I24: 1 | J24: 1 | K24: 174.78 | L24: 175.56 | M24: 173.71 | N24: 175.17 | O24: 163611500 | U24: 2011-12-16 | V24: 0.77
A25: 10 | B25: 2014-02-04 | C25: 174.95 | D25: 175.84 | E25: 174.11 | F25: 175.39 | G25: 164716300 | H25: 175.39 | I25: 1 | J25: 1 | K25: 174.95 | L25: 175.84 | M25: 174.11 | N25: 175.39 | O25: 164716300 | U25: 2011-09-16 | V25: 0.625
A26: 11 | B26: 2014-02-03 | C26: 177.97 | D26: 178.37 | E26: 173.83 | F26: 174.17 | G26: 253847600 | H26: 174.17 | I26: 1 | J26: 1 | K26: 177.97 | L26: 178.37 | M26: 173.83 | N26: 174.17 | O26: 253847600 | U26: 2011-06-17 | V26: 0.628
A27: 12 | B27: 2014-01-31 | C27: 177.01 | D27: 179.29 | E27: 176.92 | F27: 178.18 | G27: 193964600 | H27: 178.18 | I27: 1 | J27: 1 | K27: 177.01 | L27: 179.29 | M27: 176.92 | N27: 178.18 | O27: 193964600 | U27: 2011-03-18 | V27: 0.553
A28: 13 | B28: 2014-01-30 | C28: 178.83 | D28: 179.81 | E28: 178.26 | F28: 179.23 | G28: 116122500 | H28: 179.23 | I28: 1 | J28: 1 | K28: 178.83 | L28: 179.81 | M28: 178.26 | N28: 179.23 | O28: 116122500 | U28: 2010-12-17 | V28: 0.653
A29: 14 | B29: 2014-01-29 | C29: 177.58 | D29: 178.55 | E29: 176.88 | F29: 177.35 | G29: 215115500 | H29: 177.35 | I29: 1 | J29: 1 | K29: 177.58 | L29: 178.55 | M29: 176.88 | N29: 177.35 | O29: 215115500 | U29: 2010-09-17 | V29: 0.602
A30: 15 | B30: 2014-01-28 | C30: 178.14 | D30: 179.3 | E30: 178.12 | F30: 179.07 | G30: 108689100 | H30: 179.07 | I30: 1 | J30: 1 | K30: 178.14 | L30: 179.3 | M30: 178.12 | N30: 179.07 | O30: 108689100 | U30: 2010-06-18 | V30: 0.531
A31: 16 | B31: 2014-01-27 | C31: 179.06 | D31: 179.52 | E31: 177.12 | F31: 178.01 | G31: 179892000 | H31: 178.01 | I31: 1 | J31: 1 | K31: 179.06 | L31: 179.52 | M31: 177.12 | N31: 178.01 | O31: 179892000 | U31: 2010-03-19 | V31: 0.48
A32: 17 | B32: 2014-01-24 | C32: 181.6 | D32: 181.66 | E32: 178.83 | F32: 178.89 | G32: 189641700 | H32: 178.89 | I32: 1 | J32: 1 | K32: 181.6 | L32: 181.66 | M32: 178.83 | N32: 178.89 | O32: 189641700 | U32: 2009-12-18 | V32: 0.59
A33: 18 | B33: 2014-01-23 | C33: 183.37 | D33: 183.4 | E33: 181.82 | F33: 182.79 | G33: 132221300 | H33: 182.79 | I33: 1 | J33: 1 | K33: 183.37 | L33: 183.4 | M33: 181.82 | N33: 182.79 | O33: 132221300 | U33: 2009-09-18 | V33: 0.508
A34: 19 | B34: 2014-01-22 | C34: 184.49 | D34: 184.57 | E34: 183.91 | F34: 184.3 | G34: 60639600 | H34: 184.3 | I34: 1 | J34: 1 | K34: 184.49 | L34: 184.57 | M34: 183.91 | N34: 184.3 | O34: 60639600 | U34: 2009-06-19 | V34: 0.518
A35: 20 | B35: 2014-01-21 | C35: 184.7 | D35: 184.77 | E35: 183.05 | F35: 184.18 | G35: 88581900 | H35: 184.18 | I35: 1 | J35: 1 | K35: 184.7 | L35: 184.77 | M35: 183.05 | N35: 184.18 | O35: 88581900 | U35: 2009-03-20 | V35: 0.561
A36: 21 | B36: 2014-01-17 | C36: 184.1 | D36: 184.45 | E36: 183.32 | F36: 183.64 | G36: 103899200 | H36: 183.64 | I36: 1 | J36: 1 | K36: 184.1 | L36: 184.45 | M36: 183.32 | N36: 183.64 | O36: 103899200 | U36: 2008-12-19 | V36: 0.719
A37: 22 | B37: 2014-01-16 | C37: 184.28 | D37: 184.66 | E37: 183.83 | F37: 184.42 | G37: 72080000 | H37: 184.42 | I37: 1 | J37: 1 | K37: 184.28 | L37: 184.66 | M37: 183.83 | N37: 184.42 | O37: 72080000 | U37: 2008-09-19 | V37: 0.691
A38: 23 | B38: 2014-01-15 | C38: 184.1 | D38: 184.94 | E38: 183.71 | F38: 184.66 | G38: 96591300 | H38: 184.66 | I38: 1 | J38: 1 | K38: 184.1 | L38: 184.94 | M38: 183.71 | N38: 184.66 | O38: 96591300 | U38: 2008-06-20 | V38: 0.669
A39: 24 | B39: 2014-01-14 | C39: 182.29 | D39: 183.77 | E39: 181.95 | F39: 183.67 | G39: 104588800 | H39: 183.67 | I39: 1 | J39: 1 | K39: 182.29 | L39: 183.77 | M39: 181.95 | N39: 183.67 | O39: 104588800 | U39: 2008-03-20 | V39: 0.642
A40: 25 | B40: 2014-01-13 | C40: 183.67 | D40: 184.18 | E40: 181.34 | F40: 181.69 | G40: 149436000 | H40: 181.69 | I40: 1 | J40: 1 | K40: 183.67 | L40: 184.18 | M40: 181.34 | N40: 181.69 | O40: 149436000 | U40: 2007-12-21 | V40: 0.775
A41: 26 | B41: 2014-01-10 | C41: 183.95 | D41: 184.22 | E41: 183.01 | F41: 184.14 | G41: 101955600 | H41: 184.14 | I41: 1 | J41: 1 | K41: 183.95 | L41: 184.22 | M41: 183.01 | N41: 184.14 | O41: 101955600 | U41: 2007-09-21 | V41: 0.719
A42: 27 | B42: 2014-01-09 | C42: 184.11 | D42: 184.13 | E42: 182.8 | F42: 183.64 | G42: 90529400 | H42: 183.64 | I42: 1 | J42: 1 | K42: 184.11 | L42: 184.13 | M42: 182.8 | N42: 183.64 | O42: 90529400 | U42: 2007-06-15 | V42: 0.656
A43: 28 | B43: 2014-01-08 | C43: 183.45 | D43: 183.83 | E43: 182.89 | F43: 183.52 | G43: 96479300 | H43: 183.52 | I43: 1 | J43: 1 | K43: 183.45 | L43: 183.83 | M43: 182.89 | N43: 183.52 | O43: 96479300 | U43: 2007-03-16 | V43: 0.551
A44: 29 | B44: 2014-01-07 | C44: 183.09 | D44: 183.79 | E44: 182.95 | F44: 183.48 | G44: 86018700 | H44: 183.48 | I44: 1 | J44: 1 | K44: 183.09 | L44: 183.79 | M44: 182.95 | N44: 183.48 | O44: 86018700 | U44: 2006-12-15 | V44: 0.793
A45: 30 | B45: 2014-01-06 | C45: 183.49 | D45: 183.56 | E45: 182.08 | F45: 182.36 | G45: 106828500 | H45: 182.36 | I45: 1 | J45: 1 | K45: 183.49 | L45: 183.56 | M45: 182.08 | N45: 182.36 | O45: 106828500 | U45: 2006-09-15 | V45: 0.579
A46: 31 | B46: 2014-01-03 | C46: 183.23 | D46: 183.6 | E46: 182.63 | F46: 182.89 | G46: 81330600 | H46: 182.89 | I46: 1 | J46: 1 | K46: 183.23 | L46: 183.6 | M46: 182.63 | N46: 182.89 | O46: 81330600 | U46: 2006-06-16 | V46: 0.555
A47: 32 | B47: 2014-01-02 | C47: 183.98 | D47: 184.07 | E47: 182.48 | F47: 182.92 | G47: 119364600 | H47: 182.92 | I47: 1 | J47: 1 | K47: 183.98 | L47: 184.07 | M47: 182.48 | N47: 182.92 | O47: 119364600 | U47: 2006-03-17 | V47: 0.519
A48: 33 | B48: 2013-12-31 | C48: 184.07 | D48: 184.69 | E48: 183.93 | F48: 184.69 | G48: 86119900 | H48: 184.69 | I48: 1 | J48: 1 | K48: 184.07 | L48: 184.69 | M48: 183.93 | N48: 184.69 | O48: 86119900 | U48: 2005-12-16 | V48: 0.672
A49: 34 | B49: 2013-12-30 | C49: 183.87 | D49: 184.02 | E49: 183.58 | F49: 183.82 | G49: 56817500 | H49: 183.82 | I49: 1 | J49: 1 | K49: 183.87 | L49: 184.02 | M49: 183.58 | N49: 183.82 | O49: 56817500 | U49: 2005-09-16 | V49: 0.522
A50: 35 | B50: 2013-12-27 | C50: 184.1 | D50: 184.18 | E50: 183.66 | F50: 183.85 | G50: 61814000 | H50: 183.85 | I50: 1 | J50: 1 | K50: 184.1 | L50: 184.18 | M50: 183.66 | N50: 183.85 | O50: 61814000 | U50: 2005-06-17 | V50: 0.488
A51: 36 | B51: 2013-12-26 | C51: 183.34 | D51: 183.96 | E51: 183.32 | F51: 183.86 | G51: 63365000 | H51: 183.86 | I51: 1 | J51: 1 | K51: 183.34 | L51: 183.96 | M51: 183.32 | N51: 183.86 | O51: 63365000 | U51: 2005-03-18 | V51: 0.467
A52: 37 | B52: 2013-12-24 | C52: 182.54 | D52: 183.01 | E52: 182.53 | F52: 182.93 | G52: 45368800 | H52: 182.93 | I52: 1 | J52: 1 | K52: 182.54 | L52: 183.01 | M52: 182.53 | N52: 182.93 | O52: 45368800 | U52: 2004-12-17 | V52: 0.568
A53: 38 | B53: 2013-12-23 | C53: 182.45 | D53: 182.64 | E53: 182.07 | F53: 182.53 | G53: 85598000 | H53: 182.53 | I53: 1 | J53: 1 | K53: 182.45 | L53: 182.64 | M53: 182.07 | N53: 182.53 | O53: 85598000 | U53: 2004-11-15 | V53: 0.351
A54: 39 | B54: 2013-12-20 | C54: 180.69 | D54: 181.99 | E54: 180.57 | F54: 181.56 | G54: 197087000 | H54: 181.56 | I54: 1 | J54: 1 | K54: 180.69 | L54: 181.99 | M54: 180.57 | N54: 181.56 | O54: 197087000 | U54: 2004-09-17 | V54: 0.469
A55: 40 | B55: 2013-12-19 | C55: 181.18 | D55: 181.7 | E55: 180.71 | F55: 181.49 | G55: 136531200 | H55: 180.51 | I55: 0.9946002535 | J55: 1 | K55: 180.2 | L55: 180.72 | M55: 179.73 | N55: 180.51 | O55: 136531200 | U55: 2004-06-18 | V55: 0.414
A56: 41 | B56: 2013-12-18 | C56: 178.92 | D56: 181.73 | E56: 177.32 | F56: 181.7 | G56: 234906000 | H56: 180.72 | I56: 0.9946064942 | J56: 1 | K56: 177.95 | L56: 180.75 | M56: 176.36 | N56: 180.72 | O56: 234906000 | U56: 2004-03-19 | V56: 0.395
A57: 42 | B57: 2013-12-17 | C57: 179.38 | D57: 179.41 | E57: 178.25 | F57: 178.65 | G57: 89886000 | H57: 177.69 | I57: 0.9946263644 | J57: 1 | K57: 178.42 | L57: 178.45 | M57: 177.29 | N57: 177.69 | O57: 89886000 | U57: 2003-12-19 | V57: 0.516
A58: 43 | B58: 2013-12-16 | C58: 178.95 | D58: 179.81 | E58: 178.9 | F58: 179.22 | G58: 96195000 | H58: 178.25 | I58: 0.9945876576 | J58: 1 | K58: 177.98 | L58: 178.84 | M58: 177.93 | N58: 178.25 | O58: 96195000 | U58: 2003-09-19 | V58: 0.4
A59: 44 | B59: 2013-12-13 | C59: 178.5 | D59: 178.66 | E59: 177.77 | F59: 178.11 | G59: 107808000 | H59: 177.15 | I59: 0.9946100724 | J59: 1 | K59: 177.54 | L59: 177.7 | M59: 176.81 | N59: 177.15 | O59: 107808000 | U59: 2003-06-20 | V59: 0.36
A60: 45 | B60: 2013-12-12 | C60: 178.64 | D60: 178.86 | E60: 177.76 | F60: 178.13 | G60: 115565000 | H60: 177.17 | I60: 0.9946106776 | J60: 1 | K60: 177.68 | L60: 177.9 | M60: 176.8 | N60: 177.17 | O60: 115565000 | U60: 2003-03-21 | V60: 0.354
A61: 46 | B61: 2013-12-11 | C61: 180.82 | D61: 180.85 | E61: 178.5 | F61: 178.72 | G61: 130591000 | H61: 177.75 | I61: 0.9945725157 | J61: 1 | K61: 179.84 | L61: 179.87 | M61: 177.53 | N61: 177.75 | O61: 130591000 | U61: 2002-12-20 | V61: 0.436
A62: 47 | B62: 2013-12-10 | C62: 180.98 | D62: 181.36 | E62: 180.64 | F62: 180.75 | G62: 80976000 | H62: 179.77 | I62: 0.9945781466 | J62: 1 | K62: 180 | L62: 180.38 | M62: 179.66 | N62: 179.77 | O62: 80976000 | U62: 2002-09-20 | V62: 0.378
A63: 48 | B63: 2013-12-09 | C63: 181.47 | D63: 181.67 | E63: 181.16 | F63: 181.4 | G63: 70124000 | H63: 180.42 | I63: 0.9945975744 | J63: 1 | K63: 180.49 | L63: 180.69 | M63: 180.18 | N63: 180.42 | O63: 70124000 | U63: 2002-06-21 | V63: 0.353
A64: 49 | B64: 2013-12-06 | C64: 180.67 | D64: 181.11 | E64: 180.15 | F64: 180.94 | G64: 127728000 | H64: 179.96 | I64: 0.9945838399 | J64: 1 | K64: 179.69 | L64: 180.13 | M64: 179.17 | N64: 179.96 | O64: 127728000 | U64: 2002-03-15 | V64: 0.331
A65: 50 | B65: 2013-12-05 | C65: 179.41 | D65: 179.74 | E65: 178.77 | F65: 178.94 | G65: 106934000 | H65: 177.97 | I65: 0.9945791886 | J65: 1 | K65: 178.44 | L65: 178.77 | M65: 177.8 | N65: 177.97 | O65: 106934000 | U65: 2001-12-21 | V65: 0.393
A66: 51 | B66: 2013-12-04 | C66: 179.1 | D66: 180.48 | E66: 178.35 | F66: 179.73 | G66: 122884000 | H66: 178.76 | I66: 0.9946030156 | J66: 1 | K66: 178.13 | L66: 179.51 | M66: 177.39 | N66: 178.76 | O66: 122884000 | U66: 2001-09-21 | V66: 0.37
A67: 52 | B67: 2013-12-03 | C67: 179.94 | D67: 180.39 | E67: 179.17 | F67: 179.75 | G67: 116563000 | H67: 178.78 | I67: 0.9946036161 | J67: 1 | K67: 178.97 | L67: 179.42 | M67: 178.2 | N67: 178.78 | O67: 116563000 | U67: 2001-06-15 | V67: 0.346
A68: 53 | B68: 2013-12-02 | C68: 181.09 | D68: 181.43 | E68: 180.25 | F68: 180.53 | G68: 99726000 | H68: 179.56 | I68: 0.9946269318 | J68: 1 | K68: 180.12 | L68: 180.46 | M68: 179.28 | N68: 179.56 | O68: 99726000 | U68: 2001-03-16 | V68: 0.316
A69: 54 | B69: 2013-11-29 | C69: 181.32 | D69: 181.75 | E69: 180.8 | F69: 181 | G69: 55870900 | H69: 180.02 | I69: 0.9945856354 | J69: 1 | K69: 180.34 | L69: 180.77 | M69: 179.82 | N69: 180.02 | O69: 55870900 | U69: 2000-12-15 | V69: 0.36
A70: 55 | B70: 2013-11-27 | C70: 180.87 | D70: 181.24 | E70: 180.65 | F70: 181.12 | G70: 58800000 | H70: 180.14 | I70: 0.9945892226 | J70: 1 | K70: 179.89 | L70: 180.26 | M70: 179.67 | N70: 180.14 | O70: 58800000 | U70: 2000-09-15 | V70: 0.375
A71: 56 | B71: 2013-11-26 | C71: 180.72 | D71: 181.22 | E71: 180.41 | F71: 180.68 | G71: 86994000 | H71: 179.7 | I71: 0.994576046 | J71: 1 | K71: 179.74 | L71: 180.24 | M71: 179.43 | N71: 179.7 | O71: 86994000 | U71: 2000-06-16 | V71: 0.348
A72: 57 | B72: 2013-11-25 | C72: 181.13 | D72: 181.17 | E72: 180.37 | F72: 180.63 | G72: 79486000 | H72: 179.65 | I72: 0.9945745446 | J72: 1 | K72: 180.15 | L72: 180.19 | M72: 179.39 | N72: 179.65 | O72: 79486000 | U72: 2000-03-17 | V72: 0.371
A73: 58 | B73: 2013-11-22 | C73: 179.98 | D73: 180.83 | E73: 179.77 | F73: 180.81 | G73: 81296000 | H73: 179.83 | I73: 0.9945799458 | J73: 1 | K73: 179 | L73: 179.85 | M73: 178.8 | N73: 179.83 | O73: 81296000 | U73: 1999-12-17 | V73: 0.348
A74: 59 | B74: 2013-11-21 | C74: 178.97 | D74: 180.05 | E74: 178.86 | F74: 179.91 | G74: 92841000 | H74: 178.94 | I74: 0.9946084153 | J74: 1 | K74: 178.01 | L74: 179.08 | M74: 177.9 | N74: 178.94 | O74: 92841000 | U74: 1999-09-17 | V74: 0.355
A75: 60 | B75: 2013-11-20 | C75: 179.39 | D75: 179.93 | E75: 177.98 | F75: 178.47 | G75: 124909000 | H75: 177.51 | I75: 0.9946209447 | J75: 1 | K75: 178.43 | L75: 178.96 | M75: 177.02 | N75: 177.51 | O75: 124909000 | U75: 1999-06-18 | V75: 0.356
A76: 61 | B76: 2013-11-19 | C76: 179.33 | D76: 179.87 | E76: 178.72 | F76: 179.03 | G76: 93891000 | H76: 178.06 | I76: 0.9945819136 | J76: 1 | K76: 178.36 | L76: 178.9 | M76: 177.75 | N76: 178.06 | O76: 93891000 | U76: 1999-03-19 | V76: 0.355
A77: 62 | B77: 2013-11-18 | C77: 180.35 | D77: 180.5 | E77: 179.02 | F77: 179.42 | G77: 104796000 | H77: 178.45 | I77: 0.9945936908 | J77: 1 | K77: 179.37 | L77: 179.52 | M77: 178.05 | N77: 178.45 | O77: 104796000 | U77: 1998-12-18 | V77: 0.348
A78: 63 | B78: 2013-11-15 | C78: 179.56 | D78: 180.12 | E78: 179.33 | F78: 180.05 | G78: 102818000 | H78: 179.08 | I78: 0.9946126076 | J78: 1 | K78: 178.59 | L78: 179.15 | M78: 178.36 | N78: 179.08 | O78: 102818000 | U78: 1998-09-18 | V78: 0.348
A79: 64 | B79: 2013-11-14 | C79: 178.54 | D79: 179.42 | E79: 178.25 | F79: 179.27 | G79: 103435000 | H79: 178.3 | I79: 0.9945891672 | J79: 1 | K79: 177.57 | L79: 178.45 | M79: 177.29 | N79: 178.3 | O79: 103435000 | U79: 1998-06-19 | V79: 0.348
A80: 65 | B80: 2013-11-13 | C80: 176.09 | D80: 178.43 | E80: 176.09 | F80: 178.38 | G80: 103844000 | H80: 177.42 | I80: 0.9946182307 | J80: 1 | K80: 175.14 | L80: 177.47 | M80: 175.14 | N80: 177.42 | O80: 103844000 | U80: 1998-03-20 | V80: 0.348
A81: 66 | B81: 2013-11-12 | C81: 176.94 | D81: 177.36 | E81: 176.37 | F81: 176.96 | G81: 83990000 | H81: 176 | I81: =H81/F81 -> 0.9945750452 | J81: =INDEX(OFFSET($T$15,1,0,$S$13,1),MATCH(B81,OFFSET($Q$15,1,0,$S$13,1),-1)) -> 1 | K81: =ROUND($I81*C81,2) -> 175.98 | L81: =ROUND($I81*D81,2) -> 176.4 | M81: =ROUND($I81*E81,2) -> 175.41 | N81: =ROUND($I81*F81,2) -> 176 | O81: =G81*J81 -> 83990000 | U81: 1997-12-19 | V81: 0.345
A82: 67 | B82: 2013-11-11 | C82: 177.12 | D82: 177.53 | E82: 176.91 | F82: 177.32 | G82: 62614000 | H82: 176.36 | I82: 0.9945860591 | J82: 1 | K82: 176.16 | L82: 176.57 | M82: 175.95 | N82: 176.36 | O82: 62614000 | U82: 1997-09-19 | V82: 0.35
A83: 68 | B83: 2013-11-08 | C83: 174.87 | D83: 177.31 | E83: 174.85 | F83: 177.29 | G83: 136713000 | H83: 176.33 | I83: 0.994585143 | J83: 1 | K83: 173.92 | L83: 176.35 | M83: 173.9 | N83: 176.33 | O83: 136713000 | U83: 1997-06-20 | V83: 0.34
A84: 69 | B84: 2013-11-07 | C84: 177.5 | D84: 177.64 | E84: 174.76 | F84: 174.93 | G84: 157000000 | H84: 173.99 | I84: 0.994626422 | J84: 1 | K84: 176.55 | L84: 176.69 | M84: 173.82 | N84: 173.99 | O84: 157000000 | U84: 1997-03-21 | V84: 0.34
A85: 70 | B85: 2013-11-06 | C85: 177.03 | D85: 177.5 | E85: 176.54 | F85: 177.17 | G85: 87348000 | H85: 176.21 | I85: 0.9945814754 | J85: 1 | K85: 176.07 | L85: 176.54 | M85: 175.58 | N85: 176.21 | O85: 87348000 | U85: 1996-12-20 | V85: 0.325
A86: 71 | B86: 2013-11-05 | C86: 176.14 | D86: 176.75 | E86: 175.57 | F86: 176.27 | G86: 85825000 | H86: 175.32 | I86: 0.9946105406 | J86: 1 | K86: 175.19 | L86: 175.8 | M86: 174.62 | N86: 175.32 | O86: 85825000 | U86: 1996-06-21 | V86: 0.325
A87: 72 | B87: 2013-11-04 | C87: 176.69 | D87: 176.9 | E87: 175.98 | F87: 176.83 | G87: 85677000 | H87: 175.88 | I87: 0.9946276084 | J87: 1 | K87: 175.74 | L87: 175.95 | M87: 175.03 | N87: 175.88 | O87: 85677000 | U87: 1996-03-15 | V87: 0.322
A88: 73 | B88: 2013-11-01 | C88: 176.02 | D88: 176.61 | E88: 175.22 | F88: 176.21 | G88: 139760400 | H88: 175.26 | I88: 0.9946087055 | J88: 1 | K88: 175.07 | L88: 175.66 | M88: 174.28 | N88: 175.26 | O88: 139760400 | U88: 1995-12-15 | V88: 0.315
A89: 74 | B89: 2013-10-31 | C89: 176.15 | D89: 176.89 | E89: 175.53 | F89: 175.79 | G89: 133795000 | H89: 174.84 | I89: 0.9945958246 | J89: 1 | K89: 175.2 | L89: 175.93 | M89: 174.58 | N89: 174.84 | O89: 133795000 | U89: 1995-09-15 | V89: 0.31
A90: 75 | B90: 2013-10-30 | C90: 177.38 | D90: 177.51 | E90: 175.66 | F90: 176.29 | G90: 140002000 | H90: 175.34 | I90: 0.9946111521 | J90: 1 | K90: 176.42 | L90: 176.55 | M90: 174.71 | N90: 175.34 | O90: 140002000 | U90: 1995-06-16 | V90: 0.31
A91: 76 | B91: 2013-10-29 | C91: 176.63 | D91: 177.24 | E91: 176.38 | F91: 177.17 | G91: 87401000 | H91: 176.21 | I91: 0.9945814754 | J91: 1 | K91: 175.67 | L91: 176.28 | M91: 175.42 | N91: 176.21 | O91: 87401000 | U91: 1995-03-17 | V91: 0.308
A92: 77 | B92: 2013-10-28 | C92: 175.89 | D92: 176.47 | E92: 175.7 | F92: 176.23 | G92: 84979000 | H92: 175.28 | I92: 0.9946093174 | J92: 1 | K92: 174.94 | L92: 175.52 | M92: 174.75 | N92: 175.28 | O92: 84979000 | U92: 1994-12-16 | V92: 0.295
A93: 78 | B93: 2013-10-25 | C93: 175.51 | D93: 176 | E93: 175.17 | F93: 175.95 | G93: 93625000 | H93: 175 | I93: 0.9946007388 | J93: 1 | K93: 174.56 | L93: 175.05 | M93: 174.22 | N93: 175 | O93: 93625000 | U93: 1994-09-19 | V93: 0.295
A94: 79 | B94: 2013-10-24 | C94: 174.92 | D94: 175.37 | E94: 174.51 | F94: 175.15 | G94: 70350000 | H94: 174.2 | I94: 0.9945760776 | J94: 1 | K94: 173.97 | L94: 174.42 | M94: 173.56 | N94: 174.2 | O94: 70350000 | U94: 1994-09-16 | V94: 0.295
A95: 80 | B95: 2013-10-23 | C95: 174.81 | D95: 174.89 | E95: 173.96 | F95: 174.57 | G95: 105484000 | H95: 173.63 | I95: 0.9946153406 | J95: 1 | K95: 173.87 | L95: 173.95 | M95: 173.02 | N95: 173.63 | O95: 105484000 | U95: 1994-06-17 | V95: 0.295
A96: 81 | B96: 2013-10-22 | C96: 174.91 | D96: 175.93 | E96: 174.43 | F96: 175.41 | G96: 126663000 | H96: 174.46 | I96: 0.9945841172 | J96: 1 | K96: 173.96 | L96: 174.98 | M96: 173.49 | N96: 174.46 | O96: 126663000 | U96: 1994-03-18 | V96: 0.282
A97: 82 | B97: 2013-10-21 | C97: 174.45 | D97: 174.75 | E97: 174.01 | F97: 174.4 | G97: 104104000 | H97: 173.46 | I97: 0.9946100917 | J97: 1 | K97: 173.51 | L97: 173.81 | M97: 173.07 | N97: 173.46 | O97: 104104000 | U97: 1993-12-17 | V97: 0.282
A98: 83 | B98: 2013-10-18 | C98: 173.86 | D98: 174.51 | E98: 173.51 | F98: 174.39 | G98: 138316000 | H98: 173.45 | I98: 0.9946097827 | J98: 1 | K98: 172.92 | L98: 173.57 | M98: 172.57 | N98: 173.45 | O98: 138316000 | U98: 1993-09-17 | V98: 0.282
A99: 84 | B99: 2013-10-17 | C99: 171.37 | D99: 173.32 | E99: 171.34 | F99: 173.22 | G99: 129389000 | H99: 172.28 | I99: 0.9945733749 | J99: 1 | K99: 170.44 | L99: 172.38 | M99: 170.41 | N99: 172.28 | O99: 129389000 | U99: 1993-06-18 | V99: 0.282
A100: 85 | B100: 2013-10-16 | C100: 170.72 | D100: 172.16 | E100: 170.64 | F100: 172.07 | G100: 161676000 | H100: 171.14 | I100: 0.9945952229 | J100: 1 | K100: 169.8 | L100: 171.23 | M100: 169.72 | N100: 171.14 | O100: 161676000 | U100: 1993-03-19 | V100: 0.337
A101: 86 | B101: 2013-10-15 | C101: 170.51 | D101: 171.15 | E101: 169.47 | F101: 169.7 | G101: 155485000 | H101: 168.78 | I101: 0.9945786682 | J101: 1 | K101: 169.59 | L101: 170.22 | M101: 168.55 | N101: 168.78 | O101: 155485000
A102: 87 | B102: 2013-10-14 | C102: 169.21 | D102: 171.08 | E102: 169.08 | F102: 170.94 | G102: 112106000 | H102: 170.02 | I102: 0.9946179946 | J102: 1 | K102: 168.3 | L102: 170.16 | M102: 168.17 | N102: 170.02 | O102: 112106000
A103: 88 | B103: 2013-10-11 | C103: 168.91 | D103: 170.32 | E103: 168.77 | F103: 170.26 | G103: 105040000 | H103: 169.34 | I103: 0.9945964995 | J103: 1 | K103: 168 | L103: 169.4 | M103: 167.86 | N103: 169.34 | O103: 105040000
A104: 89 | B104: 2013-10-10 | C104: 167.29 | D104: 169.26 | E104: 167.23 | F104: 169.17 | G104: 195955000 | H104: 168.26 | I104: 0.9946207956 | J104: 1 | K104: 166.39 | L104: 168.35 | M104: 166.33 | N104: 168.26 | O104: 195955000
A105: 90 | B105: 2013-10-09 | C105: 165.8 | D105: 166.2 | E105: 164.53 | F105: 165.6 | G105: 168973000 | H105: 164.71 | I105: 0.9946256039 | J105: 1 | K105: 164.91 | L105: 165.31 | M105: 163.65 | N105: 164.71 | O105: 168973000
A106: 91 | B106: 2013-10-08 | C106: 167.4 | D106: 167.62 | E106: 165.36 | F106: 165.48 | G106: 178015000 | H106: 164.59 | I106: 0.9946217066 | J106: 1 | K106: 166.5 | L106: 166.72 | M106: 164.47 | N106: 164.59 | O106: 178015000
A107: 92 | B107: 2013-10-07 | C107: 167.42 | D107: 168.45 | E107: 167.25 | F107: 167.43 | G107: 96295000 | H107: 166.53 | I107: 0.9946246192 | J107: 1 | K107: 166.52 | L107: 167.54 | M107: 166.35 | N107: 166.53 | O107: 96295000
A108: 93 | B108: 2013-10-04 | C108: 167.75 | D108: 169.06 | E108: 167.53 | F108: 168.89 | G108: 96878000 | H108: 167.98 | I108: 0.9946118776 | J108: 1 | K108: 166.85 | L108: 168.15 | M108: 166.63 | N108: 167.98 | O108: 96878000
A109: 94 | B109: 2013-10-03 | C109: 168.79 | D109: 168.94 | E109: 166.84 | F109: 167.62 | G109: 176698000 | H109: 166.71 | I109: 0.9945710536 | J109: 1 | K109: 167.87 | L109: 168.02 | M109: 165.93 | N109: 166.71 | O109: 176698000
A110: 95 | B110: 2013-10-02 | C110: 168.35 | D110: 169.34 | E110: 167.83 | F110: 169.18 | G110: 113350000 | H110: 168.27 | I110: 0.9946211136 | J110: 1 | K110: 167.44 | L110: 168.43 | M110: 166.93 | N110: 168.27 | O110: 113350000
A111: 96 | B111: 2013-10-01 | C111: 168.14 | D111: 169.5 | E111: 167.97 | F111: 169.34 | G111: 127160000 | H111: 168.43 | I111: 0.9946261958 | J111: 1 | K111: 167.24 | L111: 168.59 | M111: 167.07 | N111: 168.43 | O111: 127160000
A112: 97 | B112: 2013-09-30 | C112: 167.48 | D112: 168.54 | E112: 167.15 | F112: 168.01 | G112: 143937000 | H112: 167.1 | I112: 0.9945836557 | J112: 1 | K112: 166.57 | L112: 167.63 | M112: 166.24 | N112: 167.1 | O112: 143937000
A113: 98 | B113: 2013-09-27 | C113: 168.84 | D113: 169.14 | E113: 168.47 | F113: 168.91 | G113: 99141800 | H113: 168 | I113: 0.9946125155 | J113: 1 | K113: 167.93 | L113: 168.23 | M113: 167.56 | N113: 168 | O113: 99141800
A114: 99 | B114: 2013-09-26 | C114: 169.32 | D114: 170.17 | E114: 169.05 | F114: 169.69 | G114: 77146900 | H114: 168.77 | I114: 0.9945783488 | J114: 1 | K114: 168.4 | L114: 169.25 | M114: 168.13 | N114: 168.77 | O114: 77146900
A115: 100 | B115: 2013-09-25 | C115: 169.64 | D115: 169.98 | E115: 168.89 | F115: 169.04 | G115: 117306500 | H115: 168.13 | I115: 0.9946166588 | J115: 1 | K115: 168.73 | L115: 169.06 | M115: 167.98 | N115: 168.13 | O115: 117306500
A116: 101 | B116: 2013-09-24 | C116: 169.9 | D116: 170.53 | E116: 169.21 | F116: 169.53 | G116: 106333100 | H116: 168.61 | I116: 0.9945732319 | J116: 1 | K116: 168.98 | L116: 169.6 | M116: 168.29 | N116: 168.61 | O116: 106333100
A117: 102 | B117: 2013-09-23 | C117: 170.49 | D117: 170.65 | E117: 169.39 | F117: 169.93 | G117: 104616500 | H117: 169.01 | I117: 0.994586006 | J117: 1 | K117: 169.57 | L117: 169.73 | M117: 168.47 | N117: 169.01 | O117: 104616500
A118: 103 | B118: 2013-09-20 | C118: 172.33 | D118: 172.33 | E118: 170.58 | F118: 170.72 | G118: 132867100 | H118: 169.8 | I118: 0.994611059 | J118: 1 | K118: 171.4 | L118: 171.4 | M118: 169.66 | N118: 169.8 | O118: 132867100
A119: 104 | B119: 2013-09-19 | C119: 173.52 | D119: 173.6 | E119: 172.59 | F119: 172.76 | G119: 146616900 | H119: 170.99 | I119: 0.9897545728 | J119: 1 | K119: 171.74 | L119: 171.82 | M119: 170.82 | N119: 170.99 | O119: 146616900
A120: 105 | B120: 2013-09-18 | C120: 171.01 | D120: 173.52 | E120: 170.58 | F120: 173.05 | G120: 203460600 | H120: 171.28 | I120: 0.9897717423 | J120: 1 | K120: 169.26 | L120: 171.75 | M120: 168.84 | N120: 171.28 | O120: 203460600
A121: 106 | B121: 2013-09-17 | C121: 170.46 | D121: 171.11 | E121: 170.46 | F121: 171.07 | G121: 82523300 | H121: 169.32 | I121: 0.9897702695 | J121: 1 | K121: 168.72 | L121: 169.36 | M121: 168.72 | N121: 169.32 | O121: 82523300
A122: 107 | B122: 2013-09-16 | C122: 171.16 | D122: 171.24 | E122: 170.04 | F122: 170.31 | G122: 106299200 | H122: 168.57 | I122: 0.9897833363 | J122: 1 | K122: 169.41 | L122: 169.49 | M122: 168.3 | N122: 168.57 | O122: 106299200
A123: 108 | B123: 2013-09-13 | C123: 169.13 | D123: 169.46 | E123: 168.74 | F123: 169.33 | G123: 72727800 | H123: 167.6 | I123: 0.9897832635 | J123: 1 | K123: 167.4 | L123: 167.73 | M123: 167.02 | N123: 167.6 | O123: 72727800
A124: 109 | B124: 2013-09-12 | C124: 169.34 | D124: 169.56 | E124: 168.72 | F124: 168.95 | G124: 83209000 | H124: 167.22 | I124: 0.9897602841 | J124: 1 | K124: 167.61 | L124: 167.82 | M124: 166.99 | N124: 167.22 | O124: 83209000
A125: 110 | B125: 2013-09-11 | C125: 168.64 | D125: 169.4 | E125: 168.35 | F125: 169.4 | G125: 94545900 | H125: 167.67 | I125: 0.9897874852 | J125: 1 | K125: 166.92 | L125: 167.67 | M125: 166.63 | N125: 167.67 | O125: 94545900
A126: 111 | B126: 2013-09-10 | C126: 168.64 | D126: 168.9 | E126: 168.26 | F126: 168.87 | G126: 105847200 | H126: 167.14 | I126: 0.9897554332 | J126: 1 | K126: 166.91 | L126: 167.17 | M126: 166.54 | N126: 167.14 | O126: 105847200
A127: 112 | B127: 2013-09-09 | C127: 166.45 | D127: 167.73 | E127: 166.45 | F127: 167.63 | G127: 87559300 | H127: 165.92 | I127: 0.989798962 | J127: 1 | K127: 164.75 | L127: 166.02 | M127: 164.75 | N127: 165.92 | O127: 87559300
A128: 113 | B128: 2013-09-06 | C128: 166.51 | D128: 166.98 | E128: 164.48 | F128: 166.04 | G128: 159756500 | H128: 164.34 | I128: 0.9897615033 | J128: 1 | K128: 164.81 | L128: 165.27 | M128: 162.8 | N128: 164.34 | O128: 159756500
A129: 114 | B129: 2013-09-05 | C129: 165.85 | D129: 166.4 | E129: 165.73 | F129: 165.96 | G129: 63090500 | H129: 164.26 | I129: 0.9897565678 | J129: 1 | K129: 164.15 | L129: 164.7 | M129: 164.03 | N129: 164.26 | O129: 63090500
A130: 115 | B130: 2013-09-04 | C130: 164.43 | D130: 166.03 | E130: 164.13 | F130: 165.75 | G130: 97389400 | H130: 164.06 | I130: 0.9898039216 | J130: 1 | K130: 162.75 | L130: 164.34 | M130: 162.46 | N130: 164.06 | O130: 97389400
A131: 116 | B131: 2013-09-03 | C131: 165.23 | D131: 165.58 | E131: 163.7 | F131: 164.39 | G131: 142375100 | H131: 162.71 | I131: 0.9897804003 | J131: 1 | K131: 163.54 | L131: 163.89 | M131: 162.03 | N131: 162.71 | O131: 142375100
A132: 117 | B132: 2013-08-30 | C132: 164.51 | D132: 164.53 | E132: 163.17 | F132: 163.65 | G132: 134928900 | H132: 161.98 | I132: 0.9897952948 | J132: 1 | K132: 162.83 | L132: 162.85 | M132: 161.5 | N132: 161.98 | O132: 134928900
A133: 118 | B133: 2013-08-29 | C133: 163.55 | D133: 165.04 | E133: 163.4 | F133: 164.17 | G133: 119200500 | H133: 162.49 | I133: 0.9897667052 | J133: 1 | K133: 161.88 | L133: 163.35 | M133: 161.73 | N133: 162.49 | O133: 119200500
A134: 119 | B134: 2013-08-28 | C134: 163.26 | D134: 164.49 | E134: 163.05 | F134: 163.91 | G134: 108113000 | H134: 162.23 | I134: 0.9897504728 | J134: 1 | K134: 161.59 | L134: 162.8 | M134: 161.38 | N134: 162.23 | O134: 108113000
A135: 120 | B135: 2013-08-27 | C135: 164.36 | D135: 166 | E135: 163.21 | F135: 163.33 | G135: 158619400 | H135: 161.66 | I135: 0.9897753015 | J135: 1 | K135: 162.68 | L135: 164.3 | M135: 161.54 | N135: 161.66 | O135: 158619400
A136: 121 | B136: 2013-08-26 | C136: 166.79 | D136: 167.3 | E136: 165.89 | F136: 166 | G136: 89702100 | H136: 164.3 | I136: 0.9897590361 | J136: 1 | K136: 165.08 | L136: 165.59 | M136: 164.19 | N136: 164.3 | O136: 89702100
A137: 122 | B137: 2013-08-23 | C137: 166.55 | D137: 166.83 | E137: 165.77 | F137: 166.62 | G137: 90888900 | H137: 164.92 | I137: 0.9897971432 | J137: 1 | K137: 164.85 | L137: 165.13 | M137: 164.08 | N137: 164.92 | O137: 90888900
A138: 123 | B138: 2013-08-22 | C138: 164.9 | D138: 166.3 | E138: 164.89 | F138: 166.06 | G138: 101471400 | H138: 164.36 | I138: 0.9897627364 | J138: 1 | K138: 163.21 | L138: 164.6 | M138: 163.2 | N138: 164.36 | O138: 101471400
A139: 124 | B139: 2013-08-21 | C139: 165.12 | D139: 166.03 | E139: 164.19 | F139: 164.56 | G139: 159530500 | H139: 162.88 | I139: 0.9897909577 | J139: 1 | K139: 163.43 | L139: 164.33 | M139: 162.51 | N139: 162.88 | O139: 159530500
A140: 125 | B140: 2013-08-20 | C140: 165.04 | D140: 166.2 | E140: 164.86 | F140: 165.58 | G140: 89294400 | H140: 163.89 | I140: 0.9897934533 | J140: 1 | K140: 163.36 | L140: 164.5 | M140: 163.18 | N140: 163.89 | O140: 89294400
A141: 126 | B141: 2013-08-19 | C141: 165.64 | D141: 166.21 | E141: 164.76 | F141: 164.77 | G141: 96437600 | H141: 163.09 | I141: 0.9898039692 | J141: 1 | K141: 163.95 | L141: 164.52 | M141: 163.08 | N141: 163.09 | O141: 96437600
A142: 127 | B142: 2013-08-16 | C142: 166.06 | D142: 166.63 | E142: 165.5 | F142: 165.83 | G142: 130868200 | H142: 164.13 | I142: 0.9897485377 | J142: 1 | K142: 164.36 | L142: 164.92 | M142: 163.8 | N142: 164.13 | O142: 130868200
A143: 128 | B143: 2013-08-15 | C143: 167.41 | D143: 167.43 | E143: 166.09 | F143: 166.38 | G143: 152931800 | H143: 164.68 | I143: 0.9897824258 | J143: 1 | K143: 165.7 | L143: 165.72 | M143: 164.39 | N143: 164.68 | O143: 152931800
A144: 129 | B144: 2013-08-14 | C144: 169.53 | D144: 169.8 | E144: 168.7 | F144: 168.74 | G144: 79829200 | H144: 167.01 | I144: 0.9897475406 | J144: 1 | K144: 167.79 | L144: 168.06 | M144: 166.97 | N144: 167.01 | O144: 79829200
A145: 130 | B145: 2013-08-13 | C145: 169.41 | D145: 169.9 | E145: 168.41 | F145: 169.61 | G145: 80806000 | H145: 167.88 | I145: =H145/F145 -> 0.9898001297 | J145: =INDEX(OFFSET($T$15,1,0,$S$13,1),MATCH(B145,OFFSET($Q$15,1,0,$S$13,1),-1)) -> 1 | K145: =ROUND($I145*C145,2) -> 167.68 | L145: =ROUND($I145*D145,2) -> 168.17 | M145: =ROUND($I145*E145,2) -> 166.69 | N145: =ROUND($I145*F145,2) -> 167.88 | O145: =G145*J145 -> 80806000
A146: 131 | B146: 2013-08-12 | C146: 168.46 | D146: 169.31 | E146: 168.38 | F146: 169.11 | G146: 68593300 | H146: 167.38 | I146: 0.9897699722 | J146: 1 | K146: 166.74 | L146: 167.58 | M146: 166.66 | N146: 167.38 | O146: 68593300
A147: 132 | B147: 2013-08-09 | C147: 169.58 | D147: 170.1 | E147: 168.72 | F147: 169.31 | G147: 91757700 | H147: 167.58 | I147: 0.9897820566 | J147: 1 | K147: 167.85 | L147: 168.36 | M147: 167 | N147: 167.58 | O147: 91757700
A148: 133 | B148: 2013-08-08 | C148: 169.98 | D148: 170.18 | E148: 168.93 | F148: 169.8 | G148: 102181300 | H148: 168.06 | I148: 0.9897526502 | J148: 1 | K148: 168.24 | L148: 168.44 | M148: 167.2 | N148: 168.06 | O148: 102181300
A149: 134 | B149: 2013-08-07 | C149: 169.19 | D149: 169.43 | E149: 168.55 | F149: 169.18 | G149: 84854700 | H149: 167.45 | I149: 0.989774205 | J149: 1 | K149: 167.46 | L149: 167.7 | M149: 166.83 | N149: 167.45 | O149: 84854700
A150: 135 | B150: 2013-08-06 | C150: 170.37 | D150: 170.74 | E150: 169.35 | F150: 169.73 | G150: 87495000 | H150: 167.99 | I150: 0.989748424 | J150: 1 | K150: 168.62 | L150: 168.99 | M150: 167.61 | N150: 167.99 | O150: 87495000
A151: 136 | B151: 2013-08-05 | C151: 170.57 | D151: 170.96 | E151: 170.35 | F151: 170.7 | G151: 54072700 | H151: 168.95 | I151: 0.9897480961 | J151: 1 | K151: 168.82 | L151: 169.21 | M151: 168.6 | N151: 168.95 | O151: 54072700
A152: 137 | B152: 2013-08-02 | C152: 170.28 | D152: 170.97 | E152: 170.05 | F152: 170.95 | G152: 91116700 | H152: 169.2 | I152: 0.9897630886 | J152: 1 | K152: 168.54 | L152: 169.22 | M152: 168.31 | N152: 169.2 | O152: 91116700
A153: 138 | B153: 2013-08-01 | C153: 169.99 | D153: 170.81 | E153: 169.9 | F153: 170.66 | G153: 110438400 | H153: 168.92 | I153: 0.9898042892 | J153: 1 | K153: 168.26 | L153: 169.07 | M153: 168.17 | N153: 168.92 | O153: 110438400
A154: 139 | B154: 2013-07-31 | C154: 168.94 | D154: 169.85 | E154: 168.49 | F154: 168.71 | G154: 142388700 | H154: 166.99 | I154: 0.9898049908 | J154: 1 | K154: 167.22 | L154: 168.12 | M154: 166.77 | N154: 166.99 | O154: 142388700
A155: 140 | B155: 2013-07-30 | C155: 169.1 | D155: 169.28 | E155: 168.19 | F155: 168.59 | G155: 85209600 | H155: 166.87 | I155: 0.9897977341 | J155: 1 | K155: 167.37 | L155: 167.55 | M155: 166.47 | N155: 166.87 | O155: 85209600
A156: 141 | B156: 2013-07-29 | C156: 168.68 | D156: 169.06 | E156: 168.11 | F156: 168.59 | G156: 79695000 | H156: 166.87 | I156: 0.9897977341 | J156: 1 | K156: 166.96 | L156: 167.34 | M156: 166.39 | N156: 166.87 | O156: 79695000
A157: 142 | B157: 2013-07-26 | C157: 168.22 | D157: 169.16 | E157: 167.52 | F157: 169.11 | G157: 107814600 | H157: 167.38 | I157: 0.9897699722 | J157: 1 | K157: 166.5 | L157: 167.43 | M157: 165.81 | N157: 167.38 | O157: 107814600
A158: 143 | B158: 2013-07-25 | C158: 168.22 | D158: 169.08 | E158: 167.94 | F158: 168.93 | G158: 111088600 | H158: 167.2 | I158: 0.9897590718 | J158: 1 | K158: 166.5 | L158: 167.35 | M158: 166.22 | N158: 167.2 | O158: 111088600
A159: 144 | B159: 2013-07-24 | C159: 169.79 | D159: 169.86 | E159: 168.18 | F159: 168.52 | G159: 112914000 | H159: 166.8 | I159: 0.9897934963 | J159: 1 | K159: 168.06 | L159: 168.13 | M159: 166.46 | N159: 166.8 | O159: 112914000
A160: 145 | B160: 2013-07-23 | C160: 169.8 | D160: 169.83 | E160: 169.05 | F160: 169.14 | G160: 80829700 | H160: 167.41 | I160: 0.9897717867 | J160: 1 | K160: 168.06 | L160: 168.09 | M160: 167.32 | N160: 167.41 | O160: 80829700
A161: 146 | B161: 2013-07-22 | C161: 169.41 | D161: 169.74 | E161: 169.01 | F161: 169.5 | G161: 79428600 | H161: 167.77 | I161: 0.9897935103 | J161: 1 | K161: 167.68 | L161: 168.01 | M161: 167.29 | N161: 167.77 | O161: 79428600
A162: 147 | B162: 2013-07-19 | C162: 168.52 | D162: 169.23 | E162: 168.31 | F162: 169.17 | G162: 103831700 | H162: 167.44 | I162: 0.9897736005 | J162: 1 | K162: 166.8 | L162: 167.5 | M162: 166.59 | N162: 167.44 | O162: 103831700
A163: 148 | B163: 2013-07-18 | C163: 168.31 | D163: 169.27 | E163: 168.2 | F163: 168.87 | G163: 103620100 | H163: 167.14 | I163: 0.9897554332 | J163: 1 | K163: 166.59 | L163: 167.54 | M163: 166.48 | N163: 167.14 | O163: 103620100
A164: 149 | B164: 2013-07-17 | C164: 168.16 | D164: 168.48 | E164: 167.73 | F164: 167.95 | G164: 92873900 | H164: 166.23 | I164: 0.9897588568 | J164: 1 | K164: 166.44 | L164: 166.75 | M164: 166.01 | N164: 166.23 | O164: 92873900
A165: 150 | B165: 2013-07-16 | C165: 168.26 | D165: 168.36 | E165: 167.07 | F165: 167.52 | G165: 88702100 | H165: 165.81 | I165: 0.9897922636 | J165: 1 | K165: 166.54 | L165: 166.64 | M165: 165.36 | N165: 165.81 | O165: 88702100
A166: 151 | B166: 2013-07-15 | C166: 167.97 | D166: 168.39 | E166: 167.68 | F166: 168.15 | G166: 69450600 | H166: 166.43 | I166: 0.9897710378 | J166: 1 | K166: 166.25 | L166: 166.67 | M166: 165.96 | N166: 166.43 | O166: 69450600
A167: 152 | B167: 2013-07-12 | C167: 167.39 | D167: 167.93 | E167: 167.13 | F167: 167.51 | G167: 104212700 | H167: 165.8 | I167: 0.9897916542 | J167: 1 | K167: 165.68 | L167: 166.22 | M167: 165.42 | N167: 165.8 | O167: 104212700
A168: 153 | B168: 2013-07-11 | C168: 167.11 | D168: 167.61 | E168: 165.18 | F168: 167.44 | G168: 135592200 | H168: 165.73 | I168: 0.9897873865 | J168: 1 | K168: 165.4 | L168: 165.9 | M168: 163.49 | N168: 165.73 | O168: 135592200
A169: 154 | B169: 2013-07-10 | C169: 164.97 | D169: 165.75 | E169: 164.63 | F169: 165.19 | G169: 121410100 | H169: 163.5 | I169: 0.9897693565 | J169: 1 | K169: 163.28 | L169: 164.05 | M169: 162.95 | N169: 163.5 | O169: 121410100
A170: 155 | B170: 2013-07-09 | C170: 164.98 | D170: 165.33 | E170: 164.27 | F170: 165.13 | G170: 119298000 | H170: 163.44 | I170: 0.9897656392 | J170: 1 | K170: 163.29 | L170: 163.64 | M170: 162.59 | N170: 163.44 | O170: 119298000
A171: 156 | B171: 2013-07-08 | C171: 163.86 | D171: 164.39 | E171: 163.08 | F171: 163.95 | G171: 108092500 | H171: 162.27 | I171: 0.9897529735 | J171: 1 | K171: 162.18 | L171: 162.71 | M171: 161.41 | N171: 162.27 | O171: 108092500
A172: 157 | B172: 2013-07-05 | C172: 162.47 | D172: 163.08 | E172: 161.3 | F172: 163.02 | G172: 122416900 | H172: 161.35 | I172: 0.9897558582 | J172: 1 | K172: 160.81 | L172: 161.41 | M172: 159.65 | N172: 161.35 | O172: 122416900
A173: 158 | B173: 2013-07-03 | C173: 160.48 | D173: 161.77 | E173: 160.22 | F173: 161.28 | G173: 75216400 | H173: 159.63 | I173: 0.9897693452 | J173: 1 | K173: 158.84 | L173: 160.11 | M173: 158.58 | N173: 159.63 | O173: 75216400
A174: 159 | B174: 2013-07-02 | C174: 161.12 | D174: 162.3 | E174: 160.5 | F174: 161.21 | G174: 154863700 | H174: 159.56 | I174: 0.9897649029 | J174: 1 | K174: 159.47 | L174: 160.64 | M174: 158.86 | N174: 159.56 | O174: 154863700
A175: 160 | B175: 2013-07-01 | C175: 161.26 | D175: 162.48 | E175: 161.08 | F175: 161.36 | G175: 131954800 | H175: 159.71 | I175: 0.9897744175 | J175: 1 | K175: 159.61 | L175: 160.82 | M175: 159.43 | N175: 159.71 | O175: 131954800
A176: 161 | B176: 2013-06-28 | C176: 160.63 | D176: 161.4 | E176: 159.86 | F176: 160.42 | G176: 160402900 | H176: 158.78 | I176: 0.9897768358 | J176: 1 | K176: 158.99 | L176: 159.75 | M176: 158.23 | N176: 158.78 | O176: 160402900
A177: 162 | B177: 2013-06-27 | C177: 161.1 | D177: 161.82 | E177: 160.95 | F177: 161.08 | G177: 129483700 | H177: 159.43 | I177: 0.9897566427 | J177: 1 | K177: 159.45 | L177: 160.16 | M177: 159.3 | N177: 159.43 | O177: 129483700
A178: 163 | B178: 2013-06-26 | C178: 159.87 | D178: 160.5 | E178: 159.25 | F178: 160.14 | G178: 134848000 | H178: 158.5 | I178: 0.9897589609 | J178: 1 | K178: 158.23 | L178: 158.86 | M178: 157.62 | N178: 158.5 | O178: 134848000
A179: 164 | B179: 2013-06-25 | C179: 158.48 | D179: 160.1 | E179: 157.42 | F179: 158.57 | G179: 162262200 | H179: 156.95 | I179: 0.9897836917 | J179: 1 | K179: 156.86 | L179: 158.46 | M179: 155.81 | N179: 156.95 | O179: 162262200
A180: 165 | B180: 2013-06-24 | C180: 157.41 | D180: 158.43 | E180: 155.73 | F180: 157.06 | G180: 222329000 | H180: 155.45 | I180: 0.9897491405 | J180: 1 | K180: 155.8 | L180: 156.81 | M180: 154.13 | N180: 155.45 | O180: 222329000
A181: 166 | B181: 2013-06-21 | C181: 159.64 | D181: 159.76 | E181: 157.47 | F181: 159.07 | G181: 271956800 | H181: 157.44 | I181: 0.989752939 | J181: 1 | K181: 158 | L181: 158.12 | M181: 155.86 | N181: 157.44 | O181: 271956800
A182: 167 | B182: 2013-06-20 | C182: 161.86 | D182: 163.47 | E182: 158.98 | F182: 159.4 | G182: 321255900 | H182: 156.94 | I182: 0.9845671267 | J182: 1 | K182: 159.36 | L182: 160.95 | M182: 156.53 | N182: 156.94 | O182: 321255900
A183: 168 | B183: 2013-06-19 | C183: 165.6 | D183: 165.89 | E183: 163.38 | F183: 163.45 | G183: 206149500 | H183: 160.93 | I183: 0.9845824411 | J183: 1 | K183: 163.05 | L183: 163.33 | M183: 160.86 | N183: 160.93 | O183: 206149500
A184: 169 | B184: 2013-06-18 | C184: 164.53 | D184: 165.99 | E184: 164.52 | F184: 165.74 | G184: 114695600 | H184: 163.18 | I184: 0.9845541209 | J184: 1 | K184: 161.99 | L184: 163.43 | M184: 161.98 | N184: 163.18 | O184: 114695600
A185: 170 | B185: 2013-06-17 | C185: 164.29 | D185: 165.22 | E185: 163.22 | F185: 164.44 | G185: 136295600 | H185: 161.9 | I185: 0.9845536366 | J185: 1 | K185: 161.75 | L185: 162.67 | M185: 160.7 | N185: 161.9 | O185: 136295600
A186: 171 | B186: 2013-06-14 | C186: 164.03 | D186: 164.67 | E186: 162.91 | F186: 163.18 | G186: 141197500 | H186: 160.66 | I186: 0.984556931 | J186: 1 | K186: 161.5 | L186: 162.13 | M186: 160.39 | N186: 160.66 | O186: 141197500
A187: 172 | B187: 2013-06-13 | C187: 161.66 | D187: 164.5 | E187: 161.3 | F187: 164.21 | G187: 163587800 | H187: 161.68 | I187: 0.9845928993 | J187: 1 | K187: 159.17 | L187: 161.97 | M187: 158.81 | N187: 161.68 | O187: 163587800
A188: 173 | B188: 2013-06-12 | C188: 164.22 | D188: 164.39 | E188: 161.6 | F188: 161.75 | G188: 177361500 | H188: 159.25 | I188: 0.9845440495 | J188: 1 | K188: 161.68 | L188: 161.85 | M188: 159.1 | N188: 159.25 | O188: 177361500
A189: 174 | B189: 2013-06-11 | C189: 163.3 | D189: 164.54 | E189: 162.74 | F189: 163.1 | G189: 159505400 | H189: 160.58 | I189: 0.9845493562 | J189: 1 | K189: 160.78 | L189: 162 | M189: 160.23 | N189: 160.58 | O189: 159505400
A190: 175 | B190: 2013-06-10 | C190: 165.31 | D190: 165.4 | E190: 164.37 | F190: 164.8 | G190: 105667100 | H190: 162.26 | I190: 0.9845873786 | J190: 1 | K190: 162.76 | L190: 162.85 | M190: 161.84 | N190: 162.26 | O190: 105667100
A191: 176 | B191: 2013-06-07 | C191: 163.85 | D191: 164.95 | E191: 163.14 | F191: 164.8 | G191: 188337800 | H191: 162.26 | I191: 0.9845873786 | J191: 1 | K191: 161.32 | L191: 162.41 | M191: 160.63 | N191: 162.26 | O191: 188337800
A192: 177 | B192: 2013-06-06 | C192: 161.2 | D192: 162.74 | E192: 160.25 | F192: 162.73 | G192: 200225500 | H192: 160.22 | I192: 0.9845756775 | J192: 1 | K192: 158.71 | L192: 160.23 | M192: 157.78 | N192: 160.22 | O192: 200225500
A193: 178 | B193: 2013-06-05 | C193: 163.09 | D193: 163.42 | E193: 161.13 | F193: 161.27 | G193: 211737800 | H193: 158.78 | I193: 0.9845600546 | J193: 1 | K193: 160.57 | L193: 160.9 | M193: 158.64 | N193: 158.78 | O193: 211737800
A194: 179 | B194: 2013-06-04 | C194: 164.44 | D194: 165.1 | E194: 162.73 | F194: 163.56 | G194: 157631500 | H194: 161.04 | I194: 0.98459281 | J194: 1 | K194: 161.91 | L194: 162.56 | M194: 160.22 | N194: 161.04 | O194: 157631500
A195: 180 | B195: 2013-06-03 | C195: 163.83 | D195: 164.46 | E195: 162.66 | F195: 164.35 | G195: 168390700 | H195: 161.81 | I195: 0.984545178 | J195: 1 | K195: 161.3 | L195: 161.92 | M195: 160.15 | N195: 161.81 | O195: 168390700
A196: 181 | B196: 2013-05-31 | C196: 165.37 | D196: 166.31 | E196: 163.13 | F196: 163.45 | G196: 176850100 | H196: 160.93 | I196: 0.9845824411 | J196: 1 | K196: 162.82 | L196: 163.75 | M196: 160.61 | N196: 160.93 | O196: 176850100
A197: 182 | B197: 2013-05-30 | C197: 165.35 | D197: 166.59 | E197: 165.22 | F197: 165.83 | G197: 107793800 | H197: 163.27 | I197: 0.9845625038 | J197: 1 | K197: 162.8 | L197: 164.02 | M197: 162.67 | N197: 163.27 | O197: 107793800
A198: 183 | B198: 2013-05-29 | C198: 165.42 | D198: 165.8 | E198: 164.34 | F198: 165.22 | G198: 160363400 | H198: 162.67 | I198: 0.9845660332 | J198: 1 | K198: 162.87 | L198: 163.24 | M198: 161.8 | N198: 162.67 | O198: 160363400
A199: 184 | B199: 2013-05-28 | C199: 167.04 | D199: 167.78 | E199: 165.81 | F199: 166.3 | G199: 143679800 | H199: 163.73 | I199: 0.9845460012 | J199: 1 | K199: 164.46 | L199: 165.19 | M199: 163.25 | N199: 163.73 | O199: 143679800
A200: 185 | B200: 2013-05-24 | C200: 164.47 | D200: 165.38 | E200: 163.98 | F200: 165.31 | G200: 151573900 | H200: 162.76 | I200: 0.9845744359 | J200: 1 | K200: 161.93 | L200: 162.83 | M200: 161.45 | N200: 162.76 | O200: 151573900
... 3315 more rows

Sheet CalculationsAndCharts
A1: TimingWithPairs
B2: =InputPriceData!A1 -> Hess Corporation (HES) -NYSE
B3: =InputIndexData!A1 -> SPDR S&P 500 (SPY) -PCX
A4: User Charting Controls
A5: Data Control | G5: P&L Chart title
A6: =InputPriceData!$B$10 -> 3500 | B6: Available Input Data Rows | E6: Earliest: | F6: =OFFSET(InputPriceData!B15,CalculationsAndCharts!A6,0,1,1) -> 2000-03-13 | G6: =" P & L for "&UPPER(HistReqSymbol) &", vs "&UPPER(InputIndexData!HistReqSymbol) -> P & L for HES, vs SPY
B7: Use Close Adjusted: | C7: TRUE | E7: Latest: | F7: =OFFSET(InputPriceData!B15,1,0,1,1) -> 2014-02-18
A8: =MIN(A6-A11,COUNTA(B33:B9983)) -> 2800 | B8: Logically Available for Calc / Plot | S8: Chart Controls
A10: Price Chart Windowing Controls | F10: Y-axis Range | S10: TRUE
A11: 655 | B11: Input Data Offset (Pan) | E11: Max High+ | F11: =CEILING(MAX(OFFSET($E$33,0,0,$A$12,1))+2*F14,0.1) -> 87.5
A12: 132 | B12: Data Points to Plot (Zoom) | E12: Min Low- | F12: =FLOOR(MIN(OFFSET($F$33,0,0,$A$12,1))-2*F14,0.1) -> 64.2 | S12: TRUE
B13: First: | C13: =OFFSET(B32,A12,0,1,1) -> 2010-12-31 | E13: White space %: | F13: 0.05
B14: ="Last: "&OFFSET(InputPriceData!P15,1+A11,0,1,1) -> Last: | C14: =B33 -> 2011-07-11 | E14: Allowance: | F14: =FLOOR((CEILING(MAX(OFFSET($E$33,0,0,$A$12,1)),1)-FLOOR(MIN(OFFSET($F$33,0,0,$A$12,1)),1))*$F$13,0.01) -> 1
A15: Help! I would like to plot data
A16: From | B16: 2010-12-31 | C16: =OFFSET(InputPriceData!$A$15,MATCH(B16,OFFSET(InputPriceData!B15,1,0,InputPriceData!$B$10,1),0),0,1,1)-C17 -> 132 | E16: 105
A17: To | B17: 2011-07-11 | C17: =OFFSET(InputPriceData!$A$15,MATCH(B17,OFFSET(InputPriceData!$B$15,1,0,InputPriceData!$B$10,1),0),0,1,1)-1 -> 655 | E17: =$A$12-$E$16+1 -> 28
A19: User Controls for: Timing With Pairs | V19: Y-axis Range for IndexPrice Chart
A20: 60 | B20: <- Stress Bars | C20: Investment: | D20: 5000
A21: 10 | B21: <- Entry Level | C21: Commission: | D21: 8
A22: 50 | B22: <- Exit Level | C22: Min Price: | D22: 3
A23: 60 | B23: <- Hedge Bars | C23: Stop Loss: | D23: 0.1
C24: Hedge Ratio: | D24: 0.5
B25: =IF(InputPriceData!$B$12<>InputIndexData!$B$12,"Important!! The dates on InputPriceData tab do not match"&CHAR(10)&"dates on the InputIndexData tab."&CHAR(10)&"Please update the input data tabs to synchronize dates.","") -> 
AU26: Equity P&L Calculations | BJ26: Hedge P&L Calculations
U27: Max High+ | V27: =CEILING(MAX(OFFSET($T$33,0,0,$A$12,1))+2*V30,0.1) -> 130.8
H28: @ Scroll Bar => | I28: =OFFSET(A32,$E$17,0,1,1)&"(RR)" -> 28(RR) | J28: =OFFSET($B$32,E17,0,1,1) -> 2011-06-01 | K28: =TEXT(OFFSET(D32,$E$17,0,1,1),"#,##0.00")&"(o)" -> 77.08(o) | L28: =TEXT(OFFSET(E32,$E$17,0,1,1),"#,##0.00")&"(h)" -> 77.37(h) | M28: =TEXT(OFFSET(F32,$E$17,0,1,1),"#,##0.00")&"(l)" -> 74.41(l) | N28: =TEXT(OFFSET(G32,$E$17,0,1,1),"#,##0.00")&"(c)" -> 74.65(c) | U28: Min Low- | V28: =FLOOR(MIN(OFFSET($U$33,0,0,$A$12,1))-2*V30,0.1) -> 116.3
U29: White space %: | V29: =$F$13 -> 0.05 | Y29: Bar Background Colors | AU29: Bars | BC29: Exit Count by Reason
U30: Allowance: | V30: =FLOOR((CEILING(MAX(OFFSET($T$33,0,0,$A$12,1)),1)-FLOOR(MIN(OFFSET($U$33,0,0,$A$12,1)),1))*$V$29,0.01) -> 0.65 | W30: Price Cursor | X30: Index Cursor | AA30: Transaction Markers | AE30: Stress Calculations | AG30: Period: | AH30: =A20 -> 60 | AR30: Stress Cursor | AS30: Entry | AT30: Exit | AU30: 6 | AX30: Stress | AY30: Stress | AZ30: Wait | BC30: =COUNTIF(BC33:BC873,TRUE) -> 0 | BD30: =COUNTIF(BD33:BD873,TRUE) -> 11 | BE30: =COUNTIF(BE33:BE873,TRUE) -> 4 | BF30: Sell | BG30: Today | BI30: Running | BS30: Today | BU30: Running | BV30: Running
A31: Rel Row | B31: Stock Prices | H31: Long Positions | M31: Index Hedge Positions (shorts) | R31: =+"Index Prices For: "&B3 -> Index Prices For: SPDR S&P 500 (SPY) -PCX | Y31: =$F$11 -> 87.5 | Z31: =$V$27 -> 130.8 | AA31: Stock | AC31: Index | AE31: ="Stock: "&B2 -> Stock: Hess Corporation (HES) -NYSE | AI31: ="Index: "&B3 -> Index: SPDR S&P 500 (SPY) -PCX | AM31: PKJ Stress | AS31: Level | AT31: Level | AU31: MinPrice | AV31: New | AW31: Entry | AX31: <= | AY31: >= | AZ31: For | BA31: Market | BB31: Stock | BC31: Min | BD31: Stress | BE31: StopLoss | BF31: Stock @ | BG31: Stock | BH31: Tran | BI31: Stock | BJ31: Stock | BK31: Index | BL31: Index | BM31: Hedge | BN31: Index | BO31: Index | BP31: Stock | BQ31: Index | BR31: Hedge | BS31: Index | BT31: Tran | BU31: Index | BV31: Comb
B32: Date | C32: Volume | D32: Open | E32: High | F32: Low | G32: Close | H32: Buy | I32: buy $ | J32: Active | K32: Sell | L32: Sell $ | M32: Short | N32: Short $ | O32: Active | P32: Cover | Q32: Cover $ | R32: Date | S32: Open | T32: High | U32: Low | V32: Close | W32: =$F$11 -> 87.5 | X32: =$V$27 -> 130.8 | Y32: Long Active | Z32: Hedge Active | AA32: Buy | AB32: Sell | AC32: Hedge | AD32: Cover | AE32: MaxHigh | AF32: MinLow | AG32: Range | AH32: ="Stochastic("&UPPER(HistReqSymbol)&")" -> Stochastic(HES) | AI32: MaxHigh | AJ32: MinLow | AK32: Range | AL32: ="Stochastic("&UPPER(InputIndexData!HistReqSymbol)&")" -> Stochastic(SPY) | AM32: Diff | AN32: MaxHigh | AO32: MinLow | AP32: Range | AQ32: ="PKJ_Stress("&AH30&")" -> PKJ_Stress(60) | AR32: 100 | AS32: =$A$21 -> 10 | AT32: =$A$22 -> 50 | AU32: OK | AV32: Buy | AW32: Price | AX32: Entry | AY32: Exit | AZ32: Reset | BA32: Position | BB32: Size | BC32: Rule | BD32: X-Rule | BE32: Rule | BF32: Market | BG32: Pl | BH32: Commish | BI32: PL | BJ32: Change | BK32: Change | BL32: Trend | BM32: Entry | BN32: Pos | BO32: Size | BP32: Volatility | BQ32: Volatility | BR32: Exit | BS32: PL | BT32: Commish | BU32: PL | BV32: PL
A33: 1 | B33: =OFFSET(InputPriceData!$B$15,CalculationsAndCharts!$A33+$A$11,0,1,1) -> 2011-07-11 | C33: =OFFSET(InputPriceData!G$15,CalculationsAndCharts!$A33+$A$11,IF($C$7,8,0),1,1) -> 3036200 | D33: =OFFSET(InputPriceData!$C$15,CalculationsAndCharts!$A33+$A$11,IF($C$7,8,0),1,1) -> 71.93 | E33: =OFFSET(InputPriceData!$D$15,CalculationsAndCharts!$A33+$A$11,IF($C$7,8,0),1,1) -> 72.12 | F33: =OFFSET(InputPriceData!$E$15,CalculationsAndCharts!$A33+$A$11,IF($C$7,8,0),1,1) -> 70.25 | G33: =OFFSET(InputPriceData!$F$15,CalculationsAndCharts!$A33+$A$11,IF($C$7,8,0),1,1) -> 70.56 | H33: =AV34 -> FALSE | I33: =IF(H33,D33,NA()) ->  | J33: =BA33=1 -> FALSE | K33: =BF34 -> FALSE | L33: =IF(K33,D33,NA()) ->  | M33: =BM34 -> FALSE | N33: =IF(M33,$S33,NA()) ->  | O33: =BN33=-1 -> FALSE | P33: =BR34 -> FALSE | Q33: =IF(P33,$S33,NA()) ->  | R33: =OFFSET(InputIndexData!$B$15,CalculationsAndCharts!$A33+$A$11,0,1,1) -> 2011-07-11 | S33: =OFFSET(InputIndexData!C$15,CalculationsAndCharts!$A33+$A$11,IF($C$7,8,0),1,1) -> 125.85 | T33: =OFFSET(InputIndexData!D$15,CalculationsAndCharts!$A33+$A$11,IF($C$7,8,0),1,1) -> 126.26 | U33: =OFFSET(InputIndexData!E$15,CalculationsAndCharts!$A33+$A$11,IF($C$7,8,0),1,1) -> 124.82 | V33: =OFFSET(InputIndexData!F$15,CalculationsAndCharts!$A33+$A$11,IF($C$7,8,0),1,1) -> 125.11 | W33: =IF($A33=$E$17,W$32,NA()) ->  | X33: =IF($A33=$E$17,X$32,NA()) ->  | Y33: =IF($S$10,IF($A33>$A$8,NA(),IF(J33,Y$31,NA())),NA()) ->  | Z33: =IF($S$12,IF($A33>$A$8,NA(),IF(O33,Z$31,NA())),NA()) ->  | AA33: =IF(AND($S$10,H33),I33,NA()) ->  | AB33: =IF(AND($S$10,K33),L33,NA()) ->  | AC33: =IF(AND($S$12,M33),N33,NA()) ->  | AD33: =IF(AND($S$12,P33),Q33,NA()) ->  | AE33: =MAX(OFFSET($E33,0,0,$AH$30,1)) -> 84.58 | AF33: =MIN(OFFSET($F33,0,0,$AH$30,1)) -> 66.28 | AG33: =AE33-AF33 -> 18.3 | AH33: =($G33-AF33)/AG33*100 -> 23.38797814 | AI33: =MAX(OFFSET(T33,0,0,$AH$30,1)) -> 129.41 | AJ33: =MIN(OFFSET(U33,0,0,$AH$30,1)) -> 119.16 | AK33: =AI33-AJ33 -> 10.25 | AL33: =(V33-AJ33)/AK33*100 -> 58.04878049 | AM33: =AH33-AL33 -> -34.66080235 | AN33: =MAX(OFFSET(AM33,0,0,$AH$30,1)) -> 1.023672346 | AO33: =MIN(OFFSET(AM33,0,0,$AH$30,1)) -> -73.41915974 | AP33: =AN33-AO33 -> 74.44283208 | AQ33: =IFERROR((AM33-AO33)/AP33*100,0) -> 52.0645928 | AR33: =IF($A33=$E$17,AR$32,NA()) ->  | AS33: =$AS$32 -> 10 | AT33: =$AT$32 -> 50 | AU33: =MIN(OFFSET(G33,0,0,$AU$30,1))>$D$22 -> TRUE | AV33: =AND(BA33=0,NOT(AZ33),AX33,AU33) -> FALSE | AW33: =IF(AV33,D33,AW34) -> 81.1 | AX33: =AQ33<=AS33 -> FALSE | AY33: =AQ33>=AT33 -> TRUE | AZ33: FALSE | BA33: =IF(AV34,1,IF(BF34,0,BA34)) -> 0 | BB33: =IF(AV33,INT($D$20/G33),IF(BF34,0,BB34)) -> 0 | BC33: =AND(BA33<>0,NOT(AU33)) -> FALSE | BD33: =AND(BA33<>0,NOT(BC33),AY33) -> FALSE | BE33: =AND(BA33<>0,NOT(BC33),NOT(BD33),$D$23>0,(G33/AW33-1)<-$D$23) -> FALSE | BF33: =OR(BC33:BE33) -> FALSE | BG33: =BA34*BB34*(G33-G34) -> 0 | BH33: =IF(BA33<>BA34,$D$21,0) -> 0 | BI33: =BG33-BH33+BI34 -> 5371.52 | BJ33: =IFERROR((G33/G34)-1,0) -> -0.0356703567 | BK33: =IFERROR((V33/V34)-1,0) -> -0.01805195825 | BL33: =AVERAGE(OFFSET(V33,0,0,$A$23,1)) -> 124.7596667 | BM33: =AND($A$23>0,BN33=0,OR(AV33,BA33<>0),BL33<BL34) -> FALSE | BN33: =IF(BM34,-1,IF(BR34,0,BN34)) -> 0 | BO33: =IF(BM33,INT(BB33*$D$24*BP33/BQ33),IF(BR34,0,BO34)) -> 0 | BP33: =IF($A$23>0,_xlfn.STDEV.P(OFFSET(BJ33,0,0,$A$23,1)),0) -> 0.01994591897 | BQ33: =IF($A$23>0,_xlfn.STDEV.P(OFFSET(BK33,0,0,$A$23,1)),0) -> 0.008590940374 | BR33: =AND(BN33<>0,OR(BL33>BL34,BA33=0)) -> FALSE | BS33: =BN34*BO34*(V33-V34) -> 0 | BT33: =IF(BN33<>BN34,$D$21,0) -> 0 | BU33: =BS33-BT33+BU34 -> -2496.61 | BV33: =BI33+BU33 -> 2874.91
A34: 2 | B34: =OFFSET(InputPriceData!B$15,CalculationsAndCharts!$A34+$A$11,0,1,1) -> 2011-07-08 | C34: =OFFSET(InputPriceData!G$15,CalculationsAndCharts!$A34+$A$11,IF($C$7,8,0),1,1) -> 2947200 | D34: =OFFSET(InputPriceData!C$15,CalculationsAndCharts!$A34+$A$11,IF($C$7,8,0),1,1) -> 72.28 | E34: =OFFSET(InputPriceData!D$15,CalculationsAndCharts!$A34+$A$11,IF($C$7,8,0),1,1) -> 73.2 | F34: =OFFSET(InputPriceData!E$15,CalculationsAndCharts!$A34+$A$11,IF($C$7,8,0),1,1) -> 72.11 | G34: =OFFSET(InputPriceData!F$15,CalculationsAndCharts!$A34+$A$11,IF($C$7,8,0),1,1) -> 73.17 | H34: FALSE | J34: FALSE | K34: FALSE | M34: FALSE | N34: =IF(M34,S34,NA()) ->  | O34: FALSE | P34: FALSE | R34: =OFFSET(InputIndexData!$B$15,CalculationsAndCharts!$A34+$A$11,0,1,1) -> 2011-07-08 | S34: =OFFSET(InputIndexData!C$15,CalculationsAndCharts!$A34+$A$11,IF($C$7,8,0),1,1) -> 126.87 | T34: =OFFSET(InputIndexData!D$15,CalculationsAndCharts!$A34+$A$11,IF($C$7,8,0),1,1) -> 128.32 | U34: =OFFSET(InputIndexData!E$15,CalculationsAndCharts!$A34+$A$11,IF($C$7,8,0),1,1) -> 126.45 | V34: =OFFSET(InputIndexData!F$15,CalculationsAndCharts!$A34+$A$11,IF($C$7,8,0),1,1) -> 127.41 | AE34: 84.58 | AF34: 66.28 | AG34: =AE34-AF34 -> 18.3 | AH34: =($G34-AF34)/AG34*100 -> 37.65027322 | AI34: 129.41 | AJ34: 119.16 | AK34: =AI34-AJ34 -> 10.25 | AL34: 80.48780488 | AM34: =AH34-AL34 -> -42.83753165 | AN34: 1.023672346 | AO34: -73.41915974 | AP34: =AN34-AO34 -> 74.44283208 | AQ34: 41.08068867 | AS34: =$AS$32 -> 10 | AT34: 50 | AU34: TRUE | AV34: =AND(BA34=0,NOT(AZ34),AX34,AU34) -> FALSE | AW34: 81.1 | AX34: FALSE | AY34: FALSE | AZ34: FALSE | BA34: =IF(AV35,1,IF(BF35,0,BA35)) -> 0 | BB34: 0 | BC34: =AND(BA34<>0,NOT(AU34)) -> FALSE | BD34: =AND(BA34<>0,NOT(BC34),AY34) -> FALSE | BE34: FALSE | BF34: =OR(BC34:BE34) -> FALSE | BG34: 0 | BH34: 0 | BI34: =BG34-BH34+BI35 -> 5371.52 | BJ34: -0.01281705343 | BK34: -0.007091645885 | BL34: 124.7413333 | BM34: FALSE | BN34: 0 | BO34: 0 | BP34: 0.01946299087 | BQ34: 0.00825669976 | BR34: FALSE | BS34: 0 | BT34: =IF(BN34<>BN35,$D$21,0) -> 0 | BU34: =BS34-BT34+BU35 -> -2496.61 | BV34: =BI34+BU34 -> 2874.91
A35: 3 | B35: =OFFSET(InputPriceData!B$15,CalculationsAndCharts!$A35+$A$11,0,1,1) -> 2011-07-07 | C35: =OFFSET(InputPriceData!G$15,CalculationsAndCharts!$A35+$A$11,IF($C$7,8,0),1,1) -> 2764600 | D35: =OFFSET(InputPriceData!C$15,CalculationsAndCharts!$A35+$A$11,IF($C$7,8,0),1,1) -> 74.34 | E35: =OFFSET(InputPriceData!D$15,CalculationsAndCharts!$A35+$A$11,IF($C$7,8,0),1,1) -> 74.9 | F35: =OFFSET(InputPriceData!E$15,CalculationsAndCharts!$A35+$A$11,IF($C$7,8,0),1,1) -> 73.81 | G35: =OFFSET(InputPriceData!F$15,CalculationsAndCharts!$A35+$A$11,IF($C$7,8,0),1,1) -> 74.12 | H35: FALSE | J35: FALSE | K35: FALSE | M35: FALSE | O35: FALSE | P35: FALSE | R35: =OFFSET(InputIndexData!$B$15,CalculationsAndCharts!$A35+$A$11,0,1,1) -> 2011-07-07 | S35: =OFFSET(InputIndexData!C$15,CalculationsAndCharts!$A35+$A$11,IF($C$7,8,0),1,1) -> 128.13 | T35: =OFFSET(InputIndexData!D$15,CalculationsAndCharts!$A35+$A$11,IF($C$7,8,0),1,1) -> 128.64 | U35: =OFFSET(InputIndexData!E$15,CalculationsAndCharts!$A35+$A$11,IF($C$7,8,0),1,1) -> 127.86 | V35: =OFFSET(InputIndexData!F$15,CalculationsAndCharts!$A35+$A$11,IF($C$7,8,0),1,1) -> 128.32 | AE35: 84.58 | AF35: 66.28 | AG35: 18.3 | AH35: 42.84153005 | AI35: 129.41 | AJ35: 119.16 | AK35: 10.25 | AL35: 89.36585366 | AM35: -46.5243236 | AN35: 1.023672346 | AO35: -73.41915974 | AP35: 74.44283208 | AQ35: 36.12817431 | AS35: 10 | AT35: 50 | AU35: TRUE | AV35: FALSE | AW35: 81.1 | AX35: FALSE | AY35: FALSE | AZ35: FALSE | BA35: 0 | BB35: 0 | BC35: FALSE | BD35: FALSE | BE35: FALSE | BF35: FALSE | BG35: 0 | BH35: 0 | BI35: 5371.52 | BJ35: 0.01673525377 | BK35: 0.01039370079 | BL35: 124.6848333 | BM35: FALSE | BN35: 0 | BO35: 0 | BP35: 0.01952662895 | BQ35: 0.008262192764 | BR35: FALSE | BS35: 0 | BT35: 0 | BU35: -2496.61 | BV35: 2874.91
A36: 4 | B36: =OFFSET(InputPriceData!B$15,CalculationsAndCharts!$A36+$A$11,0,1,1) -> 2011-07-06 | C36: =OFFSET(InputPriceData!G$15,CalculationsAndCharts!$A36+$A$11,IF($C$7,8,0),1,1) -> 3303800 | D36: =OFFSET(InputPriceData!C$15,CalculationsAndCharts!$A36+$A$11,IF($C$7,8,0),1,1) -> 73.84 | E36: =OFFSET(InputPriceData!D$15,CalculationsAndCharts!$A36+$A$11,IF($C$7,8,0),1,1) -> 73.87 | F36: =OFFSET(InputPriceData!E$15,CalculationsAndCharts!$A36+$A$11,IF($C$7,8,0),1,1) -> 72.39 | G36: =OFFSET(InputPriceData!F$15,CalculationsAndCharts!$A36+$A$11,IF($C$7,8,0),1,1) -> 72.9 | H36: FALSE | J36: FALSE | K36: FALSE | M36: FALSE | O36: FALSE | P36: FALSE | R36: =OFFSET(InputIndexData!$B$15,CalculationsAndCharts!$A36+$A$11,0,1,1) -> 2011-07-06 | S36: =OFFSET(InputIndexData!C$15,CalculationsAndCharts!$A36+$A$11,IF($C$7,8,0),1,1) -> 126.54 | T36: =OFFSET(InputIndexData!D$15,CalculationsAndCharts!$A36+$A$11,IF($C$7,8,0),1,1) -> 127.16 | U36: =OFFSET(InputIndexData!E$15,CalculationsAndCharts!$A36+$A$11,IF($C$7,8,0),1,1) -> 126.18 | V36: =OFFSET(InputIndexData!F$15,CalculationsAndCharts!$A36+$A$11,IF($C$7,8,0),1,1) -> 127 | AE36: 84.58 | AF36: 66.28 | AG36: 18.3 | AH36: 36.17486339 | AI36: 129.41 | AJ36: 119.16 | AK36: 10.25 | AL36: 76.48780488 | AM36: -40.31294149 | AN36: 1.023672346 | AO36: -73.41915974 | AP36: 74.44283208 | AQ36: 44.47200264 | AS36: 10 | AT36: 50 | AU36: TRUE | AV36: FALSE | AW36: 81.1 | AX36: FALSE | AY36: FALSE | AZ36: FALSE | BA36: 0 | BB36: 0 | BC36: FALSE | BD36: FALSE | BE36: FALSE | BF36: FALSE | BG36: 0 | BH36: 0 | BI36: 5371.52 | BJ36: -0.01818181818 | BK36: 0.001182499015 | BL36: 124.6286667 | BM36: FALSE | BN36: 0 | BO36: 0 | BP36: 0.01971358491 | BQ36: 0.008171924305 | BR36: FALSE | BS36: 0 | BT36: 0 | BU36: -2496.61 | BV36: 2874.91
A37: 5 | B37: =OFFSET(InputPriceData!B$15,CalculationsAndCharts!$A37+$A$11,0,1,1) -> 2011-07-05 | C37: =OFFSET(InputPriceData!G$15,CalculationsAndCharts!$A37+$A$11,IF($C$7,8,0),1,1) -> 2909600 | D37: =OFFSET(InputPriceData!C$15,CalculationsAndCharts!$A37+$A$11,IF($C$7,8,0),1,1) -> 73.78 | E37: =OFFSET(InputPriceData!D$15,CalculationsAndCharts!$A37+$A$11,IF($C$7,8,0),1,1) -> 75.56 | F37: =OFFSET(InputPriceData!E$15,CalculationsAndCharts!$A37+$A$11,IF($C$7,8,0),1,1) -> 73.7 | G37: =OFFSET(InputPriceData!F$15,CalculationsAndCharts!$A37+$A$11,IF($C$7,8,0),1,1) -> 74.25 | H37: FALSE | J37: FALSE | K37: FALSE | M37: FALSE | O37: FALSE | P37: FALSE | R37: =OFFSET(InputIndexData!$B$15,CalculationsAndCharts!$A37+$A$11,0,1,1) -> 2011-07-05 | S37: =OFFSET(InputIndexData!C$15,CalculationsAndCharts!$A37+$A$11,IF($C$7,8,0),1,1) -> 126.82 | T37: =OFFSET(InputIndexData!D$15,CalculationsAndCharts!$A37+$A$11,IF($C$7,8,0),1,1) -> 127.11 | U37: =OFFSET(InputIndexData!E$15,CalculationsAndCharts!$A37+$A$11,IF($C$7,8,0),1,1) -> 126.45 | V37: =OFFSET(InputIndexData!F$15,CalculationsAndCharts!$A37+$A$11,IF($C$7,8,0),1,1) -> 126.85 | AE37: 84.58 | AF37: 66.28 | AG37: 18.3 | AH37: 43.55191257 | AI37: 129.41 | AJ37: 119.16 | AK37: 10.25 | AL37: 75.02439024 | AM37: -31.47247768 | AN37: 1.023672346 | AO37: -73.41915974 | AP37: 74.44283208 | AQ37: 56.34750974 | AS37: 10 | AT37: 50 | AU37: TRUE | AV37: FALSE | AW37: 81.1 | AX37: FALSE | AY37: TRUE | AZ37: FALSE | BA37: 0 | BB37: 0 | BC37: FALSE | BD37: FALSE | BE37: FALSE | BF37: FALSE | BG37: 0 | BH37: 0 | BI37: 5371.52 | BJ37: 0.004872107186 | BK37: -0.0008664146188 | BL37: 124.6008333 | BM37: FALSE | BN37: =IF(BM38,-1,IF(BR38,0,BN38)) -> 0 | BO37: 0 | BP37: 0.01959994475 | BQ37: 0.008184435599 | BR37: FALSE | BS37: 0 | BT37: 0 | BU37: -2496.61 | BV37: 2874.91
A38: 6 | B38: =OFFSET(InputPriceData!B$15,CalculationsAndCharts!$A38+$A$11,0,1,1) -> 2011-07-01 | C38: =OFFSET(InputPriceData!G$15,CalculationsAndCharts!$A38+$A$11,IF($C$7,8,0),1,1) -> 3594100 | D38: =OFFSET(InputPriceData!C$15,CalculationsAndCharts!$A38+$A$11,IF($C$7,8,0),1,1) -> 73.25 | E38: =OFFSET(InputPriceData!D$15,CalculationsAndCharts!$A38+$A$11,IF($C$7,8,0),1,1) -> 74.06 | F38: =OFFSET(InputPriceData!E$15,CalculationsAndCharts!$A38+$A$11,IF($C$7,8,0),1,1) -> 72.14 | G38: =OFFSET(InputPriceData!F$15,CalculationsAndCharts!$A38+$A$11,IF($C$7,8,0),1,1) -> 73.89 | H38: FALSE | J38: FALSE | K38: FALSE | M38: FALSE | O38: FALSE | P38: FALSE | R38: =OFFSET(InputIndexData!$B$15,CalculationsAndCharts!$A38+$A$11,0,1,1) -> 2011-07-01 | S38: =OFFSET(InputIndexData!C$15,CalculationsAndCharts!$A38+$A$11,IF($C$7,8,0),1,1) -> 125.23 | T38: =OFFSET(InputIndexData!D$15,CalculationsAndCharts!$A38+$A$11,IF($C$7,8,0),1,1) -> 127.13 | U38: =OFFSET(InputIndexData!E$15,CalculationsAndCharts!$A38+$A$11,IF($C$7,8,0),1,1) -> 124.93 | V38: =OFFSET(InputIndexData!F$15,CalculationsAndCharts!$A38+$A$11,IF($C$7,8,0),1,1) -> 126.96 | AE38: 84.58 | AF38: 66.28 | AG38: 18.3 | AH38: 41.58469945 | AI38: 129.41 | AJ38: 119.16 | AK38: 10.25 | AL38: 76.09756098 | AM38: -34.51286152 | AN38: 1.023672346 | AO38: -73.41915974 | AP38: 74.44283208 | AQ38: 52.26332358 | AS38: 10 | AT38: 50 | AU38: TRUE | AV38: FALSE | AW38: 81.1 | AX38: FALSE | AY38: TRUE | AZ38: FALSE | BA38: 0 | BB38: 0 | BC38: FALSE | BD38: FALSE | BE38: FALSE | BF38: FALSE | BG38: 0 | BH38: 0 | BI38: 5371.52 | BJ38: 0.008737201365 | BK38: 0.01478698745 | BL38: 124.5826667 | BM38: FALSE | BN38: =IF(BM39,-1,IF(BR39,0,BN39)) -> 0 | BO38: 0 | BP38: 0.01958296936 | BQ38: 0.008190784292 | BR38: FALSE | BS38: 0 | BT38: 0 | BU38: -2496.61 | BV38: 2874.91
A39: 7 | B39: =OFFSET(InputPriceData!B$15,CalculationsAndCharts!$A39+$A$11,0,1,1) -> 2011-06-30 | C39: =OFFSET(InputPriceData!G$15,CalculationsAndCharts!$A39+$A$11,IF($C$7,8,0),1,1) -> 4905300 | D39: =OFFSET(InputPriceData!C$15,CalculationsAndCharts!$A39+$A$11,IF($C$7,8,0),1,1) -> 72.53 | E39: =OFFSET(InputPriceData!D$15,CalculationsAndCharts!$A39+$A$11,IF($C$7,8,0),1,1) -> 73.63 | F39: =OFFSET(InputPriceData!E$15,CalculationsAndCharts!$A39+$A$11,IF($C$7,8,0),1,1) -> 72.05 | G39: =OFFSET(InputPriceData!F$15,CalculationsAndCharts!$A39+$A$11,IF($C$7,8,0),1,1) -> 73.25 | H39: FALSE | J39: FALSE | K39: FALSE | M39: FALSE | O39: FALSE | P39: FALSE | R39: =OFFSET(InputIndexData!$B$15,CalculationsAndCharts!$A39+$A$11,0,1,1) -> 2011-06-30 | S39: =OFFSET(InputIndexData!C$15,CalculationsAndCharts!$A39+$A$11,IF($C$7,8,0),1,1) -> 124.32 | T39: =OFFSET(InputIndexData!D$15,CalculationsAndCharts!$A39+$A$11,IF($C$7,8,0),1,1) -> 125.31 | U39: =OFFSET(InputIndexData!E$15,CalculationsAndCharts!$A39+$A$11,IF($C$7,8,0),1,1) -> 123.92 | V39: =OFFSET(InputIndexData!F$15,CalculationsAndCharts!$A39+$A$11,IF($C$7,8,0),1,1) -> 125.11 | AE39: 85.12 | AF39: 66.28 | AG39: 18.84 | AH39: 36.99575372 | AI39: 129.41 | AJ39: 119.16 | AK39: 10.25 | AL39: 58.04878049 | AM39: -21.05302677 | AN39: 1.023672346 | AO39: -73.41915974 | AP39: 74.44283208 | AQ39: 70.34409022 | AS39: 10 | AT39: 50 | AU39: TRUE | AV39: FALSE | AW39: 81.1 | AX39: FALSE | AY39: TRUE | AZ39: FALSE | BA39: 0 | BB39: 0 | BC39: FALSE | BD39: FALSE | BE39: FALSE | BF39: FALSE | BG39: 0 | BH39: 0 | BI39: 5371.52 | BJ39: 0.02447552448 | BK39: 0.009602969658 | BL39: 124.568 | BM39: FALSE | BN39: 0 | BO39: 0 | BP39: 0.01964035638 | BQ39: 0.007976558265 | BR39: FALSE | BS39: 0 | BT39: 0 | BU39: -2496.61 | BV39: 2874.91
A40: 8 | B40: =OFFSET(InputPriceData!B$15,CalculationsAndCharts!$A40+$A$11,0,1,1) -> 2011-06-29 | C40: =OFFSET(InputPriceData!G$15,CalculationsAndCharts!$A40+$A$11,IF($C$7,8,0),1,1) -> 4075200 | D40: =OFFSET(InputPriceData!C$15,CalculationsAndCharts!$A40+$A$11,IF($C$7,8,0),1,1) -> 70.24 | E40: =OFFSET(InputPriceData!D$15,CalculationsAndCharts!$A40+$A$11,IF($C$7,8,0),1,1) -> 71.85 | F40: =OFFSET(InputPriceData!E$15,CalculationsAndCharts!$A40+$A$11,IF($C$7,8,0),1,1) -> 69.88 | G40: =OFFSET(InputPriceData!F$15,CalculationsAndCharts!$A40+$A$11,IF($C$7,8,0),1,1) -> 71.5 | H40: FALSE | J40: FALSE | K40: FALSE | M40: FALSE | O40: FALSE | P40: FALSE | R40: =OFFSET(InputIndexData!$B$15,CalculationsAndCharts!$A40+$A$11,0,1,1) -> 2011-06-29 | S40: =OFFSET(InputIndexData!C$15,CalculationsAndCharts!$A40+$A$11,IF($C$7,8,0),1,1) -> 123.43 | T40: =OFFSET(InputIndexData!D$15,CalculationsAndCharts!$A40+$A$11,IF($C$7,8,0),1,1) -> 124.12 | U40: =OFFSET(InputIndexData!E$15,CalculationsAndCharts!$A40+$A$11,IF($C$7,8,0),1,1) -> 122.89 | V40: =OFFSET(InputIndexData!F$15,CalculationsAndCharts!$A40+$A$11,IF($C$7,8,0),1,1) -> 123.92 | AE40: 85.12 | AF40: 66.28 | AG40: 18.84 | AH40: 27.70700637 | AI40: 129.41 | AJ40: 119.16 | AK40: 10.25 | AL40: 46.43902439 | AM40: -18.73201802 | AN40: 1.023672346 | AO40: -73.41915974 | AP40: 74.44283208 | AQ40: 73.4619307 | AS40: 10 | AT40: 50 | AU40: TRUE | AV40: FALSE | AW40: 81.1 | AX40: FALSE | AY40: TRUE | AZ40: FALSE | BA40: 0 | BB40: 0 | BC40: FALSE | BD40: FALSE | BE40: FALSE | BF40: FALSE | BG40: 0 | BH40: 0 | BI40: 5371.52 | BJ40: 0.02113681805 | BK40: 0.008545617319 | BL40: 124.5776667 | BM40: FALSE | BN40: 0 | BO40: 0 | BP40: 0.01935916502 | BQ40: 0.007877041063 | BR40: FALSE | BS40: 0 | BT40: 0 | BU40: -2496.61 | BV40: 2874.91
A41: 9 | B41: =OFFSET(InputPriceData!B$15,CalculationsAndCharts!$A41+$A$11,0,1,1) -> 2011-06-28 | C41: =OFFSET(InputPriceData!G$15,CalculationsAndCharts!$A41+$A$11,IF($C$7,8,0),1,1) -> 2984700 | D41: =OFFSET(InputPriceData!C$15,CalculationsAndCharts!$A41+$A$11,IF($C$7,8,0),1,1) -> 68.3 | E41: =OFFSET(InputPriceData!D$15,CalculationsAndCharts!$A41+$A$11,IF($C$7,8,0),1,1) -> 70.11 | F41: =OFFSET(InputPriceData!E$15,CalculationsAndCharts!$A41+$A$11,IF($C$7,8,0),1,1) -> 68.3 | G41: =OFFSET(InputPriceData!F$15,CalculationsAndCharts!$A41+$A$11,IF($C$7,8,0),1,1) -> 70.02 | H41: FALSE | J41: FALSE | K41: FALSE | M41: FALSE | O41: FALSE | P41: FALSE | R41: =OFFSET(InputIndexData!$B$15,CalculationsAndCharts!$A41+$A$11,0,1,1) -> 2011-06-28 | S41: =OFFSET(InputIndexData!C$15,CalculationsAndCharts!$A41+$A$11,IF($C$7,8,0),1,1) -> 121.77 | T41: =OFFSET(InputIndexData!D$15,CalculationsAndCharts!$A41+$A$11,IF($C$7,8,0),1,1) -> 122.89 | U41: =OFFSET(InputIndexData!E$15,CalculationsAndCharts!$A41+$A$11,IF($C$7,8,0),1,1) -> 121.6 | V41: =OFFSET(InputIndexData!F$15,CalculationsAndCharts!$A41+$A$11,IF($C$7,8,0),1,1) -> 122.87 | AE41: 85.12 | AF41: 66.28 | AG41: 18.84 | AH41: 19.85138004 | AI41: 129.41 | AJ41: 119.16 | AK41: 10.25 | AL41: 36.19512195 | AM41: -16.34374191 | AN41: 1.023672346 | AO41: -73.41915974 | AP41: 74.44283208 | AQ41: 76.67013228 | AS41: 10 | AT41: 50 | AU41: TRUE | AV41: FALSE | AW41: 81.1 | AX41: FALSE | AY41: TRUE | AZ41: FALSE | BA41: 0 | BB41: 0 | BC41: FALSE | BD41: FALSE | BE41: FALSE | BF41: FALSE | BG41: 0 | BH41: 0 | BI41: 5371.52 | BJ41: 0.03289570733 | BK41: 0.01302663039 | BL41: 124.6075 | BM41: FALSE | BN41: 0 | BO41: 0 | BP41: 0.0191340708 | BQ41: 0.007795764399 | BR41: FALSE | BS41: 0 | BT41: 0 | BU41: -2496.61 | BV41: 2874.91
A42: 10 | B42: =OFFSET(InputPriceData!B$15,CalculationsAndCharts!$A42+$A$11,0,1,1) -> 2011-06-27 | C42: =OFFSET(InputPriceData!G$15,CalculationsAndCharts!$A42+$A$11,IF($C$7,8,0),1,1) -> 2780600 | D42: =OFFSET(InputPriceData!C$15,CalculationsAndCharts!$A42+$A$11,IF($C$7,8,0),1,1) -> 67.39 | E42: =OFFSET(InputPriceData!D$15,CalculationsAndCharts!$A42+$A$11,IF($C$7,8,0),1,1) -> 68.14 | F42: =OFFSET(InputPriceData!E$15,CalculationsAndCharts!$A42+$A$11,IF($C$7,8,0),1,1) -> 66.99 | G42: =OFFSET(InputPriceData!F$15,CalculationsAndCharts!$A42+$A$11,IF($C$7,8,0),1,1) -> 67.79 | H42: FALSE | J42: FALSE | K42: FALSE | M42: FALSE | O42: FALSE | P42: FALSE | R42: =OFFSET(InputIndexData!$B$15,CalculationsAndCharts!$A42+$A$11,0,1,1) -> 2011-06-27 | S42: =OFFSET(InputIndexData!C$15,CalculationsAndCharts!$A42+$A$11,IF($C$7,8,0),1,1) -> 120.29 | T42: =OFFSET(InputIndexData!D$15,CalculationsAndCharts!$A42+$A$11,IF($C$7,8,0),1,1) -> 121.75 | U42: =OFFSET(InputIndexData!E$15,CalculationsAndCharts!$A42+$A$11,IF($C$7,8,0),1,1) -> 120.06 | V42: =OFFSET(InputIndexData!F$15,CalculationsAndCharts!$A42+$A$11,IF($C$7,8,0),1,1) -> 121.29 | AE42: 85.3 | AF42: 66.28 | AG42: 19.02 | AH42: 7.939011567 | AI42: 129.41 | AJ42: 119.16 | AK42: 10.25 | AL42: 20.7804878 | AM42: -12.84147624 | AN42: 5.3453225 | AO42: -73.41915974 | AP42: 78.76448224 | AQ42: 76.9098987 | AS42: 10 | AT42: 50 | AU42: TRUE | AV42: FALSE | AW42: 81.1 | AX42: FALSE | AY42: TRUE | AZ42: FALSE | BA42: 0 | BB42: 0 | BC42: FALSE | BD42: FALSE | BE42: FALSE | BF42: FALSE | BG42: 0 | BH42: 0 | BI42: 5371.52 | BJ42: 0.002217622708 | BK42: 0.00890034936 | BL42: 124.653 | BM42: FALSE | BN42: 0 | BO42: 0 | BP42: 0.01875708298 | BQ42: 0.007623988613 | BR42: FALSE | BS42: 0 | BT42: 0 | BU42: -2496.61 | BV42: 2874.91
A43: 11 | B43: =OFFSET(InputPriceData!B$15,CalculationsAndCharts!$A43+$A$11,0,1,1) -> 2011-06-24 | C43: =OFFSET(InputPriceData!G$15,CalculationsAndCharts!$A43+$A$11,IF($C$7,8,0),1,1) -> 3017500 | D43: =OFFSET(InputPriceData!C$15,CalculationsAndCharts!$A43+$A$11,IF($C$7,8,0),1,1) -> 68.24 | E43: =OFFSET(InputPriceData!D$15,CalculationsAndCharts!$A43+$A$11,IF($C$7,8,0),1,1) -> 68.73 | F43: =OFFSET(InputPriceData!E$15,CalculationsAndCharts!$A43+$A$11,IF($C$7,8,0),1,1) -> 67.54 | G43: =OFFSET(InputPriceData!F$15,CalculationsAndCharts!$A43+$A$11,IF($C$7,8,0),1,1) -> 67.64 | H43: FALSE | J43: FALSE | K43: FALSE | M43: FALSE | O43: FALSE | P43: FALSE | R43: =OFFSET(InputIndexData!$B$15,CalculationsAndCharts!$A43+$A$11,0,1,1) -> 2011-06-24 | S43: =OFFSET(InputIndexData!C$15,CalculationsAndCharts!$A43+$A$11,IF($C$7,8,0),1,1) -> 121.6 | T43: =OFFSET(InputIndexData!D$15,CalculationsAndCharts!$A43+$A$11,IF($C$7,8,0),1,1) -> 121.7 | U43: =OFFSET(InputIndexData!E$15,CalculationsAndCharts!$A43+$A$11,IF($C$7,8,0),1,1) -> 120.04 | V43: =OFFSET(InputIndexData!F$15,CalculationsAndCharts!$A43+$A$11,IF($C$7,8,0),1,1) -> 120.22 | AE43: 85.3 | AF43: 66.28 | AG43: 19.02 | AH43: 7.150368034 | AI43: 129.41 | AJ43: 119.16 | AK43: 10.25 | AL43: 10.34146341 | AM43: -3.191095381 | AN43: 5.3453225 | AO43: -73.41915974 | AP43: 78.76448224 | AQ43: 89.16209738 | AS43: 10 | AT43: 50 | AU43: TRUE | AV43: FALSE | AW43: 81.1 | AX43: FALSE | AY43: TRUE | AZ43: FALSE | BA43: 0 | BB43: 0 | BC43: FALSE | BD43: FALSE | BE43: FALSE | BF43: FALSE | BG43: 0 | BH43: 0 | BI43: 5371.52 | BJ43: -0.007774680945 | BK43: -0.01159253474 | BL43: 124.716 | BM43: FALSE | BN43: 0 | BO43: 0 | BP43: 0.01891870243 | BQ43: 0.007526057005 | BR43: FALSE | BS43: 0 | BT43: 0 | BU43: -2496.61 | BV43: 2874.91
A44: 12 | B44: =OFFSET(InputPriceData!B$15,CalculationsAndCharts!$A44+$A$11,0,1,1) -> 2011-06-23 | C44: =OFFSET(InputPriceData!G$15,CalculationsAndCharts!$A44+$A$11,IF($C$7,8,0),1,1) -> 4669400 | D44: =OFFSET(InputPriceData!C$15,CalculationsAndCharts!$A44+$A$11,IF($C$7,8,0),1,1) -> 68.55 | E44: =OFFSET(InputPriceData!D$15,CalculationsAndCharts!$A44+$A$11,IF($C$7,8,0),1,1) -> 68.55 | F44: =OFFSET(InputPriceData!E$15,CalculationsAndCharts!$A44+$A$11,IF($C$7,8,0),1,1) -> 66.93 | G44: =OFFSET(InputPriceData!F$15,CalculationsAndCharts!$A44+$A$11,IF($C$7,8,0),1,1) -> 68.17 | H44: FALSE | J44: FALSE | K44: FALSE | M44: FALSE | O44: FALSE | P44: FALSE | R44: =OFFSET(InputIndexData!$B$15,CalculationsAndCharts!$A44+$A$11,0,1,1) -> 2011-06-23 | S44: =OFFSET(InputIndexData!C$15,CalculationsAndCharts!$A44+$A$11,IF($C$7,8,0),1,1) -> 120.55 | T44: =OFFSET(InputIndexData!D$15,CalculationsAndCharts!$A44+$A$11,IF($C$7,8,0),1,1) -> 121.95 | U44: =OFFSET(InputIndexData!E$15,CalculationsAndCharts!$A44+$A$11,IF($C$7,8,0),1,1) -> 119.63 | V44: =OFFSET(InputIndexData!F$15,CalculationsAndCharts!$A44+$A$11,IF($C$7,8,0),1,1) -> 121.63 | AE44: 85.3 | AF44: 66.28 | AG44: 19.02 | AH44: 9.936908517 | AI44: 129.41 | AJ44: 119.16 | AK44: 10.25 | AL44: 24.09756098 | AM44: -14.16065246 | AN44: 5.3453225 | AO44: -73.41915974 | AP44: 78.76448224 | AQ44: 75.2350623 | AS44: 10 | AT44: 50 | AU44: TRUE | AV44: FALSE | AW44: 81.1 | AX44: FALSE | AY44: TRUE | AZ44: FALSE | BA44: 0 | BB44: 0 | BC44: FALSE | BD44: FALSE | BE44: FALSE | BF44: FALSE | BG44: 0 | BH44: 0 | BI44: 5371.52 | BJ44: -0.02572531085 | BK44: -0.00286932284 | BL44: 124.7996667 | BM44: FALSE | BN44: 0 | BO44: 0 | BP44: 0.01893781381 | BQ44: 0.007448950373 | BR44: FALSE | BS44: 0 | BT44: 0 | BU44: -2496.61 | BV44: 2874.91
A45: 13 | B45: =OFFSET(InputPriceData!B$15,CalculationsAndCharts!$A45+$A$11,0,1,1) -> 2011-06-22 | C45: =OFFSET(InputPriceData!G$15,CalculationsAndCharts!$A45+$A$11,IF($C$7,8,0),1,1) -> 3491900 | D45: =OFFSET(InputPriceData!C$15,CalculationsAndCharts!$A45+$A$11,IF($C$7,8,0),1,1) -> 69.5 | E45: =OFFSET(InputPriceData!D$15,CalculationsAndCharts!$A45+$A$11,IF($C$7,8,0),1,1) -> 71.4 | F45: =OFFSET(InputPriceData!E$15,CalculationsAndCharts!$A45+$A$11,IF($C$7,8,0),1,1) -> 69.1 | G45: =OFFSET(InputPriceData!F$15,CalculationsAndCharts!$A45+$A$11,IF($C$7,8,0),1,1) -> 69.97 | H45: FALSE | J45: FALSE | K45: FALSE | M45: FALSE | O45: FALSE | P45: FALSE | R45: =OFFSET(InputIndexData!$B$15,CalculationsAndCharts!$A45+$A$11,0,1,1) -> 2011-06-22 | S45: =OFFSET(InputIndexData!C$15,CalculationsAndCharts!$A45+$A$11,IF($C$7,8,0),1,1) -> 122.34 | T45: =OFFSET(InputIndexData!D$15,CalculationsAndCharts!$A45+$A$11,IF($C$7,8,0),1,1) -> 123.06 | U45: =OFFSET(InputIndexData!E$15,CalculationsAndCharts!$A45+$A$11,IF($C$7,8,0),1,1) -> 121.9 | V45: =OFFSET(InputIndexData!F$15,CalculationsAndCharts!$A45+$A$11,IF($C$7,8,0),1,1) -> 121.98 | AE45: 85.3 | AF45: 66.28 | AG45: 19.02 | AH45: 19.40063091 | AI45: 129.41 | AJ45: 119.16 | AK45: 10.25 | AL45: 27.51219512 | AM45: -8.111564207 | AN45: 5.3453225 | AO45: -73.41915974 | AP45: 78.76448224 | AQ45: 82.91503185 | AS45: 10 | AT45: 50 | AU45: TRUE | AV45: FALSE | AW45: 81.1 | AX45: FALSE | AY45: TRUE | AZ45: FALSE | BA45: 0 | BB45: 0 | BC45: FALSE | BD45: FALSE | BE45: FALSE | BF45: FALSE | BG45: 0 | BH45: 0 | BI45: 5371.52 | BJ45: -0.001569634703 | BK45: -0.006029986962 | BL45: 124.8456667 | BM45: FALSE | BN45: 0 | BO45: 0 | BP45: 0.01872412211 | BQ45: 0.007495782767 | BR45: FALSE | BS45: 0 | BT45: 0 | BU45: -2496.61 | BV45: 2874.91
A46: 14 | B46: =OFFSET(InputPriceData!B$15,CalculationsAndCharts!$A46+$A$11,0,1,1) -> 2011-06-21 | C46: =OFFSET(InputPriceData!G$15,CalculationsAndCharts!$A46+$A$11,IF($C$7,8,0),1,1) -> 4018800 | D46: =OFFSET(InputPriceData!C$15,CalculationsAndCharts!$A46+$A$11,IF($C$7,8,0),1,1) -> 68.06 | E46: =OFFSET(InputPriceData!D$15,CalculationsAndCharts!$A46+$A$11,IF($C$7,8,0),1,1) -> 70.59 | F46: =OFFSET(InputPriceData!E$15,CalculationsAndCharts!$A46+$A$11,IF($C$7,8,0),1,1) -> 67.74 | G46: =OFFSET(InputPriceData!F$15,CalculationsAndCharts!$A46+$A$11,IF($C$7,8,0),1,1) -> 70.08 | H46: FALSE | J46: FALSE | K46: FALSE | M46: FALSE | O46: FALSE | P46: FALSE | R46: =OFFSET(InputIndexData!$B$15,CalculationsAndCharts!$A46+$A$11,0,1,1) -> 2011-06-21 | S46: =OFFSET(InputIndexData!C$15,CalculationsAndCharts!$A46+$A$11,IF($C$7,8,0),1,1) -> 121.69 | T46: =OFFSET(InputIndexData!D$15,CalculationsAndCharts!$A46+$A$11,IF($C$7,8,0),1,1) -> 122.96 | U46: =OFFSET(InputIndexData!E$15,CalculationsAndCharts!$A46+$A$11,IF($C$7,8,0),1,1) -> 121.11 | V46: =OFFSET(InputIndexData!F$15,CalculationsAndCharts!$A46+$A$11,IF($C$7,8,0),1,1) -> 122.72 | AE46: 85.3 | AF46: 66.28 | AG46: 19.02 | AH46: 19.97896951 | AI46: 129.41 | AJ46: 119.16 | AK46: 10.25 | AL46: 34.73170732 | AM46: -14.75273781 | AN46: 5.3453225 | AO46: -73.41915974 | AP46: 78.76448224 | AQ46: 74.48334612 | AS46: 10 | AT46: 50 | AU46: TRUE | AV46: FALSE | AW46: 81.1 | AX46: FALSE | AY46: TRUE | AZ46: FALSE | BA46: 0 | BB46: 0 | BC46: FALSE | BD46: FALSE | BE46: FALSE | BF46: FALSE | BG46: 0 | BH46: 0 | BI46: 5371.52 | BJ46: 0.04068904069 | BK46: 0.01371220882 | BL46: 124.872 | BM46: FALSE | BN46: 0 | BO46: 0 | BP46: 0.01881151226 | BQ46: 0.007463063082 | BR46: FALSE | BS46: 0 | BT46: 0 | BU46: -2496.61 | BV46: 2874.91
A47: 15 | B47: =OFFSET(InputPriceData!B$15,CalculationsAndCharts!$A47+$A$11,0,1,1) -> 2011-06-20 | C47: =OFFSET(InputPriceData!G$15,CalculationsAndCharts!$A47+$A$11,IF($C$7,8,0),1,1) -> 5186900 | D47: =OFFSET(InputPriceData!C$15,CalculationsAndCharts!$A47+$A$11,IF($C$7,8,0),1,1) -> 67.26 | E47: =OFFSET(InputPriceData!D$15,CalculationsAndCharts!$A47+$A$11,IF($C$7,8,0),1,1) -> 67.86 | F47: =OFFSET(InputPriceData!E$15,CalculationsAndCharts!$A47+$A$11,IF($C$7,8,0),1,1) -> 66.28 | G47: =OFFSET(InputPriceData!F$15,CalculationsAndCharts!$A47+$A$11,IF($C$7,8,0),1,1) -> 67.34 | H47: FALSE | J47: FALSE | K47: FALSE | M47: FALSE | O47: FALSE | P47: FALSE | R47: =OFFSET(InputIndexData!$B$15,CalculationsAndCharts!$A47+$A$11,0,1,1) -> 2011-06-20 | S47: =OFFSET(InputIndexData!C$15,CalculationsAndCharts!$A47+$A$11,IF($C$7,8,0),1,1) -> 120.04 | T47: =OFFSET(InputIndexData!D$15,CalculationsAndCharts!$A47+$A$11,IF($C$7,8,0),1,1) -> 121.32 | U47: =OFFSET(InputIndexData!E$15,CalculationsAndCharts!$A47+$A$11,IF($C$7,8,0),1,1) -> 120 | V47: =OFFSET(InputIndexData!F$15,CalculationsAndCharts!$A47+$A$11,IF($C$7,8,0),1,1) -> 121.06 | AE47: 85.3 | AF47: 66.28 | AG47: 19.02 | AH47: 5.573080967 | AI47: 129.41 | AJ47: 119.16 | AK47: 10.25 | AL47: 18.53658537 | AM47: -12.9635044 | AN47: 5.3453225 | AO47: -73.41915974 | AP47: 78.76448224 | AQ47: 76.7549708 | AS47: 10 | AT47: 50 | AU47: TRUE | AV47: FALSE | AW47: 81.1 | AX47: FALSE | AY47: TRUE | AZ47: FALSE | BA47: 0 | BB47: 0 | BC47: FALSE | BD47: FALSE | BE47: FALSE | BF47: FALSE | BG47: 0 | BH47: 0 | BI47: 5371.52 | BJ47: -0.007955215085 | BK47: 0.005147791431 | BL47: 124.891 | BM47: FALSE | BN47: 0 | BO47: 0 | BP47: 0.01836344056 | BQ47: 0.007255705929 | BR47: FALSE | BS47: 0 | BT47: 0 | BU47: -2496.61 | BV47: 2874.91
A48: 16 | B48: =OFFSET(InputPriceData!B$15,CalculationsAndCharts!$A48+$A$11,0,1,1) -> 2011-06-17 | C48: =OFFSET(InputPriceData!G$15,CalculationsAndCharts!$A48+$A$11,IF($C$7,8,0),1,1) -> 5475700 | D48: =OFFSET(InputPriceData!C$15,CalculationsAndCharts!$A48+$A$11,IF($C$7,8,0),1,1) -> 69.72 | E48: =OFFSET(InputPriceData!D$15,CalculationsAndCharts!$A48+$A$11,IF($C$7,8,0),1,1) -> 69.96 | F48: =OFFSET(InputPriceData!E$15,CalculationsAndCharts!$A48+$A$11,IF($C$7,8,0),1,1) -> 67.63 | G48: =OFFSET(InputPriceData!F$15,CalculationsAndCharts!$A48+$A$11,IF($C$7,8,0),1,1) -> 67.88 | H48: FALSE | J48: FALSE | K48: FALSE | M48: FALSE | O48: FALSE | P48: FALSE | R48: =OFFSET(InputIndexData!$B$15,CalculationsAndCharts!$A48+$A$11,0,1,1) -> 2011-06-17 | S48: =OFFSET(InputIndexData!C$15,CalculationsAndCharts!$A48+$A$11,IF($C$7,8,0),1,1) -> 121.27 | T48: =OFFSET(InputIndexData!D$15,CalculationsAndCharts!$A48+$A$11,IF($C$7,8,0),1,1) -> 121.28 | U48: =OFFSET(InputIndexData!E$15,CalculationsAndCharts!$A48+$A$11,IF($C$7,8,0),1,1) -> 120.03 | V48: =OFFSET(InputIndexData!F$15,CalculationsAndCharts!$A48+$A$11,IF($C$7,8,0),1,1) -> 120.44 | AE48: 85.3 | AF48: 67.63 | AG48: 17.67 | AH48: 1.414827391 | AI48: 129.41 | AJ48: 119.16 | AK48: 10.25 | AL48: 12.48780488 | AM48: -11.07297749 | AN48: 5.3453225 | AO48: -73.41915974 | AP48: 78.76448224 | AQ48: 79.15519848 | AS48: 10 | AT48: 50 | AU48: TRUE | AV48: FALSE | AW48: 81.1 | AX48: FALSE | AY48: TRUE | AZ48: FALSE | BA48: 0 | BB48: 0 | BC48: FALSE | BD48: FALSE | BE48: FALSE | BF48: FALSE | BG48: 0 | BH48: 0 | BI48: 5371.52 | BJ48: -0.01466105385 | BK48: 0.002998001332 | BL48: 124.9313333 | BM48: FALSE | BN48: 0 | BO48: 0 | BP48: 0.01854803322 | BQ48: 0.007332663918 | BR48: FALSE | BS48: 0 | BT48: 0 | BU48: -2496.61 | BV48: 2874.91
A49: 17 | B49: =OFFSET(InputPriceData!B$15,CalculationsAndCharts!$A49+$A$11,0,1,1) -> 2011-06-16 | C49: =OFFSET(InputPriceData!G$15,CalculationsAndCharts!$A49+$A$11,IF($C$7,8,0),1,1) -> 4769200 | D49: =OFFSET(InputPriceData!C$15,CalculationsAndCharts!$A49+$A$11,IF($C$7,8,0),1,1) -> 69.87 | E49: =OFFSET(InputPriceData!D$15,CalculationsAndCharts!$A49+$A$11,IF($C$7,8,0),1,1) -> 70.11 | F49: =OFFSET(InputPriceData!E$15,CalculationsAndCharts!$A49+$A$11,IF($C$7,8,0),1,1) -> 68 | G49: =OFFSET(InputPriceData!F$15,CalculationsAndCharts!$A49+$A$11,IF($C$7,8,0),1,1) -> 68.89 | H49: FALSE | J49: FALSE | K49: FALSE | M49: FALSE | O49: FALSE | P49: FALSE | R49: =OFFSET(InputIndexData!$B$15,CalculationsAndCharts!$A49+$A$11,0,1,1) -> 2011-06-16 | S49: =OFFSET(InputIndexData!C$15,CalculationsAndCharts!$A49+$A$11,IF($C$7,8,0),1,1) -> 119.85 | T49: =OFFSET(InputIndexData!D$15,CalculationsAndCharts!$A49+$A$11,IF($C$7,8,0),1,1) -> 120.71 | U49: =OFFSET(InputIndexData!E$15,CalculationsAndCharts!$A49+$A$11,IF($C$7,8,0),1,1) -> 119.16 | V49: =OFFSET(InputIndexData!F$15,CalculationsAndCharts!$A49+$A$11,IF($C$7,8,0),1,1) -> 120.08 | AE49: 85.3 | AF49: 68 | AG49: 17.3 | AH49: 5.144508671 | AI49: 129.41 | AJ49: 119.16 | AK49: 10.25 | AL49: 8.975609756 | AM49: -3.831101086 | AN49: 5.3453225 | AO49: -73.41915974 | AP49: 78.76448224 | AQ49: 88.34954116 | AS49: 10 | AT49: 50 | AU49: TRUE | AV49: FALSE | AW49: 81.1 | AX49: FALSE | AY49: TRUE | AZ49: FALSE | BA49: 0 | BB49: 0 | BC49: FALSE | BD49: FALSE | BE49: FALSE | BF49: FALSE | BG49: 0 | BH49: 0 | BI49: 5371.52 | BJ49: -0.009347138338 | BK49: 0.002169921549 | BL49: 124.9625 | BM49: FALSE | BN49: 0 | BO49: 0 | BP49: 0.0185820601 | BQ49: 0.007331741629 | BR49: FALSE | BS49: 0 | BT49: 0 | BU49: -2496.61 | BV49: 2874.91
A50: 18 | B50: =OFFSET(InputPriceData!B$15,CalculationsAndCharts!$A50+$A$11,0,1,1) -> 2011-06-15 | C50: =OFFSET(InputPriceData!G$15,CalculationsAndCharts!$A50+$A$11,IF($C$7,8,0),1,1) -> 4922100 | D50: =OFFSET(InputPriceData!C$15,CalculationsAndCharts!$A50+$A$11,IF($C$7,8,0),1,1) -> 70.74 | E50: =OFFSET(InputPriceData!D$15,CalculationsAndCharts!$A50+$A$11,IF($C$7,8,0),1,1) -> 71.1 | F50: =OFFSET(InputPriceData!E$15,CalculationsAndCharts!$A50+$A$11,IF($C$7,8,0),1,1) -> 68.84 | G50: =OFFSET(InputPriceData!F$15,CalculationsAndCharts!$A50+$A$11,IF($C$7,8,0),1,1) -> 69.54 | H50: FALSE | J50: FALSE | K50: FALSE | M50: FALSE | O50: FALSE | P50: FALSE | R50: =OFFSET(InputIndexData!$B$15,CalculationsAndCharts!$A50+$A$11,0,1,1) -> 2011-06-15 | S50: =OFFSET(InputIndexData!C$15,CalculationsAndCharts!$A50+$A$11,IF($C$7,8,0),1,1) -> 120.97 | T50: =OFFSET(InputIndexData!D$15,CalculationsAndCharts!$A50+$A$11,IF($C$7,8,0),1,1) -> 121.97 | U50: =OFFSET(InputIndexData!E$15,CalculationsAndCharts!$A50+$A$11,IF($C$7,8,0),1,1) -> 119.5 | V50: =OFFSET(InputIndexData!F$15,CalculationsAndCharts!$A50+$A$11,IF($C$7,8,0),1,1) -> 119.82 | AE50: 85.3 | AF50: 68.84 | AG50: 16.46 | AH50: 4.2527339 | AI50: 129.41 | AJ50: 119.5 | AK50: 9.91 | AL50: 3.229061554 | AM50: 1.023672346 | AN50: 9.46814847 | AO50: -73.41915974 | AP50: 82.88730821 | AQ50: 89.81209994 | AS50: 10 | AT50: 50 | AU50: TRUE | AV50: FALSE | AW50: 81.1 | AX50: FALSE | AY50: TRUE | AZ50: FALSE | BA50: 0 | BB50: 0 | BC50: FALSE | BD50: FALSE | BE50: FALSE | BF50: FALSE | BG50: 0 | BH50: 0 | BI50: 5371.52 | BJ50: -0.03241964658 | BK50: -0.01778834331 | BL50: 124.9938333 | BM50: FALSE | BN50: 0 | BO50: 0 | BP50: 0.01856077621 | BQ50: 0.00733681005 | BR50: FALSE | BS50: 0 | BT50: 0 | BU50: -2496.61 | BV50: 2874.91
A51: 19 | B51: =OFFSET(InputPriceData!B$15,CalculationsAndCharts!$A51+$A$11,0,1,1) -> 2011-06-14 | C51: =OFFSET(InputPriceData!G$15,CalculationsAndCharts!$A51+$A$11,IF($C$7,8,0),1,1) -> 2398100 | D51: =OFFSET(InputPriceData!C$15,CalculationsAndCharts!$A51+$A$11,IF($C$7,8,0),1,1) -> 71.09 | E51: =OFFSET(InputPriceData!D$15,CalculationsAndCharts!$A51+$A$11,IF($C$7,8,0),1,1) -> 72.34 | F51: =OFFSET(InputPriceData!E$15,CalculationsAndCharts!$A51+$A$11,IF($C$7,8,0),1,1) -> 70.89 | G51: =OFFSET(InputPriceData!F$15,CalculationsAndCharts!$A51+$A$11,IF($C$7,8,0),1,1) -> 71.87 | H51: FALSE | J51: FALSE | K51: FALSE | M51: FALSE | O51: FALSE | P51: FALSE | R51: =OFFSET(InputIndexData!$B$15,CalculationsAndCharts!$A51+$A$11,0,1,1) -> 2011-06-14 | S51: =OFFSET(InputIndexData!C$15,CalculationsAndCharts!$A51+$A$11,IF($C$7,8,0),1,1) -> 121.57 | T51: =OFFSET(InputIndexData!D$15,CalculationsAndCharts!$A51+$A$11,IF($C$7,8,0),1,1) -> 122.41 | U51: =OFFSET(InputIndexData!E$15,CalculationsAndCharts!$A51+$A$11,IF($C$7,8,0),1,1) -> 121.52 | V51: =OFFSET(InputIndexData!F$15,CalculationsAndCharts!$A51+$A$11,IF($C$7,8,0),1,1) -> 121.99 | AE51: 85.3 | AF51: 69.16 | AG51: 16.14 | AH51: 16.7905824 | AI51: 129.41 | AJ51: 119.85 | AK51: 9.56 | AL51: 22.38493724 | AM51: -5.594354835 | AN51: 9.46814847 | AO51: -73.41915974 | AP51: 82.88730821 | AQ51: 81.82773258 | AS51: 10 | AT51: 50 | AU51: TRUE | AV51: FALSE | AW51: 81.1 | AX51: FALSE | AY51: TRUE | AZ51: FALSE | BA51: 0 | BB51: 0 | BC51: FALSE | BD51: FALSE | BE51: FALSE | BF51: FALSE | BG51: 0 | BH51: 0 | BI51: 5371.52 | BJ51: 0.02583499857 | BK51: 0.01270131164 | BL51: 125.0366667 | BM51: FALSE | BN51: 0 | BO51: 0 | BP51: 0.0186577563 | BQ51: 0.00725410359 | BR51: FALSE | BS51: 0 | BT51: 0 | BU51: -2496.61 | BV51: 2874.91
A52: 20 | B52: =OFFSET(InputPriceData!B$15,CalculationsAndCharts!$A52+$A$11,0,1,1) -> 2011-06-13 | C52: =OFFSET(InputPriceData!G$15,CalculationsAndCharts!$A52+$A$11,IF($C$7,8,0),1,1) -> 3189200 | D52: =OFFSET(InputPriceData!C$15,CalculationsAndCharts!$A52+$A$11,IF($C$7,8,0),1,1) -> 70.06 | E52: =OFFSET(InputPriceData!D$15,CalculationsAndCharts!$A52+$A$11,IF($C$7,8,0),1,1) -> 71.87 | F52: =OFFSET(InputPriceData!E$15,CalculationsAndCharts!$A52+$A$11,IF($C$7,8,0),1,1) -> 69.16 | G52: =OFFSET(InputPriceData!F$15,CalculationsAndCharts!$A52+$A$11,IF($C$7,8,0),1,1) -> 70.06 | H52: FALSE | J52: FALSE | K52: FALSE | M52: FALSE | O52: FALSE | P52: FALSE | R52: =OFFSET(InputIndexData!$B$15,CalculationsAndCharts!$A52+$A$11,0,1,1) -> 2011-06-13 | S52: =OFFSET(InputIndexData!C$15,CalculationsAndCharts!$A52+$A$11,IF($C$7,8,0),1,1) -> 120.64 | T52: =OFFSET(InputIndexData!D$15,CalculationsAndCharts!$A52+$A$11,IF($C$7,8,0),1,1) -> 120.97 | U52: =OFFSET(InputIndexData!E$15,CalculationsAndCharts!$A52+$A$11,IF($C$7,8,0),1,1) -> 119.85 | V52: =OFFSET(InputIndexData!F$15,CalculationsAndCharts!$A52+$A$11,IF($C$7,8,0),1,1) -> 120.46 | AE52: 85.3 | AF52: 69.16 | AG52: 16.14 | AH52: 5.576208178 | AI52: 129.41 | AJ52: 119.85 | AK52: 9.56 | AL52: 6.380753138 | AM52: -0.8045449596 | AN52: 9.46814847 | AO52: -73.41915974 | AP52: 82.88730821 | AQ52: 87.60643378 | AS52: 10 | AT52: 50 | AU52: TRUE | AV52: FALSE | AW52: 81.1 | AX52: FALSE | AY52: TRUE | AZ52: FALSE | BA52: 0 | BB52: 0 | BC52: FALSE | BD52: FALSE | BE52: FALSE | BF52: FALSE | BG52: 0 | BH52: 0 | BI52: 5371.52 | BJ52: -0.01697769047 | BK52: 0.0007476946083 | BL52: 125.0121667 | BM52: FALSE | BN52: 0 | BO52: 0 | BP52: 0.0183475092 | BQ52: 0.007085421787 | BR52: FALSE | BS52: 0 | BT52: 0 | BU52: -2496.61 | BV52: 2874.91
A53: 21 | B53: =OFFSET(InputPriceData!B$15,CalculationsAndCharts!$A53+$A$11,0,1,1) -> 2011-06-10 | C53: =OFFSET(InputPriceData!G$15,CalculationsAndCharts!$A53+$A$11,IF($C$7,8,0),1,1) -> 3531100 | D53: =OFFSET(InputPriceData!C$15,CalculationsAndCharts!$A53+$A$11,IF($C$7,8,0),1,1) -> 72.8 | E53: =OFFSET(InputPriceData!D$15,CalculationsAndCharts!$A53+$A$11,IF($C$7,8,0),1,1) -> 72.8 | F53: =OFFSET(InputPriceData!E$15,CalculationsAndCharts!$A53+$A$11,IF($C$7,8,0),1,1) -> 71.17 | G53: =OFFSET(InputPriceData!F$15,CalculationsAndCharts!$A53+$A$11,IF($C$7,8,0),1,1) -> 71.27 | H53: FALSE | J53: FALSE | K53: FALSE | M53: FALSE | O53: FALSE | P53: FALSE | R53: =OFFSET(InputIndexData!$B$15,CalculationsAndCharts!$A53+$A$11,0,1,1) -> 2011-06-10 | S53: =OFFSET(InputIndexData!C$15,CalculationsAndCharts!$A53+$A$11,IF($C$7,8,0),1,1) -> 121.55 | T53: =OFFSET(InputIndexData!D$15,CalculationsAndCharts!$A53+$A$11,IF($C$7,8,0),1,1) -> 121.62 | U53: =OFFSET(InputIndexData!E$15,CalculationsAndCharts!$A53+$A$11,IF($C$7,8,0),1,1) -> 120.05 | V53: =OFFSET(InputIndexData!F$15,CalculationsAndCharts!$A53+$A$11,IF($C$7,8,0),1,1) -> 120.37 | AE53: 85.3 | AF53: 71.17 | AG53: 14.13 | AH53: 0.7077140835 | AI53: 129.41 | AJ53: 119.38 | AK53: 10.03 | AL53: 9.870388833 | AM53: -9.16267475 | AN53: 15.11868413 | AO53: -73.41915974 | AP53: 88.53784387 | AQ53: 72.57516354 | AS53: 10 | AT53: 50 | AU53: TRUE | AV53: FALSE | AW53: 81.1 | AX53: FALSE | AY53: TRUE | AZ53: FALSE | BA53: 0 | BB53: 0 | BC53: FALSE | BD53: FALSE | BE53: FALSE | BF53: FALSE | BG53: 0 | BH53: 0 | BI53: 5371.52 | BJ53: -0.03020819159 | BK53: -0.01392643565 | BL53: 125.0058333 | BM53: FALSE | BN53: 0 | BO53: 0 | BP53: 0.01856294121 | BQ53: 0.007283071855 | BR53: FALSE | BS53: 0 | BT53: 0 | BU53: -2496.61 | BV53: 2874.91
A54: 22 | B54: =OFFSET(InputPriceData!B$15,CalculationsAndCharts!$A54+$A$11,0,1,1) -> 2011-06-09 | C54: =OFFSET(InputPriceData!G$15,CalculationsAndCharts!$A54+$A$11,IF($C$7,8,0),1,1) -> 2695700 | D54: =OFFSET(InputPriceData!C$15,CalculationsAndCharts!$A54+$A$11,IF($C$7,8,0),1,1) -> 72.64 | E54: =OFFSET(InputPriceData!D$15,CalculationsAndCharts!$A54+$A$11,IF($C$7,8,0),1,1) -> 73.95 | F54: =OFFSET(InputPriceData!E$15,CalculationsAndCharts!$A54+$A$11,IF($C$7,8,0),1,1) -> 72.37 | G54: =OFFSET(InputPriceData!F$15,CalculationsAndCharts!$A54+$A$11,IF($C$7,8,0),1,1) -> 73.49 | H54: FALSE | J54: FALSE | K54: FALSE | M54: FALSE | O54: FALSE | P54: FALSE | R54: =OFFSET(InputIndexData!$B$15,CalculationsAndCharts!$A54+$A$11,0,1,1) -> 2011-06-09 | S54: =OFFSET(InputIndexData!C$15,CalculationsAndCharts!$A54+$A$11,IF($C$7,8,0),1,1) -> 121.48 | T54: =OFFSET(InputIndexData!D$15,CalculationsAndCharts!$A54+$A$11,IF($C$7,8,0),1,1) -> 122.57 | U54: =OFFSET(InputIndexData!E$15,CalculationsAndCharts!$A54+$A$11,IF($C$7,8,0),1,1) -> 121.18 | V54: =OFFSET(InputIndexData!F$15,CalculationsAndCharts!$A54+$A$11,IF($C$7,8,0),1,1) -> 122.07 | AE54: 85.3 | AF54: 71.91 | AG54: 13.39 | AH54: 11.79985063 | AI54: 129.41 | AJ54: 117.66 | AK54: 11.75 | AL54: 37.53191489 | AM54: -25.73206426 | AN54: 15.11868413 | AO54: -73.41915974 | AP54: 88.53784387 | AQ54: 53.8606921 | AS54: 10 | AT54: 50 | AU54: TRUE | AV54: FALSE | AW54: 81.1 | AX54: FALSE | AY54: TRUE | AZ54: FALSE | BA54: 0 | BB54: 0 | BC54: FALSE | BD54: FALSE | BE54: FALSE | BF54: FALSE | BG54: 0 | BH54: 0 | BI54: 5371.52 | BJ54: 0.01829014826 | BK54: 0.007677067855 | BL54: 124.9748333 | BM54: FALSE | BN54: 0 | BO54: 0 | BP54: 0.01817235308 | BQ54: 0.007455492478 | BR54: FALSE | BS54: 0 | BT54: 0 | BU54: -2496.61 | BV54: 2874.91
A55: 23 | B55: =OFFSET(InputPriceData!B$15,CalculationsAndCharts!$A55+$A$11,0,1,1) -> 2011-06-08 | C55: =OFFSET(InputPriceData!G$15,CalculationsAndCharts!$A55+$A$11,IF($C$7,8,0),1,1) -> 4143900 | D55: =OFFSET(InputPriceData!C$15,CalculationsAndCharts!$A55+$A$11,IF($C$7,8,0),1,1) -> 72.9 | E55: =OFFSET(InputPriceData!D$15,CalculationsAndCharts!$A55+$A$11,IF($C$7,8,0),1,1) -> 74.28 | F55: =OFFSET(InputPriceData!E$15,CalculationsAndCharts!$A55+$A$11,IF($C$7,8,0),1,1) -> 71.91 | G55: =OFFSET(InputPriceData!F$15,CalculationsAndCharts!$A55+$A$11,IF($C$7,8,0),1,1) -> 72.17 | H55: FALSE | J55: FALSE | K55: FALSE | M55: FALSE | O55: FALSE | P55: FALSE | R55: =OFFSET(InputIndexData!$B$15,CalculationsAndCharts!$A55+$A$11,0,1,1) -> 2011-06-08 | S55: =OFFSET(InputIndexData!C$15,CalculationsAndCharts!$A55+$A$11,IF($C$7,8,0),1,1) -> 121.46 | T55: =OFFSET(InputIndexData!D$15,CalculationsAndCharts!$A55+$A$11,IF($C$7,8,0),1,1) -> 121.87 | U55: =OFFSET(InputIndexData!E$15,CalculationsAndCharts!$A55+$A$11,IF($C$7,8,0),1,1) -> 120.91 | V55: =OFFSET(InputIndexData!F$15,CalculationsAndCharts!$A55+$A$11,IF($C$7,8,0),1,1) -> 121.14 | AE55: 85.3 | AF55: 71.91 | AG55: 13.39 | AH55: 1.941747573 | AI55: 129.41 | AJ55: 117.66 | AK55: 11.75 | AL55: 29.61702128 | AM55: -27.6752737 | AN55: 15.11868413 | AO55: -73.41915974 | AP55: 88.53784387 | AQ55: 51.66591373 | AS55: 10 | AT55: 50 | AU55: TRUE | AV55: FALSE | AW55: 81.1 | AX55: FALSE | AY55: TRUE | AZ55: FALSE | BA55: 0 | BB55: 0 | BC55: FALSE | BD55: FALSE | BE55: FALSE | BF55: FALSE | BG55: 0 | BH55: 0 | BI55: 5371.52 | BJ55: -0.0102852441 | BK55: -0.004192355117 | BL55: 124.9528333 | BM55: FALSE | BN55: 0 | BO55: 0 | BP55: 0.0180458849 | BQ55: 0.007538108879 | BR55: FALSE | BS55: 0 | BT55: 0 | BU55: -2496.61 | BV55: 2874.91
A56: 24 | B56: =OFFSET(InputPriceData!B$15,CalculationsAndCharts!$A56+$A$11,0,1,1) -> 2011-06-07 | C56: =OFFSET(InputPriceData!G$15,CalculationsAndCharts!$A56+$A$11,IF($C$7,8,0),1,1) -> 4167200 | D56: =OFFSET(InputPriceData!C$15,CalculationsAndCharts!$A56+$A$11,IF($C$7,8,0),1,1) -> 74.26 | E56: =OFFSET(InputPriceData!D$15,CalculationsAndCharts!$A56+$A$11,IF($C$7,8,0),1,1) -> 74.8 | F56: =OFFSET(InputPriceData!E$15,CalculationsAndCharts!$A56+$A$11,IF($C$7,8,0),1,1) -> 72.8 | G56: =OFFSET(InputPriceData!F$15,CalculationsAndCharts!$A56+$A$11,IF($C$7,8,0),1,1) -> 72.92 | H56: FALSE | J56: FALSE | K56: FALSE | M56: FALSE | O56: FALSE | P56: FALSE | R56: =OFFSET(InputIndexData!$B$15,CalculationsAndCharts!$A56+$A$11,0,1,1) -> 2011-06-07 | S56: =OFFSET(InputIndexData!C$15,CalculationsAndCharts!$A56+$A$11,IF($C$7,8,0),1,1) -> 122.35 | T56: =OFFSET(InputIndexData!D$15,CalculationsAndCharts!$A56+$A$11,IF($C$7,8,0),1,1) -> 122.7 | U56: =OFFSET(InputIndexData!E$15,CalculationsAndCharts!$A56+$A$11,IF($C$7,8,0),1,1) -> 121.55 | V56: =OFFSET(InputIndexData!F$15,CalculationsAndCharts!$A56+$A$11,IF($C$7,8,0),1,1) -> 121.65 | AE56: 85.3 | AF56: 72.21 | AG56: 13.09 | AH56: 5.423987777 | AI56: 129.41 | AJ56: 117.66 | AK56: 11.75 | AL56: 33.95744681 | AM56: -28.53345903 | AN56: 15.11868413 | AO56: -73.41915974 | AP56: 88.53784387 | AQ56: 50.69662728 | AS56: 10 | AT56: 50 | AU56: TRUE | AV56: FALSE | AW56: 81.1 | AX56: FALSE | AY56: TRUE | AZ56: FALSE | BA56: 0 | BB56: 0 | BC56: FALSE | BD56: FALSE | BE56: FALSE | BF56: FALSE | BG56: 0 | BH56: 0 | BI56: 5371.52 | BJ56: 0.002061288993 | BK56: -0.0006571921466 | BL56: 124.9696667 | BM56: FALSE | BN56: 0 | BO56: 0 | BP56: 0.01804732409 | BQ56: 0.007558231392 | BR56: FALSE | BS56: 0 | BT56: 0 | BU56: -2496.61 | BV56: 2874.91
A57: 25 | B57: =OFFSET(InputPriceData!B$15,CalculationsAndCharts!$A57+$A$11,0,1,1) -> 2011-06-06 | C57: =OFFSET(InputPriceData!G$15,CalculationsAndCharts!$A57+$A$11,IF($C$7,8,0),1,1) -> 3259500 | D57: =OFFSET(InputPriceData!C$15,CalculationsAndCharts!$A57+$A$11,IF($C$7,8,0),1,1) -> 75.17 | E57: =OFFSET(InputPriceData!D$15,CalculationsAndCharts!$A57+$A$11,IF($C$7,8,0),1,1) -> 75.47 | F57: =OFFSET(InputPriceData!E$15,CalculationsAndCharts!$A57+$A$11,IF($C$7,8,0),1,1) -> 72.54 | G57: =OFFSET(InputPriceData!F$15,CalculationsAndCharts!$A57+$A$11,IF($C$7,8,0),1,1) -> 72.77 | H57: FALSE | J57: FALSE | K57: FALSE | M57: FALSE | O57: FALSE | P57: FALSE | R57: =OFFSET(InputIndexData!$B$15,CalculationsAndCharts!$A57+$A$11,0,1,1) -> 2011-06-06 | S57: =OFFSET(InputIndexData!C$15,CalculationsAndCharts!$A57+$A$11,IF($C$7,8,0),1,1) -> 122.72 | T57: =OFFSET(InputIndexData!D$15,CalculationsAndCharts!$A57+$A$11,IF($C$7,8,0),1,1) -> 122.98 | U57: =OFFSET(InputIndexData!E$15,CalculationsAndCharts!$A57+$A$11,IF($C$7,8,0),1,1) -> 121.57 | V57: =OFFSET(InputIndexData!F$15,CalculationsAndCharts!$A57+$A$11,IF($C$7,8,0),1,1) -> 121.73 | AE57: 85.3 | AF57: 72.21 | AG57: 13.09 | AH57: 4.278074866 | AI57: 129.41 | AJ57: 117.66 | AK57: 11.75 | AL57: 34.63829787 | AM57: -30.36022301 | AN57: 15.11868413 | AO57: -73.41915974 | AP57: 88.53784387 | AQ57: 48.63336947 | AS57: 10 | AT57: 50 | AU57: TRUE | AV57: FALSE | AW57: 81.1 | AX57: FALSE | AY57: FALSE | AZ57: FALSE | BA57: 0 | BB57: 0 | BC57: FALSE | BD57: FALSE | BE57: FALSE | BF57: FALSE | BG57: 0 | BH57: 0 | BI57: 5371.52 | BJ57: -0.03372726066 | BK57: -0.01056652849 | BL57: 124.9903333 | BM57: FALSE | BN57: 0 | BO57: 0 | BP57: 0.01821305305 | BQ57: 0.007612338281 | BR57: FALSE | BS57: 0 | BT57: 0 | BU57: -2496.61 | BV57: 2874.91
A58: 26 | B58: =OFFSET(InputPriceData!B$15,CalculationsAndCharts!$A58+$A$11,0,1,1) -> 2011-06-03 | C58: =OFFSET(InputPriceData!G$15,CalculationsAndCharts!$A58+$A$11,IF($C$7,8,0),1,1) -> 2507400 | D58: =OFFSET(InputPriceData!C$15,CalculationsAndCharts!$A58+$A$11,IF($C$7,8,0),1,1) -> 73.93 | E58: =OFFSET(InputPriceData!D$15,CalculationsAndCharts!$A58+$A$11,IF($C$7,8,0),1,1) -> 76.42 | F58: =OFFSET(InputPriceData!E$15,CalculationsAndCharts!$A58+$A$11,IF($C$7,8,0),1,1) -> 73.69 | G58: =OFFSET(InputPriceData!F$15,CalculationsAndCharts!$A58+$A$11,IF($C$7,8,0),1,1) -> 75.31 | H58: FALSE | J58: FALSE | K58: FALSE | M58: FALSE | O58: FALSE | P58: FALSE | R58: =OFFSET(InputIndexData!$B$15,CalculationsAndCharts!$A58+$A$11,0,1,1) -> 2011-06-03 | S58: =OFFSET(InputIndexData!C$15,CalculationsAndCharts!$A58+$A$11,IF($C$7,8,0),1,1) -> 122.78 | T58: =OFFSET(InputIndexData!D$15,CalculationsAndCharts!$A58+$A$11,IF($C$7,8,0),1,1) -> 123.97 | U58: =OFFSET(InputIndexData!E$15,CalculationsAndCharts!$A58+$A$11,IF($C$7,8,0),1,1) -> 122.71 | V58: =OFFSET(InputIndexData!F$15,CalculationsAndCharts!$A58+$A$11,IF($C$7,8,0),1,1) -> 123.03 | AE58: 85.3 | AF58: 72.21 | AG58: 13.09 | AH58: 23.68220015 | AI58: 129.41 | AJ58: 117.66 | AK58: 11.75 | AL58: 45.70212766 | AM58: -22.01992751 | AN58: 15.11868413 | AO58: -73.41915974 | AP58: 88.53784387 | AQ58: 58.05340404 | AS58: 10 | AT58: 50 | AU58: TRUE | AV58: FALSE | AW58: 81.1 | AX58: FALSE | AY58: TRUE | AZ58: FALSE | BA58: 0 | BB58: 0 | BC58: FALSE | BD58: FALSE | BE58: FALSE | BF58: FALSE | BG58: 0 | BH58: 0 | BI58: 5371.52 | BJ58: 0.003598081023 | BK58: -0.00989859971 | BL58: 124.9955 | BM58: FALSE | BN58: 0 | BO58: 0 | BP58: 0.01887205138 | BQ58: 0.007862375708 | BR58: FALSE | BS58: 0 | BT58: 0 | BU58: -2496.61 | BV58: 2874.91
A59: 27 | B59: =OFFSET(InputPriceData!B$15,CalculationsAndCharts!$A59+$A$11,0,1,1) -> 2011-06-02 | C59: =OFFSET(InputPriceData!G$15,CalculationsAndCharts!$A59+$A$11,IF($C$7,8,0),1,1) -> 3118900 | D59: =OFFSET(InputPriceData!C$15,CalculationsAndCharts!$A59+$A$11,IF($C$7,8,0),1,1) -> 74.92 | E59: =OFFSET(InputPriceData!D$15,CalculationsAndCharts!$A59+$A$11,IF($C$7,8,0),1,1) -> 75.96 | F59: =OFFSET(InputPriceData!E$15,CalculationsAndCharts!$A59+$A$11,IF($C$7,8,0),1,1) -> 73.87 | G59: =OFFSET(InputPriceData!F$15,CalculationsAndCharts!$A59+$A$11,IF($C$7,8,0),1,1) -> 75.04 | H59: FALSE | J59: FALSE | K59: FALSE | M59: FALSE | O59: FALSE | P59: FALSE | R59: =OFFSET(InputIndexData!$B$15,CalculationsAndCharts!$A59+$A$11,0,1,1) -> 2011-06-02 | S59: =OFFSET(InputIndexData!C$15,CalculationsAndCharts!$A59+$A$11,IF($C$7,8,0),1,1) -> 124.48 | T59: =OFFSET(InputIndexData!D$15,CalculationsAndCharts!$A59+$A$11,IF($C$7,8,0),1,1) -> 124.74 | U59: =OFFSET(InputIndexData!E$15,CalculationsAndCharts!$A59+$A$11,IF($C$7,8,0),1,1) -> 123.53 | V59: =OFFSET(InputIndexData!F$15,CalculationsAndCharts!$A59+$A$11,IF($C$7,8,0),1,1) -> 124.26 | AE59: 85.3 | AF59: 72.21 | AG59: 13.09 | AH59: 21.61955691 | AI59: 129.41 | AJ59: 117.66 | AK59: 11.75 | AL59: 56.17021277 | AM59: -34.55065585 | AN59: 15.11868413 | AO59: -73.41915974 | AP59: 88.53784387 | AQ59: 43.90044097 | AS59: 10 | AT59: 50 | AU59: TRUE | AV59: FALSE | AW59: 81.1 | AX59: FALSE | AY59: FALSE | AZ59: FALSE | BA59: 0 | BB59: 0 | BC59: FALSE | BD59: FALSE | BE59: FALSE | BF59: FALSE | BG59: 0 | BH59: 0 | BI59: 5371.52 | BJ59: 0.005224380442 | BK59: -0.001125401929 | BL59: 125.0175 | BM59: FALSE | BN59: 0 | BO59: 0 | BP59: 0.01888517196 | BQ59: 0.007761218904 | BR59: FALSE | BS59: 0 | BT59: 0 | BU59: -2496.61 | BV59: 2874.91
A60: 28 | B60: =OFFSET(InputPriceData!B$15,CalculationsAndCharts!$A60+$A$11,0,1,1) -> 2011-06-01 | C60: =OFFSET(InputPriceData!G$15,CalculationsAndCharts!$A60+$A$11,IF($C$7,8,0),1,1) -> 3828300 | D60: =OFFSET(InputPriceData!C$15,CalculationsAndCharts!$A60+$A$11,IF($C$7,8,0),1,1) -> 77.08 | E60: =OFFSET(InputPriceData!D$15,CalculationsAndCharts!$A60+$A$11,IF($C$7,8,0),1,1) -> 77.37 | F60: =OFFSET(InputPriceData!E$15,CalculationsAndCharts!$A60+$A$11,IF($C$7,8,0),1,1) -> 74.41 | G60: =OFFSET(InputPriceData!F$15,CalculationsAndCharts!$A60+$A$11,IF($C$7,8,0),1,1) -> 74.65 | H60: FALSE | J60: FALSE | K60: FALSE | M60: FALSE | O60: FALSE | P60: FALSE | R60: =OFFSET(InputIndexData!$B$15,CalculationsAndCharts!$A60+$A$11,0,1,1) -> 2011-06-01 | S60: =OFFSET(InputIndexData!C$15,CalculationsAndCharts!$A60+$A$11,IF($C$7,8,0),1,1) -> 126.89 | T60: =OFFSET(InputIndexData!D$15,CalculationsAndCharts!$A60+$A$11,IF($C$7,8,0),1,1) -> 127.28 | U60: =OFFSET(InputIndexData!E$15,CalculationsAndCharts!$A60+$A$11,IF($C$7,8,0),1,1) -> 124.3 | V60: =OFFSET(InputIndexData!F$15,CalculationsAndCharts!$A60+$A$11,IF($C$7,8,0),1,1) -> 124.4 | W60: 87.5 | X60: 130.8 | AE60: 85.3 | AF60: 72.21 | AG60: 13.09 | AH60: 18.64018335 | AI60: 129.41 | AJ60: 117.66 | AK60: 11.75 | AL60: 57.36170213 | AM60: -38.72151878 | AN60: 15.11868413 | AO60: -73.41915974 | AP60: 88.53784387 | AQ60: 39.18961592 | AR60: 100 | AS60: 10 | AT60: 50 | AU60: TRUE | AV60: FALSE | AW60: 81.1 | AX60: FALSE | AY60: FALSE | AZ60: FALSE | BA60: 0 | BB60: 0 | BC60: FALSE | BD60: FALSE | BE60: FALSE | BF60: FALSE | BG60: 0 | BH60: 0 | BI60: 5371.52 | BJ60: -0.03453181583 | BK60: -0.02239685658 | BL60: 125.0218333 | BM60: FALSE | BN60: 0 | BO60: 0 | BP60: 0.01887776473 | BQ60: 0.007840003148 | BR60: FALSE | BS60: 0 | BT60: 0 | BU60: -2496.61 | BV60: 2874.91
A61: 29 | B61: =OFFSET(InputPriceData!B$15,CalculationsAndCharts!$A61+$A$11,0,1,1) -> 2011-05-31 | C61: =OFFSET(InputPriceData!G$15,CalculationsAndCharts!$A61+$A$11,IF($C$7,8,0),1,1) -> 2687900 | D61: =OFFSET(InputPriceData!C$15,CalculationsAndCharts!$A61+$A$11,IF($C$7,8,0),1,1) -> 77.96 | E61: =OFFSET(InputPriceData!D$15,CalculationsAndCharts!$A61+$A$11,IF($C$7,8,0),1,1) -> 78.32 | F61: =OFFSET(InputPriceData!E$15,CalculationsAndCharts!$A61+$A$11,IF($C$7,8,0),1,1) -> 76.43 | G61: =OFFSET(InputPriceData!F$15,CalculationsAndCharts!$A61+$A$11,IF($C$7,8,0),1,1) -> 77.32 | H61: FALSE | J61: FALSE | K61: FALSE | M61: FALSE | O61: FALSE | P61: FALSE | R61: =OFFSET(InputIndexData!$B$15,CalculationsAndCharts!$A61+$A$11,0,1,1) -> 2011-05-31 | S61: =OFFSET(InputIndexData!C$15,CalculationsAndCharts!$A61+$A$11,IF($C$7,8,0),1,1) -> 127.13 | T61: =OFFSET(InputIndexData!D$15,CalculationsAndCharts!$A61+$A$11,IF($C$7,8,0),1,1) -> 127.27 | U61: =OFFSET(InputIndexData!E$15,CalculationsAndCharts!$A61+$A$11,IF($C$7,8,0),1,1) -> 126.25 | V61: =OFFSET(InputIndexData!F$15,CalculationsAndCharts!$A61+$A$11,IF($C$7,8,0),1,1) -> 127.25 | AE61: 85.3 | AF61: 72.21 | AG61: 13.09 | AH61: 39.03743316 | AI61: 129.41 | AJ61: 117.66 | AK61: 11.75 | AL61: 81.61702128 | AM61: -42.57958812 | AN61: 15.11868413 | AO61: -73.41915974 | AP61: 88.53784387 | AQ61: 34.83207888 | AS61: 10 | AT61: 50 | AU61: TRUE | AV61: FALSE | AW61: 81.1 | AX61: FALSE | AY61: FALSE | AZ61: FALSE | BA61: 0 | BB61: 0 | BC61: FALSE | BD61: FALSE | BE61: FALSE | BF61: FALSE | BG61: 0 | BH61: 0 | BI61: 5371.52 | BJ61: 0.005461638492 | BK61: 0.01040177862 | BL61: 125.0058333 | BM61: FALSE | BN61: 0 | BO61: 0 | BP61: 0.01838313023 | BQ61: 0.007348696516 | BR61: FALSE | BS61: 0 | BT61: 0 | BU61: -2496.61 | BV61: 2874.91
A62: 30 | B62: =OFFSET(InputPriceData!B$15,CalculationsAndCharts!$A62+$A$11,0,1,1) -> 2011-05-27 | C62: =OFFSET(InputPriceData!G$15,CalculationsAndCharts!$A62+$A$11,IF($C$7,8,0),1,1) -> 1990100 | D62: =OFFSET(InputPriceData!C$15,CalculationsAndCharts!$A62+$A$11,IF($C$7,8,0),1,1) -> 77.09 | E62: =OFFSET(InputPriceData!D$15,CalculationsAndCharts!$A62+$A$11,IF($C$7,8,0),1,1) -> 77.78 | F62: =OFFSET(InputPriceData!E$15,CalculationsAndCharts!$A62+$A$11,IF($C$7,8,0),1,1) -> 76.48 | G62: =OFFSET(InputPriceData!F$15,CalculationsAndCharts!$A62+$A$11,IF($C$7,8,0),1,1) -> 76.9 | H62: FALSE | J62: FALSE | K62: FALSE | M62: FALSE | O62: FALSE | P62: FALSE | R62: =OFFSET(InputIndexData!$B$15,CalculationsAndCharts!$A62+$A$11,0,1,1) -> 2011-05-27 | S62: =OFFSET(InputIndexData!C$15,CalculationsAndCharts!$A62+$A$11,IF($C$7,8,0),1,1) -> 125.81 | T62: =OFFSET(InputIndexData!D$15,CalculationsAndCharts!$A62+$A$11,IF($C$7,8,0),1,1) -> 126.28 | U62: =OFFSET(InputIndexData!E$15,CalculationsAndCharts!$A62+$A$11,IF($C$7,8,0),1,1) -> 125.42 | V62: =OFFSET(InputIndexData!F$15,CalculationsAndCharts!$A62+$A$11,IF($C$7,8,0),1,1) -> 125.94 | AE62: 85.3 | AF62: 72.21 | AG62: 13.09 | AH62: 35.82887701 | AI62: 129.41 | AJ62: 117.66 | AK62: 11.75 | AL62: 70.46808511 | AM62: -34.6392081 | AN62: 15.11868413 | AO62: -73.41915974 | AP62: 88.53784387 | AQ62: 43.8004247 | AS62: 10 | AT62: 50 | AU62: TRUE | AV62: FALSE | AW62: 81.1 | AX62: FALSE | AY62: FALSE | AZ62: FALSE | BA62: 0 | BB62: 0 | BC62: FALSE | BD62: FALSE | BE62: FALSE | BF62: FALSE | BG62: 0 | BH62: 0 | BI62: 5371.52 | BJ62: 0.00260756193 | BK62: 0.003825920612 | BL62: 124.9586667 | BM62: FALSE | BN62: 0 | BO62: 0 | BP62: 0.01841197368 | BQ62: 0.007299862723 | BR62: FALSE | BS62: 0 | BT62: 0 | BU62: -2496.61 | BV62: 2874.91
A63: 31 | B63: =OFFSET(InputPriceData!B$15,CalculationsAndCharts!$A63+$A$11,0,1,1) -> 2011-05-26 | C63: =OFFSET(InputPriceData!G$15,CalculationsAndCharts!$A63+$A$11,IF($C$7,8,0),1,1) -> 2569000 | D63: =OFFSET(InputPriceData!C$15,CalculationsAndCharts!$A63+$A$11,IF($C$7,8,0),1,1) -> 76.21 | E63: =OFFSET(InputPriceData!D$15,CalculationsAndCharts!$A63+$A$11,IF($C$7,8,0),1,1) -> 77.04 | F63: =OFFSET(InputPriceData!E$15,CalculationsAndCharts!$A63+$A$11,IF($C$7,8,0),1,1) -> 75.82 | G63: =OFFSET(InputPriceData!F$15,CalculationsAndCharts!$A63+$A$11,IF($C$7,8,0),1,1) -> 76.7 | H63: FALSE | J63: FALSE | K63: FALSE | M63: FALSE | O63: FALSE | P63: FALSE | R63: =OFFSET(InputIndexData!$B$15,CalculationsAndCharts!$A63+$A$11,0,1,1) -> 2011-05-26 | S63: =OFFSET(InputIndexData!C$15,CalculationsAndCharts!$A63+$A$11,IF($C$7,8,0),1,1) -> 124.54 | T63: =OFFSET(InputIndexData!D$15,CalculationsAndCharts!$A63+$A$11,IF($C$7,8,0),1,1) -> 125.69 | U63: =OFFSET(InputIndexData!E$15,CalculationsAndCharts!$A63+$A$11,IF($C$7,8,0),1,1) -> 124.31 | V63: =OFFSET(InputIndexData!F$15,CalculationsAndCharts!$A63+$A$11,IF($C$7,8,0),1,1) -> 125.46 | AE63: 85.3 | AF63: 72.21 | AG63: 13.09 | AH63: 34.30099312 | AI63: 129.41 | AJ63: 117.66 | AK63: 11.75 | AL63: 66.38297872 | AM63: -32.0819856 | AN63: 15.11868413 | AO63: -73.41915974 | AP63: 88.53784387 | AQ63: 46.68870658 | AS63: 10 | AT63: 50 | AU63: TRUE | AV63: FALSE | AW63: 81.1 | AX63: FALSE | AY63: FALSE | AZ63: FALSE | BA63: 0 | BB63: 0 | BC63: FALSE | BD63: FALSE | BE63: FALSE | BF63: FALSE | BG63: 0 | BH63: 0 | BI63: 5371.52 | BJ63: 0.001959503592 | BK63: 0.004564016334 | BL63: 124.949 | BM63: FALSE | BN63: 0 | BO63: 0 | BP63: 0.01844518998 | BQ63: 0.007607894551 | BR63: FALSE | BS63: 0 | BT63: 0 | BU63: -2496.61 | BV63: 2874.91
A64: 32 | B64: =OFFSET(InputPriceData!B$15,CalculationsAndCharts!$A64+$A$11,0,1,1) -> 2011-05-25 | C64: =OFFSET(InputPriceData!G$15,CalculationsAndCharts!$A64+$A$11,IF($C$7,8,0),1,1) -> 3119900 | D64: =OFFSET(InputPriceData!C$15,CalculationsAndCharts!$A64+$A$11,IF($C$7,8,0),1,1) -> 76.55 | E64: =OFFSET(InputPriceData!D$15,CalculationsAndCharts!$A64+$A$11,IF($C$7,8,0),1,1) -> 76.79 | F64: =OFFSET(InputPriceData!E$15,CalculationsAndCharts!$A64+$A$11,IF($C$7,8,0),1,1) -> 75.29 | G64: =OFFSET(InputPriceData!F$15,CalculationsAndCharts!$A64+$A$11,IF($C$7,8,0),1,1) -> 76.55 | H64: FALSE | J64: FALSE | K64: FALSE | M64: FALSE | O64: FALSE | P64: FALSE | R64: =OFFSET(InputIndexData!$B$15,CalculationsAndCharts!$A64+$A$11,0,1,1) -> 2011-05-25 | S64: =OFFSET(InputIndexData!C$15,CalculationsAndCharts!$A64+$A$11,IF($C$7,8,0),1,1) -> 124.89 | T64: =OFFSET(InputIndexData!D$15,CalculationsAndCharts!$A64+$A$11,IF($C$7,8,0),1,1) -> 125.41 | U64: =OFFSET(InputIndexData!E$15,CalculationsAndCharts!$A64+$A$11,IF($C$7,8,0),1,1) -> 123.94 | V64: =OFFSET(InputIndexData!F$15,CalculationsAndCharts!$A64+$A$11,IF($C$7,8,0),1,1) -> 124.89 | AE64: 85.3 | AF64: 72.21 | AG64: 13.09 | AH64: 33.15508021 | AI64: 129.41 | AJ64: 117.66 | AK64: 11.75 | AL64: 61.53191489 | AM64: -28.37683468 | AN64: 15.11868413 | AO64: -73.41915974 | AP64: 88.53784387 | AQ64: 50.8735283 | AS64: 10 | AT64: 50 | AU64: TRUE | AV64: FALSE | AW64: 81.1 | AX64: FALSE | AY64: TRUE | AZ64: FALSE | BA64: 0 | BB64: 0 | BC64: FALSE | BD64: FALSE | BE64: FALSE | BF64: FALSE | BG64: 0 | BH64: 0 | BI64: 5371.52 | BJ64: 0.01029431173 | BK64: 0.003374307062 | BL64: 124.912 | BM64: FALSE | BN64: 0 | BO64: 0 | BP64: 0.01844122185 | BQ64: 0.007591933888 | BR64: FALSE | BS64: 0 | BT64: 0 | BU64: -2496.61 | BV64: 2874.91
A65: 33 | B65: =OFFSET(InputPriceData!B$15,CalculationsAndCharts!$A65+$A$11,0,1,1) -> 2011-05-24 | C65: =OFFSET(InputPriceData!G$15,CalculationsAndCharts!$A65+$A$11,IF($C$7,8,0),1,1) -> 2914200 | D65: =OFFSET(InputPriceData!C$15,CalculationsAndCharts!$A65+$A$11,IF($C$7,8,0),1,1) -> 75.43 | E65: =OFFSET(InputPriceData!D$15,CalculationsAndCharts!$A65+$A$11,IF($C$7,8,0),1,1) -> 76.75 | F65: =OFFSET(InputPriceData!E$15,CalculationsAndCharts!$A65+$A$11,IF($C$7,8,0),1,1) -> 75.33 | G65: =OFFSET(InputPriceData!F$15,CalculationsAndCharts!$A65+$A$11,IF($C$7,8,0),1,1) -> 75.77 | H65: FALSE | J65: FALSE | K65: FALSE | M65: FALSE | O65: FALSE | P65: FALSE | R65: =OFFSET(InputIndexData!$B$15,CalculationsAndCharts!$A65+$A$11,0,1,1) -> 2011-05-24 | S65: =OFFSET(InputIndexData!C$15,CalculationsAndCharts!$A65+$A$11,IF($C$7,8,0),1,1) -> 124.93 | T65: =OFFSET(InputIndexData!D$15,CalculationsAndCharts!$A65+$A$11,IF($C$7,8,0),1,1) -> 125.21 | U65: =OFFSET(InputIndexData!E$15,CalculationsAndCharts!$A65+$A$11,IF($C$7,8,0),1,1) -> 124.23 | V65: =OFFSET(InputIndexData!F$15,CalculationsAndCharts!$A65+$A$11,IF($C$7,8,0),1,1) -> 124.47 | AE65: 85.41 | AF65: 72.21 | AG65: 13.2 | AH65: 26.96969697 | AI65: 129.41 | AJ65: 117.66 | AK65: 11.75 | AL65: 57.95744681 | AM65: -30.98774984 | AN65: 15.11868413 | AO65: -73.41915974 | AP65: 88.53784387 | AQ65: 47.92460268 | AS65: 10 | AT65: 50 | AU65: TRUE | AV65: FALSE | AW65: 81.1 | AX65: FALSE | AY65: FALSE | AZ65: FALSE | BA65: 0 | BB65: 0 | BC65: FALSE | BD65: FALSE | BE65: FALSE | BF65: FALSE | BG65: 0 | BH65: 0 | BI65: 5371.52 | BJ65: 0.0163648558 | BK65: -0.0008027614996 | BL65: 124.88 | BM65: FALSE | BN65: 0 | BO65: 0 | BP65: 0.01867930474 | BQ65: 0.00788559964 | BR65: FALSE | BS65: 0 | BT65: 0 | BU65: -2496.61 | BV65: 2874.91
A66: 34 | B66: =OFFSET(InputPriceData!B$15,CalculationsAndCharts!$A66+$A$11,0,1,1) -> 2011-05-23 | C66: =OFFSET(InputPriceData!G$15,CalculationsAndCharts!$A66+$A$11,IF($C$7,8,0),1,1) -> 3082800 | D66: =OFFSET(InputPriceData!C$15,CalculationsAndCharts!$A66+$A$11,IF($C$7,8,0),1,1) -> 74.6 | E66: =OFFSET(InputPriceData!D$15,CalculationsAndCharts!$A66+$A$11,IF($C$7,8,0),1,1) -> 75.14 | F66: =OFFSET(InputPriceData!E$15,CalculationsAndCharts!$A66+$A$11,IF($C$7,8,0),1,1) -> 74.12 | G66: =OFFSET(InputPriceData!F$15,CalculationsAndCharts!$A66+$A$11,IF($C$7,8,0),1,1) -> 74.55 | H66: FALSE | J66: FALSE | K66: FALSE | M66: FALSE | O66: FALSE | P66: FALSE | R66: =OFFSET(InputIndexData!$B$15,CalculationsAndCharts!$A66+$A$11,0,1,1) -> 2011-05-23 | S66: =OFFSET(InputIndexData!C$15,CalculationsAndCharts!$A66+$A$11,IF($C$7,8,0),1,1) -> 124.49 | T66: =OFFSET(InputIndexData!D$15,CalculationsAndCharts!$A66+$A$11,IF($C$7,8,0),1,1) -> 125.19 | U66: =OFFSET(InputIndexData!E$15,CalculationsAndCharts!$A66+$A$11,IF($C$7,8,0),1,1) -> 124.13 | V66: =OFFSET(InputIndexData!F$15,CalculationsAndCharts!$A66+$A$11,IF($C$7,8,0),1,1) -> 124.57 | AE66: 85.41 | AF66: 72.21 | AG66: 13.2 | AH66: 17.72727273 | AI66: 129.41 | AJ66: 117.66 | AK66: 11.75 | AL66: 58.80851064 | AM66: -41.08123791 | AN66: 15.11868413 | AO66: -73.41915974 | AP66: 88.53784387 | AQ66: 36.5244063 | AS66: 10 | AT66: 50 | AU66: TRUE | AV66: FALSE | AW66: 81.1 | AX66: FALSE | AY66: FALSE | AZ66: FALSE | BA66: 0 | BB66: 0 | BC66: FALSE | BD66: FALSE | BE66: FALSE | BF66: FALSE | BG66: 0 | BH66: 0 | BI66: 5371.52 | BJ66: -0.02216684155 | BK66: -0.01166296414 | BL66: 124.8898333 | BM66: FALSE | BN66: 0 | BO66: 0 | BP66: 0.01888222811 | BQ66: 0.007925221265 | BR66: FALSE | BS66: 0 | BT66: 0 | BU66: -2496.61 | BV66: 2874.91
A67: 35 | B67: =OFFSET(InputPriceData!B$15,CalculationsAndCharts!$A67+$A$11,0,1,1) -> 2011-05-20 | C67: =OFFSET(InputPriceData!G$15,CalculationsAndCharts!$A67+$A$11,IF($C$7,8,0),1,1) -> 4067300 | D67: =OFFSET(InputPriceData!C$15,CalculationsAndCharts!$A67+$A$11,IF($C$7,8,0),1,1) -> 75.97 | E67: =OFFSET(InputPriceData!D$15,CalculationsAndCharts!$A67+$A$11,IF($C$7,8,0),1,1) -> 76.9 | F67: =OFFSET(InputPriceData!E$15,CalculationsAndCharts!$A67+$A$11,IF($C$7,8,0),1,1) -> 75.43 | G67: =OFFSET(InputPriceData!F$15,CalculationsAndCharts!$A67+$A$11,IF($C$7,8,0),1,1) -> 76.24 | H67: FALSE | J67: FALSE | K67: FALSE | M67: FALSE | O67: FALSE | P67: FALSE | R67: =OFFSET(InputIndexData!$B$15,CalculationsAndCharts!$A67+$A$11,0,1,1) -> 2011-05-20 | S67: =OFFSET(InputIndexData!C$15,CalculationsAndCharts!$A67+$A$11,IF($C$7,8,0),1,1) -> 126.72 | T67: =OFFSET(InputIndexData!D$15,CalculationsAndCharts!$A67+$A$11,IF($C$7,8,0),1,1) -> 127.05 | U67: =OFFSET(InputIndexData!E$15,CalculationsAndCharts!$A67+$A$11,IF($C$7,8,0),1,1) -> 125.8 | V67: =OFFSET(InputIndexData!F$15,CalculationsAndCharts!$A67+$A$11,IF($C$7,8,0),1,1) -> 126.04 | AE67: 85.41 | AF67: 72.21 | AG67: 13.2 | AH67: 30.53030303 | AI67: 129.41 | AJ67: 117.66 | AK67: 11.75 | AL67: 71.31914894 | AM67: -40.78884591 | AN67: 15.11868413 | AO67: -73.41915974 | AP67: 88.53784387 | AQ67: 36.85465153 | AS67: 10 | AT67: 50 | AU67: TRUE | AV67: FALSE | AW67: 81.1 | AX67: FALSE | AY67: FALSE | AZ67: FALSE | BA67: 0 | BB67: 0 | BC67: FALSE | BD67: FALSE | BE67: FALSE | BF67: FALSE | BG67: 0 | BH67: 0 | BI67: 5371.52 | BJ67: -0.001963607802 | BK67: -0.007949626131 | BL67: 124.8851667 | BM67: FALSE | BN67: 0 | BO67: 0 | BP67: 0.0187776476 | BQ67: 0.007891239281 | BR67: FALSE | BS67: 0 | BT67: 0 | BU67: -2496.61 | BV67: 2874.91
A68: 36 | B68: =OFFSET(InputPriceData!B$15,CalculationsAndCharts!$A68+$A$11,0,1,1) -> 2011-05-19 | C68: =OFFSET(InputPriceData!G$15,CalculationsAndCharts!$A68+$A$11,IF($C$7,8,0),1,1) -> 3748300 | D68: =OFFSET(InputPriceData!C$15,CalculationsAndCharts!$A68+$A$11,IF($C$7,8,0),1,1) -> 76.34 | E68: =OFFSET(InputPriceData!D$15,CalculationsAndCharts!$A68+$A$11,IF($C$7,8,0),1,1) -> 76.77 | F68: =OFFSET(InputPriceData!E$15,CalculationsAndCharts!$A68+$A$11,IF($C$7,8,0),1,1) -> 75.33 | G68: =OFFSET(InputPriceData!F$15,CalculationsAndCharts!$A68+$A$11,IF($C$7,8,0),1,1) -> 76.39 | H68: FALSE | J68: FALSE | K68: FALSE | M68: FALSE | O68: FALSE | P68: FALSE | R68: =OFFSET(InputIndexData!$B$15,CalculationsAndCharts!$A68+$A$11,0,1,1) -> 2011-05-19 | S68: =OFFSET(InputIndexData!C$15,CalculationsAndCharts!$A68+$A$11,IF($C$7,8,0),1,1) -> 127.16 | T68: =OFFSET(InputIndexData!D$15,CalculationsAndCharts!$A68+$A$11,IF($C$7,8,0),1,1) -> 127.38 | U68: =OFFSET(InputIndexData!E$15,CalculationsAndCharts!$A68+$A$11,IF($C$7,8,0),1,1) -> 126.35 | V68: =OFFSET(InputIndexData!F$15,CalculationsAndCharts!$A68+$A$11,IF($C$7,8,0),1,1) -> 127.05 | AE68: 85.41 | AF68: 72.21 | AG68: 13.2 | AH68: 31.66666667 | AI68: 129.41 | AJ68: 117.66 | AK68: 11.75 | AL68: 79.91489362 | AM68: -48.24822695 | AN68: 15.11868413 | AO68: -73.41915974 | AP68: 88.53784387 | AQ68: 28.42957507 | AS68: 10 | AT68: 50 | AU68: TRUE | AV68: FALSE | AW68: 81.1 | AX68: FALSE | AY68: FALSE | AZ68: FALSE | BA68: 0 | BB68: 0 | BC68: FALSE | BD68: FALSE | BE68: FALSE | BF68: FALSE | BG68: 0 | BH68: 0 | BI68: 5371.52 | BJ68: 0.01152012712 | BK68: 0.002445952343 | BL68: 124.834 | BM68: FALSE | BN68: 0 | BO68: 0 | BP68: 0.01885487455 | BQ68: 0.00781705922 | BR68: FALSE | BS68: 0 | BT68: 0 | BU68: -2496.61 | BV68: 2874.91
A69: 37 | B69: =OFFSET(InputPriceData!B$15,CalculationsAndCharts!$A69+$A$11,0,1,1) -> 2011-05-18 | C69: =OFFSET(InputPriceData!G$15,CalculationsAndCharts!$A69+$A$11,IF($C$7,8,0),1,1) -> 3852600 | D69: =OFFSET(InputPriceData!C$15,CalculationsAndCharts!$A69+$A$11,IF($C$7,8,0),1,1) -> 74.04 | E69: =OFFSET(InputPriceData!D$15,CalculationsAndCharts!$A69+$A$11,IF($C$7,8,0),1,1) -> 76.27 | F69: =OFFSET(InputPriceData!E$15,CalculationsAndCharts!$A69+$A$11,IF($C$7,8,0),1,1) -> 73.66 | G69: =OFFSET(InputPriceData!F$15,CalculationsAndCharts!$A69+$A$11,IF($C$7,8,0),1,1) -> 75.52 | H69: FALSE | J69: FALSE | K69: FALSE | M69: FALSE | O69: FALSE | P69: TRUE | Q69: 125.68 | R69: =OFFSET(InputIndexData!$B$15,CalculationsAndCharts!$A69+$A$11,0,1,1) -> 2011-05-18 | S69: =OFFSET(InputIndexData!C$15,CalculationsAndCharts!$A69+$A$11,IF($C$7,8,0),1,1) -> 125.68 | T69: =OFFSET(InputIndexData!D$15,CalculationsAndCharts!$A69+$A$11,IF($C$7,8,0),1,1) -> 126.87 | U69: =OFFSET(InputIndexData!E$15,CalculationsAndCharts!$A69+$A$11,IF($C$7,8,0),1,1) -> 125.41 | V69: =OFFSET(InputIndexData!F$15,CalculationsAndCharts!$A69+$A$11,IF($C$7,8,0),1,1) -> 126.74 | AD69: 125.68 | AE69: 85.41 | AF69: 72.21 | AG69: 13.2 | AH69: 25.07575758 | AI69: 129.41 | AJ69: 117.66 | AK69: 11.75 | AL69: 77.27659574 | AM69: -52.20083817 | AN69: 15.11868413 | AO69: -73.41915974 | AP69: 88.53784387 | AQ69: 23.96525671 | AS69: 10 | AT69: 50 | AU69: TRUE | AV69: FALSE | AW69: 81.1 | AX69: FALSE | AY69: FALSE | AZ69: FALSE | BA69: 0 | BB69: 0 | BC69: FALSE | BD69: FALSE | BE69: FALSE | BF69: FALSE | BG69: 0 | BH69: 0 | BI69: 5371.52 | BJ69: 0.02289042395 | BK69: 0.008915777742 | BL69: 124.7675 | BM69: FALSE | BN69: 0 | BO69: 0 | BP69: 0.01998064175 | BQ69: 0.007859713952 | BR69: FALSE | BS69: -89.6 | BT69: 8 | BU69: -2496.61 | BV69: 2874.91
A70: 38 | B70: =OFFSET(InputPriceData!B$15,CalculationsAndCharts!$A70+$A$11,0,1,1) -> 2011-05-17 | C70: =OFFSET(InputPriceData!G$15,CalculationsAndCharts!$A70+$A$11,IF($C$7,8,0),1,1) -> 3684100 | D70: =OFFSET(InputPriceData!C$15,CalculationsAndCharts!$A70+$A$11,IF($C$7,8,0),1,1) -> 72.68 | E70: =OFFSET(InputPriceData!D$15,CalculationsAndCharts!$A70+$A$11,IF($C$7,8,0),1,1) -> 73.96 | F70: =OFFSET(InputPriceData!E$15,CalculationsAndCharts!$A70+$A$11,IF($C$7,8,0),1,1) -> 72.21 | G70: =OFFSET(InputPriceData!F$15,CalculationsAndCharts!$A70+$A$11,IF($C$7,8,0),1,1) -> 73.83 | H70: FALSE | J70: FALSE | K70: TRUE | L70: 72.68 | M70: TRUE | N70: 125.17 | O70: TRUE | P70: FALSE | R70: =OFFSET(InputIndexData!$B$15,CalculationsAndCharts!$A70+$A$11,0,1,1) -> 2011-05-17 | S70: =OFFSET(InputIndexData!C$15,CalculationsAndCharts!$A70+$A$11,IF($C$7,8,0),1,1) -> 125.17 | T70: =OFFSET(InputIndexData!D$15,CalculationsAndCharts!$A70+$A$11,IF($C$7,8,0),1,1) -> 125.79 | U70: =OFFSET(InputIndexData!E$15,CalculationsAndCharts!$A70+$A$11,IF($C$7,8,0),1,1) -> 124.63 | V70: =OFFSET(InputIndexData!F$15,CalculationsAndCharts!$A70+$A$11,IF($C$7,8,0),1,1) -> 125.62 | Z70: 130.8 | AB70: 72.68 | AC70: 125.17 | AE70: 85.41 | AF70: 72.21 | AG70: 13.2 | AH70: 12.27272727 | AI70: 129.41 | AJ70: 117.66 | AK70: 11.75 | AL70: 67.74468085 | AM70: -55.47195358 | AN70: 15.11868413 | AO70: -73.41915974 | AP70: 88.53784387 | AQ70: 20.27066097 | AS70: 10 | AT70: 50 | AU70: TRUE | AV70: FALSE | AW70: 81.1 | AX70: FALSE | AY70: FALSE | AZ70: FALSE | BA70: 0 | BB70: 0 | BC70: FALSE | BD70: FALSE | BE70: FALSE | BF70: FALSE | BG70: 54.4 | BH70: 8 | BI70: 5371.52 | BJ70: 0.01164702658 | BK70: -0.0001591849729 | BL70: 124.7188333 | BM70: FALSE | BN70: -1 | BO70: 80 | BP70: 0.02071558942 | BQ70: 0.008207099053 | BR70: TRUE | BS70: 0 | BT70: 8 | BU70: -2399.01 | BV70: 2972.51
A71: 39 | B71: =OFFSET(InputPriceData!B$15,CalculationsAndCharts!$A71+$A$11,0,1,1) -> 2011-05-16 | C71: =OFFSET(InputPriceData!G$15,CalculationsAndCharts!$A71+$A$11,IF($C$7,8,0),1,1) -> 3625400 | D71: =OFFSET(InputPriceData!C$15,CalculationsAndCharts!$A71+$A$11,IF($C$7,8,0),1,1) -> 73.73 | E71: =OFFSET(InputPriceData!D$15,CalculationsAndCharts!$A71+$A$11,IF($C$7,8,0),1,1) -> 74.95 | F71: =OFFSET(InputPriceData!E$15,CalculationsAndCharts!$A71+$A$11,IF($C$7,8,0),1,1) -> 72.75 | G71: =OFFSET(InputPriceData!F$15,CalculationsAndCharts!$A71+$A$11,IF($C$7,8,0),1,1) -> 72.98 | H71: FALSE | J71: TRUE | K71: FALSE | M71: FALSE | O71: FALSE | P71: FALSE | R71: =OFFSET(InputIndexData!$B$15,CalculationsAndCharts!$A71+$A$11,0,1,1) -> 2011-05-16 | S71: =OFFSET(InputIndexData!C$15,CalculationsAndCharts!$A71+$A$11,IF($C$7,8,0),1,1) -> 125.99 | T71: =OFFSET(InputIndexData!D$15,CalculationsAndCharts!$A71+$A$11,IF($C$7,8,0),1,1) -> 126.98 | U71: =OFFSET(InputIndexData!E$15,CalculationsAndCharts!$A71+$A$11,IF($C$7,8,0),1,1) -> 125.43 | V71: =OFFSET(InputIndexData!F$15,CalculationsAndCharts!$A71+$A$11,IF($C$7,8,0),1,1) -> 125.64 | Y71: 87.5 | AE71: 85.41 | AF71: 72.75 | AG71: 12.66 | AH71: 1.816745656 | AI71: 129.41 | AJ71: 117.66 | AK71: 11.75 | AL71: 67.91489362 | AM71: -66.09814796 | AN71: 15.11868413 | AO71: -73.41915974 | AP71: 88.53784387 | AQ71: 8.268793835 | AS71: 10 | AT71: 50 | AU71: TRUE | AV71: FALSE | AW71: 81.1 | AX71: TRUE | AY71: FALSE | AZ71: FALSE | BA71: 1 | BB71: 64 | BC71: FALSE | BD71: FALSE | BE71: TRUE | BF71: TRUE | BG71: -74.24 | BH71: 0 | BI71: 5325.12 | BJ71: -0.01564607499 | BK71: -0.006327111674 | BL71: 124.7311667 | BM71: TRUE | BN71: 0 | BO71: 80 | BP71: 0.02070217105 | BQ71: 0.008211937767 | BR71: FALSE | BS71: 0 | BT71: 0 | BU71: -2391.01 | BV71: 2934.11
A72: 40 | B72: =OFFSET(InputPriceData!B$15,CalculationsAndCharts!$A72+$A$11,0,1,1) -> 2011-05-13 | C72: =OFFSET(InputPriceData!G$15,CalculationsAndCharts!$A72+$A$11,IF($C$7,8,0),1,1) -> 3260400 | D72: =OFFSET(InputPriceData!C$15,CalculationsAndCharts!$A72+$A$11,IF($C$7,8,0),1,1) -> 75.49 | E72: =OFFSET(InputPriceData!D$15,CalculationsAndCharts!$A72+$A$11,IF($C$7,8,0),1,1) -> 75.66 | F72: =OFFSET(InputPriceData!E$15,CalculationsAndCharts!$A72+$A$11,IF($C$7,8,0),1,1) -> 73.83 | G72: =OFFSET(InputPriceData!F$15,CalculationsAndCharts!$A72+$A$11,IF($C$7,8,0),1,1) -> 74.14 | H72: FALSE | J72: TRUE | K72: FALSE | M72: FALSE | O72: FALSE | P72: FALSE | R72: =OFFSET(InputIndexData!$B$15,CalculationsAndCharts!$A72+$A$11,0,1,1) -> 2011-05-13 | S72: =OFFSET(InputIndexData!C$15,CalculationsAndCharts!$A72+$A$11,IF($C$7,8,0),1,1) -> 127.49 | T72: =OFFSET(InputIndexData!D$15,CalculationsAndCharts!$A72+$A$11,IF($C$7,8,0),1,1) -> 127.67 | U72: =OFFSET(InputIndexData!E$15,CalculationsAndCharts!$A72+$A$11,IF($C$7,8,0),1,1) -> 125.99 | V72: =OFFSET(InputIndexData!F$15,CalculationsAndCharts!$A72+$A$11,IF($C$7,8,0),1,1) -> 126.44 | Y72: 87.5 | AE72: 85.41 | AF72: 73.59 | AG72: 11.82 | AH72: 4.653130288 | AI72: 129.41 | AJ72: 117.66 | AK72: 11.75 | AL72: 74.72340426 | AM72: -70.07027397 | AN72: 15.11868413 | AO72: -73.41915974 | AP72: 88.53784387 | AQ72: 3.782434293 | AS72: 10 | AT72: 50 | AU72: TRUE | AV72: FALSE | AW72: 81.1 | AX72: TRUE | AY72: FALSE | AZ72: FALSE | BA72: 1 | BB72: 64 | BC72: FALSE | BD72: FALSE | BE72: FALSE | BF72: FALSE | BG72: -37.76 | BH72: 0 | BI72: 5399.36 | BJ72: -0.007895088987 | BK72: -0.007691100298 | BL72: 124.7386667 | BM72: FALSE | BN72: 0 | BO72: 0 | BP72: 0.02063291047 | BQ72: 0.008179069259 | BR72: FALSE | BS72: 0 | BT72: 0 | BU72: -2391.01 | BV72: 3008.35
A73: 41 | B73: =OFFSET(InputPriceData!B$15,CalculationsAndCharts!$A73+$A$11,0,1,1) -> 2011-05-12 | C73: =OFFSET(InputPriceData!G$15,CalculationsAndCharts!$A73+$A$11,IF($C$7,8,0),1,1) -> 4318700 | D73: =OFFSET(InputPriceData!C$15,CalculationsAndCharts!$A73+$A$11,IF($C$7,8,0),1,1) -> 74.88 | E73: =OFFSET(InputPriceData!D$15,CalculationsAndCharts!$A73+$A$11,IF($C$7,8,0),1,1) -> 75.67 | F73: =OFFSET(InputPriceData!E$15,CalculationsAndCharts!$A73+$A$11,IF($C$7,8,0),1,1) -> 73.59 | G73: =OFFSET(InputPriceData!F$15,CalculationsAndCharts!$A73+$A$11,IF($C$7,8,0),1,1) -> 74.73 | H73: FALSE | J73: TRUE | K73: FALSE | M73: FALSE | O73: FALSE | P73: FALSE | R73: =OFFSET(InputIndexData!$B$15,CalculationsAndCharts!$A73+$A$11,0,1,1) -> 2011-05-12 | S73: =OFFSET(InputIndexData!C$15,CalculationsAndCharts!$A73+$A$11,IF($C$7,8,0),1,1) -> 126.48 | T73: =OFFSET(InputIndexData!D$15,CalculationsAndCharts!$A73+$A$11,IF($C$7,8,0),1,1) -> 127.68 | U73: =OFFSET(InputIndexData!E$15,CalculationsAndCharts!$A73+$A$11,IF($C$7,8,0),1,1) -> 125.83 | V73: =OFFSET(InputIndexData!F$15,CalculationsAndCharts!$A73+$A$11,IF($C$7,8,0),1,1) -> 127.42 | Y73: 87.5 | AE73: 85.41 | AF73: 73.59 | AG73: 11.82 | AH73: 9.644670051 | AI73: 129.41 | AJ73: 117.66 | AK73: 11.75 | AL73: 83.06382979 | AM73: -73.41915974 | AN73: 15.11868413 | AO73: -73.41915974 | AP73: 88.53784387 | AQ73: 0 | AS73: 10 | AT73: 50 | AU73: TRUE | AV73: FALSE | AW73: 81.1 | AX73: TRUE | AY73: FALSE | AZ73: FALSE | BA73: 1 | BB73: 64 | BC73: FALSE | BD73: FALSE | BE73: FALSE | BF73: FALSE | BG73: -42.88 | BH73: 0 | BI73: 5437.12 | BJ73: -0.008885941645 | BK73: 0.004731114966 | BL73: 124.7266667 | BM73: FALSE | BN73: 0 | BO73: 0 | BP73: 0.02106993224 | BQ73: 0.008152487784 | BR73: FALSE | BS73: 0 | BT73: 0 | BU73: -2391.01 | BV73: 3046.11
A74: 42 | B74: =OFFSET(InputPriceData!B$15,CalculationsAndCharts!$A74+$A$11,0,1,1) -> 2011-05-11 | C74: =OFFSET(InputPriceData!G$15,CalculationsAndCharts!$A74+$A$11,IF($C$7,8,0),1,1) -> 3870700 | D74: =OFFSET(InputPriceData!C$15,CalculationsAndCharts!$A74+$A$11,IF($C$7,8,0),1,1) -> 77.43 | E74: =OFFSET(InputPriceData!D$15,CalculationsAndCharts!$A74+$A$11,IF($C$7,8,0),1,1) -> 77.43 | F74: =OFFSET(InputPriceData!E$15,CalculationsAndCharts!$A74+$A$11,IF($C$7,8,0),1,1) -> 75.09 | G74: =OFFSET(InputPriceData!F$15,CalculationsAndCharts!$A74+$A$11,IF($C$7,8,0),1,1) -> 75.4 | H74: FALSE | J74: TRUE | K74: FALSE | M74: FALSE | O74: FALSE | P74: FALSE | R74: =OFFSET(InputIndexData!$B$15,CalculationsAndCharts!$A74+$A$11,0,1,1) -> 2011-05-11 | S74: =OFFSET(InputIndexData!C$15,CalculationsAndCharts!$A74+$A$11,IF($C$7,8,0),1,1) -> 127.98 | T74: =OFFSET(InputIndexData!D$15,CalculationsAndCharts!$A74+$A$11,IF($C$7,8,0),1,1) -> 128 | U74: =OFFSET(InputIndexData!E$15,CalculationsAndCharts!$A74+$A$11,IF($C$7,8,0),1,1) -> 126.24 | V74: =OFFSET(InputIndexData!F$15,CalculationsAndCharts!$A74+$A$11,IF($C$7,8,0),1,1) -> 126.82 | Y74: 87.5 | AE74: 85.41 | AF74: 73.92 | AG74: 11.49 | AH74: 12.88076588 | AI74: 129.41 | AJ74: 117.66 | AK74: 11.75 | AL74: 77.95744681 | AM74: -65.07668093 | AN74: 15.11868413 | AO74: -70.04647514 | AP74: 85.16515928 | AQ74: 5.835478101 | AS74: 10 | AT74: 50 | AU74: TRUE | AV74: FALSE | AW74: 81.1 | AX74: TRUE | AY74: FALSE | AZ74: FALSE | BA74: 1 | BB74: 64 | BC74: FALSE | BD74: FALSE | BE74: FALSE | BF74: FALSE | BG74: -163.2 | BH74: 0 | BI74: 5480 | BJ74: -0.03271327774 | BK74: -0.01053288601 | BL74: 124.6851667 | BM74: FALSE | BN74: 0 | BO74: 0 | BP74: 0.02111078756 | BQ74: 0.008144264269 | BR74: FALSE | BS74: 0 | BT74: 0 | BU74: -2391.01 | BV74: 3088.99
A75: 43 | B75: =OFFSET(InputPriceData!B$15,CalculationsAndCharts!$A75+$A$11,0,1,1) -> 2011-05-10 | C75: =OFFSET(InputPriceData!G$15,CalculationsAndCharts!$A75+$A$11,IF($C$7,8,0),1,1) -> 4295800 | D75: =OFFSET(InputPriceData!C$15,CalculationsAndCharts!$A75+$A$11,IF($C$7,8,0),1,1) -> 78.08 | E75: =OFFSET(InputPriceData!D$15,CalculationsAndCharts!$A75+$A$11,IF($C$7,8,0),1,1) -> 78.4 | F75: =OFFSET(InputPriceData!E$15,CalculationsAndCharts!$A75+$A$11,IF($C$7,8,0),1,1) -> 76.76 | G75: =OFFSET(InputPriceData!F$15,CalculationsAndCharts!$A75+$A$11,IF($C$7,8,0),1,1) -> 77.95 | H75: FALSE | J75: TRUE | K75: FALSE | M75: FALSE | O75: FALSE | P75: FALSE | R75: =OFFSET(InputIndexData!$B$15,CalculationsAndCharts!$A75+$A$11,0,1,1) -> 2011-05-10 | S75: =OFFSET(InputIndexData!C$15,CalculationsAndCharts!$A75+$A$11,IF($C$7,8,0),1,1) -> 127.51 | T75: =OFFSET(InputIndexData!D$15,CalculationsAndCharts!$A75+$A$11,IF($C$7,8,0),1,1) -> 128.4 | U75: =OFFSET(InputIndexData!E$15,CalculationsAndCharts!$A75+$A$11,IF($C$7,8,0),1,1) -> 127.35 | V75: =OFFSET(InputIndexData!F$15,CalculationsAndCharts!$A75+$A$11,IF($C$7,8,0),1,1) -> 128.17 | Y75: 87.5 | AE75: 85.41 | AF75: 73.92 | AG75: 11.49 | AH75: 35.07397737 | AI75: 129.41 | AJ75: 117.66 | AK75: 11.75 | AL75: 89.44680851 | AM75: -54.37283114 | AN75: 15.11868413 | AO75: -70.04647514 | AP75: 85.16515928 | AQ75: 18.40382163 | AS75: 10 | AT75: 50 | AU75: TRUE | AV75: FALSE | AW75: 81.1 | AX75: FALSE | AY75: FALSE | AZ75: FALSE | BA75: 1 | BB75: 64 | BC75: FALSE | BD75: FALSE | BE75: FALSE | BF75: FALSE | BG75: -17.28 | BH75: 0 | BI75: 5643.2 | BJ75: -0.003451802608 | BK75: 0.008577274158 | BL75: 124.6601667 | BM75: FALSE | BN75: 0 | BO75: 0 | BP75: 0.02088622318 | BQ75: 0.0080268112 | BR75: FALSE | BS75: 0 | BT75: 0 | BU75: -2391.01 | BV75: 3252.19
A76: 44 | B76: =OFFSET(InputPriceData!B$15,CalculationsAndCharts!$A76+$A$11,0,1,1) -> 2011-05-09 | C76: =OFFSET(InputPriceData!G$15,CalculationsAndCharts!$A76+$A$11,IF($C$7,8,0),1,1) -> 3865000 | D76: =OFFSET(InputPriceData!C$15,CalculationsAndCharts!$A76+$A$11,IF($C$7,8,0),1,1) -> 76.6 | E76: =OFFSET(InputPriceData!D$15,CalculationsAndCharts!$A76+$A$11,IF($C$7,8,0),1,1) -> 78.55 | F76: =OFFSET(InputPriceData!E$15,CalculationsAndCharts!$A76+$A$11,IF($C$7,8,0),1,1) -> 76.31 | G76: =OFFSET(InputPriceData!F$15,CalculationsAndCharts!$A76+$A$11,IF($C$7,8,0),1,1) -> 78.22 | H76: FALSE | J76: TRUE | K76: FALSE | M76: FALSE | O76: FALSE | P76: FALSE | R76: =OFFSET(InputIndexData!$B$15,CalculationsAndCharts!$A76+$A$11,0,1,1) -> 2011-05-09 | S76: =OFFSET(InputIndexData!C$15,CalculationsAndCharts!$A76+$A$11,IF($C$7,8,0),1,1) -> 126.58 | T76: =OFFSET(InputIndexData!D$15,CalculationsAndCharts!$A76+$A$11,IF($C$7,8,0),1,1) -> 127.45 | U76: =OFFSET(InputIndexData!E$15,CalculationsAndCharts!$A76+$A$11,IF($C$7,8,0),1,1) -> 126.38 | V76: =OFFSET(InputIndexData!F$15,CalculationsAndCharts!$A76+$A$11,IF($C$7,8,0),1,1) -> 127.08 | Y76: 87.5 | AE76: 85.41 | AF76: 73.92 | AG76: 11.49 | AH76: 37.42384682 | AI76: 129.41 | AJ76: 117.66 | AK76: 11.75 | AL76: 80.17021277 | AM76: -42.74636594 | AN76: 15.11868413 | AO76: -70.04647514 | AP76: 85.16515928 | AQ76: 32.0554901 | AS76: 10 | AT76: 50 | AU76: TRUE | AV76: FALSE | AW76: 81.1 | AX76: FALSE | AY76: FALSE | AZ76: FALSE | BA76: 1 | BB76: 64 | BC76: FALSE | BD76: FALSE | BE76: FALSE | BF76: FALSE | BG76: 155.52 | BH76: 0 | BI76: 5660.48 | BJ76: 0.03206227735 | BK76: 0.003870763883 | BL76: 124.6076667 | BM76: FALSE | BN76: 0 | BO76: 0 | BP76: 0.02091070569 | BQ76: 0.007989468854 | BR76: FALSE | BS76: 0 | BT76: 0 | BU76: -2391.01 | BV76: 3269.47
A77: 45 | B77: =OFFSET(InputPriceData!B$15,CalculationsAndCharts!$A77+$A$11,0,1,1) -> 2011-05-06 | C77: =OFFSET(InputPriceData!G$15,CalculationsAndCharts!$A77+$A$11,IF($C$7,8,0),1,1) -> 6059300 | D77: =OFFSET(InputPriceData!C$15,CalculationsAndCharts!$A77+$A$11,IF($C$7,8,0),1,1) -> 76.88 | E77: =OFFSET(InputPriceData!D$15,CalculationsAndCharts!$A77+$A$11,IF($C$7,8,0),1,1) -> 78.22 | F77: =OFFSET(InputPriceData!E$15,CalculationsAndCharts!$A77+$A$11,IF($C$7,8,0),1,1) -> 74.7 | G77: =OFFSET(InputPriceData!F$15,CalculationsAndCharts!$A77+$A$11,IF($C$7,8,0),1,1) -> 75.79 | H77: FALSE | J77: TRUE | K77: FALSE | M77: FALSE | O77: FALSE | P77: FALSE | R77: =OFFSET(InputIndexData!$B$15,CalculationsAndCharts!$A77+$A$11,0,1,1) -> 2011-05-06 | S77: =OFFSET(InputIndexData!C$15,CalculationsAndCharts!$A77+$A$11,IF($C$7,8,0),1,1) -> 127.29 | T77: =OFFSET(InputIndexData!D$15,CalculationsAndCharts!$A77+$A$11,IF($C$7,8,0),1,1) -> 127.94 | U77: =OFFSET(InputIndexData!E$15,CalculationsAndCharts!$A77+$A$11,IF($C$7,8,0),1,1) -> 126.1 | V77: =OFFSET(InputIndexData!F$15,CalculationsAndCharts!$A77+$A$11,IF($C$7,8,0),1,1) -> 126.59 | Y77: 87.5 | AE77: 85.41 | AF77: 73.92 | AG77: 11.49 | AH77: 16.27502176 | AI77: 129.41 | AJ77: 117.66 | AK77: 11.75 | AL77: 76 | AM77: -59.72497824 | AN77: 15.11868413 | AO77: -70.04647514 | AP77: 85.16515928 | AQ77: 12.11938895 | AS77: 10 | AT77: 50 | AU77: TRUE | AV77: FALSE | AW77: 81.1 | AX77: FALSE | AY77: FALSE | AZ77: FALSE | BA77: 1 | BB77: 64 | BC77: FALSE | BD77: FALSE | BE77: FALSE | BF77: FALSE | BG77: 58.88 | BH77: 0 | BI77: 5504.96 | BJ77: 0.01228796581 | BK77: 0.004363694065 | BL77: 124.561 | BM77: FALSE | BN77: 0 | BO77: 0 | BP77: 0.02058668338 | BQ77: 0.007976709448 | BR77: FALSE | BS77: 0 | BT77: 0 | BU77: -2391.01 | BV77: 3113.95
A78: 46 | B78: =OFFSET(InputPriceData!B$15,CalculationsAndCharts!$A78+$A$11,0,1,1) -> 2011-05-05 | C78: =OFFSET(InputPriceData!G$15,CalculationsAndCharts!$A78+$A$11,IF($C$7,8,0),1,1) -> 6960900 | D78: =OFFSET(InputPriceData!C$15,CalculationsAndCharts!$A78+$A$11,IF($C$7,8,0),1,1) -> 74.97 | E78: =OFFSET(InputPriceData!D$15,CalculationsAndCharts!$A78+$A$11,IF($C$7,8,0),1,1) -> 76.87 | F78: =OFFSET(InputPriceData!E$15,CalculationsAndCharts!$A78+$A$11,IF($C$7,8,0),1,1) -> 73.92 | G78: =OFFSET(InputPriceData!F$15,CalculationsAndCharts!$A78+$A$11,IF($C$7,8,0),1,1) -> 74.87 | H78: FALSE | J78: TRUE | K78: FALSE | M78: FALSE | O78: FALSE | P78: FALSE | R78: =OFFSET(InputIndexData!$B$15,CalculationsAndCharts!$A78+$A$11,0,1,1) -> 2011-05-05 | S78: =OFFSET(InputIndexData!C$15,CalculationsAndCharts!$A78+$A$11,IF($C$7,8,0),1,1) -> 126.48 | T78: =OFFSET(InputIndexData!D$15,CalculationsAndCharts!$A78+$A$11,IF($C$7,8,0),1,1) -> 127.3 | U78: =OFFSET(InputIndexData!E$15,CalculationsAndCharts!$A78+$A$11,IF($C$7,8,0),1,1) -> 125.48 | V78: =OFFSET(InputIndexData!F$15,CalculationsAndCharts!$A78+$A$11,IF($C$7,8,0),1,1) -> 126.04 | Y78: 87.5 | AE78: 85.41 | AF78: 73.92 | AG78: 11.49 | AH78: 8.268059182 | AI78: 129.41 | AJ78: 117.66 | AK78: 11.75 | AL78: 71.31914894 | AM78: -63.05108975 | AN78: 15.11868413 | AO78: -70.04647514 | AP78: 85.16515928 | AQ78: 8.213905134 | AS78: 10 | AT78: 50 | AU78: TRUE | AV78: FALSE | AW78: 81.1 | AX78: TRUE | AY78: FALSE | AZ78: FALSE | BA78: 1 | BB78: 64 | BC78: FALSE | BD78: FALSE | BE78: FALSE | BF78: FALSE | BG78: -56.96 | BH78: 0 | BI78: 5446.08 | BJ78: -0.01174762408 | BK78: -0.00904159132 | BL78: 124.5216667 | BM78: FALSE | BN78: 0 | BO78: 0 | BP78: 0.02089602539 | BQ78: 0.007966105941 | BR78: FALSE | BS78: 0 | BT78: 0 | BU78: -2391.01 | BV78: 3055.07
A79: 47 | B79: =OFFSET(InputPriceData!B$15,CalculationsAndCharts!$A79+$A$11,0,1,1) -> 2011-05-04 | C79: =OFFSET(InputPriceData!G$15,CalculationsAndCharts!$A79+$A$11,IF($C$7,8,0),1,1) -> 8071400 | D79: =OFFSET(InputPriceData!C$15,CalculationsAndCharts!$A79+$A$11,IF($C$7,8,0),1,1) -> 77.93 | E79: =OFFSET(InputPriceData!D$15,CalculationsAndCharts!$A79+$A$11,IF($C$7,8,0),1,1) -> 78 | F79: =OFFSET(InputPriceData!E$15,CalculationsAndCharts!$A79+$A$11,IF($C$7,8,0),1,1) -> 75.03 | G79: =OFFSET(InputPriceData!F$15,CalculationsAndCharts!$A79+$A$11,IF($C$7,8,0),1,1) -> 75.76 | H79: TRUE | I79: 77.93 | J79: TRUE | K79: FALSE | M79: FALSE | O79: FALSE | P79: FALSE | R79: =OFFSET(InputIndexData!$B$15,CalculationsAndCharts!$A79+$A$11,0,1,1) -> 2011-05-04 | S79: =OFFSET(InputIndexData!C$15,CalculationsAndCharts!$A79+$A$11,IF($C$7,8,0),1,1) -> 127.98 | T79: =OFFSET(InputIndexData!D$15,CalculationsAndCharts!$A79+$A$11,IF($C$7,8,0),1,1) -> 128.04 | U79: =OFFSET(InputIndexData!E$15,CalculationsAndCharts!$A79+$A$11,IF($C$7,8,0),1,1) -> 126.62 | V79: =OFFSET(InputIndexData!F$15,CalculationsAndCharts!$A79+$A$11,IF($C$7,8,0),1,1) -> 127.19 | Y79: 87.5 | AA79: 77.93 | AE79: 85.41 | AF79: 74.56 | AG79: 10.85 | AH79: 11.05990783 | AI79: 129.41 | AJ79: 117.66 | AK79: 11.75 | AL79: 81.10638298 | AM79: -70.04647514 | AN79: 15.11868413 | AO79: -70.04647514 | AP79: 85.16515928 | AQ79: 0 | AS79: 10 | AT79: 50 | AU79: TRUE | AV79: FALSE | AW79: 81.1 | AX79: TRUE | AY79: FALSE | AZ79: FALSE | BA79: 1 | BB79: 64 | BC79: FALSE | BD79: FALSE | BE79: FALSE | BF79: FALSE | BG79: 0 | BH79: 8 | BI79: 5503.04 | BJ79: -0.02996158771 | BK79: -0.006638550453 | BL79: 124.4961667 | BM79: FALSE | BN79: 0 | BO79: 0 | BP79: 0.02085858063 | BQ79: 0.00789170923 | BR79: FALSE | BS79: 0 | BT79: 0 | BU79: -2391.01 | BV79: 3112.03
A80: 48 | B80: =OFFSET(InputPriceData!B$15,CalculationsAndCharts!$A80+$A$11,0,1,1) -> 2011-05-03 | C80: =OFFSET(InputPriceData!G$15,CalculationsAndCharts!$A80+$A$11,IF($C$7,8,0),1,1) -> 5327500 | D80: =OFFSET(InputPriceData!C$15,CalculationsAndCharts!$A80+$A$11,IF($C$7,8,0),1,1) -> 81.1 | E80: =OFFSET(InputPriceData!D$15,CalculationsAndCharts!$A80+$A$11,IF($C$7,8,0),1,1) -> 81.24 | F80: =OFFSET(InputPriceData!E$15,CalculationsAndCharts!$A80+$A$11,IF($C$7,8,0),1,1) -> 77.85 | G80: =OFFSET(InputPriceData!F$15,CalculationsAndCharts!$A80+$A$11,IF($C$7,8,0),1,1) -> 78.1 | H80: FALSE | J80: FALSE | K80: FALSE | M80: FALSE | O80: FALSE | P80: FALSE | R80: =OFFSET(InputIndexData!$B$15,CalculationsAndCharts!$A80+$A$11,0,1,1) -> 2011-05-03 | S80: =OFFSET(InputIndexData!C$15,CalculationsAndCharts!$A80+$A$11,IF($C$7,8,0),1,1) -> 128.26 | T80: =OFFSET(InputIndexData!D$15,CalculationsAndCharts!$A80+$A$11,IF($C$7,8,0),1,1) -> 128.47 | U80: =OFFSET(InputIndexData!E$15,CalculationsAndCharts!$A80+$A$11,IF($C$7,8,0),1,1) -> 127.39 | V80: =OFFSET(InputIndexData!F$15,CalculationsAndCharts!$A80+$A$11,IF($C$7,8,0),1,1) -> 128.04 | AE80: 85.41 | AF80: 74.56 | AG80: 10.85 | AH80: 32.62672811 | AI80: 129.41 | AJ80: 117.66 | AK80: 11.75 | AL80: 88.34042553 | AM80: -55.71369742 | AN80: 15.11868413 | AO80: -60.72170585 | AP80: 75.84038998 | AQ80: 6.603352686 | AS80: 10 | AT80: 50 | AU80: TRUE | AV80: TRUE | AW80: 81.1 | AX80: TRUE | AY80: FALSE | AZ80: FALSE | BA80: 0 | BB80: 64 | BC80: FALSE | BD80: FALSE | BE80: FALSE | BF80: FALSE | BG80: 0 | BH80: 0 | BI80: 5511.04 | BJ80: -0.04464831804 | BK80: -0.003579766537 | BL80: 124.4421667 | BM80: FALSE | BN80: 0 | BO80: 0 | BP80: 0.0205558176 | BQ80: 0.007870923808 | BR80: FALSE | BS80: 0 | BT80: 0 | BU80: -2391.01 | BV80: 3120.03
A81: 49 | B81: =OFFSET(InputPriceData!B$15,CalculationsAndCharts!$A81+$A$11,0,1,1) -> 2011-05-02 | C81: =OFFSET(InputPriceData!G$15,CalculationsAndCharts!$A81+$A$11,IF($C$7,8,0),1,1) -> 4505700 | D81: =OFFSET(InputPriceData!C$15,CalculationsAndCharts!$A81+$A$11,IF($C$7,8,0),1,1) -> 84.32 | E81: =OFFSET(InputPriceData!D$15,CalculationsAndCharts!$A81+$A$11,IF($C$7,8,0),1,1) -> 84.32 | F81: =OFFSET(InputPriceData!E$15,CalculationsAndCharts!$A81+$A$11,IF($C$7,8,0),1,1) -> 81.22 | G81: =OFFSET(InputPriceData!F$15,CalculationsAndCharts!$A81+$A$11,IF($C$7,8,0),1,1) -> 81.75 | H81: FALSE | J81: FALSE | K81: TRUE | L81: 84.32 | M81: FALSE | O81: FALSE | P81: FALSE | R81: =OFFSET(InputIndexData!$B$15,CalculationsAndCharts!$A81+$A$11,0,1,1) -> 2011-05-02 | S81: =OFFSET(InputIndexData!C$15,CalculationsAndCharts!$A81+$A$11,IF($C$7,8,0),1,1) -> 129.3 | T81: =OFFSET(InputIndexData!D$15,CalculationsAndCharts!$A81+$A$11,IF($C$7,8,0),1,1) -> 129.41 | U81: =OFFSET(InputIndexData!E$15,CalculationsAndCharts!$A81+$A$11,IF($C$7,8,0),1,1) -> 128.25 | V81: =OFFSET(InputIndexData!F$15,CalculationsAndCharts!$A81+$A$11,IF($C$7,8,0),1,1) -> 128.5 | AB81: 84.32 | AE81: 85.41 | AF81: 74.56 | AG81: 10.85 | AH81: 66.26728111 | AI81: 129.41 | AJ81: 117.66 | AK81: 11.75 | AL81: 92.25531915 | AM81: -25.98803804 | AN81: 15.11868413 | AO81: -60.72170585 | AP81: 75.84038998 | AQ81: 45.79837711 | AS81: 10 | AT81: 50 | AU81: TRUE | AV81: FALSE | AW81: 82.15 | AX81: FALSE | AY81: FALSE | AZ81: FALSE | BA81: 0 | BB81: 0 | BC81: FALSE | BD81: FALSE | BE81: FALSE | BF81: FALSE | BG81: -145.7 | BH81: 8 | BI81: 5511.04 | BJ81: -0.02794292509 | BK81: -0.001554001554 | BL81: 124.3611667 | BM81: FALSE | BN81: 0 | BO81: 0 | BP81: 0.01976977594 | BQ81: 0.007856003464 | BR81: FALSE | BS81: 0 | BT81: 0 | BU81: -2391.01 | BV81: 3120.03
A82: 50 | B82: =OFFSET(InputPriceData!B$15,CalculationsAndCharts!$A82+$A$11,0,1,1) -> 2011-04-29 | C82: =OFFSET(InputPriceData!G$15,CalculationsAndCharts!$A82+$A$11,IF($C$7,8,0),1,1) -> 3772600 | D82: =OFFSET(InputPriceData!C$15,CalculationsAndCharts!$A82+$A$11,IF($C$7,8,0),1,1) -> 82.12 | E82: =OFFSET(InputPriceData!D$15,CalculationsAndCharts!$A82+$A$11,IF($C$7,8,0),1,1) -> 84.58 | F82: =OFFSET(InputPriceData!E$15,CalculationsAndCharts!$A82+$A$11,IF($C$7,8,0),1,1) -> 82.11 | G82: =OFFSET(InputPriceData!F$15,CalculationsAndCharts!$A82+$A$11,IF($C$7,8,0),1,1) -> 84.1 | H82: FALSE | J82: TRUE | K82: FALSE | M82: FALSE | O82: FALSE | P82: FALSE | R82: =OFFSET(InputIndexData!$B$15,CalculationsAndCharts!$A82+$A$11,0,1,1) -> 2011-04-29 | S82: =OFFSET(InputIndexData!C$15,CalculationsAndCharts!$A82+$A$11,IF($C$7,8,0),1,1) -> 128.45 | T82: =OFFSET(InputIndexData!D$15,CalculationsAndCharts!$A82+$A$11,IF($C$7,8,0),1,1) -> 128.83 | U82: =OFFSET(InputIndexData!E$15,CalculationsAndCharts!$A82+$A$11,IF($C$7,8,0),1,1) -> 128.28 | V82: =OFFSET(InputIndexData!F$15,CalculationsAndCharts!$A82+$A$11,IF($C$7,8,0),1,1) -> 128.7 | Y82: 87.5 | AE82: 85.41 | AF82: 74.56 | AG82: 10.85 | AH82: 87.92626728 | AI82: 128.83 | AJ82: 117.66 | AK82: 11.17 | AL82: 98.83616831 | AM82: -10.90990103 | AN82: 15.11868413 | AO82: -60.72170585 | AP82: 75.84038998 | AQ82: 65.67978466 | AS82: 10 | AT82: 50 | AU82: TRUE | AV82: FALSE | AW82: 82.15 | AX82: FALSE | AY82: TRUE | AZ82: FALSE | BA82: 1 | BB82: 62 | BC82: FALSE | BD82: TRUE | BE82: FALSE | BF82: TRUE | BG82: 122.14 | BH82: 0 | BI82: 5664.74 | BJ82: 0.02398636308 | BK82: 0.002414518265 | BL82: 124.2666667 | BM82: FALSE | BN82: 0 | BO82: 0 | BP82: 0.01946436017 | BQ82: 0.007852095635 | BR82: FALSE | BS82: 0 | BT82: 0 | BU82: -2391.01 | BV82: 3273.73
A83: 51 | B83: =OFFSET(InputPriceData!B$15,CalculationsAndCharts!$A83+$A$11,0,1,1) -> 2011-04-28 | C83: =OFFSET(InputPriceData!G$15,CalculationsAndCharts!$A83+$A$11,IF($C$7,8,0),1,1) -> 3340400 | D83: =OFFSET(InputPriceData!C$15,CalculationsAndCharts!$A83+$A$11,IF($C$7,8,0),1,1) -> 82.23 | E83: =OFFSET(InputPriceData!D$15,CalculationsAndCharts!$A83+$A$11,IF($C$7,8,0),1,1) -> 82.95 | F83: =OFFSET(InputPriceData!E$15,CalculationsAndCharts!$A83+$A$11,IF($C$7,8,0),1,1) -> 81.21 | G83: =OFFSET(InputPriceData!F$15,CalculationsAndCharts!$A83+$A$11,IF($C$7,8,0),1,1) -> 82.13 | H83: FALSE | J83: TRUE | K83: FALSE | M83: FALSE | O83: FALSE | P83: FALSE | R83: =OFFSET(InputIndexData!$B$15,CalculationsAndCharts!$A83+$A$11,0,1,1) -> 2011-04-28 | S83: =OFFSET(InputIndexData!C$15,CalculationsAndCharts!$A83+$A$11,IF($C$7,8,0),1,1) -> 127.75 | T83: =OFFSET(InputIndexData!D$15,CalculationsAndCharts!$A83+$A$11,IF($C$7,8,0),1,1) -> 128.56 | U83: =OFFSET(InputIndexData!E$15,CalculationsAndCharts!$A83+$A$11,IF($C$7,8,0),1,1) -> 127.73 | V83: =OFFSET(InputIndexData!F$15,CalculationsAndCharts!$A83+$A$11,IF($C$7,8,0),1,1) -> 128.39 | Y83: 87.5 | AE83: 85.41 | AF83: 74.56 | AG83: 10.85 | AH83: 69.76958525 | AI83: 128.56 | AJ83: 117.66 | AK83: 10.9 | AL83: 98.44036697 | AM83: -28.67078172 | AN83: 15.11868413 | AO83: -60.72170585 | AP83: 75.84038998 | AQ83: 42.26102231 | AS83: 10 | AT83: 50 | AU83: TRUE | AV83: FALSE | AW83: 82.15 | AX83: FALSE | AY83: FALSE | AZ83: FALSE | BA83: 1 | BB83: 62 | BC83: FALSE | BD83: FALSE | BE83: FALSE | BF83: FALSE | BG83: 73.16 | BH83: 0 | BI83: 5542.6 | BJ83: 0.01457689932 | BK83: 0.003203625566 | BL83: 124.1643333 | BM83: FALSE | BN83: 0 | BO83: 0 | BP83: 0.01935499985 | BQ83: 0.007857467722 | BR83: FALSE | BS83: 0 | BT83: 0 | BU83: -2391.01 | BV83: 3151.59
A84: 52 | B84: =OFFSET(InputPriceData!B$15,CalculationsAndCharts!$A84+$A$11,0,1,1) -> 2011-04-27 | C84: =OFFSET(InputPriceData!G$15,CalculationsAndCharts!$A84+$A$11,IF($C$7,8,0),1,1) -> 6679000 | D84: =OFFSET(InputPriceData!C$15,CalculationsAndCharts!$A84+$A$11,IF($C$7,8,0),1,1) -> 82.33 | E84: =OFFSET(InputPriceData!D$15,CalculationsAndCharts!$A84+$A$11,IF($C$7,8,0),1,1) -> 82.97 | F84: =OFFSET(InputPriceData!E$15,CalculationsAndCharts!$A84+$A$11,IF($C$7,8,0),1,1) -> 80.5 | G84: =OFFSET(InputPriceData!F$15,CalculationsAndCharts!$A84+$A$11,IF($C$7,8,0),1,1) -> 80.95 | H84: FALSE | J84: TRUE | K84: FALSE | M84: FALSE | O84: FALSE | P84: FALSE | R84: =OFFSET(InputIndexData!$B$15,CalculationsAndCharts!$A84+$A$11,0,1,1) -> 2011-04-27 | S84: =OFFSET(InputIndexData!C$15,CalculationsAndCharts!$A84+$A$11,IF($C$7,8,0),1,1) -> 127.4 | T84: =OFFSET(InputIndexData!D$15,CalculationsAndCharts!$A84+$A$11,IF($C$7,8,0),1,1) -> 128.17 | U84: =OFFSET(InputIndexData!E$15,CalculationsAndCharts!$A84+$A$11,IF($C$7,8,0),1,1) -> 126.88 | V84: =OFFSET(InputIndexData!F$15,CalculationsAndCharts!$A84+$A$11,IF($C$7,8,0),1,1) -> 127.98 | Y84: 87.5 | AE84: 85.41 | AF84: 74.56 | AG84: 10.85 | AH84: 58.89400922 | AI84: 128.17 | AJ84: 117.66 | AK84: 10.51 | AL84: 98.19219791 | AM84: -39.29818869 | AN84: 15.11868413 | AO84: -60.72170585 | AP84: 75.84038998 | AQ84: 28.24816323 | AS84: 10 | AT84: 50 | AU84: TRUE | AV84: FALSE | AW84: 82.15 | AX84: FALSE | AY84: FALSE | AZ84: FALSE | BA84: 1 | BB84: 62 | BC84: FALSE | BD84: FALSE | BE84: FALSE | BF84: FALSE | BG84: 125.24 | BH84: 0 | BI84: 5469.44 | BJ84: 0.02559229697 | BK84: 0.006527723162 | BL84: 124.0711667 | BM84: FALSE | BN84: 0 | BO84: 0 | BP84: 0.01935681578 | BQ84: 0.008092343476 | BR84: FALSE | BS84: 0 | BT84: 0 | BU84: -2391.01 | BV84: 3078.43
A85: 53 | B85: =OFFSET(InputPriceData!B$15,CalculationsAndCharts!$A85+$A$11,0,1,1) -> 2011-04-26 | C85: =OFFSET(InputPriceData!G$15,CalculationsAndCharts!$A85+$A$11,IF($C$7,8,0),1,1) -> 2400000 | D85: =OFFSET(InputPriceData!C$15,CalculationsAndCharts!$A85+$A$11,IF($C$7,8,0),1,1) -> 78.43 | E85: =OFFSET(InputPriceData!D$15,CalculationsAndCharts!$A85+$A$11,IF($C$7,8,0),1,1) -> 79.17 | F85: =OFFSET(InputPriceData!E$15,CalculationsAndCharts!$A85+$A$11,IF($C$7,8,0),1,1) -> 77.88 | G85: =OFFSET(InputPriceData!F$15,CalculationsAndCharts!$A85+$A$11,IF($C$7,8,0),1,1) -> 78.93 | H85: FALSE | J85: TRUE | K85: FALSE | M85: FALSE | O85: FALSE | P85: FALSE | R85: =OFFSET(InputIndexData!$B$15,CalculationsAndCharts!$A85+$A$11,0,1,1) -> 2011-04-26 | S85: =OFFSET(InputIndexData!C$15,CalculationsAndCharts!$A85+$A$11,IF($C$7,8,0),1,1) -> 126.45 | T85: =OFFSET(InputIndexData!D$15,CalculationsAndCharts!$A85+$A$11,IF($C$7,8,0),1,1) -> 127.4 | U85: =OFFSET(InputIndexData!E$15,CalculationsAndCharts!$A85+$A$11,IF($C$7,8,0),1,1) -> 126.32 | V85: =OFFSET(InputIndexData!F$15,CalculationsAndCharts!$A85+$A$11,IF($C$7,8,0),1,1) -> 127.15 | Y85: 87.5 | AE85: 85.41 | AF85: 74.56 | AG85: 10.85 | AH85: 40.2764977 | AI85: 127.4 | AJ85: 117.66 | AK85: 9.74 | AL85: 97.43326489 | AM85: -57.15676719 | AN85: 15.11868413 | AO85: -60.72170585 | AP85: 75.84038998 | AQ85: 4.700580601 | AS85: 10 | AT85: 50 | AU85: TRUE | AV85: FALSE | AW85: 82.15 | AX85: TRUE | AY85: FALSE | AZ85: FALSE | BA85: 1 | BB85: 62 | BC85: FALSE | BD85: FALSE | BE85: FALSE | BF85: FALSE | BG85: 40.92 | BH85: 0 | BI85: 5344.2 | BJ85: 0.008432349559 | BK85: 0.008646676186 | BL85: 123.9525 | BM85: FALSE | BN85: 0 | BO85: 0 | BP85: 0.01951553222 | BQ85: 0.008104419695 | BR85: FALSE | BS85: 0 | BT85: 0 | BU85: -2391.01 | BV85: 2953.19
A86: 54 | B86: =OFFSET(InputPriceData!B$15,CalculationsAndCharts!$A86+$A$11,0,1,1) -> 2011-04-25 | C86: =OFFSET(InputPriceData!G$15,CalculationsAndCharts!$A86+$A$11,IF($C$7,8,0),1,1) -> 1582700 | D86: =OFFSET(InputPriceData!C$15,CalculationsAndCharts!$A86+$A$11,IF($C$7,8,0),1,1) -> 78.98 | E86: =OFFSET(InputPriceData!D$15,CalculationsAndCharts!$A86+$A$11,IF($C$7,8,0),1,1) -> 79.14 | F86: =OFFSET(InputPriceData!E$15,CalculationsAndCharts!$A86+$A$11,IF($C$7,8,0),1,1) -> 77.91 | G86: =OFFSET(InputPriceData!F$15,CalculationsAndCharts!$A86+$A$11,IF($C$7,8,0),1,1) -> 78.27 | H86: FALSE | J86: TRUE | K86: FALSE | M86: FALSE | O86: FALSE | P86: FALSE | R86: =OFFSET(InputIndexData!$B$15,CalculationsAndCharts!$A86+$A$11,0,1,1) -> 2011-04-25 | S86: =OFFSET(InputIndexData!C$15,CalculationsAndCharts!$A86+$A$11,IF($C$7,8,0),1,1) -> 126.1 | T86: =OFFSET(InputIndexData!D$15,CalculationsAndCharts!$A86+$A$11,IF($C$7,8,0),1,1) -> 126.27 | U86: =OFFSET(InputIndexData!E$15,CalculationsAndCharts!$A86+$A$11,IF($C$7,8,0),1,1) -> 125.64 | V86: =OFFSET(InputIndexData!F$15,CalculationsAndCharts!$A86+$A$11,IF($C$7,8,0),1,1) -> 126.06 | Y86: 87.5 | AE86: 85.41 | AF86: 74.56 | AG86: 10.85 | AH86: 34.19354839 | AI86: 126.51 | AJ86: 117.66 | AK86: 8.85 | AL86: 94.91525424 | AM86: -60.72170585 | AN86: 15.11868413 | AO86: -60.72170585 | AP86: 75.84038998 | AQ86: 0 | AS86: 10 | AT86: 50 | AU86: TRUE | AV86: FALSE | AW86: 82.15 | AX86: TRUE | AY86: FALSE | AZ86: FALSE | BA86: 1 | BB86: 62 | BC86: FALSE | BD86: FALSE | BE86: FALSE | BF86: FALSE | BG86: -41.54 | BH86: 0 | BI86: 5303.28 | BJ86: -0.008487458829 | BK86: -0.001109350238 | BL86: 123.8326667 | BM86: FALSE | BN86: 0 | BO86: 0 | BP86: 0.01982690334 | BQ86: 0.00837806954 | BR86: FALSE | BS86: 0 | BT86: 0 | BU86: -2391.01 | BV86: 2912.27
A87: 55 | B87: =OFFSET(InputPriceData!B$15,CalculationsAndCharts!$A87+$A$11,0,1,1) -> 2011-04-21 | C87: =OFFSET(InputPriceData!G$15,CalculationsAndCharts!$A87+$A$11,IF($C$7,8,0),1,1) -> 2112200 | D87: =OFFSET(InputPriceData!C$15,CalculationsAndCharts!$A87+$A$11,IF($C$7,8,0),1,1) -> 78.75 | E87: =OFFSET(InputPriceData!D$15,CalculationsAndCharts!$A87+$A$11,IF($C$7,8,0),1,1) -> 79.35 | F87: =OFFSET(InputPriceData!E$15,CalculationsAndCharts!$A87+$A$11,IF($C$7,8,0),1,1) -> 77.93 | G87: =OFFSET(InputPriceData!F$15,CalculationsAndCharts!$A87+$A$11,IF($C$7,8,0),1,1) -> 78.94 | H87: FALSE | J87: TRUE | K87: FALSE | M87: FALSE | O87: FALSE | P87: FALSE | R87: =OFFSET(InputIndexData!$B$15,CalculationsAndCharts!$A87+$A$11,0,1,1) -> 2011-04-21 | S87: =OFFSET(InputIndexData!C$15,CalculationsAndCharts!$A87+$A$11,IF($C$7,8,0),1,1) -> 126.21 | T87: =OFFSET(InputIndexData!D$15,CalculationsAndCharts!$A87+$A$11,IF($C$7,8,0),1,1) -> 126.26 | U87: =OFFSET(InputIndexData!E$15,CalculationsAndCharts!$A87+$A$11,IF($C$7,8,0),1,1) -> 125.56 | V87: =OFFSET(InputIndexData!F$15,CalculationsAndCharts!$A87+$A$11,IF($C$7,8,0),1,1) -> 126.2 | Y87: 87.5 | AE87: 85.41 | AF87: 74.56 | AG87: 10.85 | AH87: 40.36866359 | AI87: 126.51 | AJ87: 117.66 | AK87: 8.85 | AL87: 96.49717514 | AM87: -56.12851155 | AN87: 15.11868413 | AO87: -56.12851155 | AP87: 71.24719568 | AQ87: 0 | AS87: 10 | AT87: 50 | AU87: TRUE | AV87: FALSE | AW87: 82.15 | AX87: TRUE | AY87: FALSE | AZ87: FALSE | BA87: 1 | BB87: 62 | BC87: FALSE | BD87: FALSE | BE87: FALSE | BF87: FALSE | BG87: 8.06 | BH87: 0 | BI87: 5344.82 | BJ87: 0.001649536861 | BK87: 0.005097164702 | BL87: 123.7665 | BM87: FALSE | BN87: 0 | BO87: 0 | BP87: 0.01979467021 | BQ87: 0.008378627621 | BR87: FALSE | BS87: 0 | BT87: 0 | BU87: -2391.01 | BV87: 2953.81
A88: 56 | B88: =OFFSET(InputPriceData!B$15,CalculationsAndCharts!$A88+$A$11,0,1,1) -> 2011-04-20 | C88: =OFFSET(InputPriceData!G$15,CalculationsAndCharts!$A88+$A$11,IF($C$7,8,0),1,1) -> 2267200 | D88: =OFFSET(InputPriceData!C$15,CalculationsAndCharts!$A88+$A$11,IF($C$7,8,0),1,1) -> 78.56 | E88: =OFFSET(InputPriceData!D$15,CalculationsAndCharts!$A88+$A$11,IF($C$7,8,0),1,1) -> 78.91 | F88: =OFFSET(InputPriceData!E$15,CalculationsAndCharts!$A88+$A$11,IF($C$7,8,0),1,1) -> 78.11 | G88: =OFFSET(InputPriceData!F$15,CalculationsAndCharts!$A88+$A$11,IF($C$7,8,0),1,1) -> 78.81 | H88: FALSE | J88: TRUE | K88: FALSE | M88: FALSE | O88: FALSE | P88: FALSE | R88: =OFFSET(InputIndexData!$B$15,CalculationsAndCharts!$A88+$A$11,0,1,1) -> 2011-04-20 | S88: =OFFSET(InputIndexData!C$15,CalculationsAndCharts!$A88+$A$11,IF($C$7,8,0),1,1) -> 125.35 | T88: =OFFSET(InputIndexData!D$15,CalculationsAndCharts!$A88+$A$11,IF($C$7,8,0),1,1) -> 125.83 | U88: =OFFSET(InputIndexData!E$15,CalculationsAndCharts!$A88+$A$11,IF($C$7,8,0),1,1) -> 125.27 | V88: =OFFSET(InputIndexData!F$15,CalculationsAndCharts!$A88+$A$11,IF($C$7,8,0),1,1) -> 125.56 | Y88: 87.5 | AE88: 85.41 | AF88: 74.27 | AG88: 11.14 | AH88: 40.7540395 | AI88: 126.51 | AJ88: 117.66 | AK88: 8.85 | AL88: 89.26553672 | AM88: -48.51149723 | AN88: 15.11868413 | AO88: -51.93378572 | AP88: 67.05246985 | AQ88: 5.103896245 | AS88: 10 | AT88: 50 | AU88: TRUE | AV88: FALSE | AW88: 82.15 | AX88: TRUE | AY88: FALSE | AZ88: FALSE | BA88: 1 | BB88: 62 | BC88: FALSE | BD88: FALSE | BE88: FALSE | BF88: FALSE | BG88: 120.9 | BH88: 0 | BI88: 5336.76 | BJ88: 0.02537080406 | BK88: 0.01364333576 | BL88: 123.693 | BM88: FALSE | BN88: 0 | BO88: 0 | BP88: 0.02011083564 | BQ88: 0.008369212447 | BR88: FALSE | BS88: 0 | BT88: 0 | BU88: -2391.01 | BV88: 2945.75
A89: 57 | B89: =OFFSET(InputPriceData!B$15,CalculationsAndCharts!$A89+$A$11,0,1,1) -> 2011-04-19 | C89: =OFFSET(InputPriceData!G$15,CalculationsAndCharts!$A89+$A$11,IF($C$7,8,0),1,1) -> 2422900 | D89: =OFFSET(InputPriceData!C$15,CalculationsAndCharts!$A89+$A$11,IF($C$7,8,0),1,1) -> 75.54 | E89: =OFFSET(InputPriceData!D$15,CalculationsAndCharts!$A89+$A$11,IF($C$7,8,0),1,1) -> 77.01 | F89: =OFFSET(InputPriceData!E$15,CalculationsAndCharts!$A89+$A$11,IF($C$7,8,0),1,1) -> 75.08 | G89: =OFFSET(InputPriceData!F$15,CalculationsAndCharts!$A89+$A$11,IF($C$7,8,0),1,1) -> 76.86 | H89: FALSE | J89: TRUE | K89: FALSE | M89: FALSE | O89: FALSE | P89: FALSE | R89: =OFFSET(InputIndexData!$B$15,CalculationsAndCharts!$A89+$A$11,0,1,1) -> 2011-04-19 | S89: =OFFSET(InputIndexData!C$15,CalculationsAndCharts!$A89+$A$11,IF($C$7,8,0),1,1) -> 123.35 | T89: =OFFSET(InputIndexData!D$15,CalculationsAndCharts!$A89+$A$11,IF($C$7,8,0),1,1) -> 123.91 | U89: =OFFSET(InputIndexData!E$15,CalculationsAndCharts!$A89+$A$11,IF($C$7,8,0),1,1) -> 123.05 | V89: =OFFSET(InputIndexData!F$15,CalculationsAndCharts!$A89+$A$11,IF($C$7,8,0),1,1) -> 123.87 | Y89: 87.5 | AE89: 85.41 | AF89: 74.27 | AG89: 11.14 | AH89: 23.24955117 | AI89: 126.51 | AJ89: 117.66 | AK89: 8.85 | AL89: 70.16949153 | AM89: -46.91994036 | AN89: 15.11868413 | AO89: -51.93378572 | AP89: 67.05246985 | AQ89: 7.477495414 | AS89: 10 | AT89: 50 | AU89: TRUE | AV89: FALSE | AW89: 82.15 | AX89: TRUE | AY89: FALSE | AZ89: FALSE | BA89: 1 | BB89: 62 | BC89: FALSE | BD89: FALSE | BE89: FALSE | BF89: FALSE | BG89: 81.84 | BH89: 0 | BI89: 5215.86 | BJ89: 0.01747418586 | BK89: 0.00576485872 | BL89: 123.6223333 | BM89: FALSE | BN89: 0 | BO89: 0 | BP89: 0.02007385741 | BQ89: 0.008195353883 | BR89: FALSE | BS89: 0 | BT89: 0 | BU89: -2391.01 | BV89: 2824.85
A90: 58 | B90: =OFFSET(InputPriceData!B$15,CalculationsAndCharts!$A90+$A$11,0,1,1) -> 2011-04-18 | C90: =OFFSET(InputPriceData!G$15,CalculationsAndCharts!$A90+$A$11,IF($C$7,8,0),1,1) -> 2955500 | D90: =OFFSET(InputPriceData!C$15,CalculationsAndCharts!$A90+$A$11,IF($C$7,8,0),1,1) -> 75.77 | E90: =OFFSET(InputPriceData!D$15,CalculationsAndCharts!$A90+$A$11,IF($C$7,8,0),1,1) -> 76.17 | F90: =OFFSET(InputPriceData!E$15,CalculationsAndCharts!$A90+$A$11,IF($C$7,8,0),1,1) -> 74.95 | G90: =OFFSET(InputPriceData!F$15,CalculationsAndCharts!$A90+$A$11,IF($C$7,8,0),1,1) -> 75.54 | H90: FALSE | J90: TRUE | K90: FALSE | M90: FALSE | O90: FALSE | P90: FALSE | R90: =OFFSET(InputIndexData!$B$15,CalculationsAndCharts!$A90+$A$11,0,1,1) -> 2011-04-18 | S90: =OFFSET(InputIndexData!C$15,CalculationsAndCharts!$A90+$A$11,IF($C$7,8,0),1,1) -> 123.19 | T90: =OFFSET(InputIndexData!D$15,CalculationsAndCharts!$A90+$A$11,IF($C$7,8,0),1,1) -> 124.55 | U90: =OFFSET(InputIndexData!E$15,CalculationsAndCharts!$A90+$A$11,IF($C$7,8,0),1,1) -> 122.17 | V90: =OFFSET(InputIndexData!F$15,CalculationsAndCharts!$A90+$A$11,IF($C$7,8,0),1,1) -> 123.16 | Y90: 87.5 | AE90: 85.41 | AF90: 74.27 | AG90: 11.14 | AH90: 11.40035907 | AI90: 126.51 | AJ90: 117.66 | AK90: 8.85 | AL90: 62.14689266 | AM90: -50.74653359 | AN90: 15.11868413 | AO90: -51.93378572 | AP90: 67.05246985 | AQ90: 1.770631462 | AS90: 10 | AT90: 50 | AU90: TRUE | AV90: FALSE | AW90: 82.15 | AX90: TRUE | AY90: FALSE | AZ90: FALSE | BA90: 1 | BB90: 62 | BC90: FALSE | BD90: FALSE | BE90: FALSE | BF90: FALSE | BG90: -101.06 | BH90: 0 | BI90: 5134.02 | BJ90: -0.02112219775 | BK90: -0.01123956326 | BL90: 123.5788333 | BM90: FALSE | BN90: 0 | BO90: 0 | BP90: 0.0199525365 | BQ90: 0.008194895974 | BR90: FALSE | BS90: 0 | BT90: 0 | BU90: -2391.01 | BV90: 2743.01
A91: 59 | B91: =OFFSET(InputPriceData!B$15,CalculationsAndCharts!$A91+$A$11,0,1,1) -> 2011-04-15 | C91: =OFFSET(InputPriceData!G$15,CalculationsAndCharts!$A91+$A$11,IF($C$7,8,0),1,1) -> 4377400 | D91: =OFFSET(InputPriceData!C$15,CalculationsAndCharts!$A91+$A$11,IF($C$7,8,0),1,1) -> 77.67 | E91: =OFFSET(InputPriceData!D$15,CalculationsAndCharts!$A91+$A$11,IF($C$7,8,0),1,1) -> 77.91 | F91: =OFFSET(InputPriceData!E$15,CalculationsAndCharts!$A91+$A$11,IF($C$7,8,0),1,1) -> 76.81 | G91: =OFFSET(InputPriceData!F$15,CalculationsAndCharts!$A91+$A$11,IF($C$7,8,0),1,1) -> 77.17 | H91: FALSE | J91: TRUE | K91: FALSE | M91: FALSE | O91: FALSE | P91: FALSE | R91: =OFFSET(InputIndexData!$B$15,CalculationsAndCharts!$A91+$A$11,0,1,1) -> 2011-04-15 | S91: =OFFSET(InputIndexData!C$15,CalculationsAndCharts!$A91+$A$11,IF($C$7,8,0),1,1) -> 124.33 | T91: =OFFSET(InputIndexData!D$15,CalculationsAndCharts!$A91+$A$11,IF($C$7,8,0),1,1) -> 124.87 | U91: =OFFSET(InputIndexData!E$15,CalculationsAndCharts!$A91+$A$11,IF($C$7,8,0),1,1) -> 123.97 | V91: =OFFSET(InputIndexData!F$15,CalculationsAndCharts!$A91+$A$11,IF($C$7,8,0),1,1) -> 124.56 | Y91: 87.5 | AE91: 85.41 | AF91: 74.27 | AG91: 11.14 | AH91: 26.03231598 | AI91: 126.51 | AJ91: 117.66 | AK91: 8.85 | AL91: 77.96610169 | AM91: -51.93378572 | AN91: 15.11868413 | AO91: -51.93378572 | AP91: 67.05246985 | AQ91: 0 | AS91: 10 | AT91: 50 | AU91: TRUE | AV91: FALSE | AW91: 82.15 | AX91: TRUE | AY91: FALSE | AZ91: FALSE | BA91: 1 | BB91: 62 | BC91: FALSE | BD91: FALSE | BE91: FALSE | BF91: FALSE | BG91: -47.12 | BH91: 0 | BI91: 5235.08 | BJ91: -0.009752341845 | BK91: 0.003706688155 | BL91: 123.5356667 | BM91: FALSE | BN91: 0 | BO91: 0 | BP91: 0.01980672098 | BQ91: 0.008056669805 | BR91: FALSE | BS91: 0 | BT91: 0 | BU91: -2391.01 | BV91: 2844.07
A92: 60 | B92: =OFFSET(InputPriceData!B$15,CalculationsAndCharts!$A92+$A$11,0,1,1) -> 2011-04-14 | C92: =OFFSET(InputPriceData!G$15,CalculationsAndCharts!$A92+$A$11,IF($C$7,8,0),1,1) -> 3030900 | D92: =OFFSET(InputPriceData!C$15,CalculationsAndCharts!$A92+$A$11,IF($C$7,8,0),1,1) -> 77.66 | E92: =OFFSET(InputPriceData!D$15,CalculationsAndCharts!$A92+$A$11,IF($C$7,8,0),1,1) -> 78.14 | F92: =OFFSET(InputPriceData!E$15,CalculationsAndCharts!$A92+$A$11,IF($C$7,8,0),1,1) -> 76.95 | G92: =OFFSET(InputPriceData!F$15,CalculationsAndCharts!$A92+$A$11,IF($C$7,8,0),1,1) -> 77.93 | H92: FALSE | J92: TRUE | K92: FALSE | M92: FALSE | O92: FALSE | P92: FALSE | R92: =OFFSET(InputIndexData!$B$15,CalculationsAndCharts!$A92+$A$11,0,1,1) -> 2011-04-14 | S92: =OFFSET(InputIndexData!C$15,CalculationsAndCharts!$A92+$A$11,IF($C$7,8,0),1,1) -> 123.29 | T92: =OFFSET(InputIndexData!D$15,CalculationsAndCharts!$A92+$A$11,IF($C$7,8,0),1,1) -> 124.29 | U92: =OFFSET(InputIndexData!E$15,CalculationsAndCharts!$A92+$A$11,IF($C$7,8,0),1,1) -> 122.88 | V92: =OFFSET(InputIndexData!F$15,CalculationsAndCharts!$A92+$A$11,IF($C$7,8,0),1,1) -> 124.1 | Y92: 87.5 | AE92: 85.41 | AF92: 74.27 | AG92: 11.14 | AH92: 32.8545781 | AI92: 126.51 | AJ92: 117.66 | AK92: 8.85 | AL92: 72.76836158 | AM92: -39.91378348 | AN92: 15.11868413 | AO92: -39.91378348 | AP92: 55.03246762 | AQ92: 0 | AS92: 10 | AT92: 50 | AU92: TRUE | AV92: FALSE | AW92: 82.15 | AX92: TRUE | AY92: FALSE | AZ92: FALSE | BA92: 1 | BB92: 62 | BC92: FALSE | BD92: FALSE | BE92: FALSE | BF92: FALSE | BG92: -1.24 | BH92: 0 | BI92: 5282.2 | BJ92: -0.0002565747274 | BK92: 0.0007257479236 | BL92: 123.4646667 | BM92: FALSE | BN92: 0 | BO92: 0 | BP92: 0.01983901416 | BQ92: 0.008050225361 | BR92: FALSE | BS92: 0 | BT92: 0 | BU92: -2391.01 | BV92: 2891.19
A93: 61 | B93: =OFFSET(InputPriceData!B$15,CalculationsAndCharts!$A93+$A$11,0,1,1) -> 2011-04-13 | C93: =OFFSET(InputPriceData!G$15,CalculationsAndCharts!$A93+$A$11,IF($C$7,8,0),1,1) -> 5875500 | D93: =OFFSET(InputPriceData!C$15,CalculationsAndCharts!$A93+$A$11,IF($C$7,8,0),1,1) -> 78.85 | E93: =OFFSET(InputPriceData!D$15,CalculationsAndCharts!$A93+$A$11,IF($C$7,8,0),1,1) -> 79.54 | F93: =OFFSET(InputPriceData!E$15,CalculationsAndCharts!$A93+$A$11,IF($C$7,8,0),1,1) -> 76.77 | G93: =OFFSET(InputPriceData!F$15,CalculationsAndCharts!$A93+$A$11,IF($C$7,8,0),1,1) -> 77.95 | H93: FALSE | J93: TRUE | K93: FALSE | M93: FALSE | O93: FALSE | P93: FALSE | R93: =OFFSET(InputIndexData!$B$15,CalculationsAndCharts!$A93+$A$11,0,1,1) -> 2011-04-13 | S93: =OFFSET(InputIndexData!C$15,CalculationsAndCharts!$A93+$A$11,IF($C$7,8,0),1,1) -> 124.59 | T93: =OFFSET(InputIndexData!D$15,CalculationsAndCharts!$A93+$A$11,IF($C$7,8,0),1,1) -> 124.69 | U93: =OFFSET(InputIndexData!E$15,CalculationsAndCharts!$A93+$A$11,IF($C$7,8,0),1,1) -> 123.54 | V93: =OFFSET(InputIndexData!F$15,CalculationsAndCharts!$A93+$A$11,IF($C$7,8,0),1,1) -> 124.01 | Y93: 87.5 | AE93: 85.41 | AF93: 74.27 | AG93: 11.14 | AH93: 33.03411131 | AI93: 126.51 | AJ93: 117.66 | AK93: 8.85 | AL93: 71.75141243 | AM93: -38.71730112 | AN93: 15.11868413 | AO93: -38.71730112 | AP93: 53.83598525 | AQ93: 0 | AS93: 10 | AT93: 50 | AU93: TRUE | AV93: FALSE | AW93: 82.15 | AX93: TRUE | AY93: FALSE | AZ93: FALSE | BA93: 1 | BB93: 62 | BC93: FALSE | BD93: FALSE | BE93: FALSE | BF93: FALSE | BG93: -38.44 | BH93: 0 | BI93: 5283.44 | BJ93: -0.007891052565 | BK93: -8.06321561e-05 | BL93: 123.404 | BM93: FALSE | BN93: 0 | BO93: 0 | BP93: 0.01998380196 | BQ93: 0.008157618415 | BR93: FALSE | BS93: 0 | BT93: 0 | BU93: -2391.01 | BV93: 2892.43
A94: 62 | B94: =OFFSET(InputPriceData!B$15,CalculationsAndCharts!$A94+$A$11,0,1,1) -> 2011-04-12 | C94: =OFFSET(InputPriceData!G$15,CalculationsAndCharts!$A94+$A$11,IF($C$7,8,0),1,1) -> 4183000 | D94: =OFFSET(InputPriceData!C$15,CalculationsAndCharts!$A94+$A$11,IF($C$7,8,0),1,1) -> 79.09 | E94: =OFFSET(InputPriceData!D$15,CalculationsAndCharts!$A94+$A$11,IF($C$7,8,0),1,1) -> 79.18 | F94: =OFFSET(InputPriceData!E$15,CalculationsAndCharts!$A94+$A$11,IF($C$7,8,0),1,1) -> 77.05 | G94: =OFFSET(InputPriceData!F$15,CalculationsAndCharts!$A94+$A$11,IF($C$7,8,0),1,1) -> 78.57 | H94: TRUE | I94: 79.09 | J94: TRUE | K94: FALSE | M94: FALSE | O94: FALSE | P94: FALSE | R94: =OFFSET(InputIndexData!$B$15,CalculationsAndCharts!$A94+$A$11,0,1,1) -> 2011-04-12 | S94: =OFFSET(InputIndexData!C$15,CalculationsAndCharts!$A94+$A$11,IF($C$7,8,0),1,1) -> 124.26 | T94: =OFFSET(InputIndexData!D$15,CalculationsAndCharts!$A94+$A$11,IF($C$7,8,0),1,1) -> 124.5 | U94: =OFFSET(InputIndexData!E$15,CalculationsAndCharts!$A94+$A$11,IF($C$7,8,0),1,1) -> 123.57 | V94: =OFFSET(InputIndexData!F$15,CalculationsAndCharts!$A94+$A$11,IF($C$7,8,0),1,1) -> 124.02 | Y94: 87.5 | AA94: 79.09 | AE94: 85.41 | AF94: 74.27 | AG94: 11.14 | AH94: 38.59964093 | AI94: 126.51 | AJ94: 117.66 | AK94: 8.85 | AL94: 71.86440678 | AM94: -33.26476585 | AN94: 15.11868413 | AO94: -33.26476585 | AP94: 48.38344998 | AQ94: 0 | AS94: 10 | AT94: 50 | AU94: TRUE | AV94: FALSE | AW94: 82.15 | AX94: TRUE | AY94: FALSE | AZ94: FALSE | BA94: 1 | BB94: 62 | BC94: FALSE | BD94: FALSE | BE94: FALSE | BF94: FALSE | BG94: 0 | BH94: 8 | BI94: 5321.88 | BJ94: -0.01799775028 | BK94: -0.007442977191 | BL94: 123.3646667 | BM94: FALSE | BN94: 0 | BO94: 0 | BP94: 0.01995963592 | BQ94: 0.008159302822 | BR94: FALSE | BS94: 0 | BT94: 0 | BU94: -2391.01 | BV94: 2930.87
A95: 63 | B95: =OFFSET(InputPriceData!B$15,CalculationsAndCharts!$A95+$A$11,0,1,1) -> 2011-04-11 | C95: =OFFSET(InputPriceData!G$15,CalculationsAndCharts!$A95+$A$11,IF($C$7,8,0),1,1) -> 2725100 | D95: =OFFSET(InputPriceData!C$15,CalculationsAndCharts!$A95+$A$11,IF($C$7,8,0),1,1) -> 82.15 | E95: =OFFSET(InputPriceData!D$15,CalculationsAndCharts!$A95+$A$11,IF($C$7,8,0),1,1) -> 82.73 | F95: =OFFSET(InputPriceData!E$15,CalculationsAndCharts!$A95+$A$11,IF($C$7,8,0),1,1) -> 79.78 | G95: =OFFSET(InputPriceData!F$15,CalculationsAndCharts!$A95+$A$11,IF($C$7,8,0),1,1) -> 80.01 | H95: FALSE | J95: FALSE | K95: FALSE | M95: FALSE | O95: FALSE | P95: FALSE | R95: =OFFSET(InputIndexData!$B$15,CalculationsAndCharts!$A95+$A$11,0,1,1) -> 2011-04-11 | S95: =OFFSET(InputIndexData!C$15,CalculationsAndCharts!$A95+$A$11,IF($C$7,8,0),1,1) -> 125.46 | T95: =OFFSET(InputIndexData!D$15,CalculationsAndCharts!$A95+$A$11,IF($C$7,8,0),1,1) -> 125.88 | U95: =OFFSET(InputIndexData!E$15,CalculationsAndCharts!$A95+$A$11,IF($C$7,8,0),1,1) -> 124.65 | V95: =OFFSET(InputIndexData!F$15,CalculationsAndCharts!$A95+$A$11,IF($C$7,8,0),1,1) -> 124.95 | AE95: 85.41 | AF95: 74.27 | AG95: 11.14 | AH95: 51.52603232 | AI95: 126.51 | AJ95: 117.66 | AK95: 8.85 | AL95: 82.37288136 | AM95: -30.84684904 | AN95: 15.11868413 | AO95: -30.84684904 | AP95: 45.96553317 | AQ95: 0 | AS95: 10 | AT95: 50 | AU95: TRUE | AV95: TRUE | AW95: 82.15 | AX95: TRUE | AY95: FALSE | AZ95: FALSE | BA95: 0 | BB95: 62 | BC95: FALSE | BD95: FALSE | BE95: FALSE | BF95: FALSE | BG95: 0 | BH95: 0 | BI95: 5329.88 | BJ95: -0.02924047561 | BK95: -0.003031995532 | BL95: 123.3216667 | BM95: FALSE | BN95: 0 | BO95: 0 | BP95: 0.02013440128 | BQ95: 0.008140729146 | BR95: FALSE | BS95: 0 | BT95: 0 | BU95: -2391.01 | BV95: 2938.87
A96: 64 | B96: =OFFSET(InputPriceData!B$15,CalculationsAndCharts!$A96+$A$11,0,1,1) -> 2011-04-08 | C96: =OFFSET(InputPriceData!G$15,CalculationsAndCharts!$A96+$A$11,IF($C$7,8,0),1,1) -> 2812100 | D96: =OFFSET(InputPriceData!C$15,CalculationsAndCharts!$A96+$A$11,IF($C$7,8,0),1,1) -> 83.33 | E96: =OFFSET(InputPriceData!D$15,CalculationsAndCharts!$A96+$A$11,IF($C$7,8,0),1,1) -> 83.65 | F96: =OFFSET(InputPriceData!E$15,CalculationsAndCharts!$A96+$A$11,IF($C$7,8,0),1,1) -> 82 | G96: =OFFSET(InputPriceData!F$15,CalculationsAndCharts!$A96+$A$11,IF($C$7,8,0),1,1) -> 82.42 | H96: FALSE | J96: FALSE | K96: FALSE | M96: FALSE | O96: FALSE | P96: FALSE | R96: =OFFSET(InputIndexData!$B$15,CalculationsAndCharts!$A96+$A$11,0,1,1) -> 2011-04-08 | S96: =OFFSET(InputIndexData!C$15,CalculationsAndCharts!$A96+$A$11,IF($C$7,8,0),1,1) -> 126.32 | T96: =OFFSET(InputIndexData!D$15,CalculationsAndCharts!$A96+$A$11,IF($C$7,8,0),1,1) -> 126.4 | U96: =OFFSET(InputIndexData!E$15,CalculationsAndCharts!$A96+$A$11,IF($C$7,8,0),1,1) -> 124.81 | V96: =OFFSET(InputIndexData!F$15,CalculationsAndCharts!$A96+$A$11,IF($C$7,8,0),1,1) -> 125.33 | AE96: 85.41 | AF96: 74.27 | AG96: 11.14 | AH96: 73.15978456 | AI96: 126.51 | AJ96: 117.66 | AK96: 8.85 | AL96: 86.66666667 | AM96: -13.50688211 | AN96: 15.11868413 | AO96: -28.21806881 | AP96: 43.33675294 | AQ96: 33.94621356 | AS96: 10 | AT96: 50 | AU96: TRUE | AV96: FALSE | AW96: 80.27 | AX96: FALSE | AY96: FALSE | AZ96: FALSE | BA96: 0 | BB96: 0 | BC96: FALSE | BD96: FALSE | BE96: FALSE | BF96: FALSE | BG96: 0 | BH96: 0 | BI96: 5329.88 | BJ96: -0.00338573156 | BK96: -0.003419211196 | BL96: 123.2486667 | BM96: FALSE | BN96: 0 | BO96: 0 | BP96: 0.0197640469 | BQ96: 0.008132319903 | BR96: FALSE | BS96: 0 | BT96: 0 | BU96: -2391.01 | BV96: 2938.87
A97: 65 | B97: =OFFSET(InputPriceData!B$15,CalculationsAndCharts!$A97+$A$11,0,1,1) -> 2011-04-07 | C97: =OFFSET(InputPriceData!G$15,CalculationsAndCharts!$A97+$A$11,IF($C$7,8,0),1,1) -> 2821000 | D97: =OFFSET(InputPriceData!C$15,CalculationsAndCharts!$A97+$A$11,IF($C$7,8,0),1,1) -> 83.54 | E97: =OFFSET(InputPriceData!D$15,CalculationsAndCharts!$A97+$A$11,IF($C$7,8,0),1,1) -> 83.7 | F97: =OFFSET(InputPriceData!E$15,CalculationsAndCharts!$A97+$A$11,IF($C$7,8,0),1,1) -> 81.6 | G97: =OFFSET(InputPriceData!F$15,CalculationsAndCharts!$A97+$A$11,IF($C$7,8,0),1,1) -> 82.7 | H97: =AV98 -> FALSE | I97: =IF(H97,D97,NA()) ->  | J97: =BA97=1 -> FALSE | K97: =BF98 -> FALSE | L97: =IF(K97,D97,NA()) ->  | M97: =BM98 -> FALSE | O97: =BN97=-1 -> FALSE | P97: =BR98 -> FALSE | Q97: =IF(P97,$S97,NA()) ->  | R97: =OFFSET(InputIndexData!$B$15,CalculationsAndCharts!$A97+$A$11,0,1,1) -> 2011-04-07 | S97: =OFFSET(InputIndexData!C$15,CalculationsAndCharts!$A97+$A$11,IF($C$7,8,0),1,1) -> 125.85 | T97: =OFFSET(InputIndexData!D$15,CalculationsAndCharts!$A97+$A$11,IF($C$7,8,0),1,1) -> 126.38 | U97: =OFFSET(InputIndexData!E$15,CalculationsAndCharts!$A97+$A$11,IF($C$7,8,0),1,1) -> 125.14 | V97: =OFFSET(InputIndexData!F$15,CalculationsAndCharts!$A97+$A$11,IF($C$7,8,0),1,1) -> 125.76 | W97: =IF($A97=$E$17,W$32,NA()) ->  | X97: =IF($A97=$E$17,X$32,NA()) ->  | Y97: =IF($S$10,IF($A97>$A$8,NA(),IF(J97,Y$31,NA())),NA()) ->  | Z97: =IF($S$12,IF($A97>$A$8,NA(),IF(O97,Z$31,NA())),NA()) ->  | AA97: =IF(AND($S$10,H97),I97,NA()) ->  | AB97: =IF(AND($S$10,K97),L97,NA()) ->  | AC97: =IF(AND($S$12,M97),N97,NA()) ->  | AD97: =IF(AND($S$12,P97),Q97,NA()) ->  | AE97: =MAX(OFFSET($E97,0,0,$AH$30,1)) -> 85.41 | AF97: =MIN(OFFSET($F97,0,0,$AH$30,1)) -> 74.27 | AG97: 11.14 | AH97: 75.67324955 | AI97: =MAX(OFFSET(T97,0,0,$AH$30,1)) -> 126.51 | AJ97: =MIN(OFFSET(U97,0,0,$AH$30,1)) -> 117.66 | AK97: 8.85 | AL97: =(V97-AJ97)/AK97*100 -> 91.52542373 | AM97: -15.85217418 | AN97: =MAX(OFFSET(AM97,0,0,$AH$30,1)) -> 15.11868413 | AO97: =MIN(OFFSET(AM97,0,0,$AH$30,1)) -> -28.21806881 | AP97: 43.33675294 | AQ97: =IFERROR((AM97-AO97)/AP97*100,0) -> 28.53442815 | AR97: =IF($A97=$E$17,AR$32,NA()) ->  | AS97: 10 | AT97: =$AT$32 -> 50 | AU97: =MIN(OFFSET(G97,0,0,$AU$30,1))>$D$22 -> TRUE | AV97: FALSE | AW97: =IF(AV97,D97,AW98) -> 80.27 | AX97: =AQ97<=AS97 -> FALSE | AY97: =AQ97>=AT97 -> FALSE | AZ97: FALSE | BA97: 0 | BB97: =IF(AV97,INT($D$20/G97),IF(BF98,0,BB98)) -> 0 | BC97: FALSE | BD97: FALSE | BE97: =AND(BA97<>0,NOT(BC97),NOT(BD97),$D$23>0,(G97/AW97-1)<-$D$23) -> FALSE | BF97: FALSE | BG97: =BA98*BB98*(G97-G98) -> 0 | BH97: =IF(BA97<>BA98,$D$21,0) -> 0 | BI97: 5329.88 | BJ97: =IFERROR((G97/G98)-1,0) -> -0.003374307062 | BK97: =IFERROR((V97/V98)-1,0) -> -0.002538071066 | BL97: =AVERAGE(OFFSET(V97,0,0,$A$23,1)) -> 123.1726667 | BM97: =AND($A$23>0,BN97=0,OR(AV97,BA97<>0),BL97<BL98) -> FALSE | BN97: 0 | BO97: =IF(BM97,INT(BB97*$D$24*BP97/BQ97),IF(BR98,0,BO98)) -> 0 | BP97: =IF($A$23>0,_xlfn.STDEV.P(OFFSET(BJ97,0,0,$A$23,1)),0) -> 0.01980549571 | BQ97: =IF($A$23>0,_xlfn.STDEV.P(OFFSET(BK97,0,0,$A$23,1)),0) -> 0.008184359809 | BR97: =AND(BN97<>0,OR(BL97>BL98,BA97=0)) -> FALSE | BS97: =BN98*BO98*(V97-V98) -> 0 | BT97: 0 | BU97: -2391.01 | BV97: 2938.87
A98: 66 | B98: =OFFSET(InputPriceData!B$15,CalculationsAndCharts!$A98+$A$11,0,1,1) -> 2011-04-06 | C98: =OFFSET(InputPriceData!G$15,CalculationsAndCharts!$A98+$A$11,IF($C$7,8,0),1,1) -> 2845300 | D98: =OFFSET(InputPriceData!C$15,CalculationsAndCharts!$A98+$A$11,IF($C$7,8,0),1,1) -> 85.02 | E98: =OFFSET(InputPriceData!D$15,CalculationsAndCharts!$A98+$A$11,IF($C$7,8,0),1,1) -> 85.12 | F98: =OFFSET(InputPriceData!E$15,CalculationsAndCharts!$A98+$A$11,IF($C$7,8,0),1,1) -> 82.2 | G98: =OFFSET(InputPriceData!F$15,CalculationsAndCharts!$A98+$A$11,IF($C$7,8,0),1,1) -> 82.98 | H98: FALSE | J98: FALSE | K98: FALSE | M98: FALSE | N98: =IF(M98,S98,NA()) ->  | O98: FALSE | P98: FALSE | R98: =OFFSET(InputIndexData!$B$15,CalculationsAndCharts!$A98+$A$11,0,1,1) -> 2011-04-06 | S98: =OFFSET(InputIndexData!C$15,CalculationsAndCharts!$A98+$A$11,IF($C$7,8,0),1,1) -> 126.29 | T98: =OFFSET(InputIndexData!D$15,CalculationsAndCharts!$A98+$A$11,IF($C$7,8,0),1,1) -> 126.4 | U98: =OFFSET(InputIndexData!E$15,CalculationsAndCharts!$A98+$A$11,IF($C$7,8,0),1,1) -> 125.57 | V98: =OFFSET(InputIndexData!F$15,CalculationsAndCharts!$A98+$A$11,IF($C$7,8,0),1,1) -> 126.08 | AE98: 85.41 | AF98: 74.27 | AG98: =AE98-AF98 -> 11.14 | AH98: =($G98-AF98)/AG98*100 -> 78.18671454 | AI98: 126.51 | AJ98: 117.66 | AK98: =AI98-AJ98 -> 8.85 | AL98: 95.14124294 | AM98: =AH98-AL98 -> -16.9545284 | AN98: 15.11868413 | AO98: -28.21806881 | AP98: =AN98-AO98 -> 43.33675294 | AQ98: 25.99073454 | AS98: =$AS$32 -> 10 | AT98: 50 | AU98: TRUE | AV98: =AND(BA98=0,NOT(AZ98),AX98,AU98) -> FALSE | AW98: 80.27 | AX98: FALSE | AY98: FALSE | AZ98: FALSE | BA98: =IF(AV99,1,IF(BF99,0,BA99)) -> 0 | BB98: 0 | BC98: =AND(BA98<>0,NOT(AU98)) -> FALSE | BD98: =AND(BA98<>0,NOT(BC98),AY98) -> FALSE | BE98: FALSE | BF98: =OR(BC98:BE98) -> FALSE | BG98: 0 | BH98: 0 | BI98: =BG98-BH98+BI99 -> 5329.88 | BJ98: -0.01775568182 | BK98: 0.003102872146 | BL98: 123.0715 | BM98: FALSE | BN98: 0 | BO98: 0 | BP98: 0.02036961712 | BQ98: 0.008179655754 | BR98: FALSE | BS98: 0 | BT98: =IF(BN98<>BN99,$D$21,0) -> 0 | BU98: =BS98-BT98+BU99 -> -2391.01 | BV98: =BI98+BU98 -> 2938.87
A99: 67 | B99: =OFFSET(InputPriceData!B$15,CalculationsAndCharts!$A99+$A$11,0,1,1) -> 2011-04-05 | C99: =OFFSET(InputPriceData!G$15,CalculationsAndCharts!$A99+$A$11,IF($C$7,8,0),1,1) -> 1918500 | D99: =OFFSET(InputPriceData!C$15,CalculationsAndCharts!$A99+$A$11,IF($C$7,8,0),1,1) -> 84.38 | E99: =OFFSET(InputPriceData!D$15,CalculationsAndCharts!$A99+$A$11,IF($C$7,8,0),1,1) -> 85 | F99: =OFFSET(InputPriceData!E$15,CalculationsAndCharts!$A99+$A$11,IF($C$7,8,0),1,1) -> 83.7 | G99: =OFFSET(InputPriceData!F$15,CalculationsAndCharts!$A99+$A$11,IF($C$7,8,0),1,1) -> 84.48 | H99: FALSE | J99: FALSE | K99: FALSE | M99: FALSE | O99: FALSE | P99: FALSE | R99: =OFFSET(InputIndexData!$B$15,CalculationsAndCharts!$A99+$A$11,0,1,1) -> 2011-04-05 | S99: =OFFSET(InputIndexData!C$15,CalculationsAndCharts!$A99+$A$11,IF($C$7,8,0),1,1) -> 125.46 | T99: =OFFSET(InputIndexData!D$15,CalculationsAndCharts!$A99+$A$11,IF($C$7,8,0),1,1) -> 126.25 | U99: =OFFSET(InputIndexData!E$15,CalculationsAndCharts!$A99+$A$11,IF($C$7,8,0),1,1) -> 125.41 | V99: =OFFSET(InputIndexData!F$15,CalculationsAndCharts!$A99+$A$11,IF($C$7,8,0),1,1) -> 125.69 | AE99: 85.41 | AF99: 74.27 | AG99: 11.14 | AH99: 91.65170557 | AI99: 126.51 | AJ99: 117.66 | AK99: 8.85 | AL99: 90.73446328 | AM99: 0.9172422887 | AN99: 15.11868413 | AO99: -28.21806881 | AP99: 43.33675294 | AQ99: 67.23002791 | AS99: 10 | AT99: 50 | AU99: TRUE | AV99: FALSE | AW99: 80.27 | AX99: FALSE | AY99: TRUE | AZ99: FALSE | BA99: 0 | BB99: 0 | BC99: FALSE | BD99: FALSE | BE99: FALSE | BF99: FALSE | BG99: 0 | BH99: 0 | BI99: 5329.88 | BJ99: 0.005474886932 | BK99: -0.0001590963328 | BL99: 122.9578333 | BM99: FALSE | BN99: 0 | BO99: 0 | BP99: 0.02032883183 | BQ99: 0.008179666052 | BR99: FALSE | BS99: 0 | BT99: 0 | BU99: -2391.01 | BV99: 2938.87
A100: 68 | B100: =OFFSET(InputPriceData!B$15,CalculationsAndCharts!$A100+$A$11,0,1,1) -> 2011-04-04 | C100: =OFFSET(InputPriceData!G$15,CalculationsAndCharts!$A100+$A$11,IF($C$7,8,0),1,1) -> 1721500 | D100: =OFFSET(InputPriceData!C$15,CalculationsAndCharts!$A100+$A$11,IF($C$7,8,0),1,1) -> 84.65 | E100: =OFFSET(InputPriceData!D$15,CalculationsAndCharts!$A100+$A$11,IF($C$7,8,0),1,1) -> 85.1 | F100: =OFFSET(InputPriceData!E$15,CalculationsAndCharts!$A100+$A$11,IF($C$7,8,0),1,1) -> 83.65 | G100: =OFFSET(InputPriceData!F$15,CalculationsAndCharts!$A100+$A$11,IF($C$7,8,0),1,1) -> 84.02 | H100: FALSE | J100: FALSE | K100: FALSE | M100: FALSE | O100: FALSE | P100: FALSE | R100: =OFFSET(InputIndexData!$B$15,CalculationsAndCharts!$A100+$A$11,0,1,1) -> 2011-04-04 | S100: =OFFSET(InputIndexData!C$15,CalculationsAndCharts!$A100+$A$11,IF($C$7,8,0),1,1) -> 125.87 | T100: =OFFSET(InputIndexData!D$15,CalculationsAndCharts!$A100+$A$11,IF($C$7,8,0),1,1) -> 126.1 | U100: =OFFSET(InputIndexData!E$15,CalculationsAndCharts!$A100+$A$11,IF($C$7,8,0),1,1) -> 125.35 | V100: =OFFSET(InputIndexData!F$15,CalculationsAndCharts!$A100+$A$11,IF($C$7,8,0),1,1) -> 125.71 | AE100: 85.41 | AF100: 74.27 | AG100: 11.14 | AH100: 87.52244165 | AI100: 126.51 | AJ100: 117.66 | AK100: 8.85 | AL100: 90.96045198 | AM100: -3.438010326 | AN100: 15.11868413 | AO100: -28.21806881 | AP100: 43.33675294 | AQ100: 57.18023802 | AS100: 10 | AT100: 50 | AU100: TRUE | AV100: FALSE | AW100: 80.27 | AX100: FALSE | AY100: TRUE | AZ100: FALSE | BA100: 0 | BB100: 0 | BC100: FALSE | BD100: FALSE | BE100: FALSE | BF100: FALSE | BG100: 0 | BH100: 0 | BI100: 5329.88 | BJ100: -0.009898656611 | BK100: 0.0008757961783 | BL100: 122.8531667 | BM100: FALSE | BN100: 0 | BO100: 0 | BP100: 0.02032441131 | BQ100: 0.008187020208 | BR100: FALSE | BS100: 0 | BT100: 0 | BU100: -2391.01 | BV100: 2938.87
A101: 69 | B101: =OFFSET(InputPriceData!B$15,CalculationsAndCharts!$A101+$A$11,0,1,1) -> 2011-04-01 | C101: =OFFSET(InputPriceData!G$15,CalculationsAndCharts!$A101+$A$11,IF($C$7,8,0),1,1) -> 2363000 | D101: =OFFSET(InputPriceData!C$15,CalculationsAndCharts!$A101+$A$11,IF($C$7,8,0),1,1) -> 83.96 | E101: =OFFSET(InputPriceData!D$15,CalculationsAndCharts!$A101+$A$11,IF($C$7,8,0),1,1) -> 85.3 | F101: =OFFSET(InputPriceData!E$15,CalculationsAndCharts!$A101+$A$11,IF($C$7,8,0),1,1) -> 83.95 | G101: =OFFSET(InputPriceData!F$15,CalculationsAndCharts!$A101+$A$11,IF($C$7,8,0),1,1) -> 84.86 | H101: FALSE | J101: FALSE | K101: FALSE | M101: FALSE | O101: FALSE | P101: FALSE | R101: =OFFSET(InputIndexData!$B$15,CalculationsAndCharts!$A101+$A$11,0,1,1) -> 2011-04-01 | S101: =OFFSET(InputIndexData!C$15,CalculationsAndCharts!$A101+$A$11,IF($C$7,8,0),1,1) -> 125.85 | T101: =OFFSET(InputIndexData!D$15,CalculationsAndCharts!$A101+$A$11,IF($C$7,8,0),1,1) -> 126.18 | U101: =OFFSET(InputIndexData!E$15,CalculationsAndCharts!$A101+$A$11,IF($C$7,8,0),1,1) -> 125.3 | V101: =OFFSET(InputIndexData!F$15,CalculationsAndCharts!$A101+$A$11,IF($C$7,8,0),1,1) -> 125.6 | AE101: 85.41 | AF101: 74.27 | AG101: 11.14 | AH101: 95.06283662 | AI101: 126.51 | AJ101: 117.66 | AK101: 8.85 | AL101: 89.71751412 | AM101: 5.3453225 | AN101: 15.11868413 | AO101: -28.21806881 | AP101: 43.33675294 | AQ101: 77.44786822 | AS101: 10 | AT101: 50 | AU101: TRUE | AV101: FALSE | AW101: 80.27 | AX101: FALSE | AY101: TRUE | AZ101: FALSE | BA101: 0 | BB101: 0 | BC101: FALSE | BD101: FALSE | BE101: FALSE | BF101: FALSE | BG101: 0 | BH101: 0 | BI101: 5329.88 | BJ101: 0.01787213626 | BK101: 0.004237626929 | BL101: 122.7521667 | BM101: FALSE | BN101: 0 | BO101: 0 | BP101: 0.02028002904 | BQ101: 0.008194727595 | BR101: FALSE | BS101: 0 | BT101: 0 | BU101: -2391.01 | BV101: 2938.87
A102: 70 | B102: =OFFSET(InputPriceData!B$15,CalculationsAndCharts!$A102+$A$11,0,1,1) -> 2011-03-31 | C102: =OFFSET(InputPriceData!G$15,CalculationsAndCharts!$A102+$A$11,IF($C$7,8,0),1,1) -> 3645900 | D102: =OFFSET(InputPriceData!C$15,CalculationsAndCharts!$A102+$A$11,IF($C$7,8,0),1,1) -> 82.93 | E102: =OFFSET(InputPriceData!D$15,CalculationsAndCharts!$A102+$A$11,IF($C$7,8,0),1,1) -> 84.25 | F102: =OFFSET(InputPriceData!E$15,CalculationsAndCharts!$A102+$A$11,IF($C$7,8,0),1,1) -> 82.8 | G102: =OFFSET(InputPriceData!F$15,CalculationsAndCharts!$A102+$A$11,IF($C$7,8,0),1,1) -> 83.37 | H102: FALSE | J102: FALSE | K102: FALSE | M102: FALSE | O102: FALSE | P102: FALSE | R102: =OFFSET(InputIndexData!$B$15,CalculationsAndCharts!$A102+$A$11,0,1,1) -> 2011-03-31 | S102: =OFFSET(InputIndexData!C$15,CalculationsAndCharts!$A102+$A$11,IF($C$7,8,0),1,1) -> 125.08 | T102: =OFFSET(InputIndexData!D$15,CalculationsAndCharts!$A102+$A$11,IF($C$7,8,0),1,1) -> 125.42 | U102: =OFFSET(InputIndexData!E$15,CalculationsAndCharts!$A102+$A$11,IF($C$7,8,0),1,1) -> 124.94 | V102: =OFFSET(InputIndexData!F$15,CalculationsAndCharts!$A102+$A$11,IF($C$7,8,0),1,1) -> 125.07 | AE102: 85.41 | AF102: 74.27 | AG102: 11.14 | AH102: 81.68761221 | AI102: 126.51 | AJ102: 117.66 | AK102: 8.85 | AL102: 83.72881356 | AM102: -2.041201351 | AN102: 15.11868413 | AO102: -28.21806881 | AP102: 43.33675294 | AQ102: 60.403389 | AS102: 10 | AT102: 50 | AU102: TRUE | AV102: FALSE | AW102: 80.27 | AX102: FALSE | AY102: TRUE | AZ102: FALSE | BA102: 0 | BB102: 0 | BC102: FALSE | BD102: FALSE | BE102: FALSE | BF102: FALSE | BG102: 0 | BH102: 0 | BI102: 5329.88 | BJ102: 0.01670731707 | BK102: -0.001357393804 | BL102: 122.6568333 | BM102: FALSE | BN102: =IF(BM103,-1,IF(BR103,0,BN103)) -> 0 | BO102: 0 | BP102: 0.020343583 | BQ102: 0.008202346124 | BR102: FALSE | BS102: 0 | BT102: 0 | BU102: -2391.01 | BV102: 2938.87
A103: 71 | B103: =OFFSET(InputPriceData!B$15,CalculationsAndCharts!$A103+$A$11,0,1,1) -> 2011-03-30 | C103: =OFFSET(InputPriceData!G$15,CalculationsAndCharts!$A103+$A$11,IF($C$7,8,0),1,1) -> 1821300 | D103: =OFFSET(InputPriceData!C$15,CalculationsAndCharts!$A103+$A$11,IF($C$7,8,0),1,1) -> 82.08 | E103: =OFFSET(InputPriceData!D$15,CalculationsAndCharts!$A103+$A$11,IF($C$7,8,0),1,1) -> 83.02 | F103: =OFFSET(InputPriceData!E$15,CalculationsAndCharts!$A103+$A$11,IF($C$7,8,0),1,1) -> 81.41 | G103: =OFFSET(InputPriceData!F$15,CalculationsAndCharts!$A103+$A$11,IF($C$7,8,0),1,1) -> 82 | H103: FALSE | J103: FALSE | K103: FALSE | M103: FALSE | O103: FALSE | P103: FALSE | R103: =OFFSET(InputIndexData!$B$15,CalculationsAndCharts!$A103+$A$11,0,1,1) -> 2011-03-30 | S103: =OFFSET(InputIndexData!C$15,CalculationsAndCharts!$A103+$A$11,IF($C$7,8,0),1,1) -> 125.03 | T103: =OFFSET(InputIndexData!D$15,CalculationsAndCharts!$A103+$A$11,IF($C$7,8,0),1,1) -> 125.61 | U103: =OFFSET(InputIndexData!E$15,CalculationsAndCharts!$A103+$A$11,IF($C$7,8,0),1,1) -> 124.85 | V103: =OFFSET(InputIndexData!F$15,CalculationsAndCharts!$A103+$A$11,IF($C$7,8,0),1,1) -> 125.24 | AE103: 85.41 | AF103: 74.27 | AG103: 11.14 | AH103: 69.38958707 | AI103: 126.51 | AJ103: 117.66 | AK103: 8.85 | AL103: 85.64971751 | AM103: -16.26013044 | AN103: 15.11868413 | AO103: -28.21806881 | AP103: 43.33675294 | AQ103: 27.59306491 | AS103: 10 | AT103: 50 | AU103: TRUE | AV103: FALSE | AW103: 80.27 | AX103: FALSE | AY103: FALSE | AZ103: FALSE | BA103: 0 | BB103: 0 | BC103: FALSE | BD103: FALSE | BE103: FALSE | BF103: FALSE | BG103: 0 | BH103: 0 | BI103: 5329.88 | BJ103: 0.005271545911 | BK103: 0.006833346732 | BL103: 122.56 | BM103: FALSE | BN103: 0 | BO103: 0 | BP103: 0.0202535461 | BQ103: 0.008199518239 | BR103: FALSE | BS103: 0 | BT103: 0 | BU103: -2391.01 | BV103: 2938.87
A104: 72 | B104: =OFFSET(InputPriceData!B$15,CalculationsAndCharts!$A104+$A$11,0,1,1) -> 2011-03-29 | C104: =OFFSET(InputPriceData!G$15,CalculationsAndCharts!$A104+$A$11,IF($C$7,8,0),1,1) -> 2212000 | D104: =OFFSET(InputPriceData!C$15,CalculationsAndCharts!$A104+$A$11,IF($C$7,8,0),1,1) -> 81.01 | E104: =OFFSET(InputPriceData!D$15,CalculationsAndCharts!$A104+$A$11,IF($C$7,8,0),1,1) -> 81.86 | F104: =OFFSET(InputPriceData!E$15,CalculationsAndCharts!$A104+$A$11,IF($C$7,8,0),1,1) -> 80.16 | G104: =OFFSET(InputPriceData!F$15,CalculationsAndCharts!$A104+$A$11,IF($C$7,8,0),1,1) -> 81.57 | H104: FALSE | J104: FALSE | K104: FALSE | M104: FALSE | O104: FALSE | P104: FALSE | R104: =OFFSET(InputIndexData!$B$15,CalculationsAndCharts!$A104+$A$11,0,1,1) -> 2011-03-29 | S104: =OFFSET(InputIndexData!C$15,CalculationsAndCharts!$A104+$A$11,IF($C$7,8,0),1,1) -> 123.46 | T104: =OFFSET(InputIndexData!D$15,CalculationsAndCharts!$A104+$A$11,IF($C$7,8,0),1,1) -> 124.43 | U104: =OFFSET(InputIndexData!E$15,CalculationsAndCharts!$A104+$A$11,IF($C$7,8,0),1,1) -> 123.05 | V104: =OFFSET(InputIndexData!F$15,CalculationsAndCharts!$A104+$A$11,IF($C$7,8,0),1,1) -> 124.39 | AE104: 85.41 | AF104: 74.27 | AG104: 11.14 | AH104: 65.52962298 | AI104: 126.51 | AJ104: 117.66 | AK104: 8.85 | AL104: 76.04519774 | AM104: -10.51557476 | AN104: 15.11868413 | AO104: -28.21806881 | AP104: 43.33675294 | AQ104: 40.84868581 | AS104: 10 | AT104: 50 | AU104: TRUE | AV104: FALSE | AW104: 80.27 | AX104: FALSE | AY104: FALSE | AZ104: FALSE | BA104: 0 | BB104: 0 | BC104: FALSE | BD104: FALSE | BE104: FALSE | BF104: FALSE | BG104: 0 | BH104: 0 | BI104: 5329.88 | BJ104: 0.00480413895 | BK104: 0.006717384267 | BL104: 122.4615 | BM104: FALSE | BN104: 0 | BO104: 0 | BP104: 0.02028828102 | BQ104: 0.008254142426 | BR104: FALSE | BS104: 0 | BT104: 0 | BU104: -2391.01 | BV104: 2938.87
A105: 73 | B105: =OFFSET(InputPriceData!B$15,CalculationsAndCharts!$A105+$A$11,0,1,1) -> 2011-03-28 | C105: =OFFSET(InputPriceData!G$15,CalculationsAndCharts!$A105+$A$11,IF($C$7,8,0),1,1) -> 1705300 | D105: =OFFSET(InputPriceData!C$15,CalculationsAndCharts!$A105+$A$11,IF($C$7,8,0),1,1) -> 82.6 | E105: =OFFSET(InputPriceData!D$15,CalculationsAndCharts!$A105+$A$11,IF($C$7,8,0),1,1) -> 83.17 | F105: =OFFSET(InputPriceData!E$15,CalculationsAndCharts!$A105+$A$11,IF($C$7,8,0),1,1) -> 81.14 | G105: =OFFSET(InputPriceData!F$15,CalculationsAndCharts!$A105+$A$11,IF($C$7,8,0),1,1) -> 81.18 | H105: FALSE | J105: FALSE | K105: FALSE | M105: FALSE | O105: FALSE | P105: FALSE | R105: =OFFSET(InputIndexData!$B$15,CalculationsAndCharts!$A105+$A$11,0,1,1) -> 2011-03-28 | S105: =OFFSET(InputIndexData!C$15,CalculationsAndCharts!$A105+$A$11,IF($C$7,8,0),1,1) -> 124.13 | T105: =OFFSET(InputIndexData!D$15,CalculationsAndCharts!$A105+$A$11,IF($C$7,8,0),1,1) -> 124.45 | U105: =OFFSET(InputIndexData!E$15,CalculationsAndCharts!$A105+$A$11,IF($C$7,8,0),1,1) -> 123.52 | V105: =OFFSET(InputIndexData!F$15,CalculationsAndCharts!$A105+$A$11,IF($C$7,8,0),1,1) -> 123.56 | AE105: 85.41 | AF105: 74.12 | AG105: 11.29 | AH105: 62.53321523 | AI105: 126.51 | AJ105: 117.66 | AK105: 8.85 | AL105: 66.66666667 | AM105: -4.133451432 | AN105: 15.11868413 | AO105: -28.21806881 | AP105: 43.33675294 | AQ105: 55.57550057 | AS105: 10 | AT105: 50 | AU105: TRUE | AV105: FALSE | AW105: 80.27 | AX105: FALSE | AY105: TRUE | AZ105: FALSE | BA105: 0 | BB105: 0 | BC105: FALSE | BD105: FALSE | BE105: FALSE | BF105: FALSE | BG105: 0 | BH105: 0 | BI105: 5329.88 | BJ105: -0.0164768597 | BK105: -0.002422089456 | BL105: 122.3568333 | BM105: FALSE | BN105: 0 | BO105: 0 | BP105: 0.02028419596 | BQ105: 0.008219595192 | BR105: FALSE | BS105: 0 | BT105: 0 | BU105: -2391.01 | BV105: 2938.87
A106: 74 | B106: =OFFSET(InputPriceData!B$15,CalculationsAndCharts!$A106+$A$11,0,1,1) -> 2011-03-25 | C106: =OFFSET(InputPriceData!G$15,CalculationsAndCharts!$A106+$A$11,IF($C$7,8,0),1,1) -> 3177200 | D106: =OFFSET(InputPriceData!C$15,CalculationsAndCharts!$A106+$A$11,IF($C$7,8,0),1,1) -> 80.46 | E106: =OFFSET(InputPriceData!D$15,CalculationsAndCharts!$A106+$A$11,IF($C$7,8,0),1,1) -> 82.79 | F106: =OFFSET(InputPriceData!E$15,CalculationsAndCharts!$A106+$A$11,IF($C$7,8,0),1,1) -> 79.61 | G106: =OFFSET(InputPriceData!F$15,CalculationsAndCharts!$A106+$A$11,IF($C$7,8,0),1,1) -> 82.54 | H106: FALSE | J106: FALSE | K106: FALSE | M106: FALSE | O106: FALSE | P106: FALSE | R106: =OFFSET(InputIndexData!$B$15,CalculationsAndCharts!$A106+$A$11,0,1,1) -> 2011-03-25 | S106: =OFFSET(InputIndexData!C$15,CalculationsAndCharts!$A106+$A$11,IF($C$7,8,0),1,1) -> 123.8 | T106: =OFFSET(InputIndexData!D$15,CalculationsAndCharts!$A106+$A$11,IF($C$7,8,0),1,1) -> 124.4 | U106: =OFFSET(InputIndexData!E$15,CalculationsAndCharts!$A106+$A$11,IF($C$7,8,0),1,1) -> 123.47 | V106: =OFFSET(InputIndexData!F$15,CalculationsAndCharts!$A106+$A$11,IF($C$7,8,0),1,1) -> 123.86 | AE106: 85.41 | AF106: 74.12 | AG106: 11.29 | AH106: 74.57927369 | AI106: 126.51 | AJ106: 117.66 | AK106: 8.85 | AL106: 70.05649718 | AM106: 4.522776518 | AN106: 15.11868413 | AO106: -28.21806881 | AP106: 43.33675294 | AQ106: 75.54983497 | AS106: 10 | AT106: 50 | AU106: TRUE | AV106: FALSE | AW106: 80.27 | AX106: FALSE | AY106: TRUE | AZ106: FALSE | BA106: 0 | BB106: 0 | BC106: FALSE | BD106: FALSE | BE106: FALSE | BF106: FALSE | BG106: 0 | BH106: 0 | BI106: 5329.88 | BJ106: 0.02700012442 | BK106: 0.003077421445 | BL106: 122.2655 | BM106: FALSE | BN106: 0 | BO106: 0 | BP106: 0.02014878318 | BQ106: 0.008214944606 | BR106: FALSE | BS106: 0 | BT106: 0 | BU106: -2391.01 | BV106: 2938.87
A107: 75 | B107: =OFFSET(InputPriceData!B$15,CalculationsAndCharts!$A107+$A$11,0,1,1) -> 2011-03-24 | C107: =OFFSET(InputPriceData!G$15,CalculationsAndCharts!$A107+$A$11,IF($C$7,8,0),1,1) -> 2550100 | D107: =OFFSET(InputPriceData!C$15,CalculationsAndCharts!$A107+$A$11,IF($C$7,8,0),1,1) -> 79.45 | E107: =OFFSET(InputPriceData!D$15,CalculationsAndCharts!$A107+$A$11,IF($C$7,8,0),1,1) -> 80.38 | F107: =OFFSET(InputPriceData!E$15,CalculationsAndCharts!$A107+$A$11,IF($C$7,8,0),1,1) -> 78.39 | G107: =OFFSET(InputPriceData!F$15,CalculationsAndCharts!$A107+$A$11,IF($C$7,8,0),1,1) -> 80.37 | H107: FALSE | J107: FALSE | K107: FALSE | M107: FALSE | O107: FALSE | P107: FALSE | R107: =OFFSET(InputIndexData!$B$15,CalculationsAndCharts!$A107+$A$11,0,1,1) -> 2011-03-24 | S107: =OFFSET(InputIndexData!C$15,CalculationsAndCharts!$A107+$A$11,IF($C$7,8,0),1,1) -> 123.01 | T107: =OFFSET(InputIndexData!D$15,CalculationsAndCharts!$A107+$A$11,IF($C$7,8,0),1,1) -> 123.66 | U107: =OFFSET(InputIndexData!E$15,CalculationsAndCharts!$A107+$A$11,IF($C$7,8,0),1,1) -> 122.32 | V107: =OFFSET(InputIndexData!F$15,CalculationsAndCharts!$A107+$A$11,IF($C$7,8,0),1,1) -> 123.48 | AE107: 85.41 | AF107: 73.37 | AG107: 12.04 | AH107: 58.13953488 | AI107: 126.51 | AJ107: 117.66 | AK107: 8.85 | AL107: 65.76271186 | AM107: -7.623176981 | AN107: 15.11868413 | AO107: -28.21806881 | AP107: 43.33675294 | AQ107: 47.52292323 | AS107: 10 | AT107: 50 | AU107: TRUE | AV107: FALSE | AW107: 80.27 | AX107: FALSE | AY107: FALSE | AZ107: FALSE | BA107: 0 | BB107: 0 | BC107: FALSE | BD107: FALSE | BE107: FALSE | BF107: FALSE | BG107: 0 | BH107: 0 | BI107: 5329.88 | BJ107: 0.01837303599 | BK107: 0.009565857248 | BL107: 122.1723333 | BM107: FALSE | BN107: 0 | BO107: 0 | BP107: 0.0199883003 | BQ107: 0.00820961031 | BR107: FALSE | BS107: 0 | BT107: 0 | BU107: -2391.01 | BV107: 2938.87
A108: 76 | B108: =OFFSET(InputPriceData!B$15,CalculationsAndCharts!$A108+$A$11,0,1,1) -> 2011-03-23 | C108: =OFFSET(InputPriceData!G$15,CalculationsAndCharts!$A108+$A$11,IF($C$7,8,0),1,1) -> 3532300 | D108: =OFFSET(InputPriceData!C$15,CalculationsAndCharts!$A108+$A$11,IF($C$7,8,0),1,1) -> 80.11 | E108: =OFFSET(InputPriceData!D$15,CalculationsAndCharts!$A108+$A$11,IF($C$7,8,0),1,1) -> 80.32 | F108: =OFFSET(InputPriceData!E$15,CalculationsAndCharts!$A108+$A$11,IF($C$7,8,0),1,1) -> 78.32 | G108: =OFFSET(InputPriceData!F$15,CalculationsAndCharts!$A108+$A$11,IF($C$7,8,0),1,1) -> 78.92 | H108: FALSE | J108: FALSE | K108: FALSE | M108: FALSE | O108: FALSE | P108: FALSE | R108: =OFFSET(InputIndexData!$B$15,CalculationsAndCharts!$A108+$A$11,0,1,1) -> 2011-03-23 | S108: =OFFSET(InputIndexData!C$15,CalculationsAndCharts!$A108+$A$11,IF($C$7,8,0),1,1) -> 121.62 | T108: =OFFSET(InputIndexData!D$15,CalculationsAndCharts!$A108+$A$11,IF($C$7,8,0),1,1) -> 122.63 | U108: =OFFSET(InputIndexData!E$15,CalculationsAndCharts!$A108+$A$11,IF($C$7,8,0),1,1) -> 121.05 | V108: =OFFSET(InputIndexData!F$15,CalculationsAndCharts!$A108+$A$11,IF($C$7,8,0),1,1) -> 122.31 | AE108: 85.41 | AF108: 73.23 | AG108: 12.18 | AH108: 46.71592775 | AI108: 126.51 | AJ108: 117.66 | AK108: 8.85 | AL108: 52.54237288 | AM108: -5.826445131 | AN108: 15.11868413 | AO108: -28.21806881 | AP108: 43.33675294 | AQ108: 51.66890032 | AS108: 10 | AT108: 50 | AU108: TRUE | AV108: FALSE | AW108: 80.27 | AX108: FALSE | AY108: TRUE | AZ108: FALSE | BA108: 0 | BB108: 0 | BC108: FALSE | BD108: FALSE | BE108: FALSE | BF108: FALSE | BG108: 0 | BH108: 0 | BI108: 5329.88 | BJ108: -0.01743027888 | BK108: 0.002869793375 | BL108: 122.084 | BM108: FALSE | BN108: 0 | BO108: 0 | BP108: 0.01987481604 | BQ108: 0.008129817891 | BR108: FALSE | BS108: 0 | BT108: 0 | BU108: -2391.01 | BV108: 2938.87
A109: 77 | B109: =OFFSET(InputPriceData!B$15,CalculationsAndCharts!$A109+$A$11,0,1,1) -> 2011-03-22 | C109: =OFFSET(InputPriceData!G$15,CalculationsAndCharts!$A109+$A$11,IF($C$7,8,0),1,1) -> 2365800 | D109: =OFFSET(InputPriceData!C$15,CalculationsAndCharts!$A109+$A$11,IF($C$7,8,0),1,1) -> 80.48 | E109: =OFFSET(InputPriceData!D$15,CalculationsAndCharts!$A109+$A$11,IF($C$7,8,0),1,1) -> 80.7 | F109: =OFFSET(InputPriceData!E$15,CalculationsAndCharts!$A109+$A$11,IF($C$7,8,0),1,1) -> 79.28 | G109: =OFFSET(InputPriceData!F$15,CalculationsAndCharts!$A109+$A$11,IF($C$7,8,0),1,1) -> 80.32 | H109: FALSE | J109: FALSE | K109: FALSE | M109: FALSE | O109: FALSE | P109: FALSE | R109: =OFFSET(InputIndexData!$B$15,CalculationsAndCharts!$A109+$A$11,0,1,1) -> 2011-03-22 | S109: =OFFSET(InputIndexData!C$15,CalculationsAndCharts!$A109+$A$11,IF($C$7,8,0),1,1) -> 122.37 | T109: =OFFSET(InputIndexData!D$15,CalculationsAndCharts!$A109+$A$11,IF($C$7,8,0),1,1) -> 122.53 | U109: =OFFSET(InputIndexData!E$15,CalculationsAndCharts!$A109+$A$11,IF($C$7,8,0),1,1) -> 121.85 | V109: =OFFSET(InputIndexData!F$15,CalculationsAndCharts!$A109+$A$11,IF($C$7,8,0),1,1) -> 121.96 | AE109: 85.41 | AF109: 72.92 | AG109: 12.49 | AH109: 59.24739792 | AI109: 126.51 | AJ109: 117.45 | AK109: 9.06 | AL109: 49.77924945 | AM109: 9.46814847 | AN109: 15.11868413 | AO109: -28.21806881 | AP109: 43.33675294 | AQ109: 86.96133125 | AS109: 10 | AT109: 50 | AU109: TRUE | AV109: FALSE | AW109: 80.27 | AX109: FALSE | AY109: TRUE | AZ109: FALSE | BA109: 0 | BB109: 0 | BC109: FALSE | BD109: FALSE | BE109: FALSE | BF109: FALSE | BG109: 0 | BH109: 0 | BI109: 5329.88 | BJ109: -0.000870755069 | BK109: -0.003513358935 | BL109: 122.0125 | BM109: FALSE | BN109: 0 | BO109: 0 | BP109: 0.01975898597 | BQ109: 0.008124607293 | BR109: FALSE | BS109: 0 | BT109: 0 | BU109: -2391.01 | BV109: 2938.87
A110: 78 | B110: =OFFSET(InputPriceData!B$15,CalculationsAndCharts!$A110+$A$11,0,1,1) -> 2011-03-21 | C110: =OFFSET(InputPriceData!G$15,CalculationsAndCharts!$A110+$A$11,IF($C$7,8,0),1,1) -> 2524800 | D110: =OFFSET(InputPriceData!C$15,CalculationsAndCharts!$A110+$A$11,IF($C$7,8,0),1,1) -> 79.58 | E110: =OFFSET(InputPriceData!D$15,CalculationsAndCharts!$A110+$A$11,IF($C$7,8,0),1,1) -> 80.57 | F110: =OFFSET(InputPriceData!E$15,CalculationsAndCharts!$A110+$A$11,IF($C$7,8,0),1,1) -> 79.17 | G110: =OFFSET(InputPriceData!F$15,CalculationsAndCharts!$A110+$A$11,IF($C$7,8,0),1,1) -> 80.39 | H110: FALSE | J110: FALSE | K110: FALSE | M110: FALSE | O110: FALSE | P110: FALSE | R110: =OFFSET(InputIndexData!$B$15,CalculationsAndCharts!$A110+$A$11,0,1,1) -> 2011-03-21 | S110: =OFFSET(InputIndexData!C$15,CalculationsAndCharts!$A110+$A$11,IF($C$7,8,0),1,1) -> 122.02 | T110: =OFFSET(InputIndexData!D$15,CalculationsAndCharts!$A110+$A$11,IF($C$7,8,0),1,1) -> 122.64 | U110: =OFFSET(InputIndexData!E$15,CalculationsAndCharts!$A110+$A$11,IF($C$7,8,0),1,1) -> 121.88 | V110: =OFFSET(InputIndexData!F$15,CalculationsAndCharts!$A110+$A$11,IF($C$7,8,0),1,1) -> 122.39 | AE110: 85.41 | AF110: 72.92 | AG110: 12.49 | AH110: 59.80784628 | AI110: 126.51 | AJ110: 117.45 | AK110: 9.06 | AL110: 54.52538631 | AM110: 5.282459964 | AN110: 15.11868413 | AO110: -28.21806881 | AP110: 43.33675294 | AQ110: 77.30281228 | AS110: 10 | AT110: 50 | AU110: TRUE | AV110: FALSE | AW110: 80.27 | AX110: FALSE | AY110: TRUE | AZ110: FALSE | BA110: 0 | BB110: 0 | BC110: FALSE | BD110: FALSE | BE110: FALSE | BF110: FALSE | BG110: 0 | BH110: 0 | BI110: 5329.88 | BJ110: 0.03236162835 | BK110: 0.01551609691 | BL110: 121.946 | BM110: FALSE | BN110: 0 | BO110: 0 | BP110: 0.01977148032 | BQ110: 0.008111485572 | BR110: FALSE | BS110: 0 | BT110: 0 | BU110: -2391.01 | BV110: 2938.87
A111: 79 | B111: =OFFSET(InputPriceData!B$15,CalculationsAndCharts!$A111+$A$11,0,1,1) -> 2011-03-18 | C111: =OFFSET(InputPriceData!G$15,CalculationsAndCharts!$A111+$A$11,IF($C$7,8,0),1,1) -> 3833900 | D111: =OFFSET(InputPriceData!C$15,CalculationsAndCharts!$A111+$A$11,IF($C$7,8,0),1,1) -> 79.91 | E111: =OFFSET(InputPriceData!D$15,CalculationsAndCharts!$A111+$A$11,IF($C$7,8,0),1,1) -> 80.11 | F111: =OFFSET(InputPriceData!E$15,CalculationsAndCharts!$A111+$A$11,IF($C$7,8,0),1,1) -> 77.87 | G111: =OFFSET(InputPriceData!F$15,CalculationsAndCharts!$A111+$A$11,IF($C$7,8,0),1,1) -> 77.87 | H111: FALSE | J111: FALSE | K111: FALSE | M111: FALSE | O111: FALSE | P111: FALSE | R111: =OFFSET(InputIndexData!$B$15,CalculationsAndCharts!$A111+$A$11,0,1,1) -> 2011-03-18 | S111: =OFFSET(InputIndexData!C$15,CalculationsAndCharts!$A111+$A$11,IF($C$7,8,0),1,1) -> 121.54 | T111: =OFFSET(InputIndexData!D$15,CalculationsAndCharts!$A111+$A$11,IF($C$7,8,0),1,1) -> 121.58 | U111: =OFFSET(InputIndexData!E$15,CalculationsAndCharts!$A111+$A$11,IF($C$7,8,0),1,1) -> 120.28 | V111: =OFFSET(InputIndexData!F$15,CalculationsAndCharts!$A111+$A$11,IF($C$7,8,0),1,1) -> 120.52 | AE111: 85.41 | AF111: 72.92 | AG111: 12.49 | AH111: 39.63170536 | AI111: 126.51 | AJ111: 117.45 | AK111: 9.06 | AL111: 33.88520971 | AM111: 5.746495651 | AN111: 15.11868413 | AO111: -28.21806881 | AP111: 43.33675294 | AQ111: 78.37357936 | AS111: 10 | AT111: 50 | AU111: TRUE | AV111: FALSE | AW111: 80.27 | AX111: FALSE | AY111: TRUE | AZ111: FALSE | BA111: 0 | BB111: 0 | BC111: FALSE | BD111: FALSE | BE111: FALSE | BF111: FALSE | BG111: 0 | BH111: 0 | BI111: 5329.88 | BJ111: -0.008909252896 | BK111: 0.003664223851 | BL111: 121.8751667 | BM111: FALSE | BN111: 0 | BO111: 0 | BP111: 0.01935894424 | BQ111: 0.007884309047 | BR111: FALSE | BS111: 0 | BT111: 0 | BU111: -2391.01 | BV111: 2938.87
A112: 80 | B112: =OFFSET(InputPriceData!B$15,CalculationsAndCharts!$A112+$A$11,0,1,1) -> 2011-03-17 | C112: =OFFSET(InputPriceData!G$15,CalculationsAndCharts!$A112+$A$11,IF($C$7,8,0),1,1) -> 3471700 | D112: =OFFSET(InputPriceData!C$15,CalculationsAndCharts!$A112+$A$11,IF($C$7,8,0),1,1) -> 77.43 | E112: =OFFSET(InputPriceData!D$15,CalculationsAndCharts!$A112+$A$11,IF($C$7,8,0),1,1) -> 79.18 | F112: =OFFSET(InputPriceData!E$15,CalculationsAndCharts!$A112+$A$11,IF($C$7,8,0),1,1) -> 77.02 | G112: =OFFSET(InputPriceData!F$15,CalculationsAndCharts!$A112+$A$11,IF($C$7,8,0),1,1) -> 78.57 | H112: FALSE | J112: FALSE | K112: FALSE | M112: FALSE | O112: FALSE | P112: FALSE | R112: =OFFSET(InputIndexData!$B$15,CalculationsAndCharts!$A112+$A$11,0,1,1) -> 2011-03-17 | S112: =OFFSET(InputIndexData!C$15,CalculationsAndCharts!$A112+$A$11,IF($C$7,8,0),1,1) -> 120.22 | T112: =OFFSET(InputIndexData!D$15,CalculationsAndCharts!$A112+$A$11,IF($C$7,8,0),1,1) -> 120.59 | U112: =OFFSET(InputIndexData!E$15,CalculationsAndCharts!$A112+$A$11,IF($C$7,8,0),1,1) -> 119.38 | V112: =OFFSET(InputIndexData!F$15,CalculationsAndCharts!$A112+$A$11,IF($C$7,8,0),1,1) -> 120.08 | AE112: 85.41 | AF112: 72.87 | AG112: 12.54 | AH112: 45.45454545 | AI112: 126.51 | AJ112: 117.28 | AK112: 9.23 | AL112: 30.33586132 | AM112: 15.11868413 | AN112: 15.11868413 | AO112: -28.21806881 | AP112: 43.33675294 | AQ112: 100 | AS112: 10 | AT112: 50 | AU112: TRUE | AV112: FALSE | AW112: 80.27 | AX112: FALSE | AY112: TRUE | AZ112: FALSE | BA112: 0 | BB112: 0 | BC112: FALSE | BD112: FALSE | BE112: FALSE | BF112: FALSE | BG112: 0 | BH112: 0 | BI112: 5329.88 | BJ112: 0.02545027408 | BK112: 0.01324782719 | BL112: 121.8293333 | BM112: FALSE | BN112: 0 | BO112: 0 | BP112: 0.01944990521 | BQ112: 0.007909873299 | BR112: FALSE | BS112: 0 | BT112: 0 | BU112: -2391.01 | BV112: 2938.87
A113: 81 | B113: =OFFSET(InputPriceData!B$15,CalculationsAndCharts!$A113+$A$11,0,1,1) -> 2011-03-16 | C113: =OFFSET(InputPriceData!G$15,CalculationsAndCharts!$A113+$A$11,IF($C$7,8,0),1,1) -> 4004700 | D113: =OFFSET(InputPriceData!C$15,CalculationsAndCharts!$A113+$A$11,IF($C$7,8,0),1,1) -> 77.25 | E113: =OFFSET(InputPriceData!D$15,CalculationsAndCharts!$A113+$A$11,IF($C$7,8,0),1,1) -> 78.93 | F113: =OFFSET(InputPriceData!E$15,CalculationsAndCharts!$A113+$A$11,IF($C$7,8,0),1,1) -> 75.26 | G113: =OFFSET(InputPriceData!F$15,CalculationsAndCharts!$A113+$A$11,IF($C$7,8,0),1,1) -> 76.62 | H113: FALSE | J113: FALSE | K113: FALSE | M113: FALSE | O113: FALSE | P113: FALSE | R113: =OFFSET(InputIndexData!$B$15,CalculationsAndCharts!$A113+$A$11,0,1,1) -> 2011-03-16 | S113: =OFFSET(InputIndexData!C$15,CalculationsAndCharts!$A113+$A$11,IF($C$7,8,0),1,1) -> 120.36 | T113: =OFFSET(InputIndexData!D$15,CalculationsAndCharts!$A113+$A$11,IF($C$7,8,0),1,1) -> 120.75 | U113: =OFFSET(InputIndexData!E$15,CalculationsAndCharts!$A113+$A$11,IF($C$7,8,0),1,1) -> 117.66 | V113: =OFFSET(InputIndexData!F$15,CalculationsAndCharts!$A113+$A$11,IF($C$7,8,0),1,1) -> 118.51 | AE113: 85.41 | AF113: 72.56 | AG113: 12.85 | AH113: 31.59533074 | AI113: 126.51 | AJ113: 116.45 | AK113: 10.06 | AL113: 20.47713718 | AM113: 11.11819356 | AN113: 14.53481927 | AO113: -28.21806881 | AP113: 42.75288808 | AQ113: 92.00843298 | AS113: 10 | AT113: 50 | AU113: TRUE | AV113: FALSE | AW113: 80.27 | AX113: FALSE | AY113: TRUE | AZ113: FALSE | BA113: 0 | BB113: 0 | BC113: FALSE | BD113: FALSE | BE113: FALSE | BF113: FALSE | BG113: 0 | BH113: 0 | BI113: 5329.88 | BJ113: -0.002733307302 | BK113: -0.01855072464 | BL113: 121.7785 | BM113: FALSE | BN113: 0 | BO113: 0 | BP113: 0.0192599982 | BQ113: 0.007737612046 | BR113: FALSE | BS113: 0 | BT113: 0 | BU113: -2391.01 | BV113: 2938.87
A114: 82 | B114: =OFFSET(InputPriceData!B$15,CalculationsAndCharts!$A114+$A$11,0,1,1) -> 2011-03-15 | C114: =OFFSET(InputPriceData!G$15,CalculationsAndCharts!$A114+$A$11,IF($C$7,8,0),1,1) -> 3127600 | D114: =OFFSET(InputPriceData!C$15,CalculationsAndCharts!$A114+$A$11,IF($C$7,8,0),1,1) -> 74.71 | E114: =OFFSET(InputPriceData!D$15,CalculationsAndCharts!$A114+$A$11,IF($C$7,8,0),1,1) -> 77.58 | F114: =OFFSET(InputPriceData!E$15,CalculationsAndCharts!$A114+$A$11,IF($C$7,8,0),1,1) -> 74.56 | G114: =OFFSET(InputPriceData!F$15,CalculationsAndCharts!$A114+$A$11,IF($C$7,8,0),1,1) -> 76.83 | H114: FALSE | J114: FALSE | K114: FALSE | M114: FALSE | O114: FALSE | P114: FALSE | R114: =OFFSET(InputIndexData!$B$15,CalculationsAndCharts!$A114+$A$11,0,1,1) -> 2011-03-15 | S114: =OFFSET(InputIndexData!C$15,CalculationsAndCharts!$A114+$A$11,IF($C$7,8,0),1,1) -> 118.9 | T114: =OFFSET(InputIndexData!D$15,CalculationsAndCharts!$A114+$A$11,IF($C$7,8,0),1,1) -> 121.47 | U114: =OFFSET(InputIndexData!E$15,CalculationsAndCharts!$A114+$A$11,IF($C$7,8,0),1,1) -> 118.82 | V114: =OFFSET(InputIndexData!F$15,CalculationsAndCharts!$A114+$A$11,IF($C$7,8,0),1,1) -> 120.75 | AE114: 85.41 | AF114: 72.56 | AG114: 12.85 | AH114: 33.22957198 | AI114: 126.51 | AJ114: 116.3 | AK114: 10.21 | AL114: 43.58472086 | AM114: -10.35514888 | AN114: 14.53481927 | AO114: -28.21806881 | AP114: 42.75288808 | AQ114: 41.78178537 | AS114: 10 | AT114: 50 | AU114: TRUE | AV114: FALSE | AW114: 80.27 | AX114: FALSE | AY114: FALSE | AZ114: FALSE | BA114: 0 | BB114: 0 | BC114: FALSE | BD114: FALSE | BE114: FALSE | BF114: FALSE | BG114: 0 | BH114: 0 | BI114: 5329.88 | BJ114: -0.01030529434 | BK114: -0.01146131805 | BL114: 121.7491667 | BM114: FALSE | BN114: 0 | BO114: 0 | BP114: 0.01932469426 | BQ114: 0.007339294789 | BR114: FALSE | BS114: 0 | BT114: 0 | BU114: -2391.01 | BV114: 2938.87
A115: 83 | B115: =OFFSET(InputPriceData!B$15,CalculationsAndCharts!$A115+$A$11,0,1,1) -> 2011-03-14 | C115: =OFFSET(InputPriceData!G$15,CalculationsAndCharts!$A115+$A$11,IF($C$7,8,0),1,1) -> 2563500 | D115: =OFFSET(InputPriceData!C$15,CalculationsAndCharts!$A115+$A$11,IF($C$7,8,0),1,1) -> 77.57 | E115: =OFFSET(InputPriceData!D$15,CalculationsAndCharts!$A115+$A$11,IF($C$7,8,0),1,1) -> 77.95 | F115: =OFFSET(InputPriceData!E$15,CalculationsAndCharts!$A115+$A$11,IF($C$7,8,0),1,1) -> 76.56 | G115: =OFFSET(InputPriceData!F$15,CalculationsAndCharts!$A115+$A$11,IF($C$7,8,0),1,1) -> 77.63 | H115: FALSE | J115: FALSE | K115: FALSE | M115: FALSE | O115: FALSE | P115: FALSE | R115: =OFFSET(InputIndexData!$B$15,CalculationsAndCharts!$A115+$A$11,0,1,1) -> 2011-03-14 | S115: =OFFSET(InputIndexData!C$15,CalculationsAndCharts!$A115+$A$11,IF($C$7,8,0),1,1) -> 122.09 | T115: =OFFSET(InputIndexData!D$15,CalculationsAndCharts!$A115+$A$11,IF($C$7,8,0),1,1) -> 122.55 | U115: =OFFSET(InputIndexData!E$15,CalculationsAndCharts!$A115+$A$11,IF($C$7,8,0),1,1) -> 121.22 | V115: =OFFSET(InputIndexData!F$15,CalculationsAndCharts!$A115+$A$11,IF($C$7,8,0),1,1) -> 122.15 | AE115: 85.41 | AF115: 70.91 | AG115: 14.5 | AH115: 46.34482759 | AI115: 126.51 | AJ115: 115.62 | AK115: 10.89 | AL115: 59.96326905 | AM115: -13.61844147 | AN115: 14.53481927 | AO115: -28.21806881 | AP115: 42.75288808 | AQ115: 34.14886806 | AS115: 10 | AT115: 50 | AU115: TRUE | AV115: FALSE | AW115: 80.27 | AX115: FALSE | AY115: FALSE | AZ115: FALSE | BA115: 0 | BB115: 0 | BC115: FALSE | BD115: FALSE | BE115: FALSE | BF115: FALSE | BG115: 0 | BH115: 0 | BI115: 5329.88 | BJ115: -0.01045251753 | BK115: -0.006021645374 | BL115: 121.6803333 | BM115: FALSE | BN115: 0 | BO115: 0 | BP115: 0.01938465499 | BQ115: 0.007197282655 | BR115: FALSE | BS115: 0 | BT115: 0 | BU115: -2391.01 | BV115: 2938.87
A116: 84 | B116: =OFFSET(InputPriceData!B$15,CalculationsAndCharts!$A116+$A$11,0,1,1) -> 2011-03-11 | C116: =OFFSET(InputPriceData!G$15,CalculationsAndCharts!$A116+$A$11,IF($C$7,8,0),1,1) -> 3872200 | D116: =OFFSET(InputPriceData!C$15,CalculationsAndCharts!$A116+$A$11,IF($C$7,8,0),1,1) -> 76.44 | E116: =OFFSET(InputPriceData!D$15,CalculationsAndCharts!$A116+$A$11,IF($C$7,8,0),1,1) -> 78.98 | F116: =OFFSET(InputPriceData!E$15,CalculationsAndCharts!$A116+$A$11,IF($C$7,8,0),1,1) -> 76.32 | G116: =OFFSET(InputPriceData!F$15,CalculationsAndCharts!$A116+$A$11,IF($C$7,8,0),1,1) -> 78.45 | H116: FALSE | J116: FALSE | K116: FALSE | M116: FALSE | O116: FALSE | P116: FALSE | R116: =OFFSET(InputIndexData!$B$15,CalculationsAndCharts!$A116+$A$11,0,1,1) -> 2011-03-11 | S116: =OFFSET(InputIndexData!C$15,CalculationsAndCharts!$A116+$A$11,IF($C$7,8,0),1,1) -> 121.65 | T116: =OFFSET(InputIndexData!D$15,CalculationsAndCharts!$A116+$A$11,IF($C$7,8,0),1,1) -> 123.33 | U116: =OFFSET(InputIndexData!E$15,CalculationsAndCharts!$A116+$A$11,IF($C$7,8,0),1,1) -> 121.62 | V116: =OFFSET(InputIndexData!F$15,CalculationsAndCharts!$A116+$A$11,IF($C$7,8,0),1,1) -> 122.89 | AE116: 85.41 | AF116: 70.91 | AG116: 14.5 | AH116: 52 | AI116: 126.51 | AJ116: 115.62 | AK116: 10.89 | AL116: 66.75849403 | AM116: -14.75849403 | AN116: 14.53481927 | AO116: -28.21806881 | AP116: 42.75288808 | AQ116: 31.48225859 | AS116: 10 | AT116: 50 | AU116: TRUE | AV116: FALSE | AW116: 80.27 | AX116: FALSE | AY116: FALSE | AZ116: FALSE | BA116: 0 | BB116: 0 | BC116: FALSE | BD116: FALSE | BE116: FALSE | BF116: FALSE | BG116: 0 | BH116: 0 | BI116: 5329.88 | BJ116: 0.01830218069 | BK116: 0.006964929531 | BL116: 121.577 | BM116: FALSE | BN116: 0 | BO116: 0 | BP116: 0.01940044226 | BQ116: 0.007176149681 | BR116: FALSE | BS116: 0 | BT116: 0 | BU116: -2391.01 | BV116: 2938.87
A117: 85 | B117: =OFFSET(InputPriceData!B$15,CalculationsAndCharts!$A117+$A$11,0,1,1) -> 2011-03-10 | C117: =OFFSET(InputPriceData!G$15,CalculationsAndCharts!$A117+$A$11,IF($C$7,8,0),1,1) -> 5482000 | D117: =OFFSET(InputPriceData!C$15,CalculationsAndCharts!$A117+$A$11,IF($C$7,8,0),1,1) -> 79.98 | E117: =OFFSET(InputPriceData!D$15,CalculationsAndCharts!$A117+$A$11,IF($C$7,8,0),1,1) -> 80.2 | F117: =OFFSET(InputPriceData!E$15,CalculationsAndCharts!$A117+$A$11,IF($C$7,8,0),1,1) -> 76.96 | G117: =OFFSET(InputPriceData!F$15,CalculationsAndCharts!$A117+$A$11,IF($C$7,8,0),1,1) -> 77.04 | H117: FALSE | J117: FALSE | K117: FALSE | M117: FALSE | O117: FALSE | P117: FALSE | R117: =OFFSET(InputIndexData!$B$15,CalculationsAndCharts!$A117+$A$11,0,1,1) -> 2011-03-10 | S117: =OFFSET(InputIndexData!C$15,CalculationsAndCharts!$A117+$A$11,IF($C$7,8,0),1,1) -> 123.04 | T117: =OFFSET(InputIndexData!D$15,CalculationsAndCharts!$A117+$A$11,IF($C$7,8,0),1,1) -> 123.2 | U117: =OFFSET(InputIndexData!E$15,CalculationsAndCharts!$A117+$A$11,IF($C$7,8,0),1,1) -> 121.92 | V117: =OFFSET(InputIndexData!F$15,CalculationsAndCharts!$A117+$A$11,IF($C$7,8,0),1,1) -> 122.04 | AE117: 85.41 | AF117: 70.91 | AG117: 14.5 | AH117: 42.27586207 | AI117: 126.51 | AJ117: 115.62 | AK117: 10.89 | AL117: 58.95316804 | AM117: -16.67730598 | AN117: 14.53481927 | AO117: -28.21806881 | AP117: 42.75288808 | AQ117: 26.99411281 | AS117: 10 | AT117: 50 | AU117: TRUE | AV117: FALSE | AW117: 80.27 | AX117: FALSE | AY117: FALSE | AZ117: FALSE | BA117: 0 | BB117: 0 | BC117: FALSE | BD117: FALSE | BE117: FALSE | BF117: FALSE | BG117: 0 | BH117: 0 | BI117: 5329.88 | BJ117: -0.05134835611 | BK117: -0.01857659831 | BL117: 121.4701667 | BM117: FALSE | BN117: 0 | BO117: 0 | BP117: 0.01927866242 | BQ117: 0.007132855033 | BR117: FALSE | BS117: 0 | BT117: 0 | BU117: -2391.01 | BV117: 2938.87
A118: 86 | B118: =OFFSET(InputPriceData!B$15,CalculationsAndCharts!$A118+$A$11,0,1,1) -> 2011-03-09 | C118: =OFFSET(InputPriceData!G$15,CalculationsAndCharts!$A118+$A$11,IF($C$7,8,0),1,1) -> 1987100 | D118: =OFFSET(InputPriceData!C$15,CalculationsAndCharts!$A118+$A$11,IF($C$7,8,0),1,1) -> 81.4 | E118: =OFFSET(InputPriceData!D$15,CalculationsAndCharts!$A118+$A$11,IF($C$7,8,0),1,1) -> 82.27 | F118: =OFFSET(InputPriceData!E$15,CalculationsAndCharts!$A118+$A$11,IF($C$7,8,0),1,1) -> 80.78 | G118: =OFFSET(InputPriceData!F$15,CalculationsAndCharts!$A118+$A$11,IF($C$7,8,0),1,1) -> 81.21 | H118: FALSE | J118: FALSE | K118: FALSE | M118: FALSE | O118: FALSE | P118: FALSE | R118: =OFFSET(InputIndexData!$B$15,CalculationsAndCharts!$A118+$A$11,0,1,1) -> 2011-03-09 | S118: =OFFSET(InputIndexData!C$15,CalculationsAndCharts!$A118+$A$11,IF($C$7,8,0),1,1) -> 124.28 | T118: =OFFSET(InputIndexData!D$15,CalculationsAndCharts!$A118+$A$11,IF($C$7,8,0),1,1) -> 124.74 | U118: =OFFSET(InputIndexData!E$15,CalculationsAndCharts!$A118+$A$11,IF($C$7,8,0),1,1) -> 123.61 | V118: =OFFSET(InputIndexData!F$15,CalculationsAndCharts!$A118+$A$11,IF($C$7,8,0),1,1) -> 124.35 | AE118: 85.41 | AF118: 70.91 | AG118: 14.5 | AH118: 71.03448276 | AI118: 126.51 | AJ118: 115.62 | AK118: 10.89 | AL118: 80.16528926 | AM118: -9.130806498 | AN118: 14.53481927 | AO118: -28.21806881 | AP118: 42.75288808 | AQ118: 44.64555068 | AS118: 10 | AT118: 50 | AU118: TRUE | AV118: FALSE | AW118: 80.27 | AX118: FALSE | AY118: FALSE | AZ118: FALSE | BA118: 0 | BB118: 0 | BC118: FALSE | BD118: FALSE | BE118: FALSE | BF118: FALSE | BG118: 0 | BH118: 0 | BI118: 5329.88 | BJ118: -0.008424908425 | BK118: -0.001365242531 | BL118: 121.3758333 | BM118: FALSE | BN118: 0 | BO118: 0 | BP118: 0.0180476335 | BQ118: 0.006671288189 | BR118: FALSE | BS118: 0 | BT118: 0 | BU118: -2391.01 | BV118: 2938.87
A119: 87 | B119: =OFFSET(InputPriceData!B$15,CalculationsAndCharts!$A119+$A$11,0,1,1) -> 2011-03-08 | C119: =OFFSET(InputPriceData!G$15,CalculationsAndCharts!$A119+$A$11,IF($C$7,8,0),1,1) -> 2693200 | D119: =OFFSET(InputPriceData!C$15,CalculationsAndCharts!$A119+$A$11,IF($C$7,8,0),1,1) -> 82.44 | E119: =OFFSET(InputPriceData!D$15,CalculationsAndCharts!$A119+$A$11,IF($C$7,8,0),1,1) -> 82.6 | F119: =OFFSET(InputPriceData!E$15,CalculationsAndCharts!$A119+$A$11,IF($C$7,8,0),1,1) -> 80.47 | G119: =OFFSET(InputPriceData!F$15,CalculationsAndCharts!$A119+$A$11,IF($C$7,8,0),1,1) -> 81.9 | H119: FALSE | J119: FALSE | K119: FALSE | M119: FALSE | O119: FALSE | P119: FALSE | R119: =OFFSET(InputIndexData!$B$15,CalculationsAndCharts!$A119+$A$11,0,1,1) -> 2011-03-08 | S119: =OFFSET(InputIndexData!C$15,CalculationsAndCharts!$A119+$A$11,IF($C$7,8,0),1,1) -> 123.64 | T119: =OFFSET(InputIndexData!D$15,CalculationsAndCharts!$A119+$A$11,IF($C$7,8,0),1,1) -> 124.91 | U119: =OFFSET(InputIndexData!E$15,CalculationsAndCharts!$A119+$A$11,IF($C$7,8,0),1,1) -> 123.1 | V119: =OFFSET(InputIndexData!F$15,CalculationsAndCharts!$A119+$A$11,IF($C$7,8,0),1,1) -> 124.52 | AE119: 85.41 | AF119: 70.91 | AG119: 14.5 | AH119: 75.79310345 | AI119: 126.51 | AJ119: 115.6 | AK119: 10.91 | AL119: 81.75985335 | AM119: -5.966749897 | AN119: 14.53481927 | AO119: -28.21806881 | AP119: 42.75288808 | AQ119: 52.04635269 | AS119: 10 | AT119: 50 | AU119: TRUE | AV119: FALSE | AW119: 80.27 | AX119: FALSE | AY119: TRUE | AZ119: FALSE | BA119: 0 | BB119: 0 | BC119: FALSE | BD119: FALSE | BE119: FALSE | BF119: FALSE | BG119: 0 | BH119: 0 | BI119: 5329.88 | BJ119: -0.006550218341 | BK119: 0.00874918989 | BL119: 121.2416667 | BM119: FALSE | BN119: 0 | BO119: 0 | BP119: 0.01800995596 | BQ119: 0.006689445307 | BR119: FALSE | BS119: 0 | BT119: 0 | BU119: -2391.01 | BV119: 2938.87
A120: 88 | B120: =OFFSET(InputPriceData!B$15,CalculationsAndCharts!$A120+$A$11,0,1,1) -> 2011-03-07 | C120: =OFFSET(InputPriceData!G$15,CalculationsAndCharts!$A120+$A$11,IF($C$7,8,0),1,1) -> 2050600 | D120: =OFFSET(InputPriceData!C$15,CalculationsAndCharts!$A120+$A$11,IF($C$7,8,0),1,1) -> 83.02 | E120: =OFFSET(InputPriceData!D$15,CalculationsAndCharts!$A120+$A$11,IF($C$7,8,0),1,1) -> 84.01 | F120: =OFFSET(InputPriceData!E$15,CalculationsAndCharts!$A120+$A$11,IF($C$7,8,0),1,1) -> 81.65 | G120: =OFFSET(InputPriceData!F$15,CalculationsAndCharts!$A120+$A$11,IF($C$7,8,0),1,1) -> 82.44 | H120: FALSE | J120: FALSE | K120: FALSE | M120: FALSE | O120: FALSE | P120: FALSE | R120: =OFFSET(InputIndexData!$B$15,CalculationsAndCharts!$A120+$A$11,0,1,1) -> 2011-03-07 | S120: =OFFSET(InputIndexData!C$15,CalculationsAndCharts!$A120+$A$11,IF($C$7,8,0),1,1) -> 124.78 | T120: =OFFSET(InputIndexData!D$15,CalculationsAndCharts!$A120+$A$11,IF($C$7,8,0),1,1) -> 125.06 | U120: =OFFSET(InputIndexData!E$15,CalculationsAndCharts!$A120+$A$11,IF($C$7,8,0),1,1) -> 122.79 | V120: =OFFSET(InputIndexData!F$15,CalculationsAndCharts!$A120+$A$11,IF($C$7,8,0),1,1) -> 123.44 | AE120: 85.41 | AF120: 70.91 | AG120: 14.5 | AH120: 79.51724138 | AI120: 126.51 | AJ120: 115.06 | AK120: 11.45 | AL120: 73.18777293 | AM120: 6.329468454 | AN120: 14.53481927 | AO120: -28.21806881 | AP120: 42.75288808 | AQ120: 80.80749353 | AS120: 10 | AT120: 50 | AU120: TRUE | AV120: FALSE | AW120: 80.27 | AX120: FALSE | AY120: TRUE | AZ120: FALSE | BA120: 0 | BB120: 0 | BC120: FALSE | BD120: FALSE | BE120: FALSE | BF120: FALSE | BG120: 0 | BH120: 0 | BI120: 5329.88 | BJ120: 0.001457725948 | BK120: -0.007876547179 | BL120: 121.0935 | BM120: FALSE | BN120: 0 | BO120: 0 | BP120: 0.01800002215 | BQ120: 0.006627500752 | BR120: FALSE | BS120: 0 | BT120: 0 | BU120: -2391.01 | BV120: 2938.87
A121: 89 | B121: =OFFSET(InputPriceData!B$15,CalculationsAndCharts!$A121+$A$11,0,1,1) -> 2011-03-04 | C121: =OFFSET(InputPriceData!G$15,CalculationsAndCharts!$A121+$A$11,IF($C$7,8,0),1,1) -> 2614400 | D121: =OFFSET(InputPriceData!C$15,CalculationsAndCharts!$A121+$A$11,IF($C$7,8,0),1,1) -> 83.45 | E121: =OFFSET(InputPriceData!D$15,CalculationsAndCharts!$A121+$A$11,IF($C$7,8,0),1,1) -> 83.55 | F121: =OFFSET(InputPriceData!E$15,CalculationsAndCharts!$A121+$A$11,IF($C$7,8,0),1,1) -> 81.72 | G121: =OFFSET(InputPriceData!F$15,CalculationsAndCharts!$A121+$A$11,IF($C$7,8,0),1,1) -> 82.32 | H121: FALSE | J121: FALSE | K121: FALSE | M121: FALSE | O121: FALSE | P121: FALSE | R121: =OFFSET(InputIndexData!$B$15,CalculationsAndCharts!$A121+$A$11,0,1,1) -> 2011-03-04 | S121: =OFFSET(InputIndexData!C$15,CalculationsAndCharts!$A121+$A$11,IF($C$7,8,0),1,1) -> 125.27 | T121: =OFFSET(InputIndexData!D$15,CalculationsAndCharts!$A121+$A$11,IF($C$7,8,0),1,1) -> 125.51 | U121: =OFFSET(InputIndexData!E$15,CalculationsAndCharts!$A121+$A$11,IF($C$7,8,0),1,1) -> 123.6 | V121: =OFFSET(InputIndexData!F$15,CalculationsAndCharts!$A121+$A$11,IF($C$7,8,0),1,1) -> 124.42 | AE121: 85.41 | AF121: 70.91 | AG121: 14.5 | AH121: 78.68965517 | AI121: 126.51 | AJ121: 114.37 | AK121: 12.14 | AL121: 82.78418451 | AM121: -4.094529342 | AN121: 14.53481927 | AO121: -28.21806881 | AP121: 42.75288808 | AQ121: 56.42552013 | AS121: 10 | AT121: 50 | AU121: TRUE | AV121: FALSE | AW121: 80.27 | AX121: FALSE | AY121: TRUE | AZ121: FALSE | BA121: 0 | BB121: 0 | BC121: FALSE | BD121: FALSE | BE121: FALSE | BF121: FALSE | BG121: 0 | BH121: 0 | BI121: 5329.88 | BJ121: -0.01128993514 | BK121: -0.007498404595 | BL121: 120.9558333 | BM121: FALSE | BN121: 0 | BO121: 0 | BP121: 0.01812836571 | BQ121: 0.006528661722 | BR121: FALSE | BS121: 0 | BT121: 0 | BU121: -2391.01 | BV121: 2938.87
A122: 90 | B122: =OFFSET(InputPriceData!B$15,CalculationsAndCharts!$A122+$A$11,0,1,1) -> 2011-03-03 | C122: =OFFSET(InputPriceData!G$15,CalculationsAndCharts!$A122+$A$11,IF($C$7,8,0),1,1) -> 2224100 | D122: =OFFSET(InputPriceData!C$15,CalculationsAndCharts!$A122+$A$11,IF($C$7,8,0),1,1) -> 83.49 | E122: =OFFSET(InputPriceData!D$15,CalculationsAndCharts!$A122+$A$11,IF($C$7,8,0),1,1) -> 83.74 | F122: =OFFSET(InputPriceData!E$15,CalculationsAndCharts!$A122+$A$11,IF($C$7,8,0),1,1) -> 82.48 | G122: =OFFSET(InputPriceData!F$15,CalculationsAndCharts!$A122+$A$11,IF($C$7,8,0),1,1) -> 83.26 | H122: FALSE | J122: FALSE | K122: FALSE | M122: FALSE | O122: FALSE | P122: FALSE | R122: =OFFSET(InputIndexData!$B$15,CalculationsAndCharts!$A122+$A$11,0,1,1) -> 2011-03-03 | S122: =OFFSET(InputIndexData!C$15,CalculationsAndCharts!$A122+$A$11,IF($C$7,8,0),1,1) -> 124.36 | T122: =OFFSET(InputIndexData!D$15,CalculationsAndCharts!$A122+$A$11,IF($C$7,8,0),1,1) -> 125.5 | U122: =OFFSET(InputIndexData!E$15,CalculationsAndCharts!$A122+$A$11,IF($C$7,8,0),1,1) -> 124.35 | V122: =OFFSET(InputIndexData!F$15,CalculationsAndCharts!$A122+$A$11,IF($C$7,8,0),1,1) -> 125.36 | AE122: 85.41 | AF122: 70.91 | AG122: 14.5 | AH122: 85.17241379 | AI122: 126.51 | AJ122: 114.37 | AK122: 12.14 | AL122: 90.52718287 | AM122: -5.354769073 | AN122: 14.53481927 | AO122: -28.21806881 | AP122: 42.75288808 | AQ122: 53.47779008 | AS122: 10 | AT122: 50 | AU122: TRUE | AV122: FALSE | AW122: 80.27 | AX122: FALSE | AY122: TRUE | AZ122: FALSE | BA122: 0 | BB122: 0 | BC122: FALSE | BD122: FALSE | BE122: FALSE | BF122: FALSE | BG122: 0 | BH122: 0 | BI122: 5329.88 | BJ122: 0.008234439332 | BK122: 0.01720220708 | BL122: 120.7948333 | BM122: FALSE | BN122: 0 | BO122: 0 | BP122: 0.0181802611 | BQ122: 0.0064270435 | BR122: FALSE | BS122: 0 | BT122: 0 | BU122: -2391.01 | BV122: 2938.87
A123: 91 | B123: =OFFSET(InputPriceData!B$15,CalculationsAndCharts!$A123+$A$11,0,1,1) -> 2011-03-02 | C123: =OFFSET(InputPriceData!G$15,CalculationsAndCharts!$A123+$A$11,IF($C$7,8,0),1,1) -> 2335800 | D123: =OFFSET(InputPriceData!C$15,CalculationsAndCharts!$A123+$A$11,IF($C$7,8,0),1,1) -> 82.72 | E123: =OFFSET(InputPriceData!D$15,CalculationsAndCharts!$A123+$A$11,IF($C$7,8,0),1,1) -> 83.01 | F123: =OFFSET(InputPriceData!E$15,CalculationsAndCharts!$A123+$A$11,IF($C$7,8,0),1,1) -> 81.1 | G123: =OFFSET(InputPriceData!F$15,CalculationsAndCharts!$A123+$A$11,IF($C$7,8,0),1,1) -> 82.58 | H123: FALSE | J123: FALSE | K123: FALSE | M123: FALSE | O123: FALSE | P123: FALSE | R123: =OFFSET(InputIndexData!$B$15,CalculationsAndCharts!$A123+$A$11,0,1,1) -> 2011-03-02 | S123: =OFFSET(InputIndexData!C$15,CalculationsAndCharts!$A123+$A$11,IF($C$7,8,0),1,1) -> 122.81 | T123: =OFFSET(InputIndexData!D$15,CalculationsAndCharts!$A123+$A$11,IF($C$7,8,0),1,1) -> 123.81 | U123: =OFFSET(InputIndexData!E$15,CalculationsAndCharts!$A123+$A$11,IF($C$7,8,0),1,1) -> 122.43 | V123: =OFFSET(InputIndexData!F$15,CalculationsAndCharts!$A123+$A$11,IF($C$7,8,0),1,1) -> 123.24 | AE123: 85.41 | AF123: 70.91 | AG123: 14.5 | AH123: 80.48275862 | AI123: 126.51 | AJ123: 114.37 | AK123: 12.14 | AL123: 73.06425041 | AM123: 7.418508209 | AN123: 14.53481927 | AO123: -28.21806881 | AP123: 42.75288808 | AQ123: 83.35478285 | AS123: 10 | AT123: 50 | AU123: TRUE | AV123: FALSE | AW123: 80.27 | AX123: FALSE | AY123: TRUE | AZ123: FALSE | BA123: 0 | BB123: 0 | BC123: FALSE | BD123: FALSE | BE123: FALSE | BF123: FALSE | BG123: 0 | BH123: 0 | BI123: 5329.88 | BJ123: -0.00181312704 | BK123: 0.002195657477 | BL123: 120.6171667 | BM123: FALSE | BN123: 0 | BO123: 0 | BP123: 0.01818467309 | BQ123: 0.006100396768 | BR123: FALSE | BS123: 0 | BT123: 0 | BU123: -2391.01 | BV123: 2938.87
A124: 92 | B124: =OFFSET(InputPriceData!B$15,CalculationsAndCharts!$A124+$A$11,0,1,1) -> 2011-03-01 | C124: =OFFSET(InputPriceData!G$15,CalculationsAndCharts!$A124+$A$11,IF($C$7,8,0),1,1) -> 4270000 | D124: =OFFSET(InputPriceData!C$15,CalculationsAndCharts!$A124+$A$11,IF($C$7,8,0),1,1) -> 85.18 | E124: =OFFSET(InputPriceData!D$15,CalculationsAndCharts!$A124+$A$11,IF($C$7,8,0),1,1) -> 85.41 | F124: =OFFSET(InputPriceData!E$15,CalculationsAndCharts!$A124+$A$11,IF($C$7,8,0),1,1) -> 82.09 | G124: =OFFSET(InputPriceData!F$15,CalculationsAndCharts!$A124+$A$11,IF($C$7,8,0),1,1) -> 82.73 | H124: FALSE | J124: FALSE | K124: FALSE | M124: FALSE | O124: FALSE | P124: FALSE | R124: =OFFSET(InputIndexData!$B$15,CalculationsAndCharts!$A124+$A$11,0,1,1) -> 2011-03-01 | S124: =OFFSET(InputIndexData!C$15,CalculationsAndCharts!$A124+$A$11,IF($C$7,8,0),1,1) -> 125.45 | T124: =OFFSET(InputIndexData!D$15,CalculationsAndCharts!$A124+$A$11,IF($C$7,8,0),1,1) -> 125.56 | U124: =OFFSET(InputIndexData!E$15,CalculationsAndCharts!$A124+$A$11,IF($C$7,8,0),1,1) -> 122.93 | V124: =OFFSET(InputIndexData!F$15,CalculationsAndCharts!$A124+$A$11,IF($C$7,8,0),1,1) -> 122.97 | AE124: 85.41 | AF124: 70.91 | AG124: 14.5 | AH124: 81.51724138 | AI124: 126.51 | AJ124: 114.09 | AK124: 12.42 | AL124: 71.49758454 | AM124: 10.01965684 | AN124: 14.53481927 | AO124: -28.21806881 | AP124: 42.75288808 | AQ124: 89.43893002 | AS124: 10 | AT124: 50 | AU124: TRUE | AV124: FALSE | AW124: 80.27 | AX124: FALSE | AY124: TRUE | AZ124: FALSE | BA124: 0 | BB124: 0 | BC124: FALSE | BD124: FALSE | BE124: FALSE | BF124: FALSE | BG124: 0 | BH124: 0 | BI124: 5329.88 | BJ124: -0.02727807172 | BK124: -0.01671197825 | BL124: 120.4768333 | BM124: FALSE | BN124: 0 | BO124: 0 | BP124: 0.01817897083 | BQ124: 0.006102141078 | BR124: FALSE | BS124: 0 | BT124: 0 | BU124: -2391.01 | BV124: 2938.87
A125: 93 | B125: =OFFSET(InputPriceData!B$15,CalculationsAndCharts!$A125+$A$11,0,1,1) -> 2011-02-28 | C125: =OFFSET(InputPriceData!G$15,CalculationsAndCharts!$A125+$A$11,IF($C$7,8,0),1,1) -> 3767400 | D125: =OFFSET(InputPriceData!C$15,CalculationsAndCharts!$A125+$A$11,IF($C$7,8,0),1,1) -> 83.55 | E125: =OFFSET(InputPriceData!D$15,CalculationsAndCharts!$A125+$A$11,IF($C$7,8,0),1,1) -> 85.05 | F125: =OFFSET(InputPriceData!E$15,CalculationsAndCharts!$A125+$A$11,IF($C$7,8,0),1,1) -> 83.07 | G125: =OFFSET(InputPriceData!F$15,CalculationsAndCharts!$A125+$A$11,IF($C$7,8,0),1,1) -> 85.05 | H125: FALSE | J125: FALSE | K125: FALSE | M125: FALSE | O125: FALSE | P125: FALSE | R125: =OFFSET(InputIndexData!$B$15,CalculationsAndCharts!$A125+$A$11,0,1,1) -> 2011-02-28 | S125: =OFFSET(InputIndexData!C$15,CalculationsAndCharts!$A125+$A$11,IF($C$7,8,0),1,1) -> 124.75 | T125: =OFFSET(InputIndexData!D$15,CalculationsAndCharts!$A125+$A$11,IF($C$7,8,0),1,1) -> 125.22 | U125: =OFFSET(InputIndexData!E$15,CalculationsAndCharts!$A125+$A$11,IF($C$7,8,0),1,1) -> 124.34 | V125: =OFFSET(InputIndexData!F$15,CalculationsAndCharts!$A125+$A$11,IF($C$7,8,0),1,1) -> 125.06 | AE125: 85.05 | AF125: 70.91 | AG125: 14.14 | AH125: 100 | AI125: 126.51 | AJ125: 113.17 | AK125: 13.34 | AL125: 89.13043478 | AM125: 10.86956522 | AN125: 14.53481927 | AO125: -28.21806881 | AP125: 42.75288808 | AQ125: 91.4268855 | AS125: 10 | AT125: 50 | AU125: TRUE | AV125: FALSE | AW125: 80.27 | AX125: FALSE | AY125: TRUE | AZ125: FALSE | BA125: 0 | BB125: 0 | BC125: FALSE | BD125: FALSE | BE125: FALSE | BF125: FALSE | BG125: 0 | BH125: 0 | BI125: 5329.88 | BJ125: 0.02630626282 | BK125: 0.006195188672 | BL125: 120.3358333 | BM125: FALSE | BN125: 0 | BO125: 0 | BP125: 0.01784190963 | BQ125: 0.005821646889 | BR125: FALSE | BS125: 0 | BT125: 0 | BU125: -2391.01 | BV125: 2938.87
A126: 94 | B126: =OFFSET(InputPriceData!B$15,CalculationsAndCharts!$A126+$A$11,0,1,1) -> 2011-02-25 | C126: =OFFSET(InputPriceData!G$15,CalculationsAndCharts!$A126+$A$11,IF($C$7,8,0),1,1) -> 3500700 | D126: =OFFSET(InputPriceData!C$15,CalculationsAndCharts!$A126+$A$11,IF($C$7,8,0),1,1) -> 82.13 | E126: =OFFSET(InputPriceData!D$15,CalculationsAndCharts!$A126+$A$11,IF($C$7,8,0),1,1) -> 82.92 | F126: =OFFSET(InputPriceData!E$15,CalculationsAndCharts!$A126+$A$11,IF($C$7,8,0),1,1) -> 80.91 | G126: =OFFSET(InputPriceData!F$15,CalculationsAndCharts!$A126+$A$11,IF($C$7,8,0),1,1) -> 82.87 | H126: FALSE | J126: FALSE | K126: FALSE | M126: FALSE | O126: FALSE | P126: FALSE | R126: =OFFSET(InputIndexData!$B$15,CalculationsAndCharts!$A126+$A$11,0,1,1) -> 2011-02-25 | S126: =OFFSET(InputIndexData!C$15,CalculationsAndCharts!$A126+$A$11,IF($C$7,8,0),1,1) -> 123.49 | T126: =OFFSET(InputIndexData!D$15,CalculationsAndCharts!$A126+$A$11,IF($C$7,8,0),1,1) -> 124.37 | U126: =OFFSET(InputIndexData!E$15,CalculationsAndCharts!$A126+$A$11,IF($C$7,8,0),1,1) -> 123.42 | V126: =OFFSET(InputIndexData!F$15,CalculationsAndCharts!$A126+$A$11,IF($C$7,8,0),1,1) -> 124.29 | AE126: 84.15 | AF126: 69.73 | AG126: 14.42 | AH126: 91.12343967 | AI126: 126.51 | AJ126: 112.29 | AK126: 14.22 | AL126: 84.38818565 | AM126: 6.735254013 | AN126: 14.53481927 | AO126: -28.21806881 | AP126: 42.75288808 | AQ126: 81.75663539 | AS126: 10 | AT126: 50 | AU126: TRUE | AV126: FALSE | AW126: 80.27 | AX126: FALSE | AY126: TRUE | AZ126: FALSE | BA126: 0 | BB126: 0 | BC126: FALSE | BD126: FALSE | BE126: FALSE | BF126: FALSE | BG126: 0 | BH126: 0 | BI126: 5329.88 | BJ126: 0.01283304815 | BK126: 0.01073432545 | BL126: 120.1358333 | BM126: FALSE | BN126: 0 | BO126: 0 | BP126: 0.01836308162 | BQ126: 0.006312450002 | BR126: FALSE | BS126: 0 | BT126: 0 | BU126: -2391.01 | BV126: 2938.87
A127: 95 | B127: =OFFSET(InputPriceData!B$15,CalculationsAndCharts!$A127+$A$11,0,1,1) -> 2011-02-24 | C127: =OFFSET(InputPriceData!G$15,CalculationsAndCharts!$A127+$A$11,IF($C$7,8,0),1,1) -> 4133900 | D127: =OFFSET(InputPriceData!C$15,CalculationsAndCharts!$A127+$A$11,IF($C$7,8,0),1,1) -> 82.76 | E127: =OFFSET(InputPriceData!D$15,CalculationsAndCharts!$A127+$A$11,IF($C$7,8,0),1,1) -> 83.45 | F127: =OFFSET(InputPriceData!E$15,CalculationsAndCharts!$A127+$A$11,IF($C$7,8,0),1,1) -> 80.93 | G127: =OFFSET(InputPriceData!F$15,CalculationsAndCharts!$A127+$A$11,IF($C$7,8,0),1,1) -> 81.82 | H127: FALSE | J127: FALSE | K127: TRUE | L127: 82.76 | M127: FALSE | O127: FALSE | P127: FALSE | R127: =OFFSET(InputIndexData!$B$15,CalculationsAndCharts!$A127+$A$11,0,1,1) -> 2011-02-24 | S127: =OFFSET(InputIndexData!C$15,CalculationsAndCharts!$A127+$A$11,IF($C$7,8,0),1,1) -> 122.92 | T127: =OFFSET(InputIndexData!D$15,CalculationsAndCharts!$A127+$A$11,IF($C$7,8,0),1,1) -> 123.45 | U127: =OFFSET(InputIndexData!E$15,CalculationsAndCharts!$A127+$A$11,IF($C$7,8,0),1,1) -> 121.81 | V127: =OFFSET(InputIndexData!F$15,CalculationsAndCharts!$A127+$A$11,IF($C$7,8,0),1,1) -> 122.97 | AB127: 82.76 | AE127: 84.15 | AF127: 67.45 | AG127: 16.7 | AH127: 86.04790419 | AI127: 126.51 | AJ127: 110.07 | AK127: 16.44 | AL127: 78.46715328 | AM127: 7.580750907 | AN127: 21.70261028 | AO127: -28.21806881 | AP127: 49.92067909 | AQ127: 71.71140371 | AS127: 10 | AT127: 50 | AU127: TRUE | AV127: FALSE | AW127: 80.27 | AX127: FALSE | AY127: TRUE | AZ127: FALSE | BA127: 0 | BB127: 0 | BC127: FALSE | BD127: FALSE | BE127: FALSE | BF127: FALSE | BG127: -74.97 | BH127: 8 | BI127: 5329.88 | BJ127: -0.01433562221 | BK127: -0.0007313505607 | BL127: 119.9095 | BM127: FALSE | BN127: 0 | BO127: 0 | BP127: 0.01832985647 | BQ127: 0.006279289687 | BR127: FALSE | BS127: 0 | BT127: 0 | BU127: -2391.01 | BV127: 2938.87
A128: 96 | B128: =OFFSET(InputPriceData!B$15,CalculationsAndCharts!$A128+$A$11,0,1,1) -> 2011-02-23 | C128: =OFFSET(InputPriceData!G$15,CalculationsAndCharts!$A128+$A$11,IF($C$7,8,0),1,1) -> 5061000 | D128: =OFFSET(InputPriceData!C$15,CalculationsAndCharts!$A128+$A$11,IF($C$7,8,0),1,1) -> 79.25 | E128: =OFFSET(InputPriceData!D$15,CalculationsAndCharts!$A128+$A$11,IF($C$7,8,0),1,1) -> 83.26 | F128: =OFFSET(InputPriceData!E$15,CalculationsAndCharts!$A128+$A$11,IF($C$7,8,0),1,1) -> 79.25 | G128: =OFFSET(InputPriceData!F$15,CalculationsAndCharts!$A128+$A$11,IF($C$7,8,0),1,1) -> 83.01 | H128: FALSE | J128: TRUE | K128: FALSE | M128: FALSE | O128: FALSE | P128: FALSE | R128: =OFFSET(InputIndexData!$B$15,CalculationsAndCharts!$A128+$A$11,0,1,1) -> 2011-02-23 | S128: =OFFSET(InputIndexData!C$15,CalculationsAndCharts!$A128+$A$11,IF($C$7,8,0),1,1) -> 123.75 | T128: =OFFSET(InputIndexData!D$15,CalculationsAndCharts!$A128+$A$11,IF($C$7,8,0),1,1) -> 124.05 | U128: =OFFSET(InputIndexData!E$15,CalculationsAndCharts!$A128+$A$11,IF($C$7,8,0),1,1) -> 122.3 | V128: =OFFSET(InputIndexData!F$15,CalculationsAndCharts!$A128+$A$11,IF($C$7,8,0),1,1) -> 123.06 | Y128: 87.5 | AE128: 84.15 | AF128: 66.23 | AG128: 17.92 | AH128: 93.63839286 | AI128: 126.51 | AJ128: 110 | AK128: 16.51 | AL128: 79.10357359 | AM128: 14.53481927 | AN128: 21.70261028 | AO128: -28.21806881 | AP128: 49.92067909 | AQ128: 85.64163961 | AS128: 10 | AT128: 50 | AU128: TRUE | AV128: FALSE | AW128: 80.27 | AX128: FALSE | AY128: TRUE | AZ128: FALSE | BA128: 1 | BB128: 63 | BC128: FALSE | BD128: TRUE | BE128: FALSE | BF128: TRUE | BG128: 257.67 | BH128: 0 | BI128: 5412.85 | BJ128: 0.05182463254 | BK128: -0.006137942174 | BL128: 119.7155 | BM128: FALSE | BN128: 0 | BO128: 0 | BP128: 0.01818883098 | BQ128: 0.006273500683 | BR128: FALSE | BS128: 0 | BT128: 0 | BU128: -2391.01 | BV128: 3021.84
A129: 97 | B129: =OFFSET(InputPriceData!B$15,CalculationsAndCharts!$A129+$A$11,0,1,1) -> 2011-02-22 | C129: =OFFSET(InputPriceData!G$15,CalculationsAndCharts!$A129+$A$11,IF($C$7,8,0),1,1) -> 4140800 | D129: =OFFSET(InputPriceData!C$15,CalculationsAndCharts!$A129+$A$11,IF($C$7,8,0),1,1) -> 82.43 | E129: =OFFSET(InputPriceData!D$15,CalculationsAndCharts!$A129+$A$11,IF($C$7,8,0),1,1) -> 83.06 | F129: =OFFSET(InputPriceData!E$15,CalculationsAndCharts!$A129+$A$11,IF($C$7,8,0),1,1) -> 78.79 | G129: =OFFSET(InputPriceData!F$15,CalculationsAndCharts!$A129+$A$11,IF($C$7,8,0),1,1) -> 78.92 | H129: FALSE | J129: TRUE | K129: FALSE | M129: FALSE | O129: FALSE | P129: FALSE | R129: =OFFSET(InputIndexData!$B$15,CalculationsAndCharts!$A129+$A$11,0,1,1) -> 2011-02-22 | S129: =OFFSET(InputIndexData!C$15,CalculationsAndCharts!$A129+$A$11,IF($C$7,8,0),1,1) -> 125.03 | T129: =OFFSET(InputIndexData!D$15,CalculationsAndCharts!$A129+$A$11,IF($C$7,8,0),1,1) -> 126.38 | U129: =OFFSET(InputIndexData!E$15,CalculationsAndCharts!$A129+$A$11,IF($C$7,8,0),1,1) -> 123.48 | V129: =OFFSET(InputIndexData!F$15,CalculationsAndCharts!$A129+$A$11,IF($C$7,8,0),1,1) -> 123.82 | Y129: 87.5 | AE129: 84.15 | AF129: 66.23 | AG129: 17.92 | AH129: 70.81473214 | AI129: 126.51 | AJ129: 110 | AK129: 16.51 | AL129: 83.70684434 | AM129: -12.89211219 | AN129: 21.70261028 | AO129: -28.21806881 | AP129: 49.92067909 | AQ129: 30.70061725 | AS129: 10 | AT129: 50 | AU129: TRUE | AV129: FALSE | AW129: 80.27 | AX129: FALSE | AY129: FALSE | AZ129: FALSE | BA129: 1 | BB129: 63 | BC129: FALSE | BD129: FALSE | BE129: FALSE | BF129: FALSE | BG129: -260.82 | BH129: 0 | BI129: 5155.18 | BJ129: -0.04984348664 | BK129: -0.02010129788 | BL129: 119.5145 | BM129: FALSE | BN129: 0 | BO129: 0 | BP129: 0.01723665805 | BQ129: 0.006427170079 | BR129: FALSE | BS129: 0 | BT129: 0 | BU129: -2391.01 | BV129: 2764.17
A130: 98 | B130: =OFFSET(InputPriceData!B$15,CalculationsAndCharts!$A130+$A$11,0,1,1) -> 2011-02-18 | C130: =OFFSET(InputPriceData!G$15,CalculationsAndCharts!$A130+$A$11,IF($C$7,8,0),1,1) -> 2870100 | D130: =OFFSET(InputPriceData!C$15,CalculationsAndCharts!$A130+$A$11,IF($C$7,8,0),1,1) -> 82 | E130: =OFFSET(InputPriceData!D$15,CalculationsAndCharts!$A130+$A$11,IF($C$7,8,0),1,1) -> 83.08 | F130: =OFFSET(InputPriceData!E$15,CalculationsAndCharts!$A130+$A$11,IF($C$7,8,0),1,1) -> 81.37 | G130: =OFFSET(InputPriceData!F$15,CalculationsAndCharts!$A130+$A$11,IF($C$7,8,0),1,1) -> 83.06 | H130: FALSE | J130: TRUE | K130: FALSE | M130: FALSE | O130: FALSE | P130: FALSE | R130: =OFFSET(InputIndexData!$B$15,CalculationsAndCharts!$A130+$A$11,0,1,1) -> 2011-02-18 | S130: =OFFSET(InputIndexData!C$15,CalculationsAndCharts!$A130+$A$11,IF($C$7,8,0),1,1) -> 126.21 | T130: =OFFSET(InputIndexData!D$15,CalculationsAndCharts!$A130+$A$11,IF($C$7,8,0),1,1) -> 126.51 | U130: =OFFSET(InputIndexData!E$15,CalculationsAndCharts!$A130+$A$11,IF($C$7,8,0),1,1) -> 125.92 | V130: =OFFSET(InputIndexData!F$15,CalculationsAndCharts!$A130+$A$11,IF($C$7,8,0),1,1) -> 126.36 | Y130: 87.5 | AE130: 84.15 | AF130: 66.23 | AG130: 17.92 | AH130: 93.91741071 | AI130: 126.51 | AJ130: 110 | AK130: 16.51 | AL130: 99.09145972 | AM130: -5.174049007 | AN130: 21.70261028 | AO130: -28.21806881 | AP130: 49.92067909 | AQ130: 46.16127069 | AS130: 10 | AT130: 50 | AU130: TRUE | AV130: FALSE | AW130: 80.27 | AX130: FALSE | AY130: FALSE | AZ130: FALSE | BA130: 1 | BB130: 63 | BC130: FALSE | BD130: FALSE | BE130: FALSE | BF130: FALSE | BG130: 53.55 | BH130: 0 | BI130: 5416 | BJ130: 0.01033937477 | BK130: 0.002141327623 | BL130: 119.3226667 | BM130: FALSE | BN130: 0 | BO130: 0 | BP130: 0.0161426986 | BQ130: 0.005998082764 | BR130: FALSE | BS130: 0 | BT130: 0 | BU130: -2391.01 | BV130: 3024.99
A131: 99 | B131: =OFFSET(InputPriceData!B$15,CalculationsAndCharts!$A131+$A$11,0,1,1) -> 2011-02-17 | C131: =OFFSET(InputPriceData!G$15,CalculationsAndCharts!$A131+$A$11,IF($C$7,8,0),1,1) -> 2278700 | D131: =OFFSET(InputPriceData!C$15,CalculationsAndCharts!$A131+$A$11,IF($C$7,8,0),1,1) -> 81.78 | E131: =OFFSET(InputPriceData!D$15,CalculationsAndCharts!$A131+$A$11,IF($C$7,8,0),1,1) -> 82.49 | F131: =OFFSET(InputPriceData!E$15,CalculationsAndCharts!$A131+$A$11,IF($C$7,8,0),1,1) -> 80.93 | G131: =OFFSET(InputPriceData!F$15,CalculationsAndCharts!$A131+$A$11,IF($C$7,8,0),1,1) -> 82.21 | H131: FALSE | J131: TRUE | K131: FALSE | M131: FALSE | O131: FALSE | P131: FALSE | R131: =OFFSET(InputIndexData!$B$15,CalculationsAndCharts!$A131+$A$11,0,1,1) -> 2011-02-17 | S131: =OFFSET(InputIndexData!C$15,CalculationsAndCharts!$A131+$A$11,IF($C$7,8,0),1,1) -> 125.35 | T131: =OFFSET(InputIndexData!D$15,CalculationsAndCharts!$A131+$A$11,IF($C$7,8,0),1,1) -> 126.26 | U131: =OFFSET(InputIndexData!E$15,CalculationsAndCharts!$A131+$A$11,IF($C$7,8,0),1,1) -> 125.24 | V131: =OFFSET(InputIndexData!F$15,CalculationsAndCharts!$A131+$A$11,IF($C$7,8,0),1,1) -> 126.09 | Y131: 87.5 | AE131: 84.15 | AF131: 66.23 | AG131: 17.92 | AH131: 89.17410714 | AI131: 126.26 | AJ131: 110 | AK131: 16.26 | AL131: 98.95448954 | AM131: -9.780382402 | AN131: 21.70261028 | AO131: -28.21806881 | AP131: 49.92067909 | AQ131: 36.93396553 | AS131: 10 | AT131: 50 | AU131: TRUE | AV131: FALSE | AW131: 80.27 | AX131: FALSE | AY131: FALSE | AZ131: FALSE | BA131: 1 | BB131: 63 | BC131: FALSE | BD131: FALSE | BE131: FALSE | BF131: FALSE | BG131: 17.64 | BH131: 0 | BI131: 5362.45 | BJ131: 0.003417551568 | BK131: 0.002943048043 | BL131: 119.0611667 | BM131: FALSE | BN131: 0 | BO131: 0 | BP131: 0.01620170642 | BQ131: 0.006369688718 | BR131: FALSE | BS131: 0 | BT131: 0 | BU131: -2391.01 | BV131: 2971.44
A132: 100 | B132: =OFFSET(InputPriceData!B$15,CalculationsAndCharts!$A132+$A$11,0,1,1) -> 2011-02-16 | C132: =OFFSET(InputPriceData!G$15,CalculationsAndCharts!$A132+$A$11,IF($C$7,8,0),1,1) -> 2651500 | D132: =OFFSET(InputPriceData!C$15,CalculationsAndCharts!$A132+$A$11,IF($C$7,8,0),1,1) -> 79.74 | E132: =OFFSET(InputPriceData!D$15,CalculationsAndCharts!$A132+$A$11,IF($C$7,8,0),1,1) -> 82.07 | F132: =OFFSET(InputPriceData!E$15,CalculationsAndCharts!$A132+$A$11,IF($C$7,8,0),1,1) -> 79.56 | G132: =OFFSET(InputPriceData!F$15,CalculationsAndCharts!$A132+$A$11,IF($C$7,8,0),1,1) -> 81.93 | H132: FALSE | J132: TRUE | K132: FALSE | M132: FALSE | O132: FALSE | P132: FALSE | R132: =OFFSET(InputIndexData!$B$15,CalculationsAndCharts!$A132+$A$11,0,1,1) -> 2011-02-16 | S132: =OFFSET(InputIndexData!C$15,CalculationsAndCharts!$A132+$A$11,IF($C$7,8,0),1,1) -> 125.35 | T132: =OFFSET(InputIndexData!D$15,CalculationsAndCharts!$A132+$A$11,IF($C$7,8,0),1,1) -> 125.87 | U132: =OFFSET(InputIndexData!E$15,CalculationsAndCharts!$A132+$A$11,IF($C$7,8,0),1,1) -> 125.1 | V132: =OFFSET(InputIndexData!F$15,CalculationsAndCharts!$A132+$A$11,IF($C$7,8,0),1,1) -> 125.72 | Y132: 87.5 | AE132: 84.15 | AF132: 66.23 | AG132: 17.92 | AH132: 87.61160714 | AI132: 125.87 | AJ132: 110 | AK132: 15.87 | AL132: 99.05482042 | AM132: -11.44321327 | AN132: 21.70261028 | AO132: -28.21806881 | AP132: 49.92067909 | AQ132: 33.60301952 | AS132: 10 | AT132: 50 | AU132: TRUE | AV132: FALSE | AW132: 80.27 | AX132: FALSE | AY132: FALSE | AZ132: FALSE | BA132: 1 | BB132: 63 | BC132: FALSE | BD132: FALSE | BE132: FALSE | BF132: FALSE | BG132: 163.17 | BH132: 0 | BI132: 5344.81 | BJ132: 0.0326443156 | BK132: 0.006323541183 | BL132: 118.8313333 | BM132: FALSE | BN132: 0 | BO132: 0 | BP132: 0.01629141745 | BQ132: 0.006378011424 | BR132: FALSE | BS132: 0 | BT132: 0 | BU132: -2391.01 | BV132: 2953.8
A133: 101 | B133: =OFFSET(InputPriceData!B$15,CalculationsAndCharts!$A133+$A$11,0,1,1) -> 2011-02-15 | C133: =OFFSET(InputPriceData!G$15,CalculationsAndCharts!$A133+$A$11,IF($C$7,8,0),1,1) -> 1559400 | D133: =OFFSET(InputPriceData!C$15,CalculationsAndCharts!$A133+$A$11,IF($C$7,8,0),1,1) -> 80.2 | E133: =OFFSET(InputPriceData!D$15,CalculationsAndCharts!$A133+$A$11,IF($C$7,8,0),1,1) -> 80.4 | F133: =OFFSET(InputPriceData!E$15,CalculationsAndCharts!$A133+$A$11,IF($C$7,8,0),1,1) -> 79.15 | G133: =OFFSET(InputPriceData!F$15,CalculationsAndCharts!$A133+$A$11,IF($C$7,8,0),1,1) -> 79.34 | H133: FALSE | J133: TRUE | K133: FALSE | M133: FALSE | O133: FALSE | P133: FALSE | R133: =OFFSET(InputIndexData!$B$15,CalculationsAndCharts!$A133+$A$11,0,1,1) -> 2011-02-15 | S133: =OFFSET(InputIndexData!C$15,CalculationsAndCharts!$A133+$A$11,IF($C$7,8,0),1,1) -> 124.94 | T133: =OFFSET(InputIndexData!D$15,CalculationsAndCharts!$A133+$A$11,IF($C$7,8,0),1,1) -> 125.13 | U133: =OFFSET(InputIndexData!E$15,CalculationsAndCharts!$A133+$A$11,IF($C$7,8,0),1,1) -> 124.28 | V133: =OFFSET(InputIndexData!F$15,CalculationsAndCharts!$A133+$A$11,IF($C$7,8,0),1,1) -> 124.93 | Y133: 87.5 | AE133: 84.15 | AF133: 66.23 | AG133: 17.92 | AH133: 73.15848214 | AI133: 125.42 | AJ133: 110 | AK133: 15.42 | AL133: 96.82230869 | AM133: -23.66382655 | AN133: 21.70261028 | AO133: -28.21806881 | AP133: 49.92067909 | AQ133: 9.122957353 | AS133: 10 | AT133: 50 | AU133: TRUE | AV133: FALSE | AW133: 80.27 | AX133: TRUE | AY133: FALSE | AZ133: FALSE | BA133: 1 | BB133: 63 | BC133: FALSE | BD133: FALSE | BE133: FALSE | BF133: FALSE | BG133: -69.93 | BH133: 0 | BI133: 5181.64 | BJ133: -0.01379738968 | BK133: -0.003112033195 | BL133: 118.6091667 | BM133: FALSE | BN133: 0 | BO133: 0 | BP133: 0.01583553243 | BQ133: 0.006353007678 | BR133: FALSE | BS133: 0 | BT133: 0 | BU133: -2391.01 | BV133: 2790.63
A134: 102 | B134: =OFFSET(InputPriceData!B$15,CalculationsAndCharts!$A134+$A$11,0,1,1) -> 2011-02-14 | C134: =OFFSET(InputPriceData!G$15,CalculationsAndCharts!$A134+$A$11,IF($C$7,8,0),1,1) -> 2371500 | D134: =OFFSET(InputPriceData!C$15,CalculationsAndCharts!$A134+$A$11,IF($C$7,8,0),1,1) -> 78.65 | E134: =OFFSET(InputPriceData!D$15,CalculationsAndCharts!$A134+$A$11,IF($C$7,8,0),1,1) -> 80.57 | F134: =OFFSET(InputPriceData!E$15,CalculationsAndCharts!$A134+$A$11,IF($C$7,8,0),1,1) -> 78.5 | G134: =OFFSET(InputPriceData!F$15,CalculationsAndCharts!$A134+$A$11,IF($C$7,8,0),1,1) -> 80.45 | H134: FALSE | J134: TRUE | K134: FALSE | M134: FALSE | O134: FALSE | P134: FALSE | R134: =OFFSET(InputIndexData!$B$15,CalculationsAndCharts!$A134+$A$11,0,1,1) -> 2011-02-14 | S134: =OFFSET(InputIndexData!C$15,CalculationsAndCharts!$A134+$A$11,IF($C$7,8,0),1,1) -> 124.94 | T134: =OFFSET(InputIndexData!D$15,CalculationsAndCharts!$A134+$A$11,IF($C$7,8,0),1,1) -> 125.42 | U134: =OFFSET(InputIndexData!E$15,CalculationsAndCharts!$A134+$A$11,IF($C$7,8,0),1,1) -> 124.8 | V134: =OFFSET(InputIndexData!F$15,CalculationsAndCharts!$A134+$A$11,IF($C$7,8,0),1,1) -> 125.32 | Y134: 87.5 | AE134: 84.15 | AF134: 66.23 | AG134: 17.92 | AH134: 79.35267857 | AI134: 125.42 | AJ134: 110 | AK134: 15.42 | AL134: 99.35149157 | AM134: -19.998813 | AN134: 21.70261028 | AO134: -28.21806881 | AP134: 49.92067909 | AQ134: 16.46463142 | AS134: 10 | AT134: 50 | AU134: TRUE | AV134: FALSE | AW134: 80.27 | AX134: FALSE | AY134: FALSE | AZ134: FALSE | BA134: 1 | BB134: 63 | BC134: FALSE | BD134: FALSE | BE134: FALSE | BF134: FALSE | BG134: 106.47 | BH134: 0 | BI134: 5251.57 | BJ134: 0.02145759269 | BK134: 0.002399616061 | BL134: 118.395 | BM134: FALSE | BN134: 0 | BO134: 0 | BP134: 0.01612764072 | BQ134: 0.006527740843 | BR134: FALSE | BS134: 0 | BT134: 0 | BU134: -2391.01 | BV134: 2860.56
A135: 103 | B135: =OFFSET(InputPriceData!B$15,CalculationsAndCharts!$A135+$A$11,0,1,1) -> 2011-02-11 | C135: =OFFSET(InputPriceData!G$15,CalculationsAndCharts!$A135+$A$11,IF($C$7,8,0),1,1) -> 2590000 | D135: =OFFSET(InputPriceData!C$15,CalculationsAndCharts!$A135+$A$11,IF($C$7,8,0),1,1) -> 79.24 | E135: =OFFSET(InputPriceData!D$15,CalculationsAndCharts!$A135+$A$11,IF($C$7,8,0),1,1) -> 79.43 | F135: =OFFSET(InputPriceData!E$15,CalculationsAndCharts!$A135+$A$11,IF($C$7,8,0),1,1) -> 78.06 | G135: =OFFSET(InputPriceData!F$15,CalculationsAndCharts!$A135+$A$11,IF($C$7,8,0),1,1) -> 78.76 | H135: FALSE | J135: TRUE | K135: FALSE | M135: FALSE | O135: FALSE | P135: FALSE | R135: =OFFSET(InputIndexData!$B$15,CalculationsAndCharts!$A135+$A$11,0,1,1) -> 2011-02-11 | S135: =OFFSET(InputIndexData!C$15,CalculationsAndCharts!$A135+$A$11,IF($C$7,8,0),1,1) -> 123.79 | T135: =OFFSET(InputIndexData!D$15,CalculationsAndCharts!$A135+$A$11,IF($C$7,8,0),1,1) -> 125.18 | U135: =OFFSET(InputIndexData!E$15,CalculationsAndCharts!$A135+$A$11,IF($C$7,8,0),1,1) -> 123.76 | V135: =OFFSET(InputIndexData!F$15,CalculationsAndCharts!$A135+$A$11,IF($C$7,8,0),1,1) -> 125.02 | Y135: 87.5 | AE135: 84.15 | AF135: 64.9 | AG135: 19.25 | AH135: 72 | AI135: 125.18 | AJ135: 110 | AK135: 15.18 | AL135: 98.94598155 | AM135: -26.94598155 | AN135: 21.70261028 | AO135: -28.21806881 | AP135: 49.92067909 | AQ135: 2.54821705 | AS135: 10 | AT135: 50 | AU135: TRUE | AV135: FALSE | AW135: 80.27 | AX135: TRUE | AY135: FALSE | AZ135: FALSE | BA135: 1 | BB135: 63 | BC135: FALSE | BD135: FALSE | BE135: FALSE | BF135: FALSE | BG135: -42.84 | BH135: 0 | BI135: 5145.1 | BJ135: -0.008559919436 | BK135: 0.005954296749 | BL135: 118.1473333 | BM135: FALSE | BN135: 0 | BO135: 0 | BP135: 0.01595831057 | BQ135: 0.00653077357 | BR135: FALSE | BS135: 0 | BT135: 0 | BU135: -2391.01 | BV135: 2754.09
A136: 104 | B136: =OFFSET(InputPriceData!B$15,CalculationsAndCharts!$A136+$A$11,0,1,1) -> 2011-02-10 | C136: =OFFSET(InputPriceData!G$15,CalculationsAndCharts!$A136+$A$11,IF($C$7,8,0),1,1) -> 1790100 | D136: =OFFSET(InputPriceData!C$15,CalculationsAndCharts!$A136+$A$11,IF($C$7,8,0),1,1) -> 78.07 | E136: =OFFSET(InputPriceData!D$15,CalculationsAndCharts!$A136+$A$11,IF($C$7,8,0),1,1) -> 79.55 | F136: =OFFSET(InputPriceData!E$15,CalculationsAndCharts!$A136+$A$11,IF($C$7,8,0),1,1) -> 77.94 | G136: =OFFSET(InputPriceData!F$15,CalculationsAndCharts!$A136+$A$11,IF($C$7,8,0),1,1) -> 79.44 | H136: TRUE | I136: 78.07 | J136: TRUE | K136: FALSE | M136: FALSE | O136: FALSE | P136: FALSE | R136: =OFFSET(InputIndexData!$B$15,CalculationsAndCharts!$A136+$A$11,0,1,1) -> 2011-02-10 | S136: =OFFSET(InputIndexData!C$15,CalculationsAndCharts!$A136+$A$11,IF($C$7,8,0),1,1) -> 123.6 | T136: =OFFSET(InputIndexData!D$15,CalculationsAndCharts!$A136+$A$11,IF($C$7,8,0),1,1) -> 124.42 | U136: =OFFSET(InputIndexData!E$15,CalculationsAndCharts!$A136+$A$11,IF($C$7,8,0),1,1) -> 123.32 | V136: =OFFSET(InputIndexData!F$15,CalculationsAndCharts!$A136+$A$11,IF($C$7,8,0),1,1) -> 124.28 | Y136: 87.5 | AA136: 78.07 | AE136: 84.15 | AF136: 64.9 | AG136: 19.25 | AH136: 75.53246753 | AI136: 124.58 | AJ136: 109.87 | AK136: 14.71 | AL136: 97.96057104 | AM136: -22.42810351 | AN136: 21.70261028 | AO136: -28.21806881 | AP136: 49.92067909 | AQ136: 11.59833041 | AS136: 10 | AT136: 50 | AU136: TRUE | AV136: FALSE | AW136: 80.27 | AX136: FALSE | AY136: FALSE | AZ136: FALSE | BA136: 1 | BB136: 63 | BC136: FALSE | BD136: FALSE | BE136: FALSE | BF136: FALSE | BG136: 0 | BH136: 8 | BI136: 5187.94 | BJ136: 0.01507794531 | BK136: 0.0004024792723 | BL136: 117.9036667 | BM136: FALSE | BN136: 0 | BO136: 0 | BP136: 0.01629855199 | BQ136: 0.006891695955 | BR136: FALSE | BS136: 0 | BT136: 0 | BU136: -2391.01 | BV136: 2796.93
A137: 105 | B137: =OFFSET(InputPriceData!B$15,CalculationsAndCharts!$A137+$A$11,0,1,1) -> 2011-02-09 | C137: =OFFSET(InputPriceData!G$15,CalculationsAndCharts!$A137+$A$11,IF($C$7,8,0),1,1) -> 2984100 | D137: =OFFSET(InputPriceData!C$15,CalculationsAndCharts!$A137+$A$11,IF($C$7,8,0),1,1) -> 80.27 | E137: =OFFSET(InputPriceData!D$15,CalculationsAndCharts!$A137+$A$11,IF($C$7,8,0),1,1) -> 80.59 | F137: =OFFSET(InputPriceData!E$15,CalculationsAndCharts!$A137+$A$11,IF($C$7,8,0),1,1) -> 78.04 | G137: =OFFSET(InputPriceData!F$15,CalculationsAndCharts!$A137+$A$11,IF($C$7,8,0),1,1) -> 78.26 | H137: FALSE | J137: FALSE | K137: FALSE | M137: FALSE | O137: FALSE | P137: FALSE | R137: =OFFSET(InputIndexData!$B$15,CalculationsAndCharts!$A137+$A$11,0,1,1) -> 2011-02-09 | S137: =OFFSET(InputIndexData!C$15,CalculationsAndCharts!$A137+$A$11,IF($C$7,8,0),1,1) -> 124.17 | T137: =OFFSET(InputIndexData!D$15,CalculationsAndCharts!$A137+$A$11,IF($C$7,8,0),1,1) -> 124.57 | U137: =OFFSET(InputIndexData!E$15,CalculationsAndCharts!$A137+$A$11,IF($C$7,8,0),1,1) -> 123.61 | V137: =OFFSET(InputIndexData!F$15,CalculationsAndCharts!$A137+$A$11,IF($C$7,8,0),1,1) -> 124.23 | AE137: 84.15 | AF137: 64.9 | AG137: 19.25 | AH137: 69.4025974 | AI137: 124.58 | AJ137: 109.87 | AK137: 14.71 | AL137: 97.62066621 | AM137: -28.21806881 | AN137: 21.70261028 | AO137: -28.21806881 | AP137: 49.92067909 | AQ137: 0 | AS137: 10 | AT137: 50 | AU137: TRUE | AV137: TRUE | AW137: 80.27 | AX137: TRUE | AY137: FALSE | AZ137: FALSE | BA137: 0 | BB137: 63 | BC137: FALSE | BD137: FALSE | BE137: FALSE | BF137: FALSE | BG137: 0 | BH137: 0 | BI137: 5195.94 | BJ137: -0.0313157569 | BK137: -0.002248815356 | BL137: 117.7015 | BM137: FALSE | BN137: 0 | BO137: 0 | BP137: 0.01627158725 | BQ137: 0.00690155439 | BR137: FALSE | BS137: 0 | BT137: 0 | BU137: -2391.01 | BV137: 2804.93
A138: 106 | B138: =OFFSET(InputPriceData!B$15,CalculationsAndCharts!$A138+$A$11,0,1,1) -> 2011-02-08 | C138: =OFFSET(InputPriceData!G$15,CalculationsAndCharts!$A138+$A$11,IF($C$7,8,0),1,1) -> 2387500 | D138: =OFFSET(InputPriceData!C$15,CalculationsAndCharts!$A138+$A$11,IF($C$7,8,0),1,1) -> 80.92 | E138: =OFFSET(InputPriceData!D$15,CalculationsAndCharts!$A138+$A$11,IF($C$7,8,0),1,1) -> 80.93 | F138: =OFFSET(InputPriceData!E$15,CalculationsAndCharts!$A138+$A$11,IF($C$7,8,0),1,1) -> 79.91 | G138: =OFFSET(InputPriceData!F$15,CalculationsAndCharts!$A138+$A$11,IF($C$7,8,0),1,1) -> 80.79 | H138: FALSE | J138: FALSE | K138: FALSE | M138: FALSE | O138: FALSE | P138: FALSE | R138: =OFFSET(InputIndexData!$B$15,CalculationsAndCharts!$A138+$A$11,0,1,1) -> 2011-02-08 | S138: =OFFSET(InputIndexData!C$15,CalculationsAndCharts!$A138+$A$11,IF($C$7,8,0),1,1) -> 124.06 | T138: =OFFSET(InputIndexData!D$15,CalculationsAndCharts!$A138+$A$11,IF($C$7,8,0),1,1) -> 124.58 | U138: =OFFSET(InputIndexData!E$15,CalculationsAndCharts!$A138+$A$11,IF($C$7,8,0),1,1) -> 123.72 | V138: =OFFSET(InputIndexData!F$15,CalculationsAndCharts!$A138+$A$11,IF($C$7,8,0),1,1) -> 124.51 | AE138: 84.15 | AF138: 64.9 | AG138: 19.25 | AH138: 82.54545455 | AI138: 124.58 | AJ138: 109.87 | AK138: 14.71 | AL138: 99.52413324 | AM138: -16.9786787 | AN138: 21.70261028 | AO138: -23.8246638 | AP138: 45.52727407 | AQ138: 15.0371074 | AS138: 10 | AT138: 50 | AU138: TRUE | AV138: FALSE | AW138: 72.4 | AX138: FALSE | AY138: FALSE | AZ138: FALSE | BA138: 0 | BB138: 0 | BC138: FALSE | BD138: FALSE | BE138: FALSE | BF138: FALSE | BG138: 0 | BH138: 0 | BI138: 5195.94 | BJ138: -0.005661538462 | BK138: 0.004517950787 | BL138: 117.5028333 | BM138: FALSE | BN138: 0 | BO138: 0 | BP138: 0.01608719405 | BQ138: 0.007097998264 | BR138: FALSE | BS138: 0 | BT138: 0 | BU138: -2391.01 | BV138: 2804.93
A139: 107 | B139: =OFFSET(InputPriceData!B$15,CalculationsAndCharts!$A139+$A$11,0,1,1) -> 2011-02-07 | C139: =OFFSET(InputPriceData!G$15,CalculationsAndCharts!$A139+$A$11,IF($C$7,8,0),1,1) -> 2045000 | D139: =OFFSET(InputPriceData!C$15,CalculationsAndCharts!$A139+$A$11,IF($C$7,8,0),1,1) -> 80.77 | E139: =OFFSET(InputPriceData!D$15,CalculationsAndCharts!$A139+$A$11,IF($C$7,8,0),1,1) -> 81.99 | F139: =OFFSET(InputPriceData!E$15,CalculationsAndCharts!$A139+$A$11,IF($C$7,8,0),1,1) -> 80.64 | G139: =OFFSET(InputPriceData!F$15,CalculationsAndCharts!$A139+$A$11,IF($C$7,8,0),1,1) -> 81.25 | H139: FALSE | J139: FALSE | K139: FALSE | M139: FALSE | O139: FALSE | P139: FALSE | R139: =OFFSET(InputIndexData!$B$15,CalculationsAndCharts!$A139+$A$11,0,1,1) -> 2011-02-07 | S139: =OFFSET(InputIndexData!C$15,CalculationsAndCharts!$A139+$A$11,IF($C$7,8,0),1,1) -> 123.45 | T139: =OFFSET(InputIndexData!D$15,CalculationsAndCharts!$A139+$A$11,IF($C$7,8,0),1,1) -> 124.35 | U139: =OFFSET(InputIndexData!E$15,CalculationsAndCharts!$A139+$A$11,IF($C$7,8,0),1,1) -> 123.44 | V139: =OFFSET(InputIndexData!F$15,CalculationsAndCharts!$A139+$A$11,IF($C$7,8,0),1,1) -> 123.95 | AE139: 84.15 | AF139: 64.9 | AG139: 19.25 | AH139: 84.93506494 | AI139: 124.35 | AJ139: 109.87 | AK139: 14.48 | AL139: 97.23756906 | AM139: -12.30250413 | AN139: 21.70261028 | AO139: -23.8246638 | AP139: 45.52727407 | AQ139: 25.30825731 | AS139: 10 | AT139: 50 | AU139: TRUE | AV139: FALSE | AW139: 72.4 | AX139: FALSE | AY139: FALSE | AZ139: FALSE | BA139: 0 | BB139: 0 | BC139: FALSE | BD139: FALSE | BE139: FALSE | BF139: FALSE | BG139: 0 | BH139: 0 | BI139: 5195.94 | BJ139: 0.009818543376 | BK139: 0.006251014775 | BL139: 117.3218333 | BM139: FALSE | BN139: 0 | BO139: 0 | BP139: 0.01605550421 | BQ139: 0.007119448372 | BR139: FALSE | BS139: 0 | BT139: 0 | BU139: -2391.01 | BV139: 2804.93
